Workbook

Sheet OCENA
C2: ОЦЕНА и БРОЈ БОДОВА СЕ ПОЈАВЉУЈЕ ТЕК КАДА УНЕСЕТЕ ПОДAТКЕ НА СЛЕДЕЋИ НАЧИН: | T2: веће и једнако од | U2: мање | V2: оцена | W2: текст | Y2: РОК
C3: 1. У сива поља уписати остварени број бодова; | T3: 55 | U3: 65 | V3: 6 | W3: шест | Y3: Јануар
C4: 2. у поље рок уписати рок у коме је остварен коначан резултат и у коме је пријављен испит. | T4: 65 | U4: 75 | V4: 7 | W4: седам | Y4: Фебруар
T5: 75 | U5: 85 | V5: 8 | W5: осам | Y5: Април
T6: 85 | U6: 95 | V6: 9 | W6: девет | Y6: Јун
C7: WORD | D7: EXCEL | E7: STATS | F7: TEST_1 | G7: TEST_2 | T7: 95 | U7: 100 | V7: 10 | W7: десет | Y7: Јул
Y8: Септембар
Y9: Октобар
C10: Akt_nast_bod | D10: Akt_vežbe_bod | E10: WORD bod | F10: EXCEL bod | G10: STATS bod | H10: TEST_1 bod | I10: TEST_2 bod | J10: ISPIT | K10: Ukupno | L10: OCENA | M10: ROK
C11: =IF(J11<>"",5,"") ->  | D11: =IF(J11<>"",5,"") ->  | E11: =IF(C8<>"",IF(C8>=24,(C8/32)*14,""),"") ->  | F11: =IF(D8<>"",IF(D8>=24,(D8/32)*14,""),"") ->  | G11: =IF(E8<>"",IF(E8>=11,(E8/21)*14,""),"") ->  | H11: =IF(F8<>"",IF(F8>=9,(F8/15)*14,""),"") ->  | I11: =IF(G8<>"",IF(G8>=9,(G8/15)*14,""),"") ->  | J11: =IF(M11<>"",IF(AND(E11<>"",F11<>"",G11<>"",H11<>"",I11<>""),IF(OR(M11="Јануар",M11="Фебруар"),20,IF(OR(M11="Април",M11="Јун",M11="Јул"),15,10)),""),"") ->  | K11: =IF(AND(C11<>"",D11<>"",J11<>"",E11<>"",F11<>"",H11<>"",G11<>"",I11<>""),ROUND(SUM(C11,D11,J11,E11,F11,H11,G11,I11),0),"") ->  | L11: =IF(K11<>"",VLOOKUP(K11,T3:W7,3),"") -> 

Sheet Racun_ocene

Sheet OAS_2018_19
F1: POENI | K1: BODOVI | R1: OCENA
A2: RB | B2: Broj indeksa | C2: Prezime i ime | D2: SPORT | E2: Status | F2: WORD | G2: EXCEL | H2: P_POINT | I2: TEST_1 | J2: USLOV | K2: Akt_nast_bod | L2: Akt_vežbe_bod | M2: WORD bod | N2: EXCEL bod | O2: P_POINT bod | P2: TEST_1 bod | Q2: ISPIT | R2: Ukupno | S2: OCENA | T2: ROK | U2: Datum ocena | V2: PRISUTVO | W2: Datum prisustvo | X2: PRAKTIČNO ISPIT | Y2: Datum praktično | Z2: Test ocena | AA2: Datum test | AB2: ISPIT ocena | AC2: УКУПНО | AD2: OCENA | AE2: Datum ispit | AK2: веће и једнако од | AL2: мање | AM2: оцена | AN2: текст | AP2: РОК | AQ2: Присуство | AR2: Активност | AS2: Практично | AT2: Тест | AU2: Испит
A3: =PODACI_STUDENTI!A2 -> 1 | B3: =PODACI_STUDENTI!B2 -> 2018/0002 | C3: =PODACI_STUDENTI!C2 -> Anđelković Predrag | D3: =PODACI_STUDENTI!D2 -> 0 | F3: =IF(OR(Predrok_Mart!F3<>"",Predrok_April!F3<>"",Januar!F3<>"",Februar!F3<>"",Juni!F3<>"",Juli!F3,Septembar!F3<>"",Oktobar!F3<>"",Oktobar_2!F3<>""),MAX(Predrok_Mart!F3,Predrok_April!F3,Januar!F3,Februar!F3,Juni!F3,Juli!F3,Septembar!F3,Oktobar!F3,Oktobar_2!F3),"") -> 29 | G3: =IF(OR(Predrok_Mart!G3<>"",Predrok_April!G3<>"",Januar!G3<>"",Februar!G3<>"",Juni!G3<>"",Juli!G3,Septembar!G3<>"",Oktobar!G3<>"",Oktobar_2!G3<>""),MAX(Predrok_Mart!G3,Predrok_April!G3,Januar!G3,Februar!G3,Juni!G3,Juli!G3,Septembar!G3,Oktobar!G3,Oktobar_2!G3),"") -> 26 | H3: =IF(OR(Predrok_Mart!H3<>"",Predrok_April!H3<>"",Januar!H3<>"",Februar!H3<>"",Juni!H3<>"",Juli!H3,Septembar!H3<>"",Oktobar!H3<>"",Oktobar_2!H3<>""),MAX(Predrok_Mart!H3,Predrok_April!H3,Januar!H3,Februar!H3,Juni!H3,Juli!H3,Septembar!H3,Oktobar!H3,Oktobar_2!H3),"") -> 29 | I3: =IF(OR(Predrok_Mart!I3<>"",Predrok_April!I3<>"",Januar!I3<>"",Februar!I3<>"",Juni!I3<>"",Juli!I3,Septembar!I3<>"",Oktobar!I3<>"",Oktobar_2!I3<>""),MAX(Predrok_Mart!I3,Predrok_April!I3,Januar!I3,Februar!I3,Juni!I3,Juli!I3,Septembar!I3,Oktobar!I3,Oktobar_2!I3),"") -> 14 | J3: =IF(Zbirni_podaci[[#This Row],[Broj indeksa]]<>"",IF(AND(Zbirni_podaci[[#This Row],[WORD]]<>"",Zbirni_podaci[[#This Row],[EXCEL]]<>"",Zbirni_podaci[[#This Row],[P_POINT]]<>"",Zbirni_podaci[[#This Row],[TEST_1]]<>""),"DA","NE"),"") -> DA | K3: =IF(Q3<>"",5,"") -> 5 | L3: =IF(Q3<>"",5,"") -> 5 | M3: =IF(F3<>"",IF(F3>=24,(F3/32)*14,""),"") -> 13 | N3: =IF(G3<>"",IF(G3>=24,(G3/32)*14,""),"") -> 11 | O3: =IF(H3<>"",IF(H3>=11,(H3/32)*14,""),"") -> 13 | P3: =IF(I3<>"",IF(I3>=9,(I3/15)*28,""),"") -> 26 | Q3: =IF(AND(Zbirni_podaci[[#This Row],[ROK]]<>"",Zbirni_podaci[[#This Row],[WORD bod]]<>"",Zbirni_podaci[[#This Row],[EXCEL bod]]<>"",Zbirni_podaci[[#This Row],[P_POINT bod]]<>"",Zbirni_podaci[[#This Row],[TEST_1 bod]]<>""),VLOOKUP(Zbirni_podaci[[#This Row],[ROK]],bodovi_aktivnost,7,FALSE),"") -> 20 | R3: =IF(AND(Zbirni_podaci[[#This Row],[Akt_nast_bod]]<>"",Zbirni_podaci[[#This Row],[Akt_vežbe_bod]]<>"",Zbirni_podaci[[#This Row],[WORD bod]]<>"",Zbirni_podaci[[#This Row],[EXCEL bod]]<>"",Zbirni_podaci[[#This Row],[P_POINT bod]]<>"",Zbirni_podaci[[#This Row],[TEST_1 bod]]<>""),ROUND(SUM(Zbirni_podaci[[#This Row],[Akt_nast_bod]:[ISPIT]]),0),"") -> 93 | S3: =IF(R3<>"",VLOOKUP(R3,$AK$3:$AM$7,3),"") -> 10 | T3: Јун | U3: =IFERROR(IF(Zbirni_podaci[[#This Row],[ROK]]<>"",VLOOKUP(Zbirni_podaci[[#This Row],[ROK]],DATUMI,6,FALSE),""),"") -> 2019-06-14 | V3: =IF(AND(S3<>"",T3<>""),L3+K3,"") -> 10 | W3: =IFERROR(IF(Zbirni_podaci[[#This Row],[ROK]]<>"",VLOOKUP(Zbirni_podaci[[#This Row],[ROK]],DATUMI,2,FALSE),""),"") -> 2019-05-27 | X3: =IF(V3<>"",SUM(M3,N3,O3),"") -> 37 | Y3: =IFERROR(IF(Zbirni_podaci[[#This Row],[ROK]]<>"",VLOOKUP(Zbirni_podaci[[#This Row],[ROK]],DATUMI,3,FALSE),""),"") -> 2019-05-27 | Z3: =IF(V3<>"",P3,"") -> 26 | AA3: =IFERROR(IF(Zbirni_podaci[[#This Row],[ROK]]<>"",VLOOKUP(Zbirni_podaci[[#This Row],[ROK]],DATUMI,4,FALSE),""),"") -> 2019-06-14 | AB3: =IF(AND(S3<>"",T3<>""),Q3,"") -> 20 | AC3: =IF(V3<>"",SUM(V3,AB3,X3,Z3),"") -> 93 | AD3: =IF(AND(S3<>"",T3<>""),S3,"") -> 10 | AE3: =IFERROR(IF(Zbirni_podaci[[#This Row],[ROK]]<>"",VLOOKUP(Zbirni_podaci[[#This Row],[ROK]],DATUMI,6,FALSE),""),"") -> 2019-06-14 | AK3: 51 | AL3: 61 | AM3: 6 | AN3: шест | AP3: Јун | AQ3: 2019-05-27 | AR3: 2019-05-27 | AS3: 2019-06-14 | AT3: 2019-06-14 | AU3: 2019-06-14 | AV3: 20
A4: =PODACI_STUDENTI!A3 -> 2 | B4: =PODACI_STUDENTI!B3 -> 2017/0090 | C4: =PODACI_STUDENTI!C3 -> Antolović Milan | D4: =PODACI_STUDENTI!D3 -> 0 | F4: =IF(OR(Predrok_Mart!F4<>"",Predrok_April!F4<>"",Januar!F4<>"",Februar!F4<>"",Juni!F4<>"",Juli!F4,Septembar!F4<>"",Oktobar!F4<>"",Oktobar_2!F4<>""),MAX(Predrok_Mart!F4,Predrok_April!F4,Januar!F4,Februar!F4,Juni!F4,Juli!F4,Septembar!F4,Oktobar!F4,Oktobar_2!F4),"") ->  | G4: =IF(OR(Predrok_Mart!G4<>"",Predrok_April!G4<>"",Januar!G4<>"",Februar!G4<>"",Juni!G4<>"",Juli!G4,Septembar!G4<>"",Oktobar!G4<>"",Oktobar_2!G4<>""),MAX(Predrok_Mart!G4,Predrok_April!G4,Januar!G4,Februar!G4,Juni!G4,Juli!G4,Septembar!G4,Oktobar!G4,Oktobar_2!G4),"") -> 27 | H4: =IF(OR(Predrok_Mart!H4<>"",Predrok_April!H4<>"",Januar!H4<>"",Februar!H4<>"",Juni!H4<>"",Juli!H4,Septembar!H4<>"",Oktobar!H4<>"",Oktobar_2!H4<>""),MAX(Predrok_Mart!H4,Predrok_April!H4,Januar!H4,Februar!H4,Juni!H4,Juli!H4,Septembar!H4,Oktobar!H4,Oktobar_2!H4),"") ->  | I4: =IF(OR(Predrok_Mart!I4<>"",Predrok_April!I4<>"",Januar!I4<>"",Februar!I4<>"",Juni!I4<>"",Juli!I4,Septembar!I4<>"",Oktobar!I4<>"",Oktobar_2!I4<>""),MAX(Predrok_Mart!I4,Predrok_April!I4,Januar!I4,Februar!I4,Juni!I4,Juli!I4,Septembar!I4,Oktobar!I4,Oktobar_2!I4),"") ->  | J4: =IF(Zbirni_podaci[[#This Row],[Broj indeksa]]<>"",IF(AND(Zbirni_podaci[[#This Row],[WORD]]<>"",Zbirni_podaci[[#This Row],[EXCEL]]<>"",Zbirni_podaci[[#This Row],[P_POINT]]<>"",Zbirni_podaci[[#This Row],[TEST_1]]<>""),"DA","NE"),"") -> NE | N4: 12 | Q4: =IF(AND(Zbirni_podaci[[#This Row],[ROK]]<>"",Zbirni_podaci[[#This Row],[WORD bod]]<>"",Zbirni_podaci[[#This Row],[EXCEL bod]]<>"",Zbirni_podaci[[#This Row],[P_POINT bod]]<>"",Zbirni_podaci[[#This Row],[TEST_1 bod]]<>""),VLOOKUP(Zbirni_podaci[[#This Row],[ROK]],bodovi_aktivnost,7,FALSE),"") ->  | R4: =IF(AND(Zbirni_podaci[[#This Row],[Akt_nast_bod]]<>"",Zbirni_podaci[[#This Row],[Akt_vežbe_bod]]<>"",Zbirni_podaci[[#This Row],[WORD bod]]<>"",Zbirni_podaci[[#This Row],[EXCEL bod]]<>"",Zbirni_podaci[[#This Row],[P_POINT bod]]<>"",Zbirni_podaci[[#This Row],[TEST_1 bod]]<>""),ROUND(SUM(Zbirni_podaci[[#This Row],[Akt_nast_bod]:[ISPIT]]),0),"") ->  | S4: =IF(R4<>"",VLOOKUP(R4,$AK$3:$AM$7,3),"") ->  | U4: =IFERROR(IF(Zbirni_podaci[[#This Row],[ROK]]<>"",VLOOKUP(Zbirni_podaci[[#This Row],[ROK]],DATUMI,6,FALSE),""),"") ->  | W4: =IFERROR(IF(Zbirni_podaci[[#This Row],[ROK]]<>"",VLOOKUP(Zbirni_podaci[[#This Row],[ROK]],DATUMI,2,FALSE),""),"") ->  | Y4: =IFERROR(IF(Zbirni_podaci[[#This Row],[ROK]]<>"",VLOOKUP(Zbirni_podaci[[#This Row],[ROK]],DATUMI,3,FALSE),""),"") ->  | AA4: =IFERROR(IF(Zbirni_podaci[[#This Row],[ROK]]<>"",VLOOKUP(Zbirni_podaci[[#This Row],[ROK]],DATUMI,4,FALSE),""),"") ->  | AB4: =IF(AND(S4<>"",T4<>""),Q4,"") ->  | AC4: =IF(V4<>"",SUM(V4,AB4,X4,Z4),"") ->  | AE4: =IFERROR(IF(Zbirni_podaci[[#This Row],[ROK]]<>"",VLOOKUP(Zbirni_podaci[[#This Row],[ROK]],DATUMI,6,FALSE),""),"") ->  | AK4: 61 | AL4: 71 | AM4: 7 | AN4: седам | AP4: Јул | AQ4: 2019-05-27 | AR4: 2019-05-27 | AS4: 2019-07-01 | AT4: 2019-07-01 | AU4: 2019-07-01 | AV4: 15
A5: =PODACI_STUDENTI!A4 -> 3 | B5: =PODACI_STUDENTI!B4 -> 2018/0037 | C5: =PODACI_STUDENTI!C4 -> Batalo Aleksandar | D5: =PODACI_STUDENTI!D4 -> 0 | F5: =IF(OR(Predrok_Mart!F5<>"",Predrok_April!F5<>"",Januar!F5<>"",Februar!F5<>"",Juni!F5<>"",Juli!F5,Septembar!F5<>"",Oktobar!F5<>"",Oktobar_2!F5<>""),MAX(Predrok_Mart!F5,Predrok_April!F5,Januar!F5,Februar!F5,Juni!F5,Juli!F5,Septembar!F5,Oktobar!F5,Oktobar_2!F5),"") -> 24 | G5: =IF(OR(Predrok_Mart!G5<>"",Predrok_April!G5<>"",Januar!G5<>"",Februar!G5<>"",Juni!G5<>"",Juli!G5,Septembar!G5<>"",Oktobar!G5<>"",Oktobar_2!G5<>""),MAX(Predrok_Mart!G5,Predrok_April!G5,Januar!G5,Februar!G5,Juni!G5,Juli!G5,Septembar!G5,Oktobar!G5,Oktobar_2!G5),"") -> 24 | H5: =IF(OR(Predrok_Mart!H5<>"",Predrok_April!H5<>"",Januar!H5<>"",Februar!H5<>"",Juni!H5<>"",Juli!H5,Septembar!H5<>"",Oktobar!H5<>"",Oktobar_2!H5<>""),MAX(Predrok_Mart!H5,Predrok_April!H5,Januar!H5,Februar!H5,Juni!H5,Juli!H5,Septembar!H5,Oktobar!H5,Oktobar_2!H5),"") -> 27 | I5: =IF(OR(Predrok_Mart!I5<>"",Predrok_April!I5<>"",Januar!I5<>"",Februar!I5<>"",Juni!I5<>"",Juli!I5,Septembar!I5<>"",Oktobar!I5<>"",Oktobar_2!I5<>""),MAX(Predrok_Mart!I5,Predrok_April!I5,Januar!I5,Februar!I5,Juni!I5,Juli!I5,Septembar!I5,Oktobar!I5,Oktobar_2!I5),"") -> 13 | J5: =IF(Zbirni_podaci[[#This Row],[Broj indeksa]]<>"",IF(AND(Zbirni_podaci[[#This Row],[WORD]]<>"",Zbirni_podaci[[#This Row],[EXCEL]]<>"",Zbirni_podaci[[#This Row],[P_POINT]]<>"",Zbirni_podaci[[#This Row],[TEST_1]]<>""),"DA","NE"),"") -> DA | K5: 5 | L5: 5 | M5: =IF(F5<>"",IF(F5>=24,(F5/32)*14,""),"") -> 11 | N5: 11 | O5: 12 | P5: 24 | Q5: =IF(AND(Zbirni_podaci[[#This Row],[ROK]]<>"",Zbirni_podaci[[#This Row],[WORD bod]]<>"",Zbirni_podaci[[#This Row],[EXCEL bod]]<>"",Zbirni_podaci[[#This Row],[P_POINT bod]]<>"",Zbirni_podaci[[#This Row],[TEST_1 bod]]<>""),VLOOKUP(Zbirni_podaci[[#This Row],[ROK]],bodovi_aktivnost,7,FALSE),"") -> 20 | R5: =IF(AND(Zbirni_podaci[[#This Row],[Akt_nast_bod]]<>"",Zbirni_podaci[[#This Row],[Akt_vežbe_bod]]<>"",Zbirni_podaci[[#This Row],[WORD bod]]<>"",Zbirni_podaci[[#This Row],[EXCEL bod]]<>"",Zbirni_podaci[[#This Row],[P_POINT bod]]<>"",Zbirni_podaci[[#This Row],[TEST_1 bod]]<>""),ROUND(SUM(Zbirni_podaci[[#This Row],[Akt_nast_bod]:[ISPIT]]),0),"") -> 87 | S5: 9 | T5: Јун | U5: =IFERROR(IF(Zbirni_podaci[[#This Row],[ROK]]<>"",VLOOKUP(Zbirni_podaci[[#This Row],[ROK]],DATUMI,6,FALSE),""),"") -> 2019-06-14 | V5: 10 | W5: =IFERROR(IF(Zbirni_podaci[[#This Row],[ROK]]<>"",VLOOKUP(Zbirni_podaci[[#This Row],[ROK]],DATUMI,2,FALSE),""),"") -> 2019-05-27 | X5: 33 | Y5: =IFERROR(IF(Zbirni_podaci[[#This Row],[ROK]]<>"",VLOOKUP(Zbirni_podaci[[#This Row],[ROK]],DATUMI,3,FALSE),""),"") -> 2019-05-27 | Z5: 24 | AA5: =IFERROR(IF(Zbirni_podaci[[#This Row],[ROK]]<>"",VLOOKUP(Zbirni_podaci[[#This Row],[ROK]],DATUMI,4,FALSE),""),"") -> 2019-06-14 | AB5: 20 | AC5: 87 | AD5: 9 | AE5: =IFERROR(IF(Zbirni_podaci[[#This Row],[ROK]]<>"",VLOOKUP(Zbirni_podaci[[#This Row],[ROK]],DATUMI,6,FALSE),""),"") -> 2019-06-14 | AK5: 71 | AL5: 81 | AM5: 8 | AN5: осам | AP5: Септембар | AQ5: 2019-05-27 | AR5: 2019-05-27 | AS5: 2019-08-28 | AT5: 2019-08-28 | AU5: 2019-08-28 | AV5: 10
A6: =PODACI_STUDENTI!A5 -> 4 | B6: =PODACI_STUDENTI!B5 -> 2018/0038 | C6: =PODACI_STUDENTI!C5 -> Bahun Filip | D6: =PODACI_STUDENTI!D5 -> 0 | F6: =IF(OR(Predrok_Mart!F6<>"",Predrok_April!F6<>"",Januar!F6<>"",Februar!F6<>"",Juni!F6<>"",Juli!F6,Septembar!F6<>"",Oktobar!F6<>"",Oktobar_2!F6<>""),MAX(Predrok_Mart!F6,Predrok_April!F6,Januar!F6,Februar!F6,Juni!F6,Juli!F6,Septembar!F6,Oktobar!F6,Oktobar_2!F6),"") -> 28 | G6: =IF(OR(Predrok_Mart!G6<>"",Predrok_April!G6<>"",Januar!G6<>"",Februar!G6<>"",Juni!G6<>"",Juli!G6,Septembar!G6<>"",Oktobar!G6<>"",Oktobar_2!G6<>""),MAX(Predrok_Mart!G6,Predrok_April!G6,Januar!G6,Februar!G6,Juni!G6,Juli!G6,Septembar!G6,Oktobar!G6,Oktobar_2!G6),"") -> 31 | H6: =IF(OR(Predrok_Mart!H6<>"",Predrok_April!H6<>"",Januar!H6<>"",Februar!H6<>"",Juni!H6<>"",Juli!H6,Septembar!H6<>"",Oktobar!H6<>"",Oktobar_2!H6<>""),MAX(Predrok_Mart!H6,Predrok_April!H6,Januar!H6,Februar!H6,Juni!H6,Juli!H6,Septembar!H6,Oktobar!H6,Oktobar_2!H6),"") -> 28 | I6: =IF(OR(Predrok_Mart!I6<>"",Predrok_April!I6<>"",Januar!I6<>"",Februar!I6<>"",Juni!I6<>"",Juli!I6,Septembar!I6<>"",Oktobar!I6<>"",Oktobar_2!I6<>""),MAX(Predrok_Mart!I6,Predrok_April!I6,Januar!I6,Februar!I6,Juni!I6,Juli!I6,Septembar!I6,Oktobar!I6,Oktobar_2!I6),"") -> 11 | J6: =IF(Zbirni_podaci[[#This Row],[Broj indeksa]]<>"",IF(AND(Zbirni_podaci[[#This Row],[WORD]]<>"",Zbirni_podaci[[#This Row],[EXCEL]]<>"",Zbirni_podaci[[#This Row],[P_POINT]]<>"",Zbirni_podaci[[#This Row],[TEST_1]]<>""),"DA","NE"),"") -> DA | K6: 5 | L6: 5 | M6: 12 | N6: 14 | O6: 12 | P6: 21 | Q6: =IF(AND(Zbirni_podaci[[#This Row],[ROK]]<>"",Zbirni_podaci[[#This Row],[WORD bod]]<>"",Zbirni_podaci[[#This Row],[EXCEL bod]]<>"",Zbirni_podaci[[#This Row],[P_POINT bod]]<>"",Zbirni_podaci[[#This Row],[TEST_1 bod]]<>""),VLOOKUP(Zbirni_podaci[[#This Row],[ROK]],bodovi_aktivnost,7,FALSE),"") -> 20 | R6: =IF(AND(Zbirni_podaci[[#This Row],[Akt_nast_bod]]<>"",Zbirni_podaci[[#This Row],[Akt_vežbe_bod]]<>"",Zbirni_podaci[[#This Row],[WORD bod]]<>"",Zbirni_podaci[[#This Row],[EXCEL bod]]<>"",Zbirni_podaci[[#This Row],[P_POINT bod]]<>"",Zbirni_podaci[[#This Row],[TEST_1 bod]]<>""),ROUND(SUM(Zbirni_podaci[[#This Row],[Akt_nast_bod]:[ISPIT]]),0),"") -> 89 | S6: 9 | T6: Јун | U6: =IFERROR(IF(Zbirni_podaci[[#This Row],[ROK]]<>"",VLOOKUP(Zbirni_podaci[[#This Row],[ROK]],DATUMI,6,FALSE),""),"") -> 2019-06-14 | V6: 10 | W6: =IFERROR(IF(Zbirni_podaci[[#This Row],[ROK]]<>"",VLOOKUP(Zbirni_podaci[[#This Row],[ROK]],DATUMI,2,FALSE),""),"") -> 2019-05-27 | X6: 38 | Y6: =IFERROR(IF(Zbirni_podaci[[#This Row],[ROK]]<>"",VLOOKUP(Zbirni_podaci[[#This Row],[ROK]],DATUMI,3,FALSE),""),"") -> 2019-05-27 | Z6: 21 | AA6: =IFERROR(IF(Zbirni_podaci[[#This Row],[ROK]]<>"",VLOOKUP(Zbirni_podaci[[#This Row],[ROK]],DATUMI,4,FALSE),""),"") -> 2019-06-14 | AB6: 20 | AC6: 89 | AD6: 9 | AE6: =IFERROR(IF(Zbirni_podaci[[#This Row],[ROK]]<>"",VLOOKUP(Zbirni_podaci[[#This Row],[ROK]],DATUMI,6,FALSE),""),"") -> 2019-06-14 | AK6: 81 | AL6: 91 | AM6: 9 | AN6: девет | AP6: Октобар | AQ6: 2019-05-27 | AR6: 2019-05-27 | AS6: 2019-09-10 | AT6: 2019-09-10 | AU6: 2019-09-10 | AV6: 5
A7: =PODACI_STUDENTI!A6 -> 5 | B7: =PODACI_STUDENTI!B6 -> 2018/0011 | C7: =PODACI_STUDENTI!C6 -> Berbatović Dragomir | D7: =PODACI_STUDENTI!D6 -> 0 | F7: =IF(OR(Predrok_Mart!F7<>"",Predrok_April!F7<>"",Januar!F7<>"",Februar!F7<>"",Juni!F7<>"",Juli!F7,Septembar!F7<>"",Oktobar!F7<>"",Oktobar_2!F7<>""),MAX(Predrok_Mart!F7,Predrok_April!F7,Januar!F7,Februar!F7,Juni!F7,Juli!F7,Septembar!F7,Oktobar!F7,Oktobar_2!F7),"") -> 25 | G7: =IF(OR(Predrok_Mart!G7<>"",Predrok_April!G7<>"",Januar!G7<>"",Februar!G7<>"",Juni!G7<>"",Juli!G7,Septembar!G7<>"",Oktobar!G7<>"",Oktobar_2!G7<>""),MAX(Predrok_Mart!G7,Predrok_April!G7,Januar!G7,Februar!G7,Juni!G7,Juli!G7,Septembar!G7,Oktobar!G7,Oktobar_2!G7),"") -> 29 | H7: =IF(OR(Predrok_Mart!H7<>"",Predrok_April!H7<>"",Januar!H7<>"",Februar!H7<>"",Juni!H7<>"",Juli!H7,Septembar!H7<>"",Oktobar!H7<>"",Oktobar_2!H7<>""),MAX(Predrok_Mart!H7,Predrok_April!H7,Januar!H7,Februar!H7,Juni!H7,Juli!H7,Septembar!H7,Oktobar!H7,Oktobar_2!H7),"") -> 31 | I7: =IF(OR(Predrok_Mart!I7<>"",Predrok_April!I7<>"",Januar!I7<>"",Februar!I7<>"",Juni!I7<>"",Juli!I7,Septembar!I7<>"",Oktobar!I7<>"",Oktobar_2!I7<>""),MAX(Predrok_Mart!I7,Predrok_April!I7,Januar!I7,Februar!I7,Juni!I7,Juli!I7,Septembar!I7,Oktobar!I7,Oktobar_2!I7),"") -> 14 | J7: =IF(Zbirni_podaci[[#This Row],[Broj indeksa]]<>"",IF(AND(Zbirni_podaci[[#This Row],[WORD]]<>"",Zbirni_podaci[[#This Row],[EXCEL]]<>"",Zbirni_podaci[[#This Row],[P_POINT]]<>"",Zbirni_podaci[[#This Row],[TEST_1]]<>""),"DA","NE"),"") -> DA | K7: 5 | L7: 5 | M7: 11 | N7: 13 | O7: 14 | P7: 26 | Q7: =IF(AND(Zbirni_podaci[[#This Row],[ROK]]<>"",Zbirni_podaci[[#This Row],[WORD bod]]<>"",Zbirni_podaci[[#This Row],[EXCEL bod]]<>"",Zbirni_podaci[[#This Row],[P_POINT bod]]<>"",Zbirni_podaci[[#This Row],[TEST_1 bod]]<>""),VLOOKUP(Zbirni_podaci[[#This Row],[ROK]],bodovi_aktivnost,7,FALSE),"") -> 20 | R7: =IF(AND(Zbirni_podaci[[#This Row],[Akt_nast_bod]]<>"",Zbirni_podaci[[#This Row],[Akt_vežbe_bod]]<>"",Zbirni_podaci[[#This Row],[WORD bod]]<>"",Zbirni_podaci[[#This Row],[EXCEL bod]]<>"",Zbirni_podaci[[#This Row],[P_POINT bod]]<>"",Zbirni_podaci[[#This Row],[TEST_1 bod]]<>""),ROUND(SUM(Zbirni_podaci[[#This Row],[Akt_nast_bod]:[ISPIT]]),0),"") -> 93 | S7: 10 | T7: Јун | U7: =IFERROR(IF(Zbirni_podaci[[#This Row],[ROK]]<>"",VLOOKUP(Zbirni_podaci[[#This Row],[ROK]],DATUMI,6,FALSE),""),"") -> 2019-06-14 | V7: 10 | W7: =IFERROR(IF(Zbirni_podaci[[#This Row],[ROK]]<>"",VLOOKUP(Zbirni_podaci[[#This Row],[ROK]],DATUMI,2,FALSE),""),"") -> 2019-05-27 | X7: 37 | Y7: =IFERROR(IF(Zbirni_podaci[[#This Row],[ROK]]<>"",VLOOKUP(Zbirni_podaci[[#This Row],[ROK]],DATUMI,3,FALSE),""),"") -> 2019-05-27 | Z7: 26 | AA7: =IFERROR(IF(Zbirni_podaci[[#This Row],[ROK]]<>"",VLOOKUP(Zbirni_podaci[[#This Row],[ROK]],DATUMI,4,FALSE),""),"") -> 2019-06-14 | AB7: 20 | AC7: 93 | AD7: 10 | AE7: =IFERROR(IF(Zbirni_podaci[[#This Row],[ROK]]<>"",VLOOKUP(Zbirni_podaci[[#This Row],[ROK]],DATUMI,6,FALSE),""),"") -> 2019-06-14 | AK7: 91 | AL7: 100 | AM7: 10 | AN7: десет | AP7: Oктобар 2 | AQ7: 2019-05-27 | AR7: 2019-05-27 | AS7: 2019-09-20 | AT7: 2019-09-20 | AU7: 2019-09-20 | AV7: 5
A8: =PODACI_STUDENTI!A7 -> 6 | B8: =PODACI_STUDENTI!B7 -> 2018/0072 | C8: =PODACI_STUDENTI!C7 -> Bečanović Slavoljub | D8: =PODACI_STUDENTI!D7 -> 0 | F8: =IF(OR(Predrok_Mart!F8<>"",Predrok_April!F8<>"",Januar!F8<>"",Februar!F8<>"",Juni!F8<>"",Juli!F8,Septembar!F8<>"",Oktobar!F8<>"",Oktobar_2!F8<>""),MAX(Predrok_Mart!F8,Predrok_April!F8,Januar!F8,Februar!F8,Juni!F8,Juli!F8,Septembar!F8,Oktobar!F8,Oktobar_2!F8),"") -> 28 | G8: =IF(OR(Predrok_Mart!G8<>"",Predrok_April!G8<>"",Januar!G8<>"",Februar!G8<>"",Juni!G8<>"",Juli!G8,Septembar!G8<>"",Oktobar!G8<>"",Oktobar_2!G8<>""),MAX(Predrok_Mart!G8,Predrok_April!G8,Januar!G8,Februar!G8,Juni!G8,Juli!G8,Septembar!G8,Oktobar!G8,Oktobar_2!G8),"") -> 28 | H8: =IF(OR(Predrok_Mart!H8<>"",Predrok_April!H8<>"",Januar!H8<>"",Februar!H8<>"",Juni!H8<>"",Juli!H8,Septembar!H8<>"",Oktobar!H8<>"",Oktobar_2!H8<>""),MAX(Predrok_Mart!H8,Predrok_April!H8,Januar!H8,Februar!H8,Juni!H8,Juli!H8,Septembar!H8,Oktobar!H8,Oktobar_2!H8),"") -> 27 | I8: =IF(OR(Predrok_Mart!I8<>"",Predrok_April!I8<>"",Januar!I8<>"",Februar!I8<>"",Juni!I8<>"",Juli!I8,Septembar!I8<>"",Oktobar!I8<>"",Oktobar_2!I8<>""),MAX(Predrok_Mart!I8,Predrok_April!I8,Januar!I8,Februar!I8,Juni!I8,Juli!I8,Septembar!I8,Oktobar!I8,Oktobar_2!I8),"") -> 10 | J8: =IF(Zbirni_podaci[[#This Row],[Broj indeksa]]<>"",IF(AND(Zbirni_podaci[[#This Row],[WORD]]<>"",Zbirni_podaci[[#This Row],[EXCEL]]<>"",Zbirni_podaci[[#This Row],[P_POINT]]<>"",Zbirni_podaci[[#This Row],[TEST_1]]<>""),"DA","NE"),"") -> DA | K8: 5 | L8: 5 | M8: 12 | N8: 12 | O8: 12 | P8: 19 | Q8: =IF(AND(Zbirni_podaci[[#This Row],[ROK]]<>"",Zbirni_podaci[[#This Row],[WORD bod]]<>"",Zbirni_podaci[[#This Row],[EXCEL bod]]<>"",Zbirni_podaci[[#This Row],[P_POINT bod]]<>"",Zbirni_podaci[[#This Row],[TEST_1 bod]]<>""),VLOOKUP(Zbirni_podaci[[#This Row],[ROK]],bodovi_aktivnost,7,FALSE),"") -> 20 | R8: =IF(AND(Zbirni_podaci[[#This Row],[Akt_nast_bod]]<>"",Zbirni_podaci[[#This Row],[Akt_vežbe_bod]]<>"",Zbirni_podaci[[#This Row],[WORD bod]]<>"",Zbirni_podaci[[#This Row],[EXCEL bod]]<>"",Zbirni_podaci[[#This Row],[P_POINT bod]]<>"",Zbirni_podaci[[#This Row],[TEST_1 bod]]<>""),ROUND(SUM(Zbirni_podaci[[#This Row],[Akt_nast_bod]:[ISPIT]]),0),"") -> 85 | S8: 9 | T8: Јун | U8: =IFERROR(IF(Zbirni_podaci[[#This Row],[ROK]]<>"",VLOOKUP(Zbirni_podaci[[#This Row],[ROK]],DATUMI,6,FALSE),""),"") -> 2019-06-14 | V8: 10 | W8: =IFERROR(IF(Zbirni_podaci[[#This Row],[ROK]]<>"",VLOOKUP(Zbirni_podaci[[#This Row],[ROK]],DATUMI,2,FALSE),""),"") -> 2019-05-27 | X8: 36 | Y8: =IFERROR(IF(Zbirni_podaci[[#This Row],[ROK]]<>"",VLOOKUP(Zbirni_podaci[[#This Row],[ROK]],DATUMI,3,FALSE),""),"") -> 2019-05-27 | Z8: 19 | AA8: =IFERROR(IF(Zbirni_podaci[[#This Row],[ROK]]<>"",VLOOKUP(Zbirni_podaci[[#This Row],[ROK]],DATUMI,4,FALSE),""),"") -> 2019-06-14 | AB8: 20 | AC8: 85 | AD8: 9 | AE8: =IFERROR(IF(Zbirni_podaci[[#This Row],[ROK]]<>"",VLOOKUP(Zbirni_podaci[[#This Row],[ROK]],DATUMI,6,FALSE),""),"") -> 2019-06-14
A9: =PODACI_STUDENTI!A8 -> 7 | B9: =PODACI_STUDENTI!B8 -> 2018/0136 | C9: =PODACI_STUDENTI!C8 -> Vasiljević Milan | D9: =PODACI_STUDENTI!D8 -> 0 | F9: =IF(OR(Predrok_Mart!F9<>"",Predrok_April!F9<>"",Januar!F9<>"",Februar!F9<>"",Juni!F9<>"",Juli!F9,Septembar!F9<>"",Oktobar!F9<>"",Oktobar_2!F9<>""),MAX(Predrok_Mart!F9,Predrok_April!F9,Januar!F9,Februar!F9,Juni!F9,Juli!F9,Septembar!F9,Oktobar!F9,Oktobar_2!F9),"") -> 24 | G9: =IF(OR(Predrok_Mart!G9<>"",Predrok_April!G9<>"",Januar!G9<>"",Februar!G9<>"",Juni!G9<>"",Juli!G9,Septembar!G9<>"",Oktobar!G9<>"",Oktobar_2!G9<>""),MAX(Predrok_Mart!G9,Predrok_April!G9,Januar!G9,Februar!G9,Juni!G9,Juli!G9,Septembar!G9,Oktobar!G9,Oktobar_2!G9),"") -> 26 | H9: =IF(OR(Predrok_Mart!H9<>"",Predrok_April!H9<>"",Januar!H9<>"",Februar!H9<>"",Juni!H9<>"",Juli!H9,Septembar!H9<>"",Oktobar!H9<>"",Oktobar_2!H9<>""),MAX(Predrok_Mart!H9,Predrok_April!H9,Januar!H9,Februar!H9,Juni!H9,Juli!H9,Septembar!H9,Oktobar!H9,Oktobar_2!H9),"") -> 28 | I9: =IF(OR(Predrok_Mart!I9<>"",Predrok_April!I9<>"",Januar!I9<>"",Februar!I9<>"",Juni!I9<>"",Juli!I9,Septembar!I9<>"",Oktobar!I9<>"",Oktobar_2!I9<>""),MAX(Predrok_Mart!I9,Predrok_April!I9,Januar!I9,Februar!I9,Juni!I9,Juli!I9,Septembar!I9,Oktobar!I9,Oktobar_2!I9),"") -> 11 | J9: =IF(Zbirni_podaci[[#This Row],[Broj indeksa]]<>"",IF(AND(Zbirni_podaci[[#This Row],[WORD]]<>"",Zbirni_podaci[[#This Row],[EXCEL]]<>"",Zbirni_podaci[[#This Row],[P_POINT]]<>"",Zbirni_podaci[[#This Row],[TEST_1]]<>""),"DA","NE"),"") -> DA | K9: 5 | L9: 5 | M9: 11 | N9: 11 | O9: 12 | P9: 21 | Q9: =IF(AND(Zbirni_podaci[[#This Row],[ROK]]<>"",Zbirni_podaci[[#This Row],[WORD bod]]<>"",Zbirni_podaci[[#This Row],[EXCEL bod]]<>"",Zbirni_podaci[[#This Row],[P_POINT bod]]<>"",Zbirni_podaci[[#This Row],[TEST_1 bod]]<>""),VLOOKUP(Zbirni_podaci[[#This Row],[ROK]],bodovi_aktivnost,7,FALSE),"") -> 15 | R9: =IF(AND(Zbirni_podaci[[#This Row],[Akt_nast_bod]]<>"",Zbirni_podaci[[#This Row],[Akt_vežbe_bod]]<>"",Zbirni_podaci[[#This Row],[WORD bod]]<>"",Zbirni_podaci[[#This Row],[EXCEL bod]]<>"",Zbirni_podaci[[#This Row],[P_POINT bod]]<>"",Zbirni_podaci[[#This Row],[TEST_1 bod]]<>""),ROUND(SUM(Zbirni_podaci[[#This Row],[Akt_nast_bod]:[ISPIT]]),0),"") -> 80 | S9: 8 | T9: Јул | U9: =IFERROR(IF(Zbirni_podaci[[#This Row],[ROK]]<>"",VLOOKUP(Zbirni_podaci[[#This Row],[ROK]],DATUMI,6,FALSE),""),"") -> 2019-07-01 | V9: 10 | W9: =IFERROR(IF(Zbirni_podaci[[#This Row],[ROK]]<>"",VLOOKUP(Zbirni_podaci[[#This Row],[ROK]],DATUMI,2,FALSE),""),"") -> 2019-05-27 | X9: 34 | Y9: =IFERROR(IF(Zbirni_podaci[[#This Row],[ROK]]<>"",VLOOKUP(Zbirni_podaci[[#This Row],[ROK]],DATUMI,3,FALSE),""),"") -> 2019-05-27 | Z9: 21 | AA9: =IFERROR(IF(Zbirni_podaci[[#This Row],[ROK]]<>"",VLOOKUP(Zbirni_podaci[[#This Row],[ROK]],DATUMI,4,FALSE),""),"") -> 2019-07-01 | AB9: 15 | AC9: 80 | AD9: 8 | AE9: =IFERROR(IF(Zbirni_podaci[[#This Row],[ROK]]<>"",VLOOKUP(Zbirni_podaci[[#This Row],[ROK]],DATUMI,6,FALSE),""),"") -> 2019-07-01
A10: =PODACI_STUDENTI!A9 -> 8 | B10: =PODACI_STUDENTI!B9 -> 2018/0154 | C10: =PODACI_STUDENTI!C9 -> Vasić Milan | D10: =PODACI_STUDENTI!D9 -> 0 | F10: =IF(OR(Predrok_Mart!F10<>"",Predrok_April!F10<>"",Januar!F10<>"",Februar!F10<>"",Juni!F10<>"",Juli!F10,Septembar!F10<>"",Oktobar!F10<>"",Oktobar_2!F10<>""),MAX(Predrok_Mart!F10,Predrok_April!F10,Januar!F10,Februar!F10,Juni!F10,Juli!F10,Septembar!F10,Oktobar!F10,Oktobar_2!F10),"") -> 30 | G10: =IF(OR(Predrok_Mart!G10<>"",Predrok_April!G10<>"",Januar!G10<>"",Februar!G10<>"",Juni!G10<>"",Juli!G10,Septembar!G10<>"",Oktobar!G10<>"",Oktobar_2!G10<>""),MAX(Predrok_Mart!G10,Predrok_April!G10,Januar!G10,Februar!G10,Juni!G10,Juli!G10,Septembar!G10,Oktobar!G10,Oktobar_2!G10),"") -> 32 | H10: =IF(OR(Predrok_Mart!H10<>"",Predrok_April!H10<>"",Januar!H10<>"",Februar!H10<>"",Juni!H10<>"",Juli!H10,Septembar!H10<>"",Oktobar!H10<>"",Oktobar_2!H10<>""),MAX(Predrok_Mart!H10,Predrok_April!H10,Januar!H10,Februar!H10,Juni!H10,Juli!H10,Septembar!H10,Oktobar!H10,Oktobar_2!H10),"") -> 29 | I10: =IF(OR(Predrok_Mart!I10<>"",Predrok_April!I10<>"",Januar!I10<>"",Februar!I10<>"",Juni!I10<>"",Juli!I10,Septembar!I10<>"",Oktobar!I10<>"",Oktobar_2!I10<>""),MAX(Predrok_Mart!I10,Predrok_April!I10,Januar!I10,Februar!I10,Juni!I10,Juli!I10,Septembar!I10,Oktobar!I10,Oktobar_2!I10),"") -> 15 | J10: =IF(Zbirni_podaci[[#This Row],[Broj indeksa]]<>"",IF(AND(Zbirni_podaci[[#This Row],[WORD]]<>"",Zbirni_podaci[[#This Row],[EXCEL]]<>"",Zbirni_podaci[[#This Row],[P_POINT]]<>"",Zbirni_podaci[[#This Row],[TEST_1]]<>""),"DA","NE"),"") -> DA | K10: 5 | L10: 5 | M10: 13 | N10: 14 | O10: 13 | P10: 28 | Q10: =IF(AND(Zbirni_podaci[[#This Row],[ROK]]<>"",Zbirni_podaci[[#This Row],[WORD bod]]<>"",Zbirni_podaci[[#This Row],[EXCEL bod]]<>"",Zbirni_podaci[[#This Row],[P_POINT bod]]<>"",Zbirni_podaci[[#This Row],[TEST_1 bod]]<>""),VLOOKUP(Zbirni_podaci[[#This Row],[ROK]],bodovi_aktivnost,7,FALSE),"") -> 20 | R10: =IF(AND(Zbirni_podaci[[#This Row],[Akt_nast_bod]]<>"",Zbirni_podaci[[#This Row],[Akt_vežbe_bod]]<>"",Zbirni_podaci[[#This Row],[WORD bod]]<>"",Zbirni_podaci[[#This Row],[EXCEL bod]]<>"",Zbirni_podaci[[#This Row],[P_POINT bod]]<>"",Zbirni_podaci[[#This Row],[TEST_1 bod]]<>""),ROUND(SUM(Zbirni_podaci[[#This Row],[Akt_nast_bod]:[ISPIT]]),0),"") -> 98 | S10: 10 | T10: Јун | U10: =IFERROR(IF(Zbirni_podaci[[#This Row],[ROK]]<>"",VLOOKUP(Zbirni_podaci[[#This Row],[ROK]],DATUMI,6,FALSE),""),"") -> 2019-06-14 | V10: 10 | W10: =IFERROR(IF(Zbirni_podaci[[#This Row],[ROK]]<>"",VLOOKUP(Zbirni_podaci[[#This Row],[ROK]],DATUMI,2,FALSE),""),"") -> 2019-05-27 | X10: 40 | Y10: =IFERROR(IF(Zbirni_podaci[[#This Row],[ROK]]<>"",VLOOKUP(Zbirni_podaci[[#This Row],[ROK]],DATUMI,3,FALSE),""),"") -> 2019-05-27 | Z10: 28 | AA10: =IFERROR(IF(Zbirni_podaci[[#This Row],[ROK]]<>"",VLOOKUP(Zbirni_podaci[[#This Row],[ROK]],DATUMI,4,FALSE),""),"") -> 2019-06-14 | AB10: 20 | AC10: 98 | AD10: 10 | AE10: =IFERROR(IF(Zbirni_podaci[[#This Row],[ROK]]<>"",VLOOKUP(Zbirni_podaci[[#This Row],[ROK]],DATUMI,6,FALSE),""),"") -> 2019-06-14
A11: =PODACI_STUDENTI!A10 -> 9 | B11: =PODACI_STUDENTI!B10 -> 2018/0077 | C11: =PODACI_STUDENTI!C10 -> Veljović Petar | D11: =PODACI_STUDENTI!D10 -> 0 | F11: =IF(OR(Predrok_Mart!F11<>"",Predrok_April!F11<>"",Januar!F11<>"",Februar!F11<>"",Juni!F11<>"",Juli!F11,Septembar!F11<>"",Oktobar!F11<>"",Oktobar_2!F11<>""),MAX(Predrok_Mart!F11,Predrok_April!F11,Januar!F11,Februar!F11,Juni!F11,Juli!F11,Septembar!F11,Oktobar!F11,Oktobar_2!F11),"") -> 26 | G11: =IF(OR(Predrok_Mart!G11<>"",Predrok_April!G11<>"",Januar!G11<>"",Februar!G11<>"",Juni!G11<>"",Juli!G11,Septembar!G11<>"",Oktobar!G11<>"",Oktobar_2!G11<>""),MAX(Predrok_Mart!G11,Predrok_April!G11,Januar!G11,Februar!G11,Juni!G11,Juli!G11,Septembar!G11,Oktobar!G11,Oktobar_2!G11),"") -> 28 | H11: =IF(OR(Predrok_Mart!H11<>"",Predrok_April!H11<>"",Januar!H11<>"",Februar!H11<>"",Juni!H11<>"",Juli!H11,Septembar!H11<>"",Oktobar!H11<>"",Oktobar_2!H11<>""),MAX(Predrok_Mart!H11,Predrok_April!H11,Januar!H11,Februar!H11,Juni!H11,Juli!H11,Septembar!H11,Oktobar!H11,Oktobar_2!H11),"") -> 26 | I11: =IF(OR(Predrok_Mart!I11<>"",Predrok_April!I11<>"",Januar!I11<>"",Februar!I11<>"",Juni!I11<>"",Juli!I11,Septembar!I11<>"",Oktobar!I11<>"",Oktobar_2!I11<>""),MAX(Predrok_Mart!I11,Predrok_April!I11,Januar!I11,Februar!I11,Juni!I11,Juli!I11,Septembar!I11,Oktobar!I11,Oktobar_2!I11),"") -> 15 | J11: =IF(Zbirni_podaci[[#This Row],[Broj indeksa]]<>"",IF(AND(Zbirni_podaci[[#This Row],[WORD]]<>"",Zbirni_podaci[[#This Row],[EXCEL]]<>"",Zbirni_podaci[[#This Row],[P_POINT]]<>"",Zbirni_podaci[[#This Row],[TEST_1]]<>""),"DA","NE"),"") -> DA | K11: 5 | L11: 5 | M11: 11 | N11: 12 | O11: 11 | P11: 28 | Q11: =IF(AND(Zbirni_podaci[[#This Row],[ROK]]<>"",Zbirni_podaci[[#This Row],[WORD bod]]<>"",Zbirni_podaci[[#This Row],[EXCEL bod]]<>"",Zbirni_podaci[[#This Row],[P_POINT bod]]<>"",Zbirni_podaci[[#This Row],[TEST_1 bod]]<>""),VLOOKUP(Zbirni_podaci[[#This Row],[ROK]],bodovi_aktivnost,7,FALSE),"") -> 20 | R11: =IF(AND(Zbirni_podaci[[#This Row],[Akt_nast_bod]]<>"",Zbirni_podaci[[#This Row],[Akt_vežbe_bod]]<>"",Zbirni_podaci[[#This Row],[WORD bod]]<>"",Zbirni_podaci[[#This Row],[EXCEL bod]]<>"",Zbirni_podaci[[#This Row],[P_POINT bod]]<>"",Zbirni_podaci[[#This Row],[TEST_1 bod]]<>""),ROUND(SUM(Zbirni_podaci[[#This Row],[Akt_nast_bod]:[ISPIT]]),0),"") -> 93 | S11: 10 | T11: Јун | U11: =IFERROR(IF(Zbirni_podaci[[#This Row],[ROK]]<>"",VLOOKUP(Zbirni_podaci[[#This Row],[ROK]],DATUMI,6,FALSE),""),"") -> 2019-06-14 | V11: 10 | W11: =IFERROR(IF(Zbirni_podaci[[#This Row],[ROK]]<>"",VLOOKUP(Zbirni_podaci[[#This Row],[ROK]],DATUMI,2,FALSE),""),"") -> 2019-05-27 | X11: 35 | Y11: =IFERROR(IF(Zbirni_podaci[[#This Row],[ROK]]<>"",VLOOKUP(Zbirni_podaci[[#This Row],[ROK]],DATUMI,3,FALSE),""),"") -> 2019-05-27 | Z11: 28 | AA11: =IFERROR(IF(Zbirni_podaci[[#This Row],[ROK]]<>"",VLOOKUP(Zbirni_podaci[[#This Row],[ROK]],DATUMI,4,FALSE),""),"") -> 2019-06-14 | AB11: 20 | AC11: 93 | AD11: 10 | AE11: =IFERROR(IF(Zbirni_podaci[[#This Row],[ROK]]<>"",VLOOKUP(Zbirni_podaci[[#This Row],[ROK]],DATUMI,6,FALSE),""),"") -> 2019-06-14
A12: =PODACI_STUDENTI!A11 -> 10 | B12: =PODACI_STUDENTI!B11 -> 2018/0130 | C12: =PODACI_STUDENTI!C11 -> Vidović Stefan | D12: =PODACI_STUDENTI!D11 -> 0 | F12: =IF(OR(Predrok_Mart!F12<>"",Predrok_April!F12<>"",Januar!F12<>"",Februar!F12<>"",Juni!F12<>"",Juli!F12,Septembar!F12<>"",Oktobar!F12<>"",Oktobar_2!F12<>""),MAX(Predrok_Mart!F12,Predrok_April!F12,Januar!F12,Februar!F12,Juni!F12,Juli!F12,Septembar!F12,Oktobar!F12,Oktobar_2!F12),"") -> 26 | G12: =IF(OR(Predrok_Mart!G12<>"",Predrok_April!G12<>"",Januar!G12<>"",Februar!G12<>"",Juni!G12<>"",Juli!G12,Septembar!G12<>"",Oktobar!G12<>"",Oktobar_2!G12<>""),MAX(Predrok_Mart!G12,Predrok_April!G12,Januar!G12,Februar!G12,Juni!G12,Juli!G12,Septembar!G12,Oktobar!G12,Oktobar_2!G12),"") -> 26 | H12: =IF(OR(Predrok_Mart!H12<>"",Predrok_April!H12<>"",Januar!H12<>"",Februar!H12<>"",Juni!H12<>"",Juli!H12,Septembar!H12<>"",Oktobar!H12<>"",Oktobar_2!H12<>""),MAX(Predrok_Mart!H12,Predrok_April!H12,Januar!H12,Februar!H12,Juni!H12,Juli!H12,Septembar!H12,Oktobar!H12,Oktobar_2!H12),"") -> 29 | I12: =IF(OR(Predrok_Mart!I12<>"",Predrok_April!I12<>"",Januar!I12<>"",Februar!I12<>"",Juni!I12<>"",Juli!I12,Septembar!I12<>"",Oktobar!I12<>"",Oktobar_2!I12<>""),MAX(Predrok_Mart!I12,Predrok_April!I12,Januar!I12,Februar!I12,Juni!I12,Juli!I12,Septembar!I12,Oktobar!I12,Oktobar_2!I12),"") -> 10 | J12: =IF(Zbirni_podaci[[#This Row],[Broj indeksa]]<>"",IF(AND(Zbirni_podaci[[#This Row],[WORD]]<>"",Zbirni_podaci[[#This Row],[EXCEL]]<>"",Zbirni_podaci[[#This Row],[P_POINT]]<>"",Zbirni_podaci[[#This Row],[TEST_1]]<>""),"DA","NE"),"") -> DA | K12: 5 | L12: 5 | M12: 11 | N12: 11 | O12: 13 | P12: 19 | Q12: =IF(AND(Zbirni_podaci[[#This Row],[ROK]]<>"",Zbirni_podaci[[#This Row],[WORD bod]]<>"",Zbirni_podaci[[#This Row],[EXCEL bod]]<>"",Zbirni_podaci[[#This Row],[P_POINT bod]]<>"",Zbirni_podaci[[#This Row],[TEST_1 bod]]<>""),VLOOKUP(Zbirni_podaci[[#This Row],[ROK]],bodovi_aktivnost,7,FALSE),"") -> 20 | R12: =IF(AND(Zbirni_podaci[[#This Row],[Akt_nast_bod]]<>"",Zbirni_podaci[[#This Row],[Akt_vežbe_bod]]<>"",Zbirni_podaci[[#This Row],[WORD bod]]<>"",Zbirni_podaci[[#This Row],[EXCEL bod]]<>"",Zbirni_podaci[[#This Row],[P_POINT bod]]<>"",Zbirni_podaci[[#This Row],[TEST_1 bod]]<>""),ROUND(SUM(Zbirni_podaci[[#This Row],[Akt_nast_bod]:[ISPIT]]),0),"") -> 84 | S12: 9 | T12: Јун | U12: =IFERROR(IF(Zbirni_podaci[[#This Row],[ROK]]<>"",VLOOKUP(Zbirni_podaci[[#This Row],[ROK]],DATUMI,6,FALSE),""),"") -> 2019-06-14 | V12: 10 | W12: =IFERROR(IF(Zbirni_podaci[[#This Row],[ROK]]<>"",VLOOKUP(Zbirni_podaci[[#This Row],[ROK]],DATUMI,2,FALSE),""),"") -> 2019-05-27 | X12: 35 | Y12: =IFERROR(IF(Zbirni_podaci[[#This Row],[ROK]]<>"",VLOOKUP(Zbirni_podaci[[#This Row],[ROK]],DATUMI,3,FALSE),""),"") -> 2019-05-27 | Z12: 19 | AA12: =IFERROR(IF(Zbirni_podaci[[#This Row],[ROK]]<>"",VLOOKUP(Zbirni_podaci[[#This Row],[ROK]],DATUMI,4,FALSE),""),"") -> 2019-06-14 | AB12: 20 | AC12: 84 | AD12: 9 | AE12: =IFERROR(IF(Zbirni_podaci[[#This Row],[ROK]]<>"",VLOOKUP(Zbirni_podaci[[#This Row],[ROK]],DATUMI,6,FALSE),""),"") -> 2019-06-14
A13: =PODACI_STUDENTI!A12 -> 11 | B13: =PODACI_STUDENTI!B12 -> 2017/0160 | C13: =PODACI_STUDENTI!C12 -> Vojvodić Danilo | D13: =PODACI_STUDENTI!D12 -> 0 | F13: =IF(OR(Predrok_Mart!F13<>"",Predrok_April!F13<>"",Januar!F13<>"",Februar!F13<>"",Juni!F13<>"",Juli!F13,Septembar!F13<>"",Oktobar!F13<>"",Oktobar_2!F13<>""),MAX(Predrok_Mart!F13,Predrok_April!F13,Januar!F13,Februar!F13,Juni!F13,Juli!F13,Septembar!F13,Oktobar!F13,Oktobar_2!F13),"") -> 28 | G13: =IF(OR(Predrok_Mart!G13<>"",Predrok_April!G13<>"",Januar!G13<>"",Februar!G13<>"",Juni!G13<>"",Juli!G13,Septembar!G13<>"",Oktobar!G13<>"",Oktobar_2!G13<>""),MAX(Predrok_Mart!G13,Predrok_April!G13,Januar!G13,Februar!G13,Juni!G13,Juli!G13,Septembar!G13,Oktobar!G13,Oktobar_2!G13),"") -> 32 | H13: =IF(OR(Predrok_Mart!H13<>"",Predrok_April!H13<>"",Januar!H13<>"",Februar!H13<>"",Juni!H13<>"",Juli!H13,Septembar!H13<>"",Oktobar!H13<>"",Oktobar_2!H13<>""),MAX(Predrok_Mart!H13,Predrok_April!H13,Januar!H13,Februar!H13,Juni!H13,Juli!H13,Septembar!H13,Oktobar!H13,Oktobar_2!H13),"") -> 24 | I13: =IF(OR(Predrok_Mart!I13<>"",Predrok_April!I13<>"",Januar!I13<>"",Februar!I13<>"",Juni!I13<>"",Juli!I13,Septembar!I13<>"",Oktobar!I13<>"",Oktobar_2!I13<>""),MAX(Predrok_Mart!I13,Predrok_April!I13,Januar!I13,Februar!I13,Juni!I13,Juli!I13,Septembar!I13,Oktobar!I13,Oktobar_2!I13),"") -> 15 | J13: =IF(Zbirni_podaci[[#This Row],[Broj indeksa]]<>"",IF(AND(Zbirni_podaci[[#This Row],[WORD]]<>"",Zbirni_podaci[[#This Row],[EXCEL]]<>"",Zbirni_podaci[[#This Row],[P_POINT]]<>"",Zbirni_podaci[[#This Row],[TEST_1]]<>""),"DA","NE"),"") -> DA | K13: 5 | L13: 5 | M13: 12 | N13: 14 | O13: 11 | P13: 28 | Q13: =IF(AND(Zbirni_podaci[[#This Row],[ROK]]<>"",Zbirni_podaci[[#This Row],[WORD bod]]<>"",Zbirni_podaci[[#This Row],[EXCEL bod]]<>"",Zbirni_podaci[[#This Row],[P_POINT bod]]<>"",Zbirni_podaci[[#This Row],[TEST_1 bod]]<>""),VLOOKUP(Zbirni_podaci[[#This Row],[ROK]],bodovi_aktivnost,7,FALSE),"") -> 20 | R13: =IF(AND(Zbirni_podaci[[#This Row],[Akt_nast_bod]]<>"",Zbirni_podaci[[#This Row],[Akt_vežbe_bod]]<>"",Zbirni_podaci[[#This Row],[WORD bod]]<>"",Zbirni_podaci[[#This Row],[EXCEL bod]]<>"",Zbirni_podaci[[#This Row],[P_POINT bod]]<>"",Zbirni_podaci[[#This Row],[TEST_1 bod]]<>""),ROUND(SUM(Zbirni_podaci[[#This Row],[Akt_nast_bod]:[ISPIT]]),0),"") -> 95 | S13: 10 | T13: Јун | U13: =IFERROR(IF(Zbirni_podaci[[#This Row],[ROK]]<>"",VLOOKUP(Zbirni_podaci[[#This Row],[ROK]],DATUMI,6,FALSE),""),"") -> 2019-06-14 | V13: 10 | W13: =IFERROR(IF(Zbirni_podaci[[#This Row],[ROK]]<>"",VLOOKUP(Zbirni_podaci[[#This Row],[ROK]],DATUMI,2,FALSE),""),"") -> 2019-05-27 | X13: 37 | Y13: =IFERROR(IF(Zbirni_podaci[[#This Row],[ROK]]<>"",VLOOKUP(Zbirni_podaci[[#This Row],[ROK]],DATUMI,3,FALSE),""),"") -> 2019-05-27 | Z13: 28 | AA13: =IFERROR(IF(Zbirni_podaci[[#This Row],[ROK]]<>"",VLOOKUP(Zbirni_podaci[[#This Row],[ROK]],DATUMI,4,FALSE),""),"") -> 2019-06-14 | AB13: 20 | AC13: 95 | AD13: 10 | AE13: =IFERROR(IF(Zbirni_podaci[[#This Row],[ROK]]<>"",VLOOKUP(Zbirni_podaci[[#This Row],[ROK]],DATUMI,6,FALSE),""),"") -> 2019-06-14
A14: =PODACI_STUDENTI!A13 -> 12 | B14: =PODACI_STUDENTI!B13 -> 2018/0120 | C14: =PODACI_STUDENTI!C13 -> Gavrilović Matija | D14: =PODACI_STUDENTI!D13 -> 0 | F14: =IF(OR(Predrok_Mart!F14<>"",Predrok_April!F14<>"",Januar!F14<>"",Februar!F14<>"",Juni!F14<>"",Juli!F14,Septembar!F14<>"",Oktobar!F14<>"",Oktobar_2!F14<>""),MAX(Predrok_Mart!F14,Predrok_April!F14,Januar!F14,Februar!F14,Juni!F14,Juli!F14,Septembar!F14,Oktobar!F14,Oktobar_2!F14),"") -> 27 | G14: =IF(OR(Predrok_Mart!G14<>"",Predrok_April!G14<>"",Januar!G14<>"",Februar!G14<>"",Juni!G14<>"",Juli!G14,Septembar!G14<>"",Oktobar!G14<>"",Oktobar_2!G14<>""),MAX(Predrok_Mart!G14,Predrok_April!G14,Januar!G14,Februar!G14,Juni!G14,Juli!G14,Septembar!G14,Oktobar!G14,Oktobar_2!G14),"") -> 28 | H14: =IF(OR(Predrok_Mart!H14<>"",Predrok_April!H14<>"",Januar!H14<>"",Februar!H14<>"",Juni!H14<>"",Juli!H14,Septembar!H14<>"",Oktobar!H14<>"",Oktobar_2!H14<>""),MAX(Predrok_Mart!H14,Predrok_April!H14,Januar!H14,Februar!H14,Juni!H14,Juli!H14,Septembar!H14,Oktobar!H14,Oktobar_2!H14),"") -> 24 | I14: =IF(OR(Predrok_Mart!I14<>"",Predrok_April!I14<>"",Januar!I14<>"",Februar!I14<>"",Juni!I14<>"",Juli!I14,Septembar!I14<>"",Oktobar!I14<>"",Oktobar_2!I14<>""),MAX(Predrok_Mart!I14,Predrok_April!I14,Januar!I14,Februar!I14,Juni!I14,Juli!I14,Septembar!I14,Oktobar!I14,Oktobar_2!I14),"") -> 10 | J14: =IF(Zbirni_podaci[[#This Row],[Broj indeksa]]<>"",IF(AND(Zbirni_podaci[[#This Row],[WORD]]<>"",Zbirni_podaci[[#This Row],[EXCEL]]<>"",Zbirni_podaci[[#This Row],[P_POINT]]<>"",Zbirni_podaci[[#This Row],[TEST_1]]<>""),"DA","NE"),"") -> DA | K14: 5 | L14: 5 | M14: 12 | N14: 12 | O14: 11 | P14: 19 | Q14: =IF(AND(Zbirni_podaci[[#This Row],[ROK]]<>"",Zbirni_podaci[[#This Row],[WORD bod]]<>"",Zbirni_podaci[[#This Row],[EXCEL bod]]<>"",Zbirni_podaci[[#This Row],[P_POINT bod]]<>"",Zbirni_podaci[[#This Row],[TEST_1 bod]]<>""),VLOOKUP(Zbirni_podaci[[#This Row],[ROK]],bodovi_aktivnost,7,FALSE),"") -> 20 | R14: =IF(AND(Zbirni_podaci[[#This Row],[Akt_nast_bod]]<>"",Zbirni_podaci[[#This Row],[Akt_vežbe_bod]]<>"",Zbirni_podaci[[#This Row],[WORD bod]]<>"",Zbirni_podaci[[#This Row],[EXCEL bod]]<>"",Zbirni_podaci[[#This Row],[P_POINT bod]]<>"",Zbirni_podaci[[#This Row],[TEST_1 bod]]<>""),ROUND(SUM(Zbirni_podaci[[#This Row],[Akt_nast_bod]:[ISPIT]]),0),"") -> 83 | S14: 9 | T14: Јун | U14: =IFERROR(IF(Zbirni_podaci[[#This Row],[ROK]]<>"",VLOOKUP(Zbirni_podaci[[#This Row],[ROK]],DATUMI,6,FALSE),""),"") -> 2019-06-14 | V14: 10 | W14: =IFERROR(IF(Zbirni_podaci[[#This Row],[ROK]]<>"",VLOOKUP(Zbirni_podaci[[#This Row],[ROK]],DATUMI,2,FALSE),""),"") -> 2019-05-27 | X14: 35 | Y14: =IFERROR(IF(Zbirni_podaci[[#This Row],[ROK]]<>"",VLOOKUP(Zbirni_podaci[[#This Row],[ROK]],DATUMI,3,FALSE),""),"") -> 2019-05-27 | Z14: 19 | AA14: =IFERROR(IF(Zbirni_podaci[[#This Row],[ROK]]<>"",VLOOKUP(Zbirni_podaci[[#This Row],[ROK]],DATUMI,4,FALSE),""),"") -> 2019-06-14 | AB14: 20 | AC14: 83 | AD14: 9 | AE14: =IFERROR(IF(Zbirni_podaci[[#This Row],[ROK]]<>"",VLOOKUP(Zbirni_podaci[[#This Row],[ROK]],DATUMI,6,FALSE),""),"") -> 2019-06-14
A15: =PODACI_STUDENTI!A14 -> 13 | B15: =PODACI_STUDENTI!B14 -> 2018/0152 | C15: =PODACI_STUDENTI!C14 -> Golović Danilo | D15: =PODACI_STUDENTI!D14 -> 0 | F15: =IF(OR(Predrok_Mart!F15<>"",Predrok_April!F15<>"",Januar!F15<>"",Februar!F15<>"",Juni!F15<>"",Juli!F15,Septembar!F15<>"",Oktobar!F15<>"",Oktobar_2!F15<>""),MAX(Predrok_Mart!F15,Predrok_April!F15,Januar!F15,Februar!F15,Juni!F15,Juli!F15,Septembar!F15,Oktobar!F15,Oktobar_2!F15),"") ->  | G15: =IF(OR(Predrok_Mart!G15<>"",Predrok_April!G15<>"",Januar!G15<>"",Februar!G15<>"",Juni!G15<>"",Juli!G15,Septembar!G15<>"",Oktobar!G15<>"",Oktobar_2!G15<>""),MAX(Predrok_Mart!G15,Predrok_April!G15,Januar!G15,Februar!G15,Juni!G15,Juli!G15,Septembar!G15,Oktobar!G15,Oktobar_2!G15),"") ->  | H15: =IF(OR(Predrok_Mart!H15<>"",Predrok_April!H15<>"",Januar!H15<>"",Februar!H15<>"",Juni!H15<>"",Juli!H15,Septembar!H15<>"",Oktobar!H15<>"",Oktobar_2!H15<>""),MAX(Predrok_Mart!H15,Predrok_April!H15,Januar!H15,Februar!H15,Juni!H15,Juli!H15,Septembar!H15,Oktobar!H15,Oktobar_2!H15),"") ->  | I15: =IF(OR(Predrok_Mart!I15<>"",Predrok_April!I15<>"",Januar!I15<>"",Februar!I15<>"",Juni!I15<>"",Juli!I15,Septembar!I15<>"",Oktobar!I15<>"",Oktobar_2!I15<>""),MAX(Predrok_Mart!I15,Predrok_April!I15,Januar!I15,Februar!I15,Juni!I15,Juli!I15,Septembar!I15,Oktobar!I15,Oktobar_2!I15),"") ->  | J15: =IF(Zbirni_podaci[[#This Row],[Broj indeksa]]<>"",IF(AND(Zbirni_podaci[[#This Row],[WORD]]<>"",Zbirni_podaci[[#This Row],[EXCEL]]<>"",Zbirni_podaci[[#This Row],[P_POINT]]<>"",Zbirni_podaci[[#This Row],[TEST_1]]<>""),"DA","NE"),"") -> NE | Q15: =IF(AND(Zbirni_podaci[[#This Row],[ROK]]<>"",Zbirni_podaci[[#This Row],[WORD bod]]<>"",Zbirni_podaci[[#This Row],[EXCEL bod]]<>"",Zbirni_podaci[[#This Row],[P_POINT bod]]<>"",Zbirni_podaci[[#This Row],[TEST_1 bod]]<>""),VLOOKUP(Zbirni_podaci[[#This Row],[ROK]],bodovi_aktivnost,7,FALSE),"") ->  | R15: =IF(AND(Zbirni_podaci[[#This Row],[Akt_nast_bod]]<>"",Zbirni_podaci[[#This Row],[Akt_vežbe_bod]]<>"",Zbirni_podaci[[#This Row],[WORD bod]]<>"",Zbirni_podaci[[#This Row],[EXCEL bod]]<>"",Zbirni_podaci[[#This Row],[P_POINT bod]]<>"",Zbirni_podaci[[#This Row],[TEST_1 bod]]<>""),ROUND(SUM(Zbirni_podaci[[#This Row],[Akt_nast_bod]:[ISPIT]]),0),"") ->  | U15: =IFERROR(IF(Zbirni_podaci[[#This Row],[ROK]]<>"",VLOOKUP(Zbirni_podaci[[#This Row],[ROK]],DATUMI,6,FALSE),""),"") ->  | W15: =IFERROR(IF(Zbirni_podaci[[#This Row],[ROK]]<>"",VLOOKUP(Zbirni_podaci[[#This Row],[ROK]],DATUMI,2,FALSE),""),"") ->  | Y15: =IFERROR(IF(Zbirni_podaci[[#This Row],[ROK]]<>"",VLOOKUP(Zbirni_podaci[[#This Row],[ROK]],DATUMI,3,FALSE),""),"") ->  | AA15: =IFERROR(IF(Zbirni_podaci[[#This Row],[ROK]]<>"",VLOOKUP(Zbirni_podaci[[#This Row],[ROK]],DATUMI,4,FALSE),""),"") ->  | AE15: =IFERROR(IF(Zbirni_podaci[[#This Row],[ROK]]<>"",VLOOKUP(Zbirni_podaci[[#This Row],[ROK]],DATUMI,6,FALSE),""),"") -> 
A16: =PODACI_STUDENTI!A15 -> 14 | B16: =PODACI_STUDENTI!B15 -> 2018/0083 | C16: =PODACI_STUDENTI!C15 -> Golubović Uroš | D16: =PODACI_STUDENTI!D15 -> 0 | F16: =IF(OR(Predrok_Mart!F16<>"",Predrok_April!F16<>"",Januar!F16<>"",Februar!F16<>"",Juni!F16<>"",Juli!F16,Septembar!F16<>"",Oktobar!F16<>"",Oktobar_2!F16<>""),MAX(Predrok_Mart!F16,Predrok_April!F16,Januar!F16,Februar!F16,Juni!F16,Juli!F16,Septembar!F16,Oktobar!F16,Oktobar_2!F16),"") -> 24 | G16: =IF(OR(Predrok_Mart!G16<>"",Predrok_April!G16<>"",Januar!G16<>"",Februar!G16<>"",Juni!G16<>"",Juli!G16,Septembar!G16<>"",Oktobar!G16<>"",Oktobar_2!G16<>""),MAX(Predrok_Mart!G16,Predrok_April!G16,Januar!G16,Februar!G16,Juni!G16,Juli!G16,Septembar!G16,Oktobar!G16,Oktobar_2!G16),"") -> 25 | H16: =IF(OR(Predrok_Mart!H16<>"",Predrok_April!H16<>"",Januar!H16<>"",Februar!H16<>"",Juni!H16<>"",Juli!H16,Septembar!H16<>"",Oktobar!H16<>"",Oktobar_2!H16<>""),MAX(Predrok_Mart!H16,Predrok_April!H16,Januar!H16,Februar!H16,Juni!H16,Juli!H16,Septembar!H16,Oktobar!H16,Oktobar_2!H16),"") -> 25 | I16: =IF(OR(Predrok_Mart!I16<>"",Predrok_April!I16<>"",Januar!I16<>"",Februar!I16<>"",Juni!I16<>"",Juli!I16,Septembar!I16<>"",Oktobar!I16<>"",Oktobar_2!I16<>""),MAX(Predrok_Mart!I16,Predrok_April!I16,Januar!I16,Februar!I16,Juni!I16,Juli!I16,Septembar!I16,Oktobar!I16,Oktobar_2!I16),"") -> 12 | J16: =IF(Zbirni_podaci[[#This Row],[Broj indeksa]]<>"",IF(AND(Zbirni_podaci[[#This Row],[WORD]]<>"",Zbirni_podaci[[#This Row],[EXCEL]]<>"",Zbirni_podaci[[#This Row],[P_POINT]]<>"",Zbirni_podaci[[#This Row],[TEST_1]]<>""),"DA","NE"),"") -> DA | K16: 5 | L16: 5 | M16: 11 | N16: 11 | O16: 11 | P16: 22 | Q16: =IF(AND(Zbirni_podaci[[#This Row],[ROK]]<>"",Zbirni_podaci[[#This Row],[WORD bod]]<>"",Zbirni_podaci[[#This Row],[EXCEL bod]]<>"",Zbirni_podaci[[#This Row],[P_POINT bod]]<>"",Zbirni_podaci[[#This Row],[TEST_1 bod]]<>""),VLOOKUP(Zbirni_podaci[[#This Row],[ROK]],bodovi_aktivnost,7,FALSE),"") -> 15 | R16: =IF(AND(Zbirni_podaci[[#This Row],[Akt_nast_bod]]<>"",Zbirni_podaci[[#This Row],[Akt_vežbe_bod]]<>"",Zbirni_podaci[[#This Row],[WORD bod]]<>"",Zbirni_podaci[[#This Row],[EXCEL bod]]<>"",Zbirni_podaci[[#This Row],[P_POINT bod]]<>"",Zbirni_podaci[[#This Row],[TEST_1 bod]]<>""),ROUND(SUM(Zbirni_podaci[[#This Row],[Akt_nast_bod]:[ISPIT]]),0),"") -> 80 | S16: 8 | T16: Јул | U16: =IFERROR(IF(Zbirni_podaci[[#This Row],[ROK]]<>"",VLOOKUP(Zbirni_podaci[[#This Row],[ROK]],DATUMI,6,FALSE),""),"") -> 2019-07-01 | V16: 10 | W16: =IFERROR(IF(Zbirni_podaci[[#This Row],[ROK]]<>"",VLOOKUP(Zbirni_podaci[[#This Row],[ROK]],DATUMI,2,FALSE),""),"") -> 2019-05-27 | X16: 32 | Y16: =IFERROR(IF(Zbirni_podaci[[#This Row],[ROK]]<>"",VLOOKUP(Zbirni_podaci[[#This Row],[ROK]],DATUMI,3,FALSE),""),"") -> 2019-05-27 | Z16: 22 | AA16: =IFERROR(IF(Zbirni_podaci[[#This Row],[ROK]]<>"",VLOOKUP(Zbirni_podaci[[#This Row],[ROK]],DATUMI,4,FALSE),""),"") -> 2019-07-01 | AB16: 15 | AC16: 80 | AD16: 8 | AE16: =IFERROR(IF(Zbirni_podaci[[#This Row],[ROK]]<>"",VLOOKUP(Zbirni_podaci[[#This Row],[ROK]],DATUMI,6,FALSE),""),"") -> 2019-07-01
A17: =PODACI_STUDENTI!A16 -> 15 | B17: =PODACI_STUDENTI!B16 -> 2018/0017 | C17: =PODACI_STUDENTI!C16 -> Gut Nikola | D17: =PODACI_STUDENTI!D16 -> 0 | F17: =IF(OR(Predrok_Mart!F17<>"",Predrok_April!F17<>"",Januar!F17<>"",Februar!F17<>"",Juni!F17<>"",Juli!F17,Septembar!F17<>"",Oktobar!F17<>"",Oktobar_2!F17<>""),MAX(Predrok_Mart!F17,Predrok_April!F17,Januar!F17,Februar!F17,Juni!F17,Juli!F17,Septembar!F17,Oktobar!F17,Oktobar_2!F17),"") -> 31 | G17: =IF(OR(Predrok_Mart!G17<>"",Predrok_April!G17<>"",Januar!G17<>"",Februar!G17<>"",Juni!G17<>"",Juli!G17,Septembar!G17<>"",Oktobar!G17<>"",Oktobar_2!G17<>""),MAX(Predrok_Mart!G17,Predrok_April!G17,Januar!G17,Februar!G17,Juni!G17,Juli!G17,Septembar!G17,Oktobar!G17,Oktobar_2!G17),"") -> 29 | H17: =IF(OR(Predrok_Mart!H17<>"",Predrok_April!H17<>"",Januar!H17<>"",Februar!H17<>"",Juni!H17<>"",Juli!H17,Septembar!H17<>"",Oktobar!H17<>"",Oktobar_2!H17<>""),MAX(Predrok_Mart!H17,Predrok_April!H17,Januar!H17,Februar!H17,Juni!H17,Juli!H17,Septembar!H17,Oktobar!H17,Oktobar_2!H17),"") -> 28 | I17: =IF(OR(Predrok_Mart!I17<>"",Predrok_April!I17<>"",Januar!I17<>"",Februar!I17<>"",Juni!I17<>"",Juli!I17,Septembar!I17<>"",Oktobar!I17<>"",Oktobar_2!I17<>""),MAX(Predrok_Mart!I17,Predrok_April!I17,Januar!I17,Februar!I17,Juni!I17,Juli!I17,Septembar!I17,Oktobar!I17,Oktobar_2!I17),"") -> 15 | J17: =IF(Zbirni_podaci[[#This Row],[Broj indeksa]]<>"",IF(AND(Zbirni_podaci[[#This Row],[WORD]]<>"",Zbirni_podaci[[#This Row],[EXCEL]]<>"",Zbirni_podaci[[#This Row],[P_POINT]]<>"",Zbirni_podaci[[#This Row],[TEST_1]]<>""),"DA","NE"),"") -> DA | K17: 5 | L17: 5 | M17: 14 | N17: 13 | O17: 12 | P17: 28 | Q17: =IF(AND(Zbirni_podaci[[#This Row],[ROK]]<>"",Zbirni_podaci[[#This Row],[WORD bod]]<>"",Zbirni_podaci[[#This Row],[EXCEL bod]]<>"",Zbirni_podaci[[#This Row],[P_POINT bod]]<>"",Zbirni_podaci[[#This Row],[TEST_1 bod]]<>""),VLOOKUP(Zbirni_podaci[[#This Row],[ROK]],bodovi_aktivnost,7,FALSE),"") -> 20 | R17: =IF(AND(Zbirni_podaci[[#This Row],[Akt_nast_bod]]<>"",Zbirni_podaci[[#This Row],[Akt_vežbe_bod]]<>"",Zbirni_podaci[[#This Row],[WORD bod]]<>"",Zbirni_podaci[[#This Row],[EXCEL bod]]<>"",Zbirni_podaci[[#This Row],[P_POINT bod]]<>"",Zbirni_podaci[[#This Row],[TEST_1 bod]]<>""),ROUND(SUM(Zbirni_podaci[[#This Row],[Akt_nast_bod]:[ISPIT]]),0),"") -> 97 | S17: 10 | T17: Јун | U17: =IFERROR(IF(Zbirni_podaci[[#This Row],[ROK]]<>"",VLOOKUP(Zbirni_podaci[[#This Row],[ROK]],DATUMI,6,FALSE),""),"") -> 2019-06-14 | V17: 10 | W17: =IFERROR(IF(Zbirni_podaci[[#This Row],[ROK]]<>"",VLOOKUP(Zbirni_podaci[[#This Row],[ROK]],DATUMI,2,FALSE),""),"") -> 2019-05-27 | X17: 39 | Y17: =IFERROR(IF(Zbirni_podaci[[#This Row],[ROK]]<>"",VLOOKUP(Zbirni_podaci[[#This Row],[ROK]],DATUMI,3,FALSE),""),"") -> 2019-05-27 | Z17: 28 | AA17: =IFERROR(IF(Zbirni_podaci[[#This Row],[ROK]]<>"",VLOOKUP(Zbirni_podaci[[#This Row],[ROK]],DATUMI,4,FALSE),""),"") -> 2019-06-14 | AB17: 20 | AC17: 97 | AD17: 10 | AE17: =IFERROR(IF(Zbirni_podaci[[#This Row],[ROK]]<>"",VLOOKUP(Zbirni_podaci[[#This Row],[ROK]],DATUMI,6,FALSE),""),"") -> 2019-06-14
A18: =PODACI_STUDENTI!A17 -> 16 | B18: =PODACI_STUDENTI!B17 -> 2018/0106 | C18: =PODACI_STUDENTI!C17 -> Dabić Aleksandar | D18: =PODACI_STUDENTI!D17 -> 0 | F18: =IF(OR(Predrok_Mart!F18<>"",Predrok_April!F18<>"",Januar!F18<>"",Februar!F18<>"",Juni!F18<>"",Juli!F18,Septembar!F18<>"",Oktobar!F18<>"",Oktobar_2!F18<>""),MAX(Predrok_Mart!F18,Predrok_April!F18,Januar!F18,Februar!F18,Juni!F18,Juli!F18,Septembar!F18,Oktobar!F18,Oktobar_2!F18),"") ->  | G18: =IF(OR(Predrok_Mart!G18<>"",Predrok_April!G18<>"",Januar!G18<>"",Februar!G18<>"",Juni!G18<>"",Juli!G18,Septembar!G18<>"",Oktobar!G18<>"",Oktobar_2!G18<>""),MAX(Predrok_Mart!G18,Predrok_April!G18,Januar!G18,Februar!G18,Juni!G18,Juli!G18,Septembar!G18,Oktobar!G18,Oktobar_2!G18),"") ->  | H18: =IF(OR(Predrok_Mart!H18<>"",Predrok_April!H18<>"",Januar!H18<>"",Februar!H18<>"",Juni!H18<>"",Juli!H18,Septembar!H18<>"",Oktobar!H18<>"",Oktobar_2!H18<>""),MAX(Predrok_Mart!H18,Predrok_April!H18,Januar!H18,Februar!H18,Juni!H18,Juli!H18,Septembar!H18,Oktobar!H18,Oktobar_2!H18),"") ->  | I18: =IF(OR(Predrok_Mart!I18<>"",Predrok_April!I18<>"",Januar!I18<>"",Februar!I18<>"",Juni!I18<>"",Juli!I18,Septembar!I18<>"",Oktobar!I18<>"",Oktobar_2!I18<>""),MAX(Predrok_Mart!I18,Predrok_April!I18,Januar!I18,Februar!I18,Juni!I18,Juli!I18,Septembar!I18,Oktobar!I18,Oktobar_2!I18),"") ->  | J18: =IF(Zbirni_podaci[[#This Row],[Broj indeksa]]<>"",IF(AND(Zbirni_podaci[[#This Row],[WORD]]<>"",Zbirni_podaci[[#This Row],[EXCEL]]<>"",Zbirni_podaci[[#This Row],[P_POINT]]<>"",Zbirni_podaci[[#This Row],[TEST_1]]<>""),"DA","NE"),"") -> NE | Q18: =IF(AND(Zbirni_podaci[[#This Row],[ROK]]<>"",Zbirni_podaci[[#This Row],[WORD bod]]<>"",Zbirni_podaci[[#This Row],[EXCEL bod]]<>"",Zbirni_podaci[[#This Row],[P_POINT bod]]<>"",Zbirni_podaci[[#This Row],[TEST_1 bod]]<>""),VLOOKUP(Zbirni_podaci[[#This Row],[ROK]],bodovi_aktivnost,7,FALSE),"") ->  | R18: =IF(AND(Zbirni_podaci[[#This Row],[Akt_nast_bod]]<>"",Zbirni_podaci[[#This Row],[Akt_vežbe_bod]]<>"",Zbirni_podaci[[#This Row],[WORD bod]]<>"",Zbirni_podaci[[#This Row],[EXCEL bod]]<>"",Zbirni_podaci[[#This Row],[P_POINT bod]]<>"",Zbirni_podaci[[#This Row],[TEST_1 bod]]<>""),ROUND(SUM(Zbirni_podaci[[#This Row],[Akt_nast_bod]:[ISPIT]]),0),"") ->  | U18: =IFERROR(IF(Zbirni_podaci[[#This Row],[ROK]]<>"",VLOOKUP(Zbirni_podaci[[#This Row],[ROK]],DATUMI,6,FALSE),""),"") ->  | W18: =IFERROR(IF(Zbirni_podaci[[#This Row],[ROK]]<>"",VLOOKUP(Zbirni_podaci[[#This Row],[ROK]],DATUMI,2,FALSE),""),"") ->  | Y18: =IFERROR(IF(Zbirni_podaci[[#This Row],[ROK]]<>"",VLOOKUP(Zbirni_podaci[[#This Row],[ROK]],DATUMI,3,FALSE),""),"") ->  | AA18: =IFERROR(IF(Zbirni_podaci[[#This Row],[ROK]]<>"",VLOOKUP(Zbirni_podaci[[#This Row],[ROK]],DATUMI,4,FALSE),""),"") ->  | AE18: =IFERROR(IF(Zbirni_podaci[[#This Row],[ROK]]<>"",VLOOKUP(Zbirni_podaci[[#This Row],[ROK]],DATUMI,6,FALSE),""),"") -> 
A19: =PODACI_STUDENTI!A18 -> 17 | B19: =PODACI_STUDENTI!B18 -> 2018/0135 | C19: =PODACI_STUDENTI!C18 -> Dakić Jovan | D19: =PODACI_STUDENTI!D18 -> 0 | F19: =IF(OR(Predrok_Mart!F19<>"",Predrok_April!F19<>"",Januar!F19<>"",Februar!F19<>"",Juni!F19<>"",Juli!F19,Septembar!F19<>"",Oktobar!F19<>"",Oktobar_2!F19<>""),MAX(Predrok_Mart!F19,Predrok_April!F19,Januar!F19,Februar!F19,Juni!F19,Juli!F19,Septembar!F19,Oktobar!F19,Oktobar_2!F19),"") -> 25 | G19: =IF(OR(Predrok_Mart!G19<>"",Predrok_April!G19<>"",Januar!G19<>"",Februar!G19<>"",Juni!G19<>"",Juli!G19,Septembar!G19<>"",Oktobar!G19<>"",Oktobar_2!G19<>""),MAX(Predrok_Mart!G19,Predrok_April!G19,Januar!G19,Februar!G19,Juni!G19,Juli!G19,Septembar!G19,Oktobar!G19,Oktobar_2!G19),"") -> 25 | H19: =IF(OR(Predrok_Mart!H19<>"",Predrok_April!H19<>"",Januar!H19<>"",Februar!H19<>"",Juni!H19<>"",Juli!H19,Septembar!H19<>"",Oktobar!H19<>"",Oktobar_2!H19<>""),MAX(Predrok_Mart!H19,Predrok_April!H19,Januar!H19,Februar!H19,Juni!H19,Juli!H19,Septembar!H19,Oktobar!H19,Oktobar_2!H19),"") -> 24 | I19: =IF(OR(Predrok_Mart!I19<>"",Predrok_April!I19<>"",Januar!I19<>"",Februar!I19<>"",Juni!I19<>"",Juli!I19,Septembar!I19<>"",Oktobar!I19<>"",Oktobar_2!I19<>""),MAX(Predrok_Mart!I19,Predrok_April!I19,Januar!I19,Februar!I19,Juni!I19,Juli!I19,Septembar!I19,Oktobar!I19,Oktobar_2!I19),"") -> 14 | J19: =IF(Zbirni_podaci[[#This Row],[Broj indeksa]]<>"",IF(AND(Zbirni_podaci[[#This Row],[WORD]]<>"",Zbirni_podaci[[#This Row],[EXCEL]]<>"",Zbirni_podaci[[#This Row],[P_POINT]]<>"",Zbirni_podaci[[#This Row],[TEST_1]]<>""),"DA","NE"),"") -> DA | K19: 5 | L19: 5 | M19: 11 | N19: 11 | O19: 11 | P19: 26 | Q19: =IF(AND(Zbirni_podaci[[#This Row],[ROK]]<>"",Zbirni_podaci[[#This Row],[WORD bod]]<>"",Zbirni_podaci[[#This Row],[EXCEL bod]]<>"",Zbirni_podaci[[#This Row],[P_POINT bod]]<>"",Zbirni_podaci[[#This Row],[TEST_1 bod]]<>""),VLOOKUP(Zbirni_podaci[[#This Row],[ROK]],bodovi_aktivnost,7,FALSE),"") -> 20 | R19: =IF(AND(Zbirni_podaci[[#This Row],[Akt_nast_bod]]<>"",Zbirni_podaci[[#This Row],[Akt_vežbe_bod]]<>"",Zbirni_podaci[[#This Row],[WORD bod]]<>"",Zbirni_podaci[[#This Row],[EXCEL bod]]<>"",Zbirni_podaci[[#This Row],[P_POINT bod]]<>"",Zbirni_podaci[[#This Row],[TEST_1 bod]]<>""),ROUND(SUM(Zbirni_podaci[[#This Row],[Akt_nast_bod]:[ISPIT]]),0),"") -> 89 | S19: 9 | T19: Јун | U19: =IFERROR(IF(Zbirni_podaci[[#This Row],[ROK]]<>"",VLOOKUP(Zbirni_podaci[[#This Row],[ROK]],DATUMI,6,FALSE),""),"") -> 2019-06-14 | V19: 10 | W19: =IFERROR(IF(Zbirni_podaci[[#This Row],[ROK]]<>"",VLOOKUP(Zbirni_podaci[[#This Row],[ROK]],DATUMI,2,FALSE),""),"") -> 2019-05-27 | X19: 32 | Y19: =IFERROR(IF(Zbirni_podaci[[#This Row],[ROK]]<>"",VLOOKUP(Zbirni_podaci[[#This Row],[ROK]],DATUMI,3,FALSE),""),"") -> 2019-05-27 | Z19: 26 | AA19: =IFERROR(IF(Zbirni_podaci[[#This Row],[ROK]]<>"",VLOOKUP(Zbirni_podaci[[#This Row],[ROK]],DATUMI,4,FALSE),""),"") -> 2019-06-14 | AB19: 20 | AC19: 89 | AD19: 9 | AE19: =IFERROR(IF(Zbirni_podaci[[#This Row],[ROK]]<>"",VLOOKUP(Zbirni_podaci[[#This Row],[ROK]],DATUMI,6,FALSE),""),"") -> 2019-06-14
A20: =PODACI_STUDENTI!A19 -> 18 | B20: =PODACI_STUDENTI!B19 -> 2018/0043 | C20: =PODACI_STUDENTI!C19 -> Delić Nikola | D20: =PODACI_STUDENTI!D19 -> 0 | F20: =IF(OR(Predrok_Mart!F20<>"",Predrok_April!F20<>"",Januar!F20<>"",Februar!F20<>"",Juni!F20<>"",Juli!F20,Septembar!F20<>"",Oktobar!F20<>"",Oktobar_2!F20<>""),MAX(Predrok_Mart!F20,Predrok_April!F20,Januar!F20,Februar!F20,Juni!F20,Juli!F20,Septembar!F20,Oktobar!F20,Oktobar_2!F20),"") -> 25 | G20: =IF(OR(Predrok_Mart!G20<>"",Predrok_April!G20<>"",Januar!G20<>"",Februar!G20<>"",Juni!G20<>"",Juli!G20,Septembar!G20<>"",Oktobar!G20<>"",Oktobar_2!G20<>""),MAX(Predrok_Mart!G20,Predrok_April!G20,Januar!G20,Februar!G20,Juni!G20,Juli!G20,Septembar!G20,Oktobar!G20,Oktobar_2!G20),"") ->  | H20: =IF(OR(Predrok_Mart!H20<>"",Predrok_April!H20<>"",Januar!H20<>"",Februar!H20<>"",Juni!H20<>"",Juli!H20,Septembar!H20<>"",Oktobar!H20<>"",Oktobar_2!H20<>""),MAX(Predrok_Mart!H20,Predrok_April!H20,Januar!H20,Februar!H20,Juni!H20,Juli!H20,Septembar!H20,Oktobar!H20,Oktobar_2!H20),"") -> 25 | I20: =IF(OR(Predrok_Mart!I20<>"",Predrok_April!I20<>"",Januar!I20<>"",Februar!I20<>"",Juni!I20<>"",Juli!I20,Septembar!I20<>"",Oktobar!I20<>"",Oktobar_2!I20<>""),MAX(Predrok_Mart!I20,Predrok_April!I20,Januar!I20,Februar!I20,Juni!I20,Juli!I20,Septembar!I20,Oktobar!I20,Oktobar_2!I20),"") -> 10 | J20: =IF(Zbirni_podaci[[#This Row],[Broj indeksa]]<>"",IF(AND(Zbirni_podaci[[#This Row],[WORD]]<>"",Zbirni_podaci[[#This Row],[EXCEL]]<>"",Zbirni_podaci[[#This Row],[P_POINT]]<>"",Zbirni_podaci[[#This Row],[TEST_1]]<>""),"DA","NE"),"") -> NE | M20: 11 | O20: 11 | P20: 19 | Q20: =IF(AND(Zbirni_podaci[[#This Row],[ROK]]<>"",Zbirni_podaci[[#This Row],[WORD bod]]<>"",Zbirni_podaci[[#This Row],[EXCEL bod]]<>"",Zbirni_podaci[[#This Row],[P_POINT bod]]<>"",Zbirni_podaci[[#This Row],[TEST_1 bod]]<>""),VLOOKUP(Zbirni_podaci[[#This Row],[ROK]],bodovi_aktivnost,7,FALSE),"") ->  | R20: =IF(AND(Zbirni_podaci[[#This Row],[Akt_nast_bod]]<>"",Zbirni_podaci[[#This Row],[Akt_vežbe_bod]]<>"",Zbirni_podaci[[#This Row],[WORD bod]]<>"",Zbirni_podaci[[#This Row],[EXCEL bod]]<>"",Zbirni_podaci[[#This Row],[P_POINT bod]]<>"",Zbirni_podaci[[#This Row],[TEST_1 bod]]<>""),ROUND(SUM(Zbirni_podaci[[#This Row],[Akt_nast_bod]:[ISPIT]]),0),"") ->  | U20: =IFERROR(IF(Zbirni_podaci[[#This Row],[ROK]]<>"",VLOOKUP(Zbirni_podaci[[#This Row],[ROK]],DATUMI,6,FALSE),""),"") ->  | W20: =IFERROR(IF(Zbirni_podaci[[#This Row],[ROK]]<>"",VLOOKUP(Zbirni_podaci[[#This Row],[ROK]],DATUMI,2,FALSE),""),"") ->  | Y20: =IFERROR(IF(Zbirni_podaci[[#This Row],[ROK]]<>"",VLOOKUP(Zbirni_podaci[[#This Row],[ROK]],DATUMI,3,FALSE),""),"") ->  | AA20: =IFERROR(IF(Zbirni_podaci[[#This Row],[ROK]]<>"",VLOOKUP(Zbirni_podaci[[#This Row],[ROK]],DATUMI,4,FALSE),""),"") ->  | AE20: =IFERROR(IF(Zbirni_podaci[[#This Row],[ROK]]<>"",VLOOKUP(Zbirni_podaci[[#This Row],[ROK]],DATUMI,6,FALSE),""),"") -> 
A21: =PODACI_STUDENTI!A20 -> 19 | B21: =PODACI_STUDENTI!B20 -> 2018/0140 | C21: =PODACI_STUDENTI!C20 -> Dimitrijević Anđela | D21: =PODACI_STUDENTI!D20 -> 0 | F21: =IF(OR(Predrok_Mart!F21<>"",Predrok_April!F21<>"",Januar!F21<>"",Februar!F21<>"",Juni!F21<>"",Juli!F21,Septembar!F21<>"",Oktobar!F21<>"",Oktobar_2!F21<>""),MAX(Predrok_Mart!F21,Predrok_April!F21,Januar!F21,Februar!F21,Juni!F21,Juli!F21,Septembar!F21,Oktobar!F21,Oktobar_2!F21),"") -> 30 | G21: =IF(OR(Predrok_Mart!G21<>"",Predrok_April!G21<>"",Januar!G21<>"",Februar!G21<>"",Juni!G21<>"",Juli!G21,Septembar!G21<>"",Oktobar!G21<>"",Oktobar_2!G21<>""),MAX(Predrok_Mart!G21,Predrok_April!G21,Januar!G21,Februar!G21,Juni!G21,Juli!G21,Septembar!G21,Oktobar!G21,Oktobar_2!G21),"") -> 26 | H21: =IF(OR(Predrok_Mart!H21<>"",Predrok_April!H21<>"",Januar!H21<>"",Februar!H21<>"",Juni!H21<>"",Juli!H21,Septembar!H21<>"",Oktobar!H21<>"",Oktobar_2!H21<>""),MAX(Predrok_Mart!H21,Predrok_April!H21,Januar!H21,Februar!H21,Juni!H21,Juli!H21,Septembar!H21,Oktobar!H21,Oktobar_2!H21),"") -> 25 | I21: =IF(OR(Predrok_Mart!I21<>"",Predrok_April!I21<>"",Januar!I21<>"",Februar!I21<>"",Juni!I21<>"",Juli!I21,Septembar!I21<>"",Oktobar!I21<>"",Oktobar_2!I21<>""),MAX(Predrok_Mart!I21,Predrok_April!I21,Januar!I21,Februar!I21,Juni!I21,Juli!I21,Septembar!I21,Oktobar!I21,Oktobar_2!I21),"") -> 10 | J21: =IF(Zbirni_podaci[[#This Row],[Broj indeksa]]<>"",IF(AND(Zbirni_podaci[[#This Row],[WORD]]<>"",Zbirni_podaci[[#This Row],[EXCEL]]<>"",Zbirni_podaci[[#This Row],[P_POINT]]<>"",Zbirni_podaci[[#This Row],[TEST_1]]<>""),"DA","NE"),"") -> DA | K21: 5 | L21: 5 | M21: 13 | N21: 11 | O21: 11 | P21: 19 | Q21: =IF(AND(Zbirni_podaci[[#This Row],[ROK]]<>"",Zbirni_podaci[[#This Row],[WORD bod]]<>"",Zbirni_podaci[[#This Row],[EXCEL bod]]<>"",Zbirni_podaci[[#This Row],[P_POINT bod]]<>"",Zbirni_podaci[[#This Row],[TEST_1 bod]]<>""),VLOOKUP(Zbirni_podaci[[#This Row],[ROK]],bodovi_aktivnost,7,FALSE),"") -> 20 | R21: =IF(AND(Zbirni_podaci[[#This Row],[Akt_nast_bod]]<>"",Zbirni_podaci[[#This Row],[Akt_vežbe_bod]]<>"",Zbirni_podaci[[#This Row],[WORD bod]]<>"",Zbirni_podaci[[#This Row],[EXCEL bod]]<>"",Zbirni_podaci[[#This Row],[P_POINT bod]]<>"",Zbirni_podaci[[#This Row],[TEST_1 bod]]<>""),ROUND(SUM(Zbirni_podaci[[#This Row],[Akt_nast_bod]:[ISPIT]]),0),"") -> 84 | S21: 9 | T21: Јун | U21: =IFERROR(IF(Zbirni_podaci[[#This Row],[ROK]]<>"",VLOOKUP(Zbirni_podaci[[#This Row],[ROK]],DATUMI,6,FALSE),""),"") -> 2019-06-14 | V21: 10 | W21: =IFERROR(IF(Zbirni_podaci[[#This Row],[ROK]]<>"",VLOOKUP(Zbirni_podaci[[#This Row],[ROK]],DATUMI,2,FALSE),""),"") -> 2019-05-27 | X21: 35 | Y21: =IFERROR(IF(Zbirni_podaci[[#This Row],[ROK]]<>"",VLOOKUP(Zbirni_podaci[[#This Row],[ROK]],DATUMI,3,FALSE),""),"") -> 2019-05-27 | Z21: 19 | AA21: =IFERROR(IF(Zbirni_podaci[[#This Row],[ROK]]<>"",VLOOKUP(Zbirni_podaci[[#This Row],[ROK]],DATUMI,4,FALSE),""),"") -> 2019-06-14 | AB21: 20 | AC21: 84 | AD21: 9 | AE21: =IFERROR(IF(Zbirni_podaci[[#This Row],[ROK]]<>"",VLOOKUP(Zbirni_podaci[[#This Row],[ROK]],DATUMI,6,FALSE),""),"") -> 2019-06-14
A22: =PODACI_STUDENTI!A21 -> 20 | B22: =PODACI_STUDENTI!B21 -> 2018/0025 | C22: =PODACI_STUDENTI!C21 -> Đoković Oliver | D22: =PODACI_STUDENTI!D21 -> 0 | F22: =IF(OR(Predrok_Mart!F22<>"",Predrok_April!F22<>"",Januar!F22<>"",Februar!F22<>"",Juni!F22<>"",Juli!F22,Septembar!F22<>"",Oktobar!F22<>"",Oktobar_2!F22<>""),MAX(Predrok_Mart!F22,Predrok_April!F22,Januar!F22,Februar!F22,Juni!F22,Juli!F22,Septembar!F22,Oktobar!F22,Oktobar_2!F22),"") -> 26 | G22: =IF(OR(Predrok_Mart!G22<>"",Predrok_April!G22<>"",Januar!G22<>"",Februar!G22<>"",Juni!G22<>"",Juli!G22,Septembar!G22<>"",Oktobar!G22<>"",Oktobar_2!G22<>""),MAX(Predrok_Mart!G22,Predrok_April!G22,Januar!G22,Februar!G22,Juni!G22,Juli!G22,Septembar!G22,Oktobar!G22,Oktobar_2!G22),"") -> 30 | H22: =IF(OR(Predrok_Mart!H22<>"",Predrok_April!H22<>"",Januar!H22<>"",Februar!H22<>"",Juni!H22<>"",Juli!H22,Septembar!H22<>"",Oktobar!H22<>"",Oktobar_2!H22<>""),MAX(Predrok_Mart!H22,Predrok_April!H22,Januar!H22,Februar!H22,Juni!H22,Juli!H22,Septembar!H22,Oktobar!H22,Oktobar_2!H22),"") -> 29 | I22: =IF(OR(Predrok_Mart!I22<>"",Predrok_April!I22<>"",Januar!I22<>"",Februar!I22<>"",Juni!I22<>"",Juli!I22,Septembar!I22<>"",Oktobar!I22<>"",Oktobar_2!I22<>""),MAX(Predrok_Mart!I22,Predrok_April!I22,Januar!I22,Februar!I22,Juni!I22,Juli!I22,Septembar!I22,Oktobar!I22,Oktobar_2!I22),"") -> 15 | J22: =IF(Zbirni_podaci[[#This Row],[Broj indeksa]]<>"",IF(AND(Zbirni_podaci[[#This Row],[WORD]]<>"",Zbirni_podaci[[#This Row],[EXCEL]]<>"",Zbirni_podaci[[#This Row],[P_POINT]]<>"",Zbirni_podaci[[#This Row],[TEST_1]]<>""),"DA","NE"),"") -> DA | K22: 5 | L22: 5 | M22: 11 | N22: 13 | O22: 13 | P22: 28 | Q22: =IF(AND(Zbirni_podaci[[#This Row],[ROK]]<>"",Zbirni_podaci[[#This Row],[WORD bod]]<>"",Zbirni_podaci[[#This Row],[EXCEL bod]]<>"",Zbirni_podaci[[#This Row],[P_POINT bod]]<>"",Zbirni_podaci[[#This Row],[TEST_1 bod]]<>""),VLOOKUP(Zbirni_podaci[[#This Row],[ROK]],bodovi_aktivnost,7,FALSE),"") -> 20 | R22: =IF(AND(Zbirni_podaci[[#This Row],[Akt_nast_bod]]<>"",Zbirni_podaci[[#This Row],[Akt_vežbe_bod]]<>"",Zbirni_podaci[[#This Row],[WORD bod]]<>"",Zbirni_podaci[[#This Row],[EXCEL bod]]<>"",Zbirni_podaci[[#This Row],[P_POINT bod]]<>"",Zbirni_podaci[[#This Row],[TEST_1 bod]]<>""),ROUND(SUM(Zbirni_podaci[[#This Row],[Akt_nast_bod]:[ISPIT]]),0),"") -> 95 | S22: 10 | T22: Јун | U22: =IFERROR(IF(Zbirni_podaci[[#This Row],[ROK]]<>"",VLOOKUP(Zbirni_podaci[[#This Row],[ROK]],DATUMI,6,FALSE),""),"") -> 2019-06-14 | V22: 10 | W22: =IFERROR(IF(Zbirni_podaci[[#This Row],[ROK]]<>"",VLOOKUP(Zbirni_podaci[[#This Row],[ROK]],DATUMI,2,FALSE),""),"") -> 2019-05-27 | X22: 37 | Y22: =IFERROR(IF(Zbirni_podaci[[#This Row],[ROK]]<>"",VLOOKUP(Zbirni_podaci[[#This Row],[ROK]],DATUMI,3,FALSE),""),"") -> 2019-05-27 | Z22: 28 | AA22: =IFERROR(IF(Zbirni_podaci[[#This Row],[ROK]]<>"",VLOOKUP(Zbirni_podaci[[#This Row],[ROK]],DATUMI,4,FALSE),""),"") -> 2019-06-14 | AB22: 20 | AC22: 95 | AD22: 10 | AE22: =IFERROR(IF(Zbirni_podaci[[#This Row],[ROK]]<>"",VLOOKUP(Zbirni_podaci[[#This Row],[ROK]],DATUMI,6,FALSE),""),"") -> 2019-06-14
A23: =PODACI_STUDENTI!A22 -> 21 | B23: =PODACI_STUDENTI!B22 -> 2018/0023 | C23: =PODACI_STUDENTI!C22 -> Đorić Vladimir | D23: =PODACI_STUDENTI!D22 -> 0 | F23: =IF(OR(Predrok_Mart!F23<>"",Predrok_April!F23<>"",Januar!F23<>"",Februar!F23<>"",Juni!F23<>"",Juli!F23,Septembar!F23<>"",Oktobar!F23<>"",Oktobar_2!F23<>""),MAX(Predrok_Mart!F23,Predrok_April!F23,Januar!F23,Februar!F23,Juni!F23,Juli!F23,Septembar!F23,Oktobar!F23,Oktobar_2!F23),"") -> 26 | G23: =IF(OR(Predrok_Mart!G23<>"",Predrok_April!G23<>"",Januar!G23<>"",Februar!G23<>"",Juni!G23<>"",Juli!G23,Septembar!G23<>"",Oktobar!G23<>"",Oktobar_2!G23<>""),MAX(Predrok_Mart!G23,Predrok_April!G23,Januar!G23,Februar!G23,Juni!G23,Juli!G23,Septembar!G23,Oktobar!G23,Oktobar_2!G23),"") -> 30 | H23: =IF(OR(Predrok_Mart!H23<>"",Predrok_April!H23<>"",Januar!H23<>"",Februar!H23<>"",Juni!H23<>"",Juli!H23,Septembar!H23<>"",Oktobar!H23<>"",Oktobar_2!H23<>""),MAX(Predrok_Mart!H23,Predrok_April!H23,Januar!H23,Februar!H23,Juni!H23,Juli!H23,Septembar!H23,Oktobar!H23,Oktobar_2!H23),"") -> 25 | I23: =IF(OR(Predrok_Mart!I23<>"",Predrok_April!I23<>"",Januar!I23<>"",Februar!I23<>"",Juni!I23<>"",Juli!I23,Septembar!I23<>"",Oktobar!I23<>"",Oktobar_2!I23<>""),MAX(Predrok_Mart!I23,Predrok_April!I23,Januar!I23,Februar!I23,Juni!I23,Juli!I23,Septembar!I23,Oktobar!I23,Oktobar_2!I23),"") -> 11 | J23: =IF(Zbirni_podaci[[#This Row],[Broj indeksa]]<>"",IF(AND(Zbirni_podaci[[#This Row],[WORD]]<>"",Zbirni_podaci[[#This Row],[EXCEL]]<>"",Zbirni_podaci[[#This Row],[P_POINT]]<>"",Zbirni_podaci[[#This Row],[TEST_1]]<>""),"DA","NE"),"") -> DA | K23: 5 | L23: 5 | M23: 11 | N23: 13 | O23: 11 | P23: 21 | Q23: =IF(AND(Zbirni_podaci[[#This Row],[ROK]]<>"",Zbirni_podaci[[#This Row],[WORD bod]]<>"",Zbirni_podaci[[#This Row],[EXCEL bod]]<>"",Zbirni_podaci[[#This Row],[P_POINT bod]]<>"",Zbirni_podaci[[#This Row],[TEST_1 bod]]<>""),VLOOKUP(Zbirni_podaci[[#This Row],[ROK]],bodovi_aktivnost,7,FALSE),"") -> 20 | R23: =IF(AND(Zbirni_podaci[[#This Row],[Akt_nast_bod]]<>"",Zbirni_podaci[[#This Row],[Akt_vežbe_bod]]<>"",Zbirni_podaci[[#This Row],[WORD bod]]<>"",Zbirni_podaci[[#This Row],[EXCEL bod]]<>"",Zbirni_podaci[[#This Row],[P_POINT bod]]<>"",Zbirni_podaci[[#This Row],[TEST_1 bod]]<>""),ROUND(SUM(Zbirni_podaci[[#This Row],[Akt_nast_bod]:[ISPIT]]),0),"") -> 86 | S23: 9 | T23: Јун | U23: =IFERROR(IF(Zbirni_podaci[[#This Row],[ROK]]<>"",VLOOKUP(Zbirni_podaci[[#This Row],[ROK]],DATUMI,6,FALSE),""),"") -> 2019-06-14 | V23: 10 | W23: =IFERROR(IF(Zbirni_podaci[[#This Row],[ROK]]<>"",VLOOKUP(Zbirni_podaci[[#This Row],[ROK]],DATUMI,2,FALSE),""),"") -> 2019-05-27 | X23: 35 | Y23: =IFERROR(IF(Zbirni_podaci[[#This Row],[ROK]]<>"",VLOOKUP(Zbirni_podaci[[#This Row],[ROK]],DATUMI,3,FALSE),""),"") -> 2019-05-27 | Z23: 21 | AA23: =IFERROR(IF(Zbirni_podaci[[#This Row],[ROK]]<>"",VLOOKUP(Zbirni_podaci[[#This Row],[ROK]],DATUMI,4,FALSE),""),"") -> 2019-06-14 | AB23: 20 | AC23: 86 | AD23: 9 | AE23: =IFERROR(IF(Zbirni_podaci[[#This Row],[ROK]]<>"",VLOOKUP(Zbirni_podaci[[#This Row],[ROK]],DATUMI,6,FALSE),""),"") -> 2019-06-14
A24: =PODACI_STUDENTI!A23 -> 22 | B24: =PODACI_STUDENTI!B23 -> 2018/0027 | C24: =PODACI_STUDENTI!C23 -> Đorović Tamara | D24: =PODACI_STUDENTI!D23 -> 0 | F24: =IF(OR(Predrok_Mart!F24<>"",Predrok_April!F24<>"",Januar!F24<>"",Februar!F24<>"",Juni!F24<>"",Juli!F24,Septembar!F24<>"",Oktobar!F24<>"",Oktobar_2!F24<>""),MAX(Predrok_Mart!F24,Predrok_April!F24,Januar!F24,Februar!F24,Juni!F24,Juli!F24,Septembar!F24,Oktobar!F24,Oktobar_2!F24),"") -> 29 | G24: =IF(OR(Predrok_Mart!G24<>"",Predrok_April!G24<>"",Januar!G24<>"",Februar!G24<>"",Juni!G24<>"",Juli!G24,Septembar!G24<>"",Oktobar!G24<>"",Oktobar_2!G24<>""),MAX(Predrok_Mart!G24,Predrok_April!G24,Januar!G24,Februar!G24,Juni!G24,Juli!G24,Septembar!G24,Oktobar!G24,Oktobar_2!G24),"") -> 25 | H24: =IF(OR(Predrok_Mart!H24<>"",Predrok_April!H24<>"",Januar!H24<>"",Februar!H24<>"",Juni!H24<>"",Juli!H24,Septembar!H24<>"",Oktobar!H24<>"",Oktobar_2!H24<>""),MAX(Predrok_Mart!H24,Predrok_April!H24,Januar!H24,Februar!H24,Juni!H24,Juli!H24,Septembar!H24,Oktobar!H24,Oktobar_2!H24),"") -> 29 | I24: =IF(OR(Predrok_Mart!I24<>"",Predrok_April!I24<>"",Januar!I24<>"",Februar!I24<>"",Juni!I24<>"",Juli!I24,Septembar!I24<>"",Oktobar!I24<>"",Oktobar_2!I24<>""),MAX(Predrok_Mart!I24,Predrok_April!I24,Januar!I24,Februar!I24,Juni!I24,Juli!I24,Septembar!I24,Oktobar!I24,Oktobar_2!I24),"") -> 11 | J24: =IF(Zbirni_podaci[[#This Row],[Broj indeksa]]<>"",IF(AND(Zbirni_podaci[[#This Row],[WORD]]<>"",Zbirni_podaci[[#This Row],[EXCEL]]<>"",Zbirni_podaci[[#This Row],[P_POINT]]<>"",Zbirni_podaci[[#This Row],[TEST_1]]<>""),"DA","NE"),"") -> DA | K24: 5 | L24: 5 | M24: 13 | N24: 11 | O24: 13 | P24: 21 | Q24: =IF(AND(Zbirni_podaci[[#This Row],[ROK]]<>"",Zbirni_podaci[[#This Row],[WORD bod]]<>"",Zbirni_podaci[[#This Row],[EXCEL bod]]<>"",Zbirni_podaci[[#This Row],[P_POINT bod]]<>"",Zbirni_podaci[[#This Row],[TEST_1 bod]]<>""),VLOOKUP(Zbirni_podaci[[#This Row],[ROK]],bodovi_aktivnost,7,FALSE),"") -> 20 | R24: =IF(AND(Zbirni_podaci[[#This Row],[Akt_nast_bod]]<>"",Zbirni_podaci[[#This Row],[Akt_vežbe_bod]]<>"",Zbirni_podaci[[#This Row],[WORD bod]]<>"",Zbirni_podaci[[#This Row],[EXCEL bod]]<>"",Zbirni_podaci[[#This Row],[P_POINT bod]]<>"",Zbirni_podaci[[#This Row],[TEST_1 bod]]<>""),ROUND(SUM(Zbirni_podaci[[#This Row],[Akt_nast_bod]:[ISPIT]]),0),"") -> 87 | S24: 9 | T24: Јун | U24: =IFERROR(IF(Zbirni_podaci[[#This Row],[ROK]]<>"",VLOOKUP(Zbirni_podaci[[#This Row],[ROK]],DATUMI,6,FALSE),""),"") -> 2019-06-14 | V24: 10 | W24: =IFERROR(IF(Zbirni_podaci[[#This Row],[ROK]]<>"",VLOOKUP(Zbirni_podaci[[#This Row],[ROK]],DATUMI,2,FALSE),""),"") -> 2019-05-27 | X24: 36 | Y24: =IFERROR(IF(Zbirni_podaci[[#This Row],[ROK]]<>"",VLOOKUP(Zbirni_podaci[[#This Row],[ROK]],DATUMI,3,FALSE),""),"") -> 2019-05-27 | Z24: 21 | AA24: =IFERROR(IF(Zbirni_podaci[[#This Row],[ROK]]<>"",VLOOKUP(Zbirni_podaci[[#This Row],[ROK]],DATUMI,4,FALSE),""),"") -> 2019-06-14 | AB24: 20 | AC24: 87 | AD24: 9 | AE24: =IFERROR(IF(Zbirni_podaci[[#This Row],[ROK]]<>"",VLOOKUP(Zbirni_podaci[[#This Row],[ROK]],DATUMI,6,FALSE),""),"") -> 2019-06-14
A25: =PODACI_STUDENTI!A24 -> 23 | B25: =PODACI_STUDENTI!B24 -> 2017/0155 | C25: =PODACI_STUDENTI!C24 -> Đukanović Nikola | D25: =PODACI_STUDENTI!D24 -> 0 | F25: =IF(OR(Predrok_Mart!F25<>"",Predrok_April!F25<>"",Januar!F25<>"",Februar!F25<>"",Juni!F25<>"",Juli!F25,Septembar!F25<>"",Oktobar!F25<>"",Oktobar_2!F25<>""),MAX(Predrok_Mart!F25,Predrok_April!F25,Januar!F25,Februar!F25,Juni!F25,Juli!F25,Septembar!F25,Oktobar!F25,Oktobar_2!F25),"") ->  | G25: =IF(OR(Predrok_Mart!G25<>"",Predrok_April!G25<>"",Januar!G25<>"",Februar!G25<>"",Juni!G25<>"",Juli!G25,Septembar!G25<>"",Oktobar!G25<>"",Oktobar_2!G25<>""),MAX(Predrok_Mart!G25,Predrok_April!G25,Januar!G25,Februar!G25,Juni!G25,Juli!G25,Septembar!G25,Oktobar!G25,Oktobar_2!G25),"") ->  | H25: =IF(OR(Predrok_Mart!H25<>"",Predrok_April!H25<>"",Januar!H25<>"",Februar!H25<>"",Juni!H25<>"",Juli!H25,Septembar!H25<>"",Oktobar!H25<>"",Oktobar_2!H25<>""),MAX(Predrok_Mart!H25,Predrok_April!H25,Januar!H25,Februar!H25,Juni!H25,Juli!H25,Septembar!H25,Oktobar!H25,Oktobar_2!H25),"") ->  | I25: =IF(OR(Predrok_Mart!I25<>"",Predrok_April!I25<>"",Januar!I25<>"",Februar!I25<>"",Juni!I25<>"",Juli!I25,Septembar!I25<>"",Oktobar!I25<>"",Oktobar_2!I25<>""),MAX(Predrok_Mart!I25,Predrok_April!I25,Januar!I25,Februar!I25,Juni!I25,Juli!I25,Septembar!I25,Oktobar!I25,Oktobar_2!I25),"") -> 12 | J25: =IF(Zbirni_podaci[[#This Row],[Broj indeksa]]<>"",IF(AND(Zbirni_podaci[[#This Row],[WORD]]<>"",Zbirni_podaci[[#This Row],[EXCEL]]<>"",Zbirni_podaci[[#This Row],[P_POINT]]<>"",Zbirni_podaci[[#This Row],[TEST_1]]<>""),"DA","NE"),"") -> NE | P25: 22 | Q25: =IF(AND(Zbirni_podaci[[#This Row],[ROK]]<>"",Zbirni_podaci[[#This Row],[WORD bod]]<>"",Zbirni_podaci[[#This Row],[EXCEL bod]]<>"",Zbirni_podaci[[#This Row],[P_POINT bod]]<>"",Zbirni_podaci[[#This Row],[TEST_1 bod]]<>""),VLOOKUP(Zbirni_podaci[[#This Row],[ROK]],bodovi_aktivnost,7,FALSE),"") ->  | R25: =IF(AND(Zbirni_podaci[[#This Row],[Akt_nast_bod]]<>"",Zbirni_podaci[[#This Row],[Akt_vežbe_bod]]<>"",Zbirni_podaci[[#This Row],[WORD bod]]<>"",Zbirni_podaci[[#This Row],[EXCEL bod]]<>"",Zbirni_podaci[[#This Row],[P_POINT bod]]<>"",Zbirni_podaci[[#This Row],[TEST_1 bod]]<>""),ROUND(SUM(Zbirni_podaci[[#This Row],[Akt_nast_bod]:[ISPIT]]),0),"") ->  | U25: =IFERROR(IF(Zbirni_podaci[[#This Row],[ROK]]<>"",VLOOKUP(Zbirni_podaci[[#This Row],[ROK]],DATUMI,6,FALSE),""),"") ->  | W25: =IFERROR(IF(Zbirni_podaci[[#This Row],[ROK]]<>"",VLOOKUP(Zbirni_podaci[[#This Row],[ROK]],DATUMI,2,FALSE),""),"") ->  | Y25: =IFERROR(IF(Zbirni_podaci[[#This Row],[ROK]]<>"",VLOOKUP(Zbirni_podaci[[#This Row],[ROK]],DATUMI,3,FALSE),""),"") ->  | AA25: =IFERROR(IF(Zbirni_podaci[[#This Row],[ROK]]<>"",VLOOKUP(Zbirni_podaci[[#This Row],[ROK]],DATUMI,4,FALSE),""),"") ->  | AE25: =IFERROR(IF(Zbirni_podaci[[#This Row],[ROK]]<>"",VLOOKUP(Zbirni_podaci[[#This Row],[ROK]],DATUMI,6,FALSE),""),"") -> 
A26: =PODACI_STUDENTI!A25 -> 24 | B26: =PODACI_STUDENTI!B25 -> 2018/0134 | C26: =PODACI_STUDENTI!C25 -> Ercegovčević Marija | D26: =PODACI_STUDENTI!D25 -> 0 | F26: =IF(OR(Predrok_Mart!F26<>"",Predrok_April!F26<>"",Januar!F26<>"",Februar!F26<>"",Juni!F26<>"",Juli!F26,Septembar!F26<>"",Oktobar!F26<>"",Oktobar_2!F26<>""),MAX(Predrok_Mart!F26,Predrok_April!F26,Januar!F26,Februar!F26,Juni!F26,Juli!F26,Septembar!F26,Oktobar!F26,Oktobar_2!F26),"") -> 25 | G26: =IF(OR(Predrok_Mart!G26<>"",Predrok_April!G26<>"",Januar!G26<>"",Februar!G26<>"",Juni!G26<>"",Juli!G26,Septembar!G26<>"",Oktobar!G26<>"",Oktobar_2!G26<>""),MAX(Predrok_Mart!G26,Predrok_April!G26,Januar!G26,Februar!G26,Juni!G26,Juli!G26,Septembar!G26,Oktobar!G26,Oktobar_2!G26),"") -> 31 | H26: =IF(OR(Predrok_Mart!H26<>"",Predrok_April!H26<>"",Januar!H26<>"",Februar!H26<>"",Juni!H26<>"",Juli!H26,Septembar!H26<>"",Oktobar!H26<>"",Oktobar_2!H26<>""),MAX(Predrok_Mart!H26,Predrok_April!H26,Januar!H26,Februar!H26,Juni!H26,Juli!H26,Septembar!H26,Oktobar!H26,Oktobar_2!H26),"") -> 29 | I26: =IF(OR(Predrok_Mart!I26<>"",Predrok_April!I26<>"",Januar!I26<>"",Februar!I26<>"",Juni!I26<>"",Juli!I26,Septembar!I26<>"",Oktobar!I26<>"",Oktobar_2!I26<>""),MAX(Predrok_Mart!I26,Predrok_April!I26,Januar!I26,Februar!I26,Juni!I26,Juli!I26,Septembar!I26,Oktobar!I26,Oktobar_2!I26),"") -> 15 | J26: =IF(Zbirni_podaci[[#This Row],[Broj indeksa]]<>"",IF(AND(Zbirni_podaci[[#This Row],[WORD]]<>"",Zbirni_podaci[[#This Row],[EXCEL]]<>"",Zbirni_podaci[[#This Row],[P_POINT]]<>"",Zbirni_podaci[[#This Row],[TEST_1]]<>""),"DA","NE"),"") -> DA | K26: 5 | L26: 5 | M26: 11 | N26: 14 | O26: 13 | P26: 28 | Q26: =IF(AND(Zbirni_podaci[[#This Row],[ROK]]<>"",Zbirni_podaci[[#This Row],[WORD bod]]<>"",Zbirni_podaci[[#This Row],[EXCEL bod]]<>"",Zbirni_podaci[[#This Row],[P_POINT bod]]<>"",Zbirni_podaci[[#This Row],[TEST_1 bod]]<>""),VLOOKUP(Zbirni_podaci[[#This Row],[ROK]],bodovi_aktivnost,7,FALSE),"") -> 20 | R26: =IF(AND(Zbirni_podaci[[#This Row],[Akt_nast_bod]]<>"",Zbirni_podaci[[#This Row],[Akt_vežbe_bod]]<>"",Zbirni_podaci[[#This Row],[WORD bod]]<>"",Zbirni_podaci[[#This Row],[EXCEL bod]]<>"",Zbirni_podaci[[#This Row],[P_POINT bod]]<>"",Zbirni_podaci[[#This Row],[TEST_1 bod]]<>""),ROUND(SUM(Zbirni_podaci[[#This Row],[Akt_nast_bod]:[ISPIT]]),0),"") -> 95 | S26: 10 | T26: Јун | U26: =IFERROR(IF(Zbirni_podaci[[#This Row],[ROK]]<>"",VLOOKUP(Zbirni_podaci[[#This Row],[ROK]],DATUMI,6,FALSE),""),"") -> 2019-06-14 | V26: 10 | W26: =IFERROR(IF(Zbirni_podaci[[#This Row],[ROK]]<>"",VLOOKUP(Zbirni_podaci[[#This Row],[ROK]],DATUMI,2,FALSE),""),"") -> 2019-05-27 | X26: 37 | Y26: =IFERROR(IF(Zbirni_podaci[[#This Row],[ROK]]<>"",VLOOKUP(Zbirni_podaci[[#This Row],[ROK]],DATUMI,3,FALSE),""),"") -> 2019-05-27 | Z26: 28 | AA26: =IFERROR(IF(Zbirni_podaci[[#This Row],[ROK]]<>"",VLOOKUP(Zbirni_podaci[[#This Row],[ROK]],DATUMI,4,FALSE),""),"") -> 2019-06-14 | AB26: 20 | AC26: 95 | AD26: 10 | AE26: =IFERROR(IF(Zbirni_podaci[[#This Row],[ROK]]<>"",VLOOKUP(Zbirni_podaci[[#This Row],[ROK]],DATUMI,6,FALSE),""),"") -> 2019-06-14
A27: =PODACI_STUDENTI!A26 -> 25 | B27: =PODACI_STUDENTI!B26 -> 2018/0030 | C27: =PODACI_STUDENTI!C26 -> Živković Stefan | D27: =PODACI_STUDENTI!D26 -> 0 | F27: =IF(OR(Predrok_Mart!F27<>"",Predrok_April!F27<>"",Januar!F27<>"",Februar!F27<>"",Juni!F27<>"",Juli!F27,Septembar!F27<>"",Oktobar!F27<>"",Oktobar_2!F27<>""),MAX(Predrok_Mart!F27,Predrok_April!F27,Januar!F27,Februar!F27,Juni!F27,Juli!F27,Septembar!F27,Oktobar!F27,Oktobar_2!F27),"") -> 30 | G27: =IF(OR(Predrok_Mart!G27<>"",Predrok_April!G27<>"",Januar!G27<>"",Februar!G27<>"",Juni!G27<>"",Juli!G27,Septembar!G27<>"",Oktobar!G27<>"",Oktobar_2!G27<>""),MAX(Predrok_Mart!G27,Predrok_April!G27,Januar!G27,Februar!G27,Juni!G27,Juli!G27,Septembar!G27,Oktobar!G27,Oktobar_2!G27),"") -> 30 | H27: =IF(OR(Predrok_Mart!H27<>"",Predrok_April!H27<>"",Januar!H27<>"",Februar!H27<>"",Juni!H27<>"",Juli!H27,Septembar!H27<>"",Oktobar!H27<>"",Oktobar_2!H27<>""),MAX(Predrok_Mart!H27,Predrok_April!H27,Januar!H27,Februar!H27,Juni!H27,Juli!H27,Septembar!H27,Oktobar!H27,Oktobar_2!H27),"") -> 27 | I27: =IF(OR(Predrok_Mart!I27<>"",Predrok_April!I27<>"",Januar!I27<>"",Februar!I27<>"",Juni!I27<>"",Juli!I27,Septembar!I27<>"",Oktobar!I27<>"",Oktobar_2!I27<>""),MAX(Predrok_Mart!I27,Predrok_April!I27,Januar!I27,Februar!I27,Juni!I27,Juli!I27,Septembar!I27,Oktobar!I27,Oktobar_2!I27),"") -> 12 | J27: =IF(Zbirni_podaci[[#This Row],[Broj indeksa]]<>"",IF(AND(Zbirni_podaci[[#This Row],[WORD]]<>"",Zbirni_podaci[[#This Row],[EXCEL]]<>"",Zbirni_podaci[[#This Row],[P_POINT]]<>"",Zbirni_podaci[[#This Row],[TEST_1]]<>""),"DA","NE"),"") -> DA | K27: 5 | L27: 5 | M27: 13 | N27: 13 | O27: 12 | P27: 22 | Q27: =IF(AND(Zbirni_podaci[[#This Row],[ROK]]<>"",Zbirni_podaci[[#This Row],[WORD bod]]<>"",Zbirni_podaci[[#This Row],[EXCEL bod]]<>"",Zbirni_podaci[[#This Row],[P_POINT bod]]<>"",Zbirni_podaci[[#This Row],[TEST_1 bod]]<>""),VLOOKUP(Zbirni_podaci[[#This Row],[ROK]],bodovi_aktivnost,7,FALSE),"") -> 20 | R27: =IF(AND(Zbirni_podaci[[#This Row],[Akt_nast_bod]]<>"",Zbirni_podaci[[#This Row],[Akt_vežbe_bod]]<>"",Zbirni_podaci[[#This Row],[WORD bod]]<>"",Zbirni_podaci[[#This Row],[EXCEL bod]]<>"",Zbirni_podaci[[#This Row],[P_POINT bod]]<>"",Zbirni_podaci[[#This Row],[TEST_1 bod]]<>""),ROUND(SUM(Zbirni_podaci[[#This Row],[Akt_nast_bod]:[ISPIT]]),0),"") -> 90 | S27: 9 | T27: Јун | U27: =IFERROR(IF(Zbirni_podaci[[#This Row],[ROK]]<>"",VLOOKUP(Zbirni_podaci[[#This Row],[ROK]],DATUMI,6,FALSE),""),"") -> 2019-06-14 | V27: 10 | W27: =IFERROR(IF(Zbirni_podaci[[#This Row],[ROK]]<>"",VLOOKUP(Zbirni_podaci[[#This Row],[ROK]],DATUMI,2,FALSE),""),"") -> 2019-05-27 | X27: 38 | Y27: =IFERROR(IF(Zbirni_podaci[[#This Row],[ROK]]<>"",VLOOKUP(Zbirni_podaci[[#This Row],[ROK]],DATUMI,3,FALSE),""),"") -> 2019-05-27 | Z27: 22 | AA27: =IFERROR(IF(Zbirni_podaci[[#This Row],[ROK]]<>"",VLOOKUP(Zbirni_podaci[[#This Row],[ROK]],DATUMI,4,FALSE),""),"") -> 2019-06-14 | AB27: 20 | AC27: 90 | AD27: 9 | AE27: =IFERROR(IF(Zbirni_podaci[[#This Row],[ROK]]<>"",VLOOKUP(Zbirni_podaci[[#This Row],[ROK]],DATUMI,6,FALSE),""),"") -> 2019-06-14
A28: =PODACI_STUDENTI!A27 -> 26 | B28: =PODACI_STUDENTI!B27 -> 2018/0107 | C28: =PODACI_STUDENTI!C27 -> Zrnzević Đorđe | D28: =PODACI_STUDENTI!D27 -> 0 | F28: =IF(OR(Predrok_Mart!F28<>"",Predrok_April!F28<>"",Januar!F28<>"",Februar!F28<>"",Juni!F28<>"",Juli!F28,Septembar!F28<>"",Oktobar!F28<>"",Oktobar_2!F28<>""),MAX(Predrok_Mart!F28,Predrok_April!F28,Januar!F28,Februar!F28,Juni!F28,Juli!F28,Septembar!F28,Oktobar!F28,Oktobar_2!F28),"") -> 29 | G28: =IF(OR(Predrok_Mart!G28<>"",Predrok_April!G28<>"",Januar!G28<>"",Februar!G28<>"",Juni!G28<>"",Juli!G28,Septembar!G28<>"",Oktobar!G28<>"",Oktobar_2!G28<>""),MAX(Predrok_Mart!G28,Predrok_April!G28,Januar!G28,Februar!G28,Juni!G28,Juli!G28,Septembar!G28,Oktobar!G28,Oktobar_2!G28),"") -> 24 | H28: =IF(OR(Predrok_Mart!H28<>"",Predrok_April!H28<>"",Januar!H28<>"",Februar!H28<>"",Juni!H28<>"",Juli!H28,Septembar!H28<>"",Oktobar!H28<>"",Oktobar_2!H28<>""),MAX(Predrok_Mart!H28,Predrok_April!H28,Januar!H28,Februar!H28,Juni!H28,Juli!H28,Septembar!H28,Oktobar!H28,Oktobar_2!H28),"") -> 28 | I28: =IF(OR(Predrok_Mart!I28<>"",Predrok_April!I28<>"",Januar!I28<>"",Februar!I28<>"",Juni!I28<>"",Juli!I28,Septembar!I28<>"",Oktobar!I28<>"",Oktobar_2!I28<>""),MAX(Predrok_Mart!I28,Predrok_April!I28,Januar!I28,Februar!I28,Juni!I28,Juli!I28,Septembar!I28,Oktobar!I28,Oktobar_2!I28),"") -> 15 | J28: =IF(Zbirni_podaci[[#This Row],[Broj indeksa]]<>"",IF(AND(Zbirni_podaci[[#This Row],[WORD]]<>"",Zbirni_podaci[[#This Row],[EXCEL]]<>"",Zbirni_podaci[[#This Row],[P_POINT]]<>"",Zbirni_podaci[[#This Row],[TEST_1]]<>""),"DA","NE"),"") -> DA | K28: 5 | L28: 5 | M28: 13 | N28: 11 | O28: 12 | P28: 28 | Q28: =IF(AND(Zbirni_podaci[[#This Row],[ROK]]<>"",Zbirni_podaci[[#This Row],[WORD bod]]<>"",Zbirni_podaci[[#This Row],[EXCEL bod]]<>"",Zbirni_podaci[[#This Row],[P_POINT bod]]<>"",Zbirni_podaci[[#This Row],[TEST_1 bod]]<>""),VLOOKUP(Zbirni_podaci[[#This Row],[ROK]],bodovi_aktivnost,7,FALSE),"") -> 20 | R28: =IF(AND(Zbirni_podaci[[#This Row],[Akt_nast_bod]]<>"",Zbirni_podaci[[#This Row],[Akt_vežbe_bod]]<>"",Zbirni_podaci[[#This Row],[WORD bod]]<>"",Zbirni_podaci[[#This Row],[EXCEL bod]]<>"",Zbirni_podaci[[#This Row],[P_POINT bod]]<>"",Zbirni_podaci[[#This Row],[TEST_1 bod]]<>""),ROUND(SUM(Zbirni_podaci[[#This Row],[Akt_nast_bod]:[ISPIT]]),0),"") -> 93 | S28: 10 | T28: Јун | U28: =IFERROR(IF(Zbirni_podaci[[#This Row],[ROK]]<>"",VLOOKUP(Zbirni_podaci[[#This Row],[ROK]],DATUMI,6,FALSE),""),"") -> 2019-06-14 | V28: 10 | W28: =IFERROR(IF(Zbirni_podaci[[#This Row],[ROK]]<>"",VLOOKUP(Zbirni_podaci[[#This Row],[ROK]],DATUMI,2,FALSE),""),"") -> 2019-05-27 | X28: 35 | Y28: =IFERROR(IF(Zbirni_podaci[[#This Row],[ROK]]<>"",VLOOKUP(Zbirni_podaci[[#This Row],[ROK]],DATUMI,3,FALSE),""),"") -> 2019-05-27 | Z28: 28 | AA28: =IFERROR(IF(Zbirni_podaci[[#This Row],[ROK]]<>"",VLOOKUP(Zbirni_podaci[[#This Row],[ROK]],DATUMI,4,FALSE),""),"") -> 2019-06-14 | AB28: 20 | AC28: 93 | AD28: 10 | AE28: =IFERROR(IF(Zbirni_podaci[[#This Row],[ROK]]<>"",VLOOKUP(Zbirni_podaci[[#This Row],[ROK]],DATUMI,6,FALSE),""),"") -> 2019-06-14
A29: =PODACI_STUDENTI!A28 -> 27 | B29: =PODACI_STUDENTI!B28 -> 2018/0009 | C29: =PODACI_STUDENTI!C28 -> Ivanković Kristina | D29: =PODACI_STUDENTI!D28 -> 0 | F29: =IF(OR(Predrok_Mart!F29<>"",Predrok_April!F29<>"",Januar!F29<>"",Februar!F29<>"",Juni!F29<>"",Juli!F29,Septembar!F29<>"",Oktobar!F29<>"",Oktobar_2!F29<>""),MAX(Predrok_Mart!F29,Predrok_April!F29,Januar!F29,Februar!F29,Juni!F29,Juli!F29,Septembar!F29,Oktobar!F29,Oktobar_2!F29),"") -> 25 | G29: =IF(OR(Predrok_Mart!G29<>"",Predrok_April!G29<>"",Januar!G29<>"",Februar!G29<>"",Juni!G29<>"",Juli!G29,Septembar!G29<>"",Oktobar!G29<>"",Oktobar_2!G29<>""),MAX(Predrok_Mart!G29,Predrok_April!G29,Januar!G29,Februar!G29,Juni!G29,Juli!G29,Septembar!G29,Oktobar!G29,Oktobar_2!G29),"") -> 27 | H29: =IF(OR(Predrok_Mart!H29<>"",Predrok_April!H29<>"",Januar!H29<>"",Februar!H29<>"",Juni!H29<>"",Juli!H29,Septembar!H29<>"",Oktobar!H29<>"",Oktobar_2!H29<>""),MAX(Predrok_Mart!H29,Predrok_April!H29,Januar!H29,Februar!H29,Juni!H29,Juli!H29,Septembar!H29,Oktobar!H29,Oktobar_2!H29),"") -> 24 | I29: =IF(OR(Predrok_Mart!I29<>"",Predrok_April!I29<>"",Januar!I29<>"",Februar!I29<>"",Juni!I29<>"",Juli!I29,Septembar!I29<>"",Oktobar!I29<>"",Oktobar_2!I29<>""),MAX(Predrok_Mart!I29,Predrok_April!I29,Januar!I29,Februar!I29,Juni!I29,Juli!I29,Septembar!I29,Oktobar!I29,Oktobar_2!I29),"") -> 9 | J29: =IF(Zbirni_podaci[[#This Row],[Broj indeksa]]<>"",IF(AND(Zbirni_podaci[[#This Row],[WORD]]<>"",Zbirni_podaci[[#This Row],[EXCEL]]<>"",Zbirni_podaci[[#This Row],[P_POINT]]<>"",Zbirni_podaci[[#This Row],[TEST_1]]<>""),"DA","NE"),"") -> DA | K29: 5 | L29: 5 | M29: 11 | N29: 12 | O29: 11 | P29: 17 | Q29: =IF(AND(Zbirni_podaci[[#This Row],[ROK]]<>"",Zbirni_podaci[[#This Row],[WORD bod]]<>"",Zbirni_podaci[[#This Row],[EXCEL bod]]<>"",Zbirni_podaci[[#This Row],[P_POINT bod]]<>"",Zbirni_podaci[[#This Row],[TEST_1 bod]]<>""),VLOOKUP(Zbirni_podaci[[#This Row],[ROK]],bodovi_aktivnost,7,FALSE),"") -> 15 | R29: =IF(AND(Zbirni_podaci[[#This Row],[Akt_nast_bod]]<>"",Zbirni_podaci[[#This Row],[Akt_vežbe_bod]]<>"",Zbirni_podaci[[#This Row],[WORD bod]]<>"",Zbirni_podaci[[#This Row],[EXCEL bod]]<>"",Zbirni_podaci[[#This Row],[P_POINT bod]]<>"",Zbirni_podaci[[#This Row],[TEST_1 bod]]<>""),ROUND(SUM(Zbirni_podaci[[#This Row],[Akt_nast_bod]:[ISPIT]]),0),"") -> 75 | S29: 8 | T29: Јул | U29: =IFERROR(IF(Zbirni_podaci[[#This Row],[ROK]]<>"",VLOOKUP(Zbirni_podaci[[#This Row],[ROK]],DATUMI,6,FALSE),""),"") -> 2019-07-01 | V29: 10 | W29: =IFERROR(IF(Zbirni_podaci[[#This Row],[ROK]]<>"",VLOOKUP(Zbirni_podaci[[#This Row],[ROK]],DATUMI,2,FALSE),""),"") -> 2019-05-27 | X29: 33 | Y29: =IFERROR(IF(Zbirni_podaci[[#This Row],[ROK]]<>"",VLOOKUP(Zbirni_podaci[[#This Row],[ROK]],DATUMI,3,FALSE),""),"") -> 2019-05-27 | Z29: 17 | AA29: =IFERROR(IF(Zbirni_podaci[[#This Row],[ROK]]<>"",VLOOKUP(Zbirni_podaci[[#This Row],[ROK]],DATUMI,4,FALSE),""),"") -> 2019-07-01 | AB29: 15 | AC29: 75 | AD29: 8 | AE29: =IFERROR(IF(Zbirni_podaci[[#This Row],[ROK]]<>"",VLOOKUP(Zbirni_podaci[[#This Row],[ROK]],DATUMI,6,FALSE),""),"") -> 2019-07-01
A30: =PODACI_STUDENTI!A29 -> 28 | B30: =PODACI_STUDENTI!B29 -> 2018/0022 | C30: =PODACI_STUDENTI!C29 -> Igić Dimitrije | D30: =PODACI_STUDENTI!D29 -> 0 | F30: =IF(OR(Predrok_Mart!F30<>"",Predrok_April!F30<>"",Januar!F30<>"",Februar!F30<>"",Juni!F30<>"",Juli!F30,Septembar!F30<>"",Oktobar!F30<>"",Oktobar_2!F30<>""),MAX(Predrok_Mart!F30,Predrok_April!F30,Januar!F30,Februar!F30,Juni!F30,Juli!F30,Septembar!F30,Oktobar!F30,Oktobar_2!F30),"") -> 30 | G30: =IF(OR(Predrok_Mart!G30<>"",Predrok_April!G30<>"",Januar!G30<>"",Februar!G30<>"",Juni!G30<>"",Juli!G30,Septembar!G30<>"",Oktobar!G30<>"",Oktobar_2!G30<>""),MAX(Predrok_Mart!G30,Predrok_April!G30,Januar!G30,Februar!G30,Juni!G30,Juli!G30,Septembar!G30,Oktobar!G30,Oktobar_2!G30),"") -> 29 | H30: =IF(OR(Predrok_Mart!H30<>"",Predrok_April!H30<>"",Januar!H30<>"",Februar!H30<>"",Juni!H30<>"",Juli!H30,Septembar!H30<>"",Oktobar!H30<>"",Oktobar_2!H30<>""),MAX(Predrok_Mart!H30,Predrok_April!H30,Januar!H30,Februar!H30,Juni!H30,Juli!H30,Septembar!H30,Oktobar!H30,Oktobar_2!H30),"") -> 28 | I30: =IF(OR(Predrok_Mart!I30<>"",Predrok_April!I30<>"",Januar!I30<>"",Februar!I30<>"",Juni!I30<>"",Juli!I30,Septembar!I30<>"",Oktobar!I30<>"",Oktobar_2!I30<>""),MAX(Predrok_Mart!I30,Predrok_April!I30,Januar!I30,Februar!I30,Juni!I30,Juli!I30,Septembar!I30,Oktobar!I30,Oktobar_2!I30),"") -> 11 | J30: =IF(Zbirni_podaci[[#This Row],[Broj indeksa]]<>"",IF(AND(Zbirni_podaci[[#This Row],[WORD]]<>"",Zbirni_podaci[[#This Row],[EXCEL]]<>"",Zbirni_podaci[[#This Row],[P_POINT]]<>"",Zbirni_podaci[[#This Row],[TEST_1]]<>""),"DA","NE"),"") -> DA | K30: 5 | L30: 5 | M30: 13 | N30: 13 | O30: 12 | P30: 21 | Q30: =IF(AND(Zbirni_podaci[[#This Row],[ROK]]<>"",Zbirni_podaci[[#This Row],[WORD bod]]<>"",Zbirni_podaci[[#This Row],[EXCEL bod]]<>"",Zbirni_podaci[[#This Row],[P_POINT bod]]<>"",Zbirni_podaci[[#This Row],[TEST_1 bod]]<>""),VLOOKUP(Zbirni_podaci[[#This Row],[ROK]],bodovi_aktivnost,7,FALSE),"") -> 20 | R30: =IF(AND(Zbirni_podaci[[#This Row],[Akt_nast_bod]]<>"",Zbirni_podaci[[#This Row],[Akt_vežbe_bod]]<>"",Zbirni_podaci[[#This Row],[WORD bod]]<>"",Zbirni_podaci[[#This Row],[EXCEL bod]]<>"",Zbirni_podaci[[#This Row],[P_POINT bod]]<>"",Zbirni_podaci[[#This Row],[TEST_1 bod]]<>""),ROUND(SUM(Zbirni_podaci[[#This Row],[Akt_nast_bod]:[ISPIT]]),0),"") -> 89 | S30: 9 | T30: Јун | U30: =IFERROR(IF(Zbirni_podaci[[#This Row],[ROK]]<>"",VLOOKUP(Zbirni_podaci[[#This Row],[ROK]],DATUMI,6,FALSE),""),"") -> 2019-06-14 | V30: 10 | W30: =IFERROR(IF(Zbirni_podaci[[#This Row],[ROK]]<>"",VLOOKUP(Zbirni_podaci[[#This Row],[ROK]],DATUMI,2,FALSE),""),"") -> 2019-05-27 | X30: 38 | Y30: =IFERROR(IF(Zbirni_podaci[[#This Row],[ROK]]<>"",VLOOKUP(Zbirni_podaci[[#This Row],[ROK]],DATUMI,3,FALSE),""),"") -> 2019-05-27 | Z30: 21 | AA30: =IFERROR(IF(Zbirni_podaci[[#This Row],[ROK]]<>"",VLOOKUP(Zbirni_podaci[[#This Row],[ROK]],DATUMI,4,FALSE),""),"") -> 2019-06-14 | AB30: 20 | AC30: 89 | AD30: 9 | AE30: =IFERROR(IF(Zbirni_podaci[[#This Row],[ROK]]<>"",VLOOKUP(Zbirni_podaci[[#This Row],[ROK]],DATUMI,6,FALSE),""),"") -> 2019-06-14
A31: =PODACI_STUDENTI!A30 -> 29 | B31: =PODACI_STUDENTI!B30 -> 2018/0158 | C31: =PODACI_STUDENTI!C30 -> Ilić Aleksandar | D31: =PODACI_STUDENTI!D30 -> 0 | F31: =IF(OR(Predrok_Mart!F31<>"",Predrok_April!F31<>"",Januar!F31<>"",Februar!F31<>"",Juni!F31<>"",Juli!F31,Septembar!F31<>"",Oktobar!F31<>"",Oktobar_2!F31<>""),MAX(Predrok_Mart!F31,Predrok_April!F31,Januar!F31,Februar!F31,Juni!F31,Juli!F31,Septembar!F31,Oktobar!F31,Oktobar_2!F31),"") -> 26 | G31: =IF(OR(Predrok_Mart!G31<>"",Predrok_April!G31<>"",Januar!G31<>"",Februar!G31<>"",Juni!G31<>"",Juli!G31,Septembar!G31<>"",Oktobar!G31<>"",Oktobar_2!G31<>""),MAX(Predrok_Mart!G31,Predrok_April!G31,Januar!G31,Februar!G31,Juni!G31,Juli!G31,Septembar!G31,Oktobar!G31,Oktobar_2!G31),"") -> 28 | H31: =IF(OR(Predrok_Mart!H31<>"",Predrok_April!H31<>"",Januar!H31<>"",Februar!H31<>"",Juni!H31<>"",Juli!H31,Septembar!H31<>"",Oktobar!H31<>"",Oktobar_2!H31<>""),MAX(Predrok_Mart!H31,Predrok_April!H31,Januar!H31,Februar!H31,Juni!H31,Juli!H31,Septembar!H31,Oktobar!H31,Oktobar_2!H31),"") -> 26 | I31: =IF(OR(Predrok_Mart!I31<>"",Predrok_April!I31<>"",Januar!I31<>"",Februar!I31<>"",Juni!I31<>"",Juli!I31,Septembar!I31<>"",Oktobar!I31<>"",Oktobar_2!I31<>""),MAX(Predrok_Mart!I31,Predrok_April!I31,Januar!I31,Februar!I31,Juni!I31,Juli!I31,Septembar!I31,Oktobar!I31,Oktobar_2!I31),"") -> 9 | J31: =IF(Zbirni_podaci[[#This Row],[Broj indeksa]]<>"",IF(AND(Zbirni_podaci[[#This Row],[WORD]]<>"",Zbirni_podaci[[#This Row],[EXCEL]]<>"",Zbirni_podaci[[#This Row],[P_POINT]]<>"",Zbirni_podaci[[#This Row],[TEST_1]]<>""),"DA","NE"),"") -> DA | K31: 5 | L31: 5 | M31: 11 | N31: 12 | O31: 11 | P31: 17 | Q31: =IF(AND(Zbirni_podaci[[#This Row],[ROK]]<>"",Zbirni_podaci[[#This Row],[WORD bod]]<>"",Zbirni_podaci[[#This Row],[EXCEL bod]]<>"",Zbirni_podaci[[#This Row],[P_POINT bod]]<>"",Zbirni_podaci[[#This Row],[TEST_1 bod]]<>""),VLOOKUP(Zbirni_podaci[[#This Row],[ROK]],bodovi_aktivnost,7,FALSE),"") -> 20 | R31: =IF(AND(Zbirni_podaci[[#This Row],[Akt_nast_bod]]<>"",Zbirni_podaci[[#This Row],[Akt_vežbe_bod]]<>"",Zbirni_podaci[[#This Row],[WORD bod]]<>"",Zbirni_podaci[[#This Row],[EXCEL bod]]<>"",Zbirni_podaci[[#This Row],[P_POINT bod]]<>"",Zbirni_podaci[[#This Row],[TEST_1 bod]]<>""),ROUND(SUM(Zbirni_podaci[[#This Row],[Akt_nast_bod]:[ISPIT]]),0),"") -> 82 | S31: 9 | T31: Јун | U31: =IFERROR(IF(Zbirni_podaci[[#This Row],[ROK]]<>"",VLOOKUP(Zbirni_podaci[[#This Row],[ROK]],DATUMI,6,FALSE),""),"") -> 2019-06-14 | V31: 10 | W31: =IFERROR(IF(Zbirni_podaci[[#This Row],[ROK]]<>"",VLOOKUP(Zbirni_podaci[[#This Row],[ROK]],DATUMI,2,FALSE),""),"") -> 2019-05-27 | X31: 35 | Y31: =IFERROR(IF(Zbirni_podaci[[#This Row],[ROK]]<>"",VLOOKUP(Zbirni_podaci[[#This Row],[ROK]],DATUMI,3,FALSE),""),"") -> 2019-05-27 | Z31: 17 | AA31: =IFERROR(IF(Zbirni_podaci[[#This Row],[ROK]]<>"",VLOOKUP(Zbirni_podaci[[#This Row],[ROK]],DATUMI,4,FALSE),""),"") -> 2019-06-14 | AB31: 20 | AC31: 82 | AD31: 9 | AE31: =IFERROR(IF(Zbirni_podaci[[#This Row],[ROK]]<>"",VLOOKUP(Zbirni_podaci[[#This Row],[ROK]],DATUMI,6,FALSE),""),"") -> 2019-06-14
A32: =PODACI_STUDENTI!A31 -> 30 | B32: =PODACI_STUDENTI!B31 -> 2018/0102 | C32: =PODACI_STUDENTI!C31 -> Ilić Nikola | D32: =PODACI_STUDENTI!D31 -> 0 | F32: =IF(OR(Predrok_Mart!F32<>"",Predrok_April!F32<>"",Januar!F32<>"",Februar!F32<>"",Juni!F32<>"",Juli!F32,Septembar!F32<>"",Oktobar!F32<>"",Oktobar_2!F32<>""),MAX(Predrok_Mart!F32,Predrok_April!F32,Januar!F32,Februar!F32,Juni!F32,Juli!F32,Septembar!F32,Oktobar!F32,Oktobar_2!F32),"") -> 30 | G32: =IF(OR(Predrok_Mart!G32<>"",Predrok_April!G32<>"",Januar!G32<>"",Februar!G32<>"",Juni!G32<>"",Juli!G32,Septembar!G32<>"",Oktobar!G32<>"",Oktobar_2!G32<>""),MAX(Predrok_Mart!G32,Predrok_April!G32,Januar!G32,Februar!G32,Juni!G32,Juli!G32,Septembar!G32,Oktobar!G32,Oktobar_2!G32),"") -> 30 | H32: =IF(OR(Predrok_Mart!H32<>"",Predrok_April!H32<>"",Januar!H32<>"",Februar!H32<>"",Juni!H32<>"",Juli!H32,Septembar!H32<>"",Oktobar!H32<>"",Oktobar_2!H32<>""),MAX(Predrok_Mart!H32,Predrok_April!H32,Januar!H32,Februar!H32,Juni!H32,Juli!H32,Septembar!H32,Oktobar!H32,Oktobar_2!H32),"") -> 24 | I32: =IF(OR(Predrok_Mart!I32<>"",Predrok_April!I32<>"",Januar!I32<>"",Februar!I32<>"",Juni!I32<>"",Juli!I32,Septembar!I32<>"",Oktobar!I32<>"",Oktobar_2!I32<>""),MAX(Predrok_Mart!I32,Predrok_April!I32,Januar!I32,Februar!I32,Juni!I32,Juli!I32,Septembar!I32,Oktobar!I32,Oktobar_2!I32),"") -> 9 | J32: =IF(Zbirni_podaci[[#This Row],[Broj indeksa]]<>"",IF(AND(Zbirni_podaci[[#This Row],[WORD]]<>"",Zbirni_podaci[[#This Row],[EXCEL]]<>"",Zbirni_podaci[[#This Row],[P_POINT]]<>"",Zbirni_podaci[[#This Row],[TEST_1]]<>""),"DA","NE"),"") -> DA | K32: 5 | L32: 5 | M32: 13 | N32: 13 | O32: 11 | P32: 17 | Q32: =IF(AND(Zbirni_podaci[[#This Row],[ROK]]<>"",Zbirni_podaci[[#This Row],[WORD bod]]<>"",Zbirni_podaci[[#This Row],[EXCEL bod]]<>"",Zbirni_podaci[[#This Row],[P_POINT bod]]<>"",Zbirni_podaci[[#This Row],[TEST_1 bod]]<>""),VLOOKUP(Zbirni_podaci[[#This Row],[ROK]],bodovi_aktivnost,7,FALSE),"") -> 20 | R32: =IF(AND(Zbirni_podaci[[#This Row],[Akt_nast_bod]]<>"",Zbirni_podaci[[#This Row],[Akt_vežbe_bod]]<>"",Zbirni_podaci[[#This Row],[WORD bod]]<>"",Zbirni_podaci[[#This Row],[EXCEL bod]]<>"",Zbirni_podaci[[#This Row],[P_POINT bod]]<>"",Zbirni_podaci[[#This Row],[TEST_1 bod]]<>""),ROUND(SUM(Zbirni_podaci[[#This Row],[Akt_nast_bod]:[ISPIT]]),0),"") -> 84 | S32: 9 | T32: Јун | U32: =IFERROR(IF(Zbirni_podaci[[#This Row],[ROK]]<>"",VLOOKUP(Zbirni_podaci[[#This Row],[ROK]],DATUMI,6,FALSE),""),"") -> 2019-06-14 | V32: 10 | W32: =IFERROR(IF(Zbirni_podaci[[#This Row],[ROK]]<>"",VLOOKUP(Zbirni_podaci[[#This Row],[ROK]],DATUMI,2,FALSE),""),"") -> 2019-05-27 | X32: 37 | Y32: =IFERROR(IF(Zbirni_podaci[[#This Row],[ROK]]<>"",VLOOKUP(Zbirni_podaci[[#This Row],[ROK]],DATUMI,3,FALSE),""),"") -> 2019-05-27 | Z32: 17 | AA32: =IFERROR(IF(Zbirni_podaci[[#This Row],[ROK]]<>"",VLOOKUP(Zbirni_podaci[[#This Row],[ROK]],DATUMI,4,FALSE),""),"") -> 2019-06-14 | AB32: 20 | AC32: 84 | AD32: 9 | AE32: =IFERROR(IF(Zbirni_podaci[[#This Row],[ROK]]<>"",VLOOKUP(Zbirni_podaci[[#This Row],[ROK]],DATUMI,6,FALSE),""),"") -> 2019-06-14
A33: =PODACI_STUDENTI!A32 -> 31 | B33: =PODACI_STUDENTI!B32 -> 2018/0068 | C33: =PODACI_STUDENTI!C32 -> Janković Anja | D33: =PODACI_STUDENTI!D32 -> 0 | F33: =IF(OR(Predrok_Mart!F33<>"",Predrok_April!F33<>"",Januar!F33<>"",Februar!F33<>"",Juni!F33<>"",Juli!F33,Septembar!F33<>"",Oktobar!F33<>"",Oktobar_2!F33<>""),MAX(Predrok_Mart!F33,Predrok_April!F33,Januar!F33,Februar!F33,Juni!F33,Juli!F33,Septembar!F33,Oktobar!F33,Oktobar_2!F33),"") ->  | G33: =IF(OR(Predrok_Mart!G33<>"",Predrok_April!G33<>"",Januar!G33<>"",Februar!G33<>"",Juni!G33<>"",Juli!G33,Septembar!G33<>"",Oktobar!G33<>"",Oktobar_2!G33<>""),MAX(Predrok_Mart!G33,Predrok_April!G33,Januar!G33,Februar!G33,Juni!G33,Juli!G33,Septembar!G33,Oktobar!G33,Oktobar_2!G33),"") ->  | H33: =IF(OR(Predrok_Mart!H33<>"",Predrok_April!H33<>"",Januar!H33<>"",Februar!H33<>"",Juni!H33<>"",Juli!H33,Septembar!H33<>"",Oktobar!H33<>"",Oktobar_2!H33<>""),MAX(Predrok_Mart!H33,Predrok_April!H33,Januar!H33,Februar!H33,Juni!H33,Juli!H33,Septembar!H33,Oktobar!H33,Oktobar_2!H33),"") ->  | I33: =IF(OR(Predrok_Mart!I33<>"",Predrok_April!I33<>"",Januar!I33<>"",Februar!I33<>"",Juni!I33<>"",Juli!I33,Septembar!I33<>"",Oktobar!I33<>"",Oktobar_2!I33<>""),MAX(Predrok_Mart!I33,Predrok_April!I33,Januar!I33,Februar!I33,Juni!I33,Juli!I33,Septembar!I33,Oktobar!I33,Oktobar_2!I33),"") -> 12 | J33: =IF(Zbirni_podaci[[#This Row],[Broj indeksa]]<>"",IF(AND(Zbirni_podaci[[#This Row],[WORD]]<>"",Zbirni_podaci[[#This Row],[EXCEL]]<>"",Zbirni_podaci[[#This Row],[P_POINT]]<>"",Zbirni_podaci[[#This Row],[TEST_1]]<>""),"DA","NE"),"") -> NE | P33: 22 | Q33: =IF(AND(Zbirni_podaci[[#This Row],[ROK]]<>"",Zbirni_podaci[[#This Row],[WORD bod]]<>"",Zbirni_podaci[[#This Row],[EXCEL bod]]<>"",Zbirni_podaci[[#This Row],[P_POINT bod]]<>"",Zbirni_podaci[[#This Row],[TEST_1 bod]]<>""),VLOOKUP(Zbirni_podaci[[#This Row],[ROK]],bodovi_aktivnost,7,FALSE),"") ->  | R33: =IF(AND(Zbirni_podaci[[#This Row],[Akt_nast_bod]]<>"",Zbirni_podaci[[#This Row],[Akt_vežbe_bod]]<>"",Zbirni_podaci[[#This Row],[WORD bod]]<>"",Zbirni_podaci[[#This Row],[EXCEL bod]]<>"",Zbirni_podaci[[#This Row],[P_POINT bod]]<>"",Zbirni_podaci[[#This Row],[TEST_1 bod]]<>""),ROUND(SUM(Zbirni_podaci[[#This Row],[Akt_nast_bod]:[ISPIT]]),0),"") ->  | U33: =IFERROR(IF(Zbirni_podaci[[#This Row],[ROK]]<>"",VLOOKUP(Zbirni_podaci[[#This Row],[ROK]],DATUMI,6,FALSE),""),"") ->  | W33: =IFERROR(IF(Zbirni_podaci[[#This Row],[ROK]]<>"",VLOOKUP(Zbirni_podaci[[#This Row],[ROK]],DATUMI,2,FALSE),""),"") ->  | Y33: =IFERROR(IF(Zbirni_podaci[[#This Row],[ROK]]<>"",VLOOKUP(Zbirni_podaci[[#This Row],[ROK]],DATUMI,3,FALSE),""),"") ->  | AA33: =IFERROR(IF(Zbirni_podaci[[#This Row],[ROK]]<>"",VLOOKUP(Zbirni_podaci[[#This Row],[ROK]],DATUMI,4,FALSE),""),"") ->  | AE33: =IFERROR(IF(Zbirni_podaci[[#This Row],[ROK]]<>"",VLOOKUP(Zbirni_podaci[[#This Row],[ROK]],DATUMI,6,FALSE),""),"") -> 
A34: =PODACI_STUDENTI!A33 -> 32 | B34: =PODACI_STUDENTI!B33 -> 2018/0099 | C34: =PODACI_STUDENTI!C33 -> Janković Dejan | D34: =PODACI_STUDENTI!D33 -> 0 | F34: =IF(OR(Predrok_Mart!F34<>"",Predrok_April!F34<>"",Januar!F34<>"",Februar!F34<>"",Juni!F34<>"",Juli!F34,Septembar!F34<>"",Oktobar!F34<>"",Oktobar_2!F34<>""),MAX(Predrok_Mart!F34,Predrok_April!F34,Januar!F34,Februar!F34,Juni!F34,Juli!F34,Septembar!F34,Oktobar!F34,Oktobar_2!F34),"") -> 24 | G34: =IF(OR(Predrok_Mart!G34<>"",Predrok_April!G34<>"",Januar!G34<>"",Februar!G34<>"",Juni!G34<>"",Juli!G34,Septembar!G34<>"",Oktobar!G34<>"",Oktobar_2!G34<>""),MAX(Predrok_Mart!G34,Predrok_April!G34,Januar!G34,Februar!G34,Juni!G34,Juli!G34,Septembar!G34,Oktobar!G34,Oktobar_2!G34),"") -> 26 | H34: =IF(OR(Predrok_Mart!H34<>"",Predrok_April!H34<>"",Januar!H34<>"",Februar!H34<>"",Juni!H34<>"",Juli!H34,Septembar!H34<>"",Oktobar!H34<>"",Oktobar_2!H34<>""),MAX(Predrok_Mart!H34,Predrok_April!H34,Januar!H34,Februar!H34,Juni!H34,Juli!H34,Septembar!H34,Oktobar!H34,Oktobar_2!H34),"") -> 28 | I34: =IF(OR(Predrok_Mart!I34<>"",Predrok_April!I34<>"",Januar!I34<>"",Februar!I34<>"",Juni!I34<>"",Juli!I34,Septembar!I34<>"",Oktobar!I34<>"",Oktobar_2!I34<>""),MAX(Predrok_Mart!I34,Predrok_April!I34,Januar!I34,Februar!I34,Juni!I34,Juli!I34,Septembar!I34,Oktobar!I34,Oktobar_2!I34),"") -> 11 | J34: =IF(Zbirni_podaci[[#This Row],[Broj indeksa]]<>"",IF(AND(Zbirni_podaci[[#This Row],[WORD]]<>"",Zbirni_podaci[[#This Row],[EXCEL]]<>"",Zbirni_podaci[[#This Row],[P_POINT]]<>"",Zbirni_podaci[[#This Row],[TEST_1]]<>""),"DA","NE"),"") -> DA | K34: 5 | L34: 5 | M34: 11 | N34: 11 | O34: 12 | P34: 21 | Q34: =IF(AND(Zbirni_podaci[[#This Row],[ROK]]<>"",Zbirni_podaci[[#This Row],[WORD bod]]<>"",Zbirni_podaci[[#This Row],[EXCEL bod]]<>"",Zbirni_podaci[[#This Row],[P_POINT bod]]<>"",Zbirni_podaci[[#This Row],[TEST_1 bod]]<>""),VLOOKUP(Zbirni_podaci[[#This Row],[ROK]],bodovi_aktivnost,7,FALSE),"") -> 20 | R34: =IF(AND(Zbirni_podaci[[#This Row],[Akt_nast_bod]]<>"",Zbirni_podaci[[#This Row],[Akt_vežbe_bod]]<>"",Zbirni_podaci[[#This Row],[WORD bod]]<>"",Zbirni_podaci[[#This Row],[EXCEL bod]]<>"",Zbirni_podaci[[#This Row],[P_POINT bod]]<>"",Zbirni_podaci[[#This Row],[TEST_1 bod]]<>""),ROUND(SUM(Zbirni_podaci[[#This Row],[Akt_nast_bod]:[ISPIT]]),0),"") -> 85 | S34: 9 | T34: Јун | U34: =IFERROR(IF(Zbirni_podaci[[#This Row],[ROK]]<>"",VLOOKUP(Zbirni_podaci[[#This Row],[ROK]],DATUMI,6,FALSE),""),"") -> 2019-06-14 | V34: 10 | W34: =IFERROR(IF(Zbirni_podaci[[#This Row],[ROK]]<>"",VLOOKUP(Zbirni_podaci[[#This Row],[ROK]],DATUMI,2,FALSE),""),"") -> 2019-05-27 | X34: 34 | Y34: =IFERROR(IF(Zbirni_podaci[[#This Row],[ROK]]<>"",VLOOKUP(Zbirni_podaci[[#This Row],[ROK]],DATUMI,3,FALSE),""),"") -> 2019-05-27 | Z34: 21 | AA34: =IFERROR(IF(Zbirni_podaci[[#This Row],[ROK]]<>"",VLOOKUP(Zbirni_podaci[[#This Row],[ROK]],DATUMI,4,FALSE),""),"") -> 2019-06-14 | AB34: 20 | AC34: 85 | AD34: 9 | AE34: =IFERROR(IF(Zbirni_podaci[[#This Row],[ROK]]<>"",VLOOKUP(Zbirni_podaci[[#This Row],[ROK]],DATUMI,6,FALSE),""),"") -> 2019-06-14
A35: =PODACI_STUDENTI!A34 -> 33 | B35: =PODACI_STUDENTI!B34 -> 2018/0142 | C35: =PODACI_STUDENTI!C34 -> Jovanović Andrijana | D35: =PODACI_STUDENTI!D34 -> 0 | F35: =IF(OR(Predrok_Mart!F35<>"",Predrok_April!F35<>"",Januar!F35<>"",Februar!F35<>"",Juni!F35<>"",Juli!F35,Septembar!F35<>"",Oktobar!F35<>"",Oktobar_2!F35<>""),MAX(Predrok_Mart!F35,Predrok_April!F35,Januar!F35,Februar!F35,Juni!F35,Juli!F35,Septembar!F35,Oktobar!F35,Oktobar_2!F35),"") -> 26 | G35: =IF(OR(Predrok_Mart!G35<>"",Predrok_April!G35<>"",Januar!G35<>"",Februar!G35<>"",Juni!G35<>"",Juli!G35,Septembar!G35<>"",Oktobar!G35<>"",Oktobar_2!G35<>""),MAX(Predrok_Mart!G35,Predrok_April!G35,Januar!G35,Februar!G35,Juni!G35,Juli!G35,Septembar!G35,Oktobar!G35,Oktobar_2!G35),"") -> 31 | H35: =IF(OR(Predrok_Mart!H35<>"",Predrok_April!H35<>"",Januar!H35<>"",Februar!H35<>"",Juni!H35<>"",Juli!H35,Septembar!H35<>"",Oktobar!H35<>"",Oktobar_2!H35<>""),MAX(Predrok_Mart!H35,Predrok_April!H35,Januar!H35,Februar!H35,Juni!H35,Juli!H35,Septembar!H35,Oktobar!H35,Oktobar_2!H35),"") -> 31 | I35: =IF(OR(Predrok_Mart!I35<>"",Predrok_April!I35<>"",Januar!I35<>"",Februar!I35<>"",Juni!I35<>"",Juli!I35,Septembar!I35<>"",Oktobar!I35<>"",Oktobar_2!I35<>""),MAX(Predrok_Mart!I35,Predrok_April!I35,Januar!I35,Februar!I35,Juni!I35,Juli!I35,Septembar!I35,Oktobar!I35,Oktobar_2!I35),"") -> 10 | J35: =IF(Zbirni_podaci[[#This Row],[Broj indeksa]]<>"",IF(AND(Zbirni_podaci[[#This Row],[WORD]]<>"",Zbirni_podaci[[#This Row],[EXCEL]]<>"",Zbirni_podaci[[#This Row],[P_POINT]]<>"",Zbirni_podaci[[#This Row],[TEST_1]]<>""),"DA","NE"),"") -> DA | K35: 5 | L35: 5 | M35: =IF(F35<>"",IF(F35>=24,(F35/32)*14,""),"") -> 11 | N35: =IF(G35<>"",IF(G35>=24,(G35/32)*14,""),"") -> 14 | O35: =IF(H35<>"",IF(H35>=11,(H35/32)*14,""),"") -> 14 | P35: =IF(I35<>"",IF(I35>=9,(I35/15)*28,""),"") -> 19 | Q35: =IF(AND(Zbirni_podaci[[#This Row],[ROK]]<>"",Zbirni_podaci[[#This Row],[WORD bod]]<>"",Zbirni_podaci[[#This Row],[EXCEL bod]]<>"",Zbirni_podaci[[#This Row],[P_POINT bod]]<>"",Zbirni_podaci[[#This Row],[TEST_1 bod]]<>""),VLOOKUP(Zbirni_podaci[[#This Row],[ROK]],bodovi_aktivnost,7,FALSE),"") -> 20 | R35: =IF(AND(Zbirni_podaci[[#This Row],[Akt_nast_bod]]<>"",Zbirni_podaci[[#This Row],[Akt_vežbe_bod]]<>"",Zbirni_podaci[[#This Row],[WORD bod]]<>"",Zbirni_podaci[[#This Row],[EXCEL bod]]<>"",Zbirni_podaci[[#This Row],[P_POINT bod]]<>"",Zbirni_podaci[[#This Row],[TEST_1 bod]]<>""),ROUND(SUM(Zbirni_podaci[[#This Row],[Akt_nast_bod]:[ISPIT]]),0),"") -> 87 | S35: =IF(R35<>"",VLOOKUP(R35,$AK$3:$AM$7,3),"") -> 9 | T35: Јун | U35: =IFERROR(IF(Zbirni_podaci[[#This Row],[ROK]]<>"",VLOOKUP(Zbirni_podaci[[#This Row],[ROK]],DATUMI,6,FALSE),""),"") -> 2019-06-14 | V35: =IF(AND(S35<>"",T35<>""),L35+K35,"") -> 10 | W35: =IFERROR(IF(Zbirni_podaci[[#This Row],[ROK]]<>"",VLOOKUP(Zbirni_podaci[[#This Row],[ROK]],DATUMI,2,FALSE),""),"") -> 2019-05-27 | X35: =IF(V35<>"",SUM(M35,N35,O35),"") -> 39 | Y35: =IFERROR(IF(Zbirni_podaci[[#This Row],[ROK]]<>"",VLOOKUP(Zbirni_podaci[[#This Row],[ROK]],DATUMI,3,FALSE),""),"") -> 2019-05-27 | Z35: =IF(V35<>"",P35,"") -> 19 | AA35: =IFERROR(IF(Zbirni_podaci[[#This Row],[ROK]]<>"",VLOOKUP(Zbirni_podaci[[#This Row],[ROK]],DATUMI,4,FALSE),""),"") -> 2019-06-14 | AB35: =IF(AND(S35<>"",T35<>""),Q35,"") -> 20 | AC35: 87 | AD35: =IF(AND(S35<>"",T35<>""),S35,"") -> 9 | AE35: =IFERROR(IF(Zbirni_podaci[[#This Row],[ROK]]<>"",VLOOKUP(Zbirni_podaci[[#This Row],[ROK]],DATUMI,6,FALSE),""),"") -> 2019-06-14
A36: =PODACI_STUDENTI!A35 -> 34 | B36: =PODACI_STUDENTI!B35 -> 2017/0061 | C36: =PODACI_STUDENTI!C35 -> Jovanović Danilo | D36: =PODACI_STUDENTI!D35 -> 0 | F36: =IF(OR(Predrok_Mart!F36<>"",Predrok_April!F36<>"",Januar!F36<>"",Februar!F36<>"",Juni!F36<>"",Juli!F36,Septembar!F36<>"",Oktobar!F36<>"",Oktobar_2!F36<>""),MAX(Predrok_Mart!F36,Predrok_April!F36,Januar!F36,Februar!F36,Juni!F36,Juli!F36,Septembar!F36,Oktobar!F36,Oktobar_2!F36),"") ->  | G36: =IF(OR(Predrok_Mart!G36<>"",Predrok_April!G36<>"",Januar!G36<>"",Februar!G36<>"",Juni!G36<>"",Juli!G36,Septembar!G36<>"",Oktobar!G36<>"",Oktobar_2!G36<>""),MAX(Predrok_Mart!G36,Predrok_April!G36,Januar!G36,Februar!G36,Juni!G36,Juli!G36,Septembar!G36,Oktobar!G36,Oktobar_2!G36),"") ->  | H36: =IF(OR(Predrok_Mart!H36<>"",Predrok_April!H36<>"",Januar!H36<>"",Februar!H36<>"",Juni!H36<>"",Juli!H36,Septembar!H36<>"",Oktobar!H36<>"",Oktobar_2!H36<>""),MAX(Predrok_Mart!H36,Predrok_April!H36,Januar!H36,Februar!H36,Juni!H36,Juli!H36,Septembar!H36,Oktobar!H36,Oktobar_2!H36),"") ->  | I36: =IF(OR(Predrok_Mart!I36<>"",Predrok_April!I36<>"",Januar!I36<>"",Februar!I36<>"",Juni!I36<>"",Juli!I36,Septembar!I36<>"",Oktobar!I36<>"",Oktobar_2!I36<>""),MAX(Predrok_Mart!I36,Predrok_April!I36,Januar!I36,Februar!I36,Juni!I36,Juli!I36,Septembar!I36,Oktobar!I36,Oktobar_2!I36),"") ->  | J36: =IF(Zbirni_podaci[[#This Row],[Broj indeksa]]<>"",IF(AND(Zbirni_podaci[[#This Row],[WORD]]<>"",Zbirni_podaci[[#This Row],[EXCEL]]<>"",Zbirni_podaci[[#This Row],[P_POINT]]<>"",Zbirni_podaci[[#This Row],[TEST_1]]<>""),"DA","NE"),"") -> NE | Q36: =IF(AND(Zbirni_podaci[[#This Row],[ROK]]<>"",Zbirni_podaci[[#This Row],[WORD bod]]<>"",Zbirni_podaci[[#This Row],[EXCEL bod]]<>"",Zbirni_podaci[[#This Row],[P_POINT bod]]<>"",Zbirni_podaci[[#This Row],[TEST_1 bod]]<>""),VLOOKUP(Zbirni_podaci[[#This Row],[ROK]],bodovi_aktivnost,7,FALSE),"") ->  | R36: =IF(AND(Zbirni_podaci[[#This Row],[Akt_nast_bod]]<>"",Zbirni_podaci[[#This Row],[Akt_vežbe_bod]]<>"",Zbirni_podaci[[#This Row],[WORD bod]]<>"",Zbirni_podaci[[#This Row],[EXCEL bod]]<>"",Zbirni_podaci[[#This Row],[P_POINT bod]]<>"",Zbirni_podaci[[#This Row],[TEST_1 bod]]<>""),ROUND(SUM(Zbirni_podaci[[#This Row],[Akt_nast_bod]:[ISPIT]]),0),"") ->  | U36: =IFERROR(IF(Zbirni_podaci[[#This Row],[ROK]]<>"",VLOOKUP(Zbirni_podaci[[#This Row],[ROK]],DATUMI,6,FALSE),""),"") ->  | W36: =IFERROR(IF(Zbirni_podaci[[#This Row],[ROK]]<>"",VLOOKUP(Zbirni_podaci[[#This Row],[ROK]],DATUMI,2,FALSE),""),"") ->  | Y36: =IFERROR(IF(Zbirni_podaci[[#This Row],[ROK]]<>"",VLOOKUP(Zbirni_podaci[[#This Row],[ROK]],DATUMI,3,FALSE),""),"") ->  | AA36: =IFERROR(IF(Zbirni_podaci[[#This Row],[ROK]]<>"",VLOOKUP(Zbirni_podaci[[#This Row],[ROK]],DATUMI,4,FALSE),""),"") ->  | AE36: =IFERROR(IF(Zbirni_podaci[[#This Row],[ROK]]<>"",VLOOKUP(Zbirni_podaci[[#This Row],[ROK]],DATUMI,6,FALSE),""),"") -> 
A37: =PODACI_STUDENTI!A36 -> 35 | B37: =PODACI_STUDENTI!B36 -> 2018/0069 | C37: =PODACI_STUDENTI!C36 -> Jovanović Maja | D37: =PODACI_STUDENTI!D36 -> 0 | F37: =IF(OR(Predrok_Mart!F37<>"",Predrok_April!F37<>"",Januar!F37<>"",Februar!F37<>"",Juni!F37<>"",Juli!F37,Septembar!F37<>"",Oktobar!F37<>"",Oktobar_2!F37<>""),MAX(Predrok_Mart!F37,Predrok_April!F37,Januar!F37,Februar!F37,Juni!F37,Juli!F37,Septembar!F37,Oktobar!F37,Oktobar_2!F37),"") -> 30 | G37: =IF(OR(Predrok_Mart!G37<>"",Predrok_April!G37<>"",Januar!G37<>"",Februar!G37<>"",Juni!G37<>"",Juli!G37,Septembar!G37<>"",Oktobar!G37<>"",Oktobar_2!G37<>""),MAX(Predrok_Mart!G37,Predrok_April!G37,Januar!G37,Februar!G37,Juni!G37,Juli!G37,Septembar!G37,Oktobar!G37,Oktobar_2!G37),"") -> 30 | H37: =IF(OR(Predrok_Mart!H37<>"",Predrok_April!H37<>"",Januar!H37<>"",Februar!H37<>"",Juni!H37<>"",Juli!H37,Septembar!H37<>"",Oktobar!H37<>"",Oktobar_2!H37<>""),MAX(Predrok_Mart!H37,Predrok_April!H37,Januar!H37,Februar!H37,Juni!H37,Juli!H37,Septembar!H37,Oktobar!H37,Oktobar_2!H37),"") -> 31 | I37: =IF(OR(Predrok_Mart!I37<>"",Predrok_April!I37<>"",Januar!I37<>"",Februar!I37<>"",Juni!I37<>"",Juli!I37,Septembar!I37<>"",Oktobar!I37<>"",Oktobar_2!I37<>""),MAX(Predrok_Mart!I37,Predrok_April!I37,Januar!I37,Februar!I37,Juni!I37,Juli!I37,Septembar!I37,Oktobar!I37,Oktobar_2!I37),"") -> 12 | J37: =IF(Zbirni_podaci[[#This Row],[Broj indeksa]]<>"",IF(AND(Zbirni_podaci[[#This Row],[WORD]]<>"",Zbirni_podaci[[#This Row],[EXCEL]]<>"",Zbirni_podaci[[#This Row],[P_POINT]]<>"",Zbirni_podaci[[#This Row],[TEST_1]]<>""),"DA","NE"),"") -> DA | K37: 5 | L37: 5 | M37: 13 | N37: 13 | O37: 14 | P37: 22 | Q37: =IF(AND(Zbirni_podaci[[#This Row],[ROK]]<>"",Zbirni_podaci[[#This Row],[WORD bod]]<>"",Zbirni_podaci[[#This Row],[EXCEL bod]]<>"",Zbirni_podaci[[#This Row],[P_POINT bod]]<>"",Zbirni_podaci[[#This Row],[TEST_1 bod]]<>""),VLOOKUP(Zbirni_podaci[[#This Row],[ROK]],bodovi_aktivnost,7,FALSE),"") -> 20 | R37: =IF(AND(Zbirni_podaci[[#This Row],[Akt_nast_bod]]<>"",Zbirni_podaci[[#This Row],[Akt_vežbe_bod]]<>"",Zbirni_podaci[[#This Row],[WORD bod]]<>"",Zbirni_podaci[[#This Row],[EXCEL bod]]<>"",Zbirni_podaci[[#This Row],[P_POINT bod]]<>"",Zbirni_podaci[[#This Row],[TEST_1 bod]]<>""),ROUND(SUM(Zbirni_podaci[[#This Row],[Akt_nast_bod]:[ISPIT]]),0),"") -> 92 | S37: 10 | T37: Јун | U37: =IFERROR(IF(Zbirni_podaci[[#This Row],[ROK]]<>"",VLOOKUP(Zbirni_podaci[[#This Row],[ROK]],DATUMI,6,FALSE),""),"") -> 2019-06-14 | V37: 10 | W37: =IFERROR(IF(Zbirni_podaci[[#This Row],[ROK]]<>"",VLOOKUP(Zbirni_podaci[[#This Row],[ROK]],DATUMI,2,FALSE),""),"") -> 2019-05-27 | X37: 40 | Y37: =IFERROR(IF(Zbirni_podaci[[#This Row],[ROK]]<>"",VLOOKUP(Zbirni_podaci[[#This Row],[ROK]],DATUMI,3,FALSE),""),"") -> 2019-05-27 | Z37: 22 | AA37: =IFERROR(IF(Zbirni_podaci[[#This Row],[ROK]]<>"",VLOOKUP(Zbirni_podaci[[#This Row],[ROK]],DATUMI,4,FALSE),""),"") -> 2019-06-14 | AB37: 20 | AC37: 92 | AD37: 10 | AE37: =IFERROR(IF(Zbirni_podaci[[#This Row],[ROK]]<>"",VLOOKUP(Zbirni_podaci[[#This Row],[ROK]],DATUMI,6,FALSE),""),"") -> 2019-06-14
A38: =PODACI_STUDENTI!A37 -> 36 | B38: =PODACI_STUDENTI!B37 -> 2018/0082 | C38: =PODACI_STUDENTI!C37 -> Jovičić Ana | D38: =PODACI_STUDENTI!D37 -> 0 | F38: =IF(OR(Predrok_Mart!F38<>"",Predrok_April!F38<>"",Januar!F38<>"",Februar!F38<>"",Juni!F38<>"",Juli!F38,Septembar!F38<>"",Oktobar!F38<>"",Oktobar_2!F38<>""),MAX(Predrok_Mart!F38,Predrok_April!F38,Januar!F38,Februar!F38,Juni!F38,Juli!F38,Septembar!F38,Oktobar!F38,Oktobar_2!F38),"") -> 24 | G38: =IF(OR(Predrok_Mart!G38<>"",Predrok_April!G38<>"",Januar!G38<>"",Februar!G38<>"",Juni!G38<>"",Juli!G38,Septembar!G38<>"",Oktobar!G38<>"",Oktobar_2!G38<>""),MAX(Predrok_Mart!G38,Predrok_April!G38,Januar!G38,Februar!G38,Juni!G38,Juli!G38,Septembar!G38,Oktobar!G38,Oktobar_2!G38),"") -> 30 | H38: =IF(OR(Predrok_Mart!H38<>"",Predrok_April!H38<>"",Januar!H38<>"",Februar!H38<>"",Juni!H38<>"",Juli!H38,Septembar!H38<>"",Oktobar!H38<>"",Oktobar_2!H38<>""),MAX(Predrok_Mart!H38,Predrok_April!H38,Januar!H38,Februar!H38,Juni!H38,Juli!H38,Septembar!H38,Oktobar!H38,Oktobar_2!H38),"") -> 31 | I38: =IF(OR(Predrok_Mart!I38<>"",Predrok_April!I38<>"",Januar!I38<>"",Februar!I38<>"",Juni!I38<>"",Juli!I38,Septembar!I38<>"",Oktobar!I38<>"",Oktobar_2!I38<>""),MAX(Predrok_Mart!I38,Predrok_April!I38,Januar!I38,Februar!I38,Juni!I38,Juli!I38,Septembar!I38,Oktobar!I38,Oktobar_2!I38),"") -> 13 | J38: =IF(Zbirni_podaci[[#This Row],[Broj indeksa]]<>"",IF(AND(Zbirni_podaci[[#This Row],[WORD]]<>"",Zbirni_podaci[[#This Row],[EXCEL]]<>"",Zbirni_podaci[[#This Row],[P_POINT]]<>"",Zbirni_podaci[[#This Row],[TEST_1]]<>""),"DA","NE"),"") -> DA | K38: 5 | L38: 5 | M38: 11 | N38: 13 | O38: 14 | P38: 24 | Q38: =IF(AND(Zbirni_podaci[[#This Row],[ROK]]<>"",Zbirni_podaci[[#This Row],[WORD bod]]<>"",Zbirni_podaci[[#This Row],[EXCEL bod]]<>"",Zbirni_podaci[[#This Row],[P_POINT bod]]<>"",Zbirni_podaci[[#This Row],[TEST_1 bod]]<>""),VLOOKUP(Zbirni_podaci[[#This Row],[ROK]],bodovi_aktivnost,7,FALSE),"") -> 15 | R38: =IF(AND(Zbirni_podaci[[#This Row],[Akt_nast_bod]]<>"",Zbirni_podaci[[#This Row],[Akt_vežbe_bod]]<>"",Zbirni_podaci[[#This Row],[WORD bod]]<>"",Zbirni_podaci[[#This Row],[EXCEL bod]]<>"",Zbirni_podaci[[#This Row],[P_POINT bod]]<>"",Zbirni_podaci[[#This Row],[TEST_1 bod]]<>""),ROUND(SUM(Zbirni_podaci[[#This Row],[Akt_nast_bod]:[ISPIT]]),0),"") -> 86 | S38: 9 | T38: Јул | U38: =IFERROR(IF(Zbirni_podaci[[#This Row],[ROK]]<>"",VLOOKUP(Zbirni_podaci[[#This Row],[ROK]],DATUMI,6,FALSE),""),"") -> 2019-07-01 | V38: 10 | W38: =IFERROR(IF(Zbirni_podaci[[#This Row],[ROK]]<>"",VLOOKUP(Zbirni_podaci[[#This Row],[ROK]],DATUMI,2,FALSE),""),"") -> 2019-05-27 | X38: 37 | Y38: =IFERROR(IF(Zbirni_podaci[[#This Row],[ROK]]<>"",VLOOKUP(Zbirni_podaci[[#This Row],[ROK]],DATUMI,3,FALSE),""),"") -> 2019-05-27 | Z38: 24 | AA38: =IFERROR(IF(Zbirni_podaci[[#This Row],[ROK]]<>"",VLOOKUP(Zbirni_podaci[[#This Row],[ROK]],DATUMI,4,FALSE),""),"") -> 2019-07-01 | AB38: 15 | AC38: 86 | AD38: 9 | AE38: =IFERROR(IF(Zbirni_podaci[[#This Row],[ROK]]<>"",VLOOKUP(Zbirni_podaci[[#This Row],[ROK]],DATUMI,6,FALSE),""),"") -> 2019-07-01
A39: =PODACI_STUDENTI!A38 -> 37 | B39: =PODACI_STUDENTI!B38 -> 2018/0151 | C39: =PODACI_STUDENTI!C38 -> Joksimović Sara | D39: =PODACI_STUDENTI!D38 -> 0 | F39: =IF(OR(Predrok_Mart!F39<>"",Predrok_April!F39<>"",Januar!F39<>"",Februar!F39<>"",Juni!F39<>"",Juli!F39,Septembar!F39<>"",Oktobar!F39<>"",Oktobar_2!F39<>""),MAX(Predrok_Mart!F39,Predrok_April!F39,Januar!F39,Februar!F39,Juni!F39,Juli!F39,Septembar!F39,Oktobar!F39,Oktobar_2!F39),"") -> 29 | G39: =IF(OR(Predrok_Mart!G39<>"",Predrok_April!G39<>"",Januar!G39<>"",Februar!G39<>"",Juni!G39<>"",Juli!G39,Septembar!G39<>"",Oktobar!G39<>"",Oktobar_2!G39<>""),MAX(Predrok_Mart!G39,Predrok_April!G39,Januar!G39,Februar!G39,Juni!G39,Juli!G39,Septembar!G39,Oktobar!G39,Oktobar_2!G39),"") -> 29 | H39: =IF(OR(Predrok_Mart!H39<>"",Predrok_April!H39<>"",Januar!H39<>"",Februar!H39<>"",Juni!H39<>"",Juli!H39,Septembar!H39<>"",Oktobar!H39<>"",Oktobar_2!H39<>""),MAX(Predrok_Mart!H39,Predrok_April!H39,Januar!H39,Februar!H39,Juni!H39,Juli!H39,Septembar!H39,Oktobar!H39,Oktobar_2!H39),"") -> 27 | I39: =IF(OR(Predrok_Mart!I39<>"",Predrok_April!I39<>"",Januar!I39<>"",Februar!I39<>"",Juni!I39<>"",Juli!I39,Septembar!I39<>"",Oktobar!I39<>"",Oktobar_2!I39<>""),MAX(Predrok_Mart!I39,Predrok_April!I39,Januar!I39,Februar!I39,Juni!I39,Juli!I39,Septembar!I39,Oktobar!I39,Oktobar_2!I39),"") -> 10 | J39: =IF(Zbirni_podaci[[#This Row],[Broj indeksa]]<>"",IF(AND(Zbirni_podaci[[#This Row],[WORD]]<>"",Zbirni_podaci[[#This Row],[EXCEL]]<>"",Zbirni_podaci[[#This Row],[P_POINT]]<>"",Zbirni_podaci[[#This Row],[TEST_1]]<>""),"DA","NE"),"") -> DA | K39: 5 | L39: 5 | M39: 13 | N39: 13 | O39: 12 | P39: 19 | Q39: =IF(AND(Zbirni_podaci[[#This Row],[ROK]]<>"",Zbirni_podaci[[#This Row],[WORD bod]]<>"",Zbirni_podaci[[#This Row],[EXCEL bod]]<>"",Zbirni_podaci[[#This Row],[P_POINT bod]]<>"",Zbirni_podaci[[#This Row],[TEST_1 bod]]<>""),VLOOKUP(Zbirni_podaci[[#This Row],[ROK]],bodovi_aktivnost,7,FALSE),"") -> 20 | R39: =IF(AND(Zbirni_podaci[[#This Row],[Akt_nast_bod]]<>"",Zbirni_podaci[[#This Row],[Akt_vežbe_bod]]<>"",Zbirni_podaci[[#This Row],[WORD bod]]<>"",Zbirni_podaci[[#This Row],[EXCEL bod]]<>"",Zbirni_podaci[[#This Row],[P_POINT bod]]<>"",Zbirni_podaci[[#This Row],[TEST_1 bod]]<>""),ROUND(SUM(Zbirni_podaci[[#This Row],[Akt_nast_bod]:[ISPIT]]),0),"") -> 86 | S39: 9 | T39: Јун | U39: =IFERROR(IF(Zbirni_podaci[[#This Row],[ROK]]<>"",VLOOKUP(Zbirni_podaci[[#This Row],[ROK]],DATUMI,6,FALSE),""),"") -> 2019-06-14 | V39: 10 | W39: =IFERROR(IF(Zbirni_podaci[[#This Row],[ROK]]<>"",VLOOKUP(Zbirni_podaci[[#This Row],[ROK]],DATUMI,2,FALSE),""),"") -> 2019-05-27 | X39: 37 | Y39: =IFERROR(IF(Zbirni_podaci[[#This Row],[ROK]]<>"",VLOOKUP(Zbirni_podaci[[#This Row],[ROK]],DATUMI,3,FALSE),""),"") -> 2019-05-27 | Z39: 19 | AA39: =IFERROR(IF(Zbirni_podaci[[#This Row],[ROK]]<>"",VLOOKUP(Zbirni_podaci[[#This Row],[ROK]],DATUMI,4,FALSE),""),"") -> 2019-06-14 | AB39: 20 | AC39: 86 | AD39: 9 | AE39: =IFERROR(IF(Zbirni_podaci[[#This Row],[ROK]]<>"",VLOOKUP(Zbirni_podaci[[#This Row],[ROK]],DATUMI,6,FALSE),""),"") -> 2019-06-14
A40: =PODACI_STUDENTI!A39 -> 38 | B40: =PODACI_STUDENTI!B39 -> 2018/0148 | C40: =PODACI_STUDENTI!C39 -> Karlaš Aleksa | D40: =PODACI_STUDENTI!D39 -> 0 | F40: =IF(OR(Predrok_Mart!F40<>"",Predrok_April!F40<>"",Januar!F40<>"",Februar!F40<>"",Juni!F40<>"",Juli!F40,Septembar!F40<>"",Oktobar!F40<>"",Oktobar_2!F40<>""),MAX(Predrok_Mart!F40,Predrok_April!F40,Januar!F40,Februar!F40,Juni!F40,Juli!F40,Septembar!F40,Oktobar!F40,Oktobar_2!F40),"") ->  | G40: =IF(OR(Predrok_Mart!G40<>"",Predrok_April!G40<>"",Januar!G40<>"",Februar!G40<>"",Juni!G40<>"",Juli!G40,Septembar!G40<>"",Oktobar!G40<>"",Oktobar_2!G40<>""),MAX(Predrok_Mart!G40,Predrok_April!G40,Januar!G40,Februar!G40,Juni!G40,Juli!G40,Septembar!G40,Oktobar!G40,Oktobar_2!G40),"") ->  | H40: =IF(OR(Predrok_Mart!H40<>"",Predrok_April!H40<>"",Januar!H40<>"",Februar!H40<>"",Juni!H40<>"",Juli!H40,Septembar!H40<>"",Oktobar!H40<>"",Oktobar_2!H40<>""),MAX(Predrok_Mart!H40,Predrok_April!H40,Januar!H40,Februar!H40,Juni!H40,Juli!H40,Septembar!H40,Oktobar!H40,Oktobar_2!H40),"") ->  | I40: =IF(OR(Predrok_Mart!I40<>"",Predrok_April!I40<>"",Januar!I40<>"",Februar!I40<>"",Juni!I40<>"",Juli!I40,Septembar!I40<>"",Oktobar!I40<>"",Oktobar_2!I40<>""),MAX(Predrok_Mart!I40,Predrok_April!I40,Januar!I40,Februar!I40,Juni!I40,Juli!I40,Septembar!I40,Oktobar!I40,Oktobar_2!I40),"") -> 12 | J40: =IF(Zbirni_podaci[[#This Row],[Broj indeksa]]<>"",IF(AND(Zbirni_podaci[[#This Row],[WORD]]<>"",Zbirni_podaci[[#This Row],[EXCEL]]<>"",Zbirni_podaci[[#This Row],[P_POINT]]<>"",Zbirni_podaci[[#This Row],[TEST_1]]<>""),"DA","NE"),"") -> NE | P40: 22 | Q40: =IF(AND(Zbirni_podaci[[#This Row],[ROK]]<>"",Zbirni_podaci[[#This Row],[WORD bod]]<>"",Zbirni_podaci[[#This Row],[EXCEL bod]]<>"",Zbirni_podaci[[#This Row],[P_POINT bod]]<>"",Zbirni_podaci[[#This Row],[TEST_1 bod]]<>""),VLOOKUP(Zbirni_podaci[[#This Row],[ROK]],bodovi_aktivnost,7,FALSE),"") ->  | R40: =IF(AND(Zbirni_podaci[[#This Row],[Akt_nast_bod]]<>"",Zbirni_podaci[[#This Row],[Akt_vežbe_bod]]<>"",Zbirni_podaci[[#This Row],[WORD bod]]<>"",Zbirni_podaci[[#This Row],[EXCEL bod]]<>"",Zbirni_podaci[[#This Row],[P_POINT bod]]<>"",Zbirni_podaci[[#This Row],[TEST_1 bod]]<>""),ROUND(SUM(Zbirni_podaci[[#This Row],[Akt_nast_bod]:[ISPIT]]),0),"") ->  | U40: =IFERROR(IF(Zbirni_podaci[[#This Row],[ROK]]<>"",VLOOKUP(Zbirni_podaci[[#This Row],[ROK]],DATUMI,6,FALSE),""),"") ->  | W40: =IFERROR(IF(Zbirni_podaci[[#This Row],[ROK]]<>"",VLOOKUP(Zbirni_podaci[[#This Row],[ROK]],DATUMI,2,FALSE),""),"") ->  | Y40: =IFERROR(IF(Zbirni_podaci[[#This Row],[ROK]]<>"",VLOOKUP(Zbirni_podaci[[#This Row],[ROK]],DATUMI,3,FALSE),""),"") ->  | AA40: =IFERROR(IF(Zbirni_podaci[[#This Row],[ROK]]<>"",VLOOKUP(Zbirni_podaci[[#This Row],[ROK]],DATUMI,4,FALSE),""),"") ->  | AE40: =IFERROR(IF(Zbirni_podaci[[#This Row],[ROK]]<>"",VLOOKUP(Zbirni_podaci[[#This Row],[ROK]],DATUMI,6,FALSE),""),"") -> 
A41: =PODACI_STUDENTI!A40 -> 39 | B41: =PODACI_STUDENTI!B40 -> 2018/0067 | C41: =PODACI_STUDENTI!C40 -> Konstantinović Lazar | D41: =PODACI_STUDENTI!D40 -> 0 | F41: =IF(OR(Predrok_Mart!F41<>"",Predrok_April!F41<>"",Januar!F41<>"",Februar!F41<>"",Juni!F41<>"",Juli!F41,Septembar!F41<>"",Oktobar!F41<>"",Oktobar_2!F41<>""),MAX(Predrok_Mart!F41,Predrok_April!F41,Januar!F41,Februar!F41,Juni!F41,Juli!F41,Septembar!F41,Oktobar!F41,Oktobar_2!F41),"") -> 25 | G41: =IF(OR(Predrok_Mart!G41<>"",Predrok_April!G41<>"",Januar!G41<>"",Februar!G41<>"",Juni!G41<>"",Juli!G41,Septembar!G41<>"",Oktobar!G41<>"",Oktobar_2!G41<>""),MAX(Predrok_Mart!G41,Predrok_April!G41,Januar!G41,Februar!G41,Juni!G41,Juli!G41,Septembar!G41,Oktobar!G41,Oktobar_2!G41),"") -> 28 | H41: =IF(OR(Predrok_Mart!H41<>"",Predrok_April!H41<>"",Januar!H41<>"",Februar!H41<>"",Juni!H41<>"",Juli!H41,Septembar!H41<>"",Oktobar!H41<>"",Oktobar_2!H41<>""),MAX(Predrok_Mart!H41,Predrok_April!H41,Januar!H41,Februar!H41,Juni!H41,Juli!H41,Septembar!H41,Oktobar!H41,Oktobar_2!H41),"") -> 27 | I41: =IF(OR(Predrok_Mart!I41<>"",Predrok_April!I41<>"",Januar!I41<>"",Februar!I41<>"",Juni!I41<>"",Juli!I41,Septembar!I41<>"",Oktobar!I41<>"",Oktobar_2!I41<>""),MAX(Predrok_Mart!I41,Predrok_April!I41,Januar!I41,Februar!I41,Juni!I41,Juli!I41,Septembar!I41,Oktobar!I41,Oktobar_2!I41),"") -> 12 | J41: =IF(Zbirni_podaci[[#This Row],[Broj indeksa]]<>"",IF(AND(Zbirni_podaci[[#This Row],[WORD]]<>"",Zbirni_podaci[[#This Row],[EXCEL]]<>"",Zbirni_podaci[[#This Row],[P_POINT]]<>"",Zbirni_podaci[[#This Row],[TEST_1]]<>""),"DA","NE"),"") -> DA | K41: 5 | L41: 5 | M41: 11 | N41: 12 | O41: 12 | P41: 22 | Q41: =IF(AND(Zbirni_podaci[[#This Row],[ROK]]<>"",Zbirni_podaci[[#This Row],[WORD bod]]<>"",Zbirni_podaci[[#This Row],[EXCEL bod]]<>"",Zbirni_podaci[[#This Row],[P_POINT bod]]<>"",Zbirni_podaci[[#This Row],[TEST_1 bod]]<>""),VLOOKUP(Zbirni_podaci[[#This Row],[ROK]],bodovi_aktivnost,7,FALSE),"") -> 20 | R41: =IF(AND(Zbirni_podaci[[#This Row],[Akt_nast_bod]]<>"",Zbirni_podaci[[#This Row],[Akt_vežbe_bod]]<>"",Zbirni_podaci[[#This Row],[WORD bod]]<>"",Zbirni_podaci[[#This Row],[EXCEL bod]]<>"",Zbirni_podaci[[#This Row],[P_POINT bod]]<>"",Zbirni_podaci[[#This Row],[TEST_1 bod]]<>""),ROUND(SUM(Zbirni_podaci[[#This Row],[Akt_nast_bod]:[ISPIT]]),0),"") -> 87 | S41: 9 | T41: Јун | U41: =IFERROR(IF(Zbirni_podaci[[#This Row],[ROK]]<>"",VLOOKUP(Zbirni_podaci[[#This Row],[ROK]],DATUMI,6,FALSE),""),"") -> 2019-06-14 | V41: 10 | W41: =IFERROR(IF(Zbirni_podaci[[#This Row],[ROK]]<>"",VLOOKUP(Zbirni_podaci[[#This Row],[ROK]],DATUMI,2,FALSE),""),"") -> 2019-05-27 | X41: 35 | Y41: =IFERROR(IF(Zbirni_podaci[[#This Row],[ROK]]<>"",VLOOKUP(Zbirni_podaci[[#This Row],[ROK]],DATUMI,3,FALSE),""),"") -> 2019-05-27 | Z41: 22 | AA41: =IFERROR(IF(Zbirni_podaci[[#This Row],[ROK]]<>"",VLOOKUP(Zbirni_podaci[[#This Row],[ROK]],DATUMI,4,FALSE),""),"") -> 2019-06-14 | AB41: 20 | AC41: 87 | AD41: 9 | AE41: =IFERROR(IF(Zbirni_podaci[[#This Row],[ROK]]<>"",VLOOKUP(Zbirni_podaci[[#This Row],[ROK]],DATUMI,6,FALSE),""),"") -> 2019-06-14
A42: =PODACI_STUDENTI!A41 -> 40 | B42: =PODACI_STUDENTI!B41 -> 2015/0111 | C42: =PODACI_STUDENTI!C41 -> Krstić Stevan | D42: =PODACI_STUDENTI!D41 -> 0 | F42: =IF(OR(Predrok_Mart!F42<>"",Predrok_April!F42<>"",Januar!F42<>"",Februar!F42<>"",Juni!F42<>"",Juli!F42,Septembar!F42<>"",Oktobar!F42<>"",Oktobar_2!F42<>""),MAX(Predrok_Mart!F42,Predrok_April!F42,Januar!F42,Februar!F42,Juni!F42,Juli!F42,Septembar!F42,Oktobar!F42,Oktobar_2!F42),"") ->  | G42: =IF(OR(Predrok_Mart!G42<>"",Predrok_April!G42<>"",Januar!G42<>"",Februar!G42<>"",Juni!G42<>"",Juli!G42,Septembar!G42<>"",Oktobar!G42<>"",Oktobar_2!G42<>""),MAX(Predrok_Mart!G42,Predrok_April!G42,Januar!G42,Februar!G42,Juni!G42,Juli!G42,Septembar!G42,Oktobar!G42,Oktobar_2!G42),"") ->  | H42: =IF(OR(Predrok_Mart!H42<>"",Predrok_April!H42<>"",Januar!H42<>"",Februar!H42<>"",Juni!H42<>"",Juli!H42,Septembar!H42<>"",Oktobar!H42<>"",Oktobar_2!H42<>""),MAX(Predrok_Mart!H42,Predrok_April!H42,Januar!H42,Februar!H42,Juni!H42,Juli!H42,Septembar!H42,Oktobar!H42,Oktobar_2!H42),"") ->  | I42: =IF(OR(Predrok_Mart!I42<>"",Predrok_April!I42<>"",Januar!I42<>"",Februar!I42<>"",Juni!I42<>"",Juli!I42,Septembar!I42<>"",Oktobar!I42<>"",Oktobar_2!I42<>""),MAX(Predrok_Mart!I42,Predrok_April!I42,Januar!I42,Februar!I42,Juni!I42,Juli!I42,Septembar!I42,Oktobar!I42,Oktobar_2!I42),"") ->  | J42: =IF(Zbirni_podaci[[#This Row],[Broj indeksa]]<>"",IF(AND(Zbirni_podaci[[#This Row],[WORD]]<>"",Zbirni_podaci[[#This Row],[EXCEL]]<>"",Zbirni_podaci[[#This Row],[P_POINT]]<>"",Zbirni_podaci[[#This Row],[TEST_1]]<>""),"DA","NE"),"") -> NE | Q42: =IF(AND(Zbirni_podaci[[#This Row],[ROK]]<>"",Zbirni_podaci[[#This Row],[WORD bod]]<>"",Zbirni_podaci[[#This Row],[EXCEL bod]]<>"",Zbirni_podaci[[#This Row],[P_POINT bod]]<>"",Zbirni_podaci[[#This Row],[TEST_1 bod]]<>""),VLOOKUP(Zbirni_podaci[[#This Row],[ROK]],bodovi_aktivnost,7,FALSE),"") ->  | R42: =IF(AND(Zbirni_podaci[[#This Row],[Akt_nast_bod]]<>"",Zbirni_podaci[[#This Row],[Akt_vežbe_bod]]<>"",Zbirni_podaci[[#This Row],[WORD bod]]<>"",Zbirni_podaci[[#This Row],[EXCEL bod]]<>"",Zbirni_podaci[[#This Row],[P_POINT bod]]<>"",Zbirni_podaci[[#This Row],[TEST_1 bod]]<>""),ROUND(SUM(Zbirni_podaci[[#This Row],[Akt_nast_bod]:[ISPIT]]),0),"") ->  | U42: =IFERROR(IF(Zbirni_podaci[[#This Row],[ROK]]<>"",VLOOKUP(Zbirni_podaci[[#This Row],[ROK]],DATUMI,6,FALSE),""),"") ->  | W42: =IFERROR(IF(Zbirni_podaci[[#This Row],[ROK]]<>"",VLOOKUP(Zbirni_podaci[[#This Row],[ROK]],DATUMI,2,FALSE),""),"") ->  | Y42: =IFERROR(IF(Zbirni_podaci[[#This Row],[ROK]]<>"",VLOOKUP(Zbirni_podaci[[#This Row],[ROK]],DATUMI,3,FALSE),""),"") ->  | AA42: =IFERROR(IF(Zbirni_podaci[[#This Row],[ROK]]<>"",VLOOKUP(Zbirni_podaci[[#This Row],[ROK]],DATUMI,4,FALSE),""),"") ->  | AE42: =IFERROR(IF(Zbirni_podaci[[#This Row],[ROK]]<>"",VLOOKUP(Zbirni_podaci[[#This Row],[ROK]],DATUMI,6,FALSE),""),"") -> 
A43: =PODACI_STUDENTI!A42 -> 41 | B43: =PODACI_STUDENTI!B42 -> 2018/0040 | C43: =PODACI_STUDENTI!C42 -> Kuzmanović Uroš | D43: =PODACI_STUDENTI!D42 -> 0 | F43: =IF(OR(Predrok_Mart!F43<>"",Predrok_April!F43<>"",Januar!F43<>"",Februar!F43<>"",Juni!F43<>"",Juli!F43,Septembar!F43<>"",Oktobar!F43<>"",Oktobar_2!F43<>""),MAX(Predrok_Mart!F43,Predrok_April!F43,Januar!F43,Februar!F43,Juni!F43,Juli!F43,Septembar!F43,Oktobar!F43,Oktobar_2!F43),"") -> 28 | G43: =IF(OR(Predrok_Mart!G43<>"",Predrok_April!G43<>"",Januar!G43<>"",Februar!G43<>"",Juni!G43<>"",Juli!G43,Septembar!G43<>"",Oktobar!G43<>"",Oktobar_2!G43<>""),MAX(Predrok_Mart!G43,Predrok_April!G43,Januar!G43,Februar!G43,Juni!G43,Juli!G43,Septembar!G43,Oktobar!G43,Oktobar_2!G43),"") -> 29 | H43: =IF(OR(Predrok_Mart!H43<>"",Predrok_April!H43<>"",Januar!H43<>"",Februar!H43<>"",Juni!H43<>"",Juli!H43,Septembar!H43<>"",Oktobar!H43<>"",Oktobar_2!H43<>""),MAX(Predrok_Mart!H43,Predrok_April!H43,Januar!H43,Februar!H43,Juni!H43,Juli!H43,Septembar!H43,Oktobar!H43,Oktobar_2!H43),"") -> 26 | I43: =IF(OR(Predrok_Mart!I43<>"",Predrok_April!I43<>"",Januar!I43<>"",Februar!I43<>"",Juni!I43<>"",Juli!I43,Septembar!I43<>"",Oktobar!I43<>"",Oktobar_2!I43<>""),MAX(Predrok_Mart!I43,Predrok_April!I43,Januar!I43,Februar!I43,Juni!I43,Juli!I43,Septembar!I43,Oktobar!I43,Oktobar_2!I43),"") -> 13 | J43: =IF(Zbirni_podaci[[#This Row],[Broj indeksa]]<>"",IF(AND(Zbirni_podaci[[#This Row],[WORD]]<>"",Zbirni_podaci[[#This Row],[EXCEL]]<>"",Zbirni_podaci[[#This Row],[P_POINT]]<>"",Zbirni_podaci[[#This Row],[TEST_1]]<>""),"DA","NE"),"") -> DA | K43: 5 | L43: 5 | M43: 12 | N43: 13 | O43: 11 | P43: 24 | Q43: =IF(AND(Zbirni_podaci[[#This Row],[ROK]]<>"",Zbirni_podaci[[#This Row],[WORD bod]]<>"",Zbirni_podaci[[#This Row],[EXCEL bod]]<>"",Zbirni_podaci[[#This Row],[P_POINT bod]]<>"",Zbirni_podaci[[#This Row],[TEST_1 bod]]<>""),VLOOKUP(Zbirni_podaci[[#This Row],[ROK]],bodovi_aktivnost,7,FALSE),"") -> 20 | R43: =IF(AND(Zbirni_podaci[[#This Row],[Akt_nast_bod]]<>"",Zbirni_podaci[[#This Row],[Akt_vežbe_bod]]<>"",Zbirni_podaci[[#This Row],[WORD bod]]<>"",Zbirni_podaci[[#This Row],[EXCEL bod]]<>"",Zbirni_podaci[[#This Row],[P_POINT bod]]<>"",Zbirni_podaci[[#This Row],[TEST_1 bod]]<>""),ROUND(SUM(Zbirni_podaci[[#This Row],[Akt_nast_bod]:[ISPIT]]),0),"") -> 91 | S43: 10 | T43: Јун | U43: =IFERROR(IF(Zbirni_podaci[[#This Row],[ROK]]<>"",VLOOKUP(Zbirni_podaci[[#This Row],[ROK]],DATUMI,6,FALSE),""),"") -> 2019-06-14 | V43: 10 | W43: =IFERROR(IF(Zbirni_podaci[[#This Row],[ROK]]<>"",VLOOKUP(Zbirni_podaci[[#This Row],[ROK]],DATUMI,2,FALSE),""),"") -> 2019-05-27 | X43: 36 | Y43: =IFERROR(IF(Zbirni_podaci[[#This Row],[ROK]]<>"",VLOOKUP(Zbirni_podaci[[#This Row],[ROK]],DATUMI,3,FALSE),""),"") -> 2019-05-27 | Z43: 24 | AA43: =IFERROR(IF(Zbirni_podaci[[#This Row],[ROK]]<>"",VLOOKUP(Zbirni_podaci[[#This Row],[ROK]],DATUMI,4,FALSE),""),"") -> 2019-06-14 | AB43: 20 | AC43: 91 | AD43: 10 | AE43: =IFERROR(IF(Zbirni_podaci[[#This Row],[ROK]]<>"",VLOOKUP(Zbirni_podaci[[#This Row],[ROK]],DATUMI,6,FALSE),""),"") -> 2019-06-14
A44: =PODACI_STUDENTI!A43 -> 42 | B44: =PODACI_STUDENTI!B43 -> 2018/0097 | C44: =PODACI_STUDENTI!C43 -> Lupšić Ivan | D44: =PODACI_STUDENTI!D43 -> 0 | F44: =IF(OR(Predrok_Mart!F44<>"",Predrok_April!F44<>"",Januar!F44<>"",Februar!F44<>"",Juni!F44<>"",Juli!F44,Septembar!F44<>"",Oktobar!F44<>"",Oktobar_2!F44<>""),MAX(Predrok_Mart!F44,Predrok_April!F44,Januar!F44,Februar!F44,Juni!F44,Juli!F44,Septembar!F44,Oktobar!F44,Oktobar_2!F44),"") -> 29 | G44: =IF(OR(Predrok_Mart!G44<>"",Predrok_April!G44<>"",Januar!G44<>"",Februar!G44<>"",Juni!G44<>"",Juli!G44,Septembar!G44<>"",Oktobar!G44<>"",Oktobar_2!G44<>""),MAX(Predrok_Mart!G44,Predrok_April!G44,Januar!G44,Februar!G44,Juni!G44,Juli!G44,Septembar!G44,Oktobar!G44,Oktobar_2!G44),"") -> 29 | H44: =IF(OR(Predrok_Mart!H44<>"",Predrok_April!H44<>"",Januar!H44<>"",Februar!H44<>"",Juni!H44<>"",Juli!H44,Septembar!H44<>"",Oktobar!H44<>"",Oktobar_2!H44<>""),MAX(Predrok_Mart!H44,Predrok_April!H44,Januar!H44,Februar!H44,Juni!H44,Juli!H44,Septembar!H44,Oktobar!H44,Oktobar_2!H44),"") -> 29 | I44: =IF(OR(Predrok_Mart!I44<>"",Predrok_April!I44<>"",Januar!I44<>"",Februar!I44<>"",Juni!I44<>"",Juli!I44,Septembar!I44<>"",Oktobar!I44<>"",Oktobar_2!I44<>""),MAX(Predrok_Mart!I44,Predrok_April!I44,Januar!I44,Februar!I44,Juni!I44,Juli!I44,Septembar!I44,Oktobar!I44,Oktobar_2!I44),"") -> 9 | J44: =IF(Zbirni_podaci[[#This Row],[Broj indeksa]]<>"",IF(AND(Zbirni_podaci[[#This Row],[WORD]]<>"",Zbirni_podaci[[#This Row],[EXCEL]]<>"",Zbirni_podaci[[#This Row],[P_POINT]]<>"",Zbirni_podaci[[#This Row],[TEST_1]]<>""),"DA","NE"),"") -> DA | K44: 5 | L44: 5 | M44: 13 | N44: 13 | O44: 13 | P44: 17 | Q44: =IF(AND(Zbirni_podaci[[#This Row],[ROK]]<>"",Zbirni_podaci[[#This Row],[WORD bod]]<>"",Zbirni_podaci[[#This Row],[EXCEL bod]]<>"",Zbirni_podaci[[#This Row],[P_POINT bod]]<>"",Zbirni_podaci[[#This Row],[TEST_1 bod]]<>""),VLOOKUP(Zbirni_podaci[[#This Row],[ROK]],bodovi_aktivnost,7,FALSE),"") -> 20 | R44: =IF(AND(Zbirni_podaci[[#This Row],[Akt_nast_bod]]<>"",Zbirni_podaci[[#This Row],[Akt_vežbe_bod]]<>"",Zbirni_podaci[[#This Row],[WORD bod]]<>"",Zbirni_podaci[[#This Row],[EXCEL bod]]<>"",Zbirni_podaci[[#This Row],[P_POINT bod]]<>"",Zbirni_podaci[[#This Row],[TEST_1 bod]]<>""),ROUND(SUM(Zbirni_podaci[[#This Row],[Akt_nast_bod]:[ISPIT]]),0),"") -> 85 | S44: 9 | T44: Јун | U44: =IFERROR(IF(Zbirni_podaci[[#This Row],[ROK]]<>"",VLOOKUP(Zbirni_podaci[[#This Row],[ROK]],DATUMI,6,FALSE),""),"") -> 2019-06-14 | V44: 10 | W44: =IFERROR(IF(Zbirni_podaci[[#This Row],[ROK]]<>"",VLOOKUP(Zbirni_podaci[[#This Row],[ROK]],DATUMI,2,FALSE),""),"") -> 2019-05-27 | X44: 38 | Y44: =IFERROR(IF(Zbirni_podaci[[#This Row],[ROK]]<>"",VLOOKUP(Zbirni_podaci[[#This Row],[ROK]],DATUMI,3,FALSE),""),"") -> 2019-05-27 | Z44: 17 | AA44: =IFERROR(IF(Zbirni_podaci[[#This Row],[ROK]]<>"",VLOOKUP(Zbirni_podaci[[#This Row],[ROK]],DATUMI,4,FALSE),""),"") -> 2019-06-14 | AB44: 20 | AC44: 85 | AD44: 9 | AE44: =IFERROR(IF(Zbirni_podaci[[#This Row],[ROK]]<>"",VLOOKUP(Zbirni_podaci[[#This Row],[ROK]],DATUMI,6,FALSE),""),"") -> 2019-06-14
A45: =PODACI_STUDENTI!A44 -> 43 | B45: =PODACI_STUDENTI!B44 -> 2018/0096 | C45: =PODACI_STUDENTI!C44 -> Mandrašević Aleksandar | D45: =PODACI_STUDENTI!D44 -> 0 | F45: =IF(OR(Predrok_Mart!F45<>"",Predrok_April!F45<>"",Januar!F45<>"",Februar!F45<>"",Juni!F45<>"",Juli!F45,Septembar!F45<>"",Oktobar!F45<>"",Oktobar_2!F45<>""),MAX(Predrok_Mart!F45,Predrok_April!F45,Januar!F45,Februar!F45,Juni!F45,Juli!F45,Septembar!F45,Oktobar!F45,Oktobar_2!F45),"") -> 30 | G45: =IF(OR(Predrok_Mart!G45<>"",Predrok_April!G45<>"",Januar!G45<>"",Februar!G45<>"",Juni!G45<>"",Juli!G45,Septembar!G45<>"",Oktobar!G45<>"",Oktobar_2!G45<>""),MAX(Predrok_Mart!G45,Predrok_April!G45,Januar!G45,Februar!G45,Juni!G45,Juli!G45,Septembar!G45,Oktobar!G45,Oktobar_2!G45),"") -> 24 | H45: =IF(OR(Predrok_Mart!H45<>"",Predrok_April!H45<>"",Januar!H45<>"",Februar!H45<>"",Juni!H45<>"",Juli!H45,Septembar!H45<>"",Oktobar!H45<>"",Oktobar_2!H45<>""),MAX(Predrok_Mart!H45,Predrok_April!H45,Januar!H45,Februar!H45,Juni!H45,Juli!H45,Septembar!H45,Oktobar!H45,Oktobar_2!H45),"") -> 27 | I45: =IF(OR(Predrok_Mart!I45<>"",Predrok_April!I45<>"",Januar!I45<>"",Februar!I45<>"",Juni!I45<>"",Juli!I45,Septembar!I45<>"",Oktobar!I45<>"",Oktobar_2!I45<>""),MAX(Predrok_Mart!I45,Predrok_April!I45,Januar!I45,Februar!I45,Juni!I45,Juli!I45,Septembar!I45,Oktobar!I45,Oktobar_2!I45),"") -> 12 | J45: =IF(Zbirni_podaci[[#This Row],[Broj indeksa]]<>"",IF(AND(Zbirni_podaci[[#This Row],[WORD]]<>"",Zbirni_podaci[[#This Row],[EXCEL]]<>"",Zbirni_podaci[[#This Row],[P_POINT]]<>"",Zbirni_podaci[[#This Row],[TEST_1]]<>""),"DA","NE"),"") -> DA | K45: 5 | L45: 5 | M45: 13 | N45: 11 | O45: 12 | P45: 22 | Q45: =IF(AND(Zbirni_podaci[[#This Row],[ROK]]<>"",Zbirni_podaci[[#This Row],[WORD bod]]<>"",Zbirni_podaci[[#This Row],[EXCEL bod]]<>"",Zbirni_podaci[[#This Row],[P_POINT bod]]<>"",Zbirni_podaci[[#This Row],[TEST_1 bod]]<>""),VLOOKUP(Zbirni_podaci[[#This Row],[ROK]],bodovi_aktivnost,7,FALSE),"") -> 20 | R45: =IF(AND(Zbirni_podaci[[#This Row],[Akt_nast_bod]]<>"",Zbirni_podaci[[#This Row],[Akt_vežbe_bod]]<>"",Zbirni_podaci[[#This Row],[WORD bod]]<>"",Zbirni_podaci[[#This Row],[EXCEL bod]]<>"",Zbirni_podaci[[#This Row],[P_POINT bod]]<>"",Zbirni_podaci[[#This Row],[TEST_1 bod]]<>""),ROUND(SUM(Zbirni_podaci[[#This Row],[Akt_nast_bod]:[ISPIT]]),0),"") -> 88 | S45: 9 | T45: Јун | U45: =IFERROR(IF(Zbirni_podaci[[#This Row],[ROK]]<>"",VLOOKUP(Zbirni_podaci[[#This Row],[ROK]],DATUMI,6,FALSE),""),"") -> 2019-06-14 | V45: 10 | W45: =IFERROR(IF(Zbirni_podaci[[#This Row],[ROK]]<>"",VLOOKUP(Zbirni_podaci[[#This Row],[ROK]],DATUMI,2,FALSE),""),"") -> 2019-05-27 | X45: 35 | Y45: =IFERROR(IF(Zbirni_podaci[[#This Row],[ROK]]<>"",VLOOKUP(Zbirni_podaci[[#This Row],[ROK]],DATUMI,3,FALSE),""),"") -> 2019-05-27 | Z45: 22 | AA45: =IFERROR(IF(Zbirni_podaci[[#This Row],[ROK]]<>"",VLOOKUP(Zbirni_podaci[[#This Row],[ROK]],DATUMI,4,FALSE),""),"") -> 2019-06-14 | AB45: 20 | AC45: 88 | AD45: 9 | AE45: =IFERROR(IF(Zbirni_podaci[[#This Row],[ROK]]<>"",VLOOKUP(Zbirni_podaci[[#This Row],[ROK]],DATUMI,6,FALSE),""),"") -> 2019-06-14
A46: =PODACI_STUDENTI!A45 -> 44 | B46: =PODACI_STUDENTI!B45 -> 2018/0041 | C46: =PODACI_STUDENTI!C45 -> Manić Lazar | D46: =PODACI_STUDENTI!D45 -> 0 | F46: =IF(OR(Predrok_Mart!F46<>"",Predrok_April!F46<>"",Januar!F46<>"",Februar!F46<>"",Juni!F46<>"",Juli!F46,Septembar!F46<>"",Oktobar!F46<>"",Oktobar_2!F46<>""),MAX(Predrok_Mart!F46,Predrok_April!F46,Januar!F46,Februar!F46,Juni!F46,Juli!F46,Septembar!F46,Oktobar!F46,Oktobar_2!F46),"") -> 30 | G46: =IF(OR(Predrok_Mart!G46<>"",Predrok_April!G46<>"",Januar!G46<>"",Februar!G46<>"",Juni!G46<>"",Juli!G46,Septembar!G46<>"",Oktobar!G46<>"",Oktobar_2!G46<>""),MAX(Predrok_Mart!G46,Predrok_April!G46,Januar!G46,Februar!G46,Juni!G46,Juli!G46,Septembar!G46,Oktobar!G46,Oktobar_2!G46),"") -> 32 | H46: =IF(OR(Predrok_Mart!H46<>"",Predrok_April!H46<>"",Januar!H46<>"",Februar!H46<>"",Juni!H46<>"",Juli!H46,Septembar!H46<>"",Oktobar!H46<>"",Oktobar_2!H46<>""),MAX(Predrok_Mart!H46,Predrok_April!H46,Januar!H46,Februar!H46,Juni!H46,Juli!H46,Septembar!H46,Oktobar!H46,Oktobar_2!H46),"") -> 30 | I46: =IF(OR(Predrok_Mart!I46<>"",Predrok_April!I46<>"",Januar!I46<>"",Februar!I46<>"",Juni!I46<>"",Juli!I46,Septembar!I46<>"",Oktobar!I46<>"",Oktobar_2!I46<>""),MAX(Predrok_Mart!I46,Predrok_April!I46,Januar!I46,Februar!I46,Juni!I46,Juli!I46,Septembar!I46,Oktobar!I46,Oktobar_2!I46),"") -> 15 | J46: =IF(Zbirni_podaci[[#This Row],[Broj indeksa]]<>"",IF(AND(Zbirni_podaci[[#This Row],[WORD]]<>"",Zbirni_podaci[[#This Row],[EXCEL]]<>"",Zbirni_podaci[[#This Row],[P_POINT]]<>"",Zbirni_podaci[[#This Row],[TEST_1]]<>""),"DA","NE"),"") -> DA | K46: 5 | L46: 5 | M46: 13 | N46: 14 | O46: 13 | P46: 28 | Q46: =IF(AND(Zbirni_podaci[[#This Row],[ROK]]<>"",Zbirni_podaci[[#This Row],[WORD bod]]<>"",Zbirni_podaci[[#This Row],[EXCEL bod]]<>"",Zbirni_podaci[[#This Row],[P_POINT bod]]<>"",Zbirni_podaci[[#This Row],[TEST_1 bod]]<>""),VLOOKUP(Zbirni_podaci[[#This Row],[ROK]],bodovi_aktivnost,7,FALSE),"") -> 20 | R46: =IF(AND(Zbirni_podaci[[#This Row],[Akt_nast_bod]]<>"",Zbirni_podaci[[#This Row],[Akt_vežbe_bod]]<>"",Zbirni_podaci[[#This Row],[WORD bod]]<>"",Zbirni_podaci[[#This Row],[EXCEL bod]]<>"",Zbirni_podaci[[#This Row],[P_POINT bod]]<>"",Zbirni_podaci[[#This Row],[TEST_1 bod]]<>""),ROUND(SUM(Zbirni_podaci[[#This Row],[Akt_nast_bod]:[ISPIT]]),0),"") -> 98 | S46: 10 | T46: Јун | U46: =IFERROR(IF(Zbirni_podaci[[#This Row],[ROK]]<>"",VLOOKUP(Zbirni_podaci[[#This Row],[ROK]],DATUMI,6,FALSE),""),"") -> 2019-06-14 | V46: 10 | W46: =IFERROR(IF(Zbirni_podaci[[#This Row],[ROK]]<>"",VLOOKUP(Zbirni_podaci[[#This Row],[ROK]],DATUMI,2,FALSE),""),"") -> 2019-05-27 | X46: 40 | Y46: =IFERROR(IF(Zbirni_podaci[[#This Row],[ROK]]<>"",VLOOKUP(Zbirni_podaci[[#This Row],[ROK]],DATUMI,3,FALSE),""),"") -> 2019-05-27 | Z46: 28 | AA46: =IFERROR(IF(Zbirni_podaci[[#This Row],[ROK]]<>"",VLOOKUP(Zbirni_podaci[[#This Row],[ROK]],DATUMI,4,FALSE),""),"") -> 2019-06-14 | AB46: 20 | AC46: 98 | AD46: 10 | AE46: =IFERROR(IF(Zbirni_podaci[[#This Row],[ROK]]<>"",VLOOKUP(Zbirni_podaci[[#This Row],[ROK]],DATUMI,6,FALSE),""),"") -> 2019-06-14
A47: =PODACI_STUDENTI!A46 -> 45 | B47: =PODACI_STUDENTI!B46 -> 2018/0128 | C47: =PODACI_STUDENTI!C46 -> Manojlović Luka | D47: =PODACI_STUDENTI!D46 -> 0 | F47: =IF(OR(Predrok_Mart!F47<>"",Predrok_April!F47<>"",Januar!F47<>"",Februar!F47<>"",Juni!F47<>"",Juli!F47,Septembar!F47<>"",Oktobar!F47<>"",Oktobar_2!F47<>""),MAX(Predrok_Mart!F47,Predrok_April!F47,Januar!F47,Februar!F47,Juni!F47,Juli!F47,Septembar!F47,Oktobar!F47,Oktobar_2!F47),"") -> 24 | G47: =IF(OR(Predrok_Mart!G47<>"",Predrok_April!G47<>"",Januar!G47<>"",Februar!G47<>"",Juni!G47<>"",Juli!G47,Septembar!G47<>"",Oktobar!G47<>"",Oktobar_2!G47<>""),MAX(Predrok_Mart!G47,Predrok_April!G47,Januar!G47,Februar!G47,Juni!G47,Juli!G47,Septembar!G47,Oktobar!G47,Oktobar_2!G47),"") -> 25 | H47: =IF(OR(Predrok_Mart!H47<>"",Predrok_April!H47<>"",Januar!H47<>"",Februar!H47<>"",Juni!H47<>"",Juli!H47,Septembar!H47<>"",Oktobar!H47<>"",Oktobar_2!H47<>""),MAX(Predrok_Mart!H47,Predrok_April!H47,Januar!H47,Februar!H47,Juni!H47,Juli!H47,Septembar!H47,Oktobar!H47,Oktobar_2!H47),"") -> 24 | I47: =IF(OR(Predrok_Mart!I47<>"",Predrok_April!I47<>"",Januar!I47<>"",Februar!I47<>"",Juni!I47<>"",Juli!I47,Septembar!I47<>"",Oktobar!I47<>"",Oktobar_2!I47<>""),MAX(Predrok_Mart!I47,Predrok_April!I47,Januar!I47,Februar!I47,Juni!I47,Juli!I47,Septembar!I47,Oktobar!I47,Oktobar_2!I47),"") -> 9 | J47: =IF(Zbirni_podaci[[#This Row],[Broj indeksa]]<>"",IF(AND(Zbirni_podaci[[#This Row],[WORD]]<>"",Zbirni_podaci[[#This Row],[EXCEL]]<>"",Zbirni_podaci[[#This Row],[P_POINT]]<>"",Zbirni_podaci[[#This Row],[TEST_1]]<>""),"DA","NE"),"") -> DA | K47: 5 | L47: 5 | M47: 11 | N47: 11 | O47: 11 | P47: 17 | Q47: =IF(AND(Zbirni_podaci[[#This Row],[ROK]]<>"",Zbirni_podaci[[#This Row],[WORD bod]]<>"",Zbirni_podaci[[#This Row],[EXCEL bod]]<>"",Zbirni_podaci[[#This Row],[P_POINT bod]]<>"",Zbirni_podaci[[#This Row],[TEST_1 bod]]<>""),VLOOKUP(Zbirni_podaci[[#This Row],[ROK]],bodovi_aktivnost,7,FALSE),"") -> 20 | R47: =IF(AND(Zbirni_podaci[[#This Row],[Akt_nast_bod]]<>"",Zbirni_podaci[[#This Row],[Akt_vežbe_bod]]<>"",Zbirni_podaci[[#This Row],[WORD bod]]<>"",Zbirni_podaci[[#This Row],[EXCEL bod]]<>"",Zbirni_podaci[[#This Row],[P_POINT bod]]<>"",Zbirni_podaci[[#This Row],[TEST_1 bod]]<>""),ROUND(SUM(Zbirni_podaci[[#This Row],[Akt_nast_bod]:[ISPIT]]),0),"") -> 79 | S47: 8 | T47: Јун | U47: =IFERROR(IF(Zbirni_podaci[[#This Row],[ROK]]<>"",VLOOKUP(Zbirni_podaci[[#This Row],[ROK]],DATUMI,6,FALSE),""),"") -> 2019-06-14 | V47: 10 | W47: =IFERROR(IF(Zbirni_podaci[[#This Row],[ROK]]<>"",VLOOKUP(Zbirni_podaci[[#This Row],[ROK]],DATUMI,2,FALSE),""),"") -> 2019-05-27 | X47: 32 | Y47: =IFERROR(IF(Zbirni_podaci[[#This Row],[ROK]]<>"",VLOOKUP(Zbirni_podaci[[#This Row],[ROK]],DATUMI,3,FALSE),""),"") -> 2019-05-27 | Z47: 17 | AA47: =IFERROR(IF(Zbirni_podaci[[#This Row],[ROK]]<>"",VLOOKUP(Zbirni_podaci[[#This Row],[ROK]],DATUMI,4,FALSE),""),"") -> 2019-06-14 | AB47: 20 | AC47: 79 | AD47: 8 | AE47: =IFERROR(IF(Zbirni_podaci[[#This Row],[ROK]]<>"",VLOOKUP(Zbirni_podaci[[#This Row],[ROK]],DATUMI,6,FALSE),""),"") -> 2019-06-14
A48: =PODACI_STUDENTI!A47 -> 46 | B48: =PODACI_STUDENTI!B47 -> 2018/0103 | C48: =PODACI_STUDENTI!C47 -> Marković Aleksandar | D48: =PODACI_STUDENTI!D47 -> 0 | F48: =IF(OR(Predrok_Mart!F48<>"",Predrok_April!F48<>"",Januar!F48<>"",Februar!F48<>"",Juni!F48<>"",Juli!F48,Septembar!F48<>"",Oktobar!F48<>"",Oktobar_2!F48<>""),MAX(Predrok_Mart!F48,Predrok_April!F48,Januar!F48,Februar!F48,Juni!F48,Juli!F48,Septembar!F48,Oktobar!F48,Oktobar_2!F48),"") -> 31 | G48: =IF(OR(Predrok_Mart!G48<>"",Predrok_April!G48<>"",Januar!G48<>"",Februar!G48<>"",Juni!G48<>"",Juli!G48,Septembar!G48<>"",Oktobar!G48<>"",Oktobar_2!G48<>""),MAX(Predrok_Mart!G48,Predrok_April!G48,Januar!G48,Februar!G48,Juni!G48,Juli!G48,Septembar!G48,Oktobar!G48,Oktobar_2!G48),"") -> 32 | H48: =IF(OR(Predrok_Mart!H48<>"",Predrok_April!H48<>"",Januar!H48<>"",Februar!H48<>"",Juni!H48<>"",Juli!H48,Septembar!H48<>"",Oktobar!H48<>"",Oktobar_2!H48<>""),MAX(Predrok_Mart!H48,Predrok_April!H48,Januar!H48,Februar!H48,Juni!H48,Juli!H48,Septembar!H48,Oktobar!H48,Oktobar_2!H48),"") -> 30 | I48: =IF(OR(Predrok_Mart!I48<>"",Predrok_April!I48<>"",Januar!I48<>"",Februar!I48<>"",Juni!I48<>"",Juli!I48,Septembar!I48<>"",Oktobar!I48<>"",Oktobar_2!I48<>""),MAX(Predrok_Mart!I48,Predrok_April!I48,Januar!I48,Februar!I48,Juni!I48,Juli!I48,Septembar!I48,Oktobar!I48,Oktobar_2!I48),"") -> 13 | J48: =IF(Zbirni_podaci[[#This Row],[Broj indeksa]]<>"",IF(AND(Zbirni_podaci[[#This Row],[WORD]]<>"",Zbirni_podaci[[#This Row],[EXCEL]]<>"",Zbirni_podaci[[#This Row],[P_POINT]]<>"",Zbirni_podaci[[#This Row],[TEST_1]]<>""),"DA","NE"),"") -> DA | K48: 5 | L48: 5 | M48: 14 | N48: 14 | O48: 13 | P48: 24 | Q48: =IF(AND(Zbirni_podaci[[#This Row],[ROK]]<>"",Zbirni_podaci[[#This Row],[WORD bod]]<>"",Zbirni_podaci[[#This Row],[EXCEL bod]]<>"",Zbirni_podaci[[#This Row],[P_POINT bod]]<>"",Zbirni_podaci[[#This Row],[TEST_1 bod]]<>""),VLOOKUP(Zbirni_podaci[[#This Row],[ROK]],bodovi_aktivnost,7,FALSE),"") -> 20 | R48: =IF(AND(Zbirni_podaci[[#This Row],[Akt_nast_bod]]<>"",Zbirni_podaci[[#This Row],[Akt_vežbe_bod]]<>"",Zbirni_podaci[[#This Row],[WORD bod]]<>"",Zbirni_podaci[[#This Row],[EXCEL bod]]<>"",Zbirni_podaci[[#This Row],[P_POINT bod]]<>"",Zbirni_podaci[[#This Row],[TEST_1 bod]]<>""),ROUND(SUM(Zbirni_podaci[[#This Row],[Akt_nast_bod]:[ISPIT]]),0),"") -> 95 | S48: 10 | T48: Јун | U48: =IFERROR(IF(Zbirni_podaci[[#This Row],[ROK]]<>"",VLOOKUP(Zbirni_podaci[[#This Row],[ROK]],DATUMI,6,FALSE),""),"") -> 2019-06-14 | V48: 10 | W48: =IFERROR(IF(Zbirni_podaci[[#This Row],[ROK]]<>"",VLOOKUP(Zbirni_podaci[[#This Row],[ROK]],DATUMI,2,FALSE),""),"") -> 2019-05-27 | X48: 41 | Y48: =IFERROR(IF(Zbirni_podaci[[#This Row],[ROK]]<>"",VLOOKUP(Zbirni_podaci[[#This Row],[ROK]],DATUMI,3,FALSE),""),"") -> 2019-05-27 | Z48: 24 | AA48: =IFERROR(IF(Zbirni_podaci[[#This Row],[ROK]]<>"",VLOOKUP(Zbirni_podaci[[#This Row],[ROK]],DATUMI,4,FALSE),""),"") -> 2019-06-14 | AB48: 20 | AC48: 95 | AD48: 10 | AE48: =IFERROR(IF(Zbirni_podaci[[#This Row],[ROK]]<>"",VLOOKUP(Zbirni_podaci[[#This Row],[ROK]],DATUMI,6,FALSE),""),"") -> 2019-06-14
A49: =PODACI_STUDENTI!A48 -> 47 | B49: =PODACI_STUDENTI!B48 -> 2018/0032 | C49: =PODACI_STUDENTI!C48 -> Marković Miloš | D49: =PODACI_STUDENTI!D48 -> 0 | F49: =IF(OR(Predrok_Mart!F49<>"",Predrok_April!F49<>"",Januar!F49<>"",Februar!F49<>"",Juni!F49<>"",Juli!F49,Septembar!F49<>"",Oktobar!F49<>"",Oktobar_2!F49<>""),MAX(Predrok_Mart!F49,Predrok_April!F49,Januar!F49,Februar!F49,Juni!F49,Juli!F49,Septembar!F49,Oktobar!F49,Oktobar_2!F49),"") -> 24 | G49: =IF(OR(Predrok_Mart!G49<>"",Predrok_April!G49<>"",Januar!G49<>"",Februar!G49<>"",Juni!G49<>"",Juli!G49,Septembar!G49<>"",Oktobar!G49<>"",Oktobar_2!G49<>""),MAX(Predrok_Mart!G49,Predrok_April!G49,Januar!G49,Februar!G49,Juni!G49,Juli!G49,Septembar!G49,Oktobar!G49,Oktobar_2!G49),"") -> 29 | H49: =IF(OR(Predrok_Mart!H49<>"",Predrok_April!H49<>"",Januar!H49<>"",Februar!H49<>"",Juni!H49<>"",Juli!H49,Septembar!H49<>"",Oktobar!H49<>"",Oktobar_2!H49<>""),MAX(Predrok_Mart!H49,Predrok_April!H49,Januar!H49,Februar!H49,Juni!H49,Juli!H49,Septembar!H49,Oktobar!H49,Oktobar_2!H49),"") -> 24 | I49: =IF(OR(Predrok_Mart!I49<>"",Predrok_April!I49<>"",Januar!I49<>"",Februar!I49<>"",Juni!I49<>"",Juli!I49,Septembar!I49<>"",Oktobar!I49<>"",Oktobar_2!I49<>""),MAX(Predrok_Mart!I49,Predrok_April!I49,Januar!I49,Februar!I49,Juni!I49,Juli!I49,Septembar!I49,Oktobar!I49,Oktobar_2!I49),"") -> 14 | J49: =IF(Zbirni_podaci[[#This Row],[Broj indeksa]]<>"",IF(AND(Zbirni_podaci[[#This Row],[WORD]]<>"",Zbirni_podaci[[#This Row],[EXCEL]]<>"",Zbirni_podaci[[#This Row],[P_POINT]]<>"",Zbirni_podaci[[#This Row],[TEST_1]]<>""),"DA","NE"),"") -> DA | K49: 5 | L49: 5 | M49: 11 | N49: 13 | O49: 11 | P49: 26 | Q49: =IF(AND(Zbirni_podaci[[#This Row],[ROK]]<>"",Zbirni_podaci[[#This Row],[WORD bod]]<>"",Zbirni_podaci[[#This Row],[EXCEL bod]]<>"",Zbirni_podaci[[#This Row],[P_POINT bod]]<>"",Zbirni_podaci[[#This Row],[TEST_1 bod]]<>""),VLOOKUP(Zbirni_podaci[[#This Row],[ROK]],bodovi_aktivnost,7,FALSE),"") -> 20 | R49: =IF(AND(Zbirni_podaci[[#This Row],[Akt_nast_bod]]<>"",Zbirni_podaci[[#This Row],[Akt_vežbe_bod]]<>"",Zbirni_podaci[[#This Row],[WORD bod]]<>"",Zbirni_podaci[[#This Row],[EXCEL bod]]<>"",Zbirni_podaci[[#This Row],[P_POINT bod]]<>"",Zbirni_podaci[[#This Row],[TEST_1 bod]]<>""),ROUND(SUM(Zbirni_podaci[[#This Row],[Akt_nast_bod]:[ISPIT]]),0),"") -> 90 | S49: 9 | T49: Јун | U49: =IFERROR(IF(Zbirni_podaci[[#This Row],[ROK]]<>"",VLOOKUP(Zbirni_podaci[[#This Row],[ROK]],DATUMI,6,FALSE),""),"") -> 2019-06-14 | V49: 10 | W49: =IFERROR(IF(Zbirni_podaci[[#This Row],[ROK]]<>"",VLOOKUP(Zbirni_podaci[[#This Row],[ROK]],DATUMI,2,FALSE),""),"") -> 2019-05-27 | X49: 34 | Y49: =IFERROR(IF(Zbirni_podaci[[#This Row],[ROK]]<>"",VLOOKUP(Zbirni_podaci[[#This Row],[ROK]],DATUMI,3,FALSE),""),"") -> 2019-05-27 | Z49: 26 | AA49: =IFERROR(IF(Zbirni_podaci[[#This Row],[ROK]]<>"",VLOOKUP(Zbirni_podaci[[#This Row],[ROK]],DATUMI,4,FALSE),""),"") -> 2019-06-14 | AB49: 20 | AC49: 90 | AD49: 9 | AE49: =IFERROR(IF(Zbirni_podaci[[#This Row],[ROK]]<>"",VLOOKUP(Zbirni_podaci[[#This Row],[ROK]],DATUMI,6,FALSE),""),"") -> 2019-06-14
A50: =PODACI_STUDENTI!A49 -> 48 | B50: =PODACI_STUDENTI!B49 -> 2018/0071 | C50: =PODACI_STUDENTI!C49 -> Marković Filip | D50: =PODACI_STUDENTI!D49 -> 0 | F50: =IF(OR(Predrok_Mart!F50<>"",Predrok_April!F50<>"",Januar!F50<>"",Februar!F50<>"",Juni!F50<>"",Juli!F50,Septembar!F50<>"",Oktobar!F50<>"",Oktobar_2!F50<>""),MAX(Predrok_Mart!F50,Predrok_April!F50,Januar!F50,Februar!F50,Juni!F50,Juli!F50,Septembar!F50,Oktobar!F50,Oktobar_2!F50),"") ->  | G50: =IF(OR(Predrok_Mart!G50<>"",Predrok_April!G50<>"",Januar!G50<>"",Februar!G50<>"",Juni!G50<>"",Juli!G50,Septembar!G50<>"",Oktobar!G50<>"",Oktobar_2!G50<>""),MAX(Predrok_Mart!G50,Predrok_April!G50,Januar!G50,Februar!G50,Juni!G50,Juli!G50,Septembar!G50,Oktobar!G50,Oktobar_2!G50),"") ->  | H50: =IF(OR(Predrok_Mart!H50<>"",Predrok_April!H50<>"",Januar!H50<>"",Februar!H50<>"",Juni!H50<>"",Juli!H50,Septembar!H50<>"",Oktobar!H50<>"",Oktobar_2!H50<>""),MAX(Predrok_Mart!H50,Predrok_April!H50,Januar!H50,Februar!H50,Juni!H50,Juli!H50,Septembar!H50,Oktobar!H50,Oktobar_2!H50),"") ->  | I50: =IF(OR(Predrok_Mart!I50<>"",Predrok_April!I50<>"",Januar!I50<>"",Februar!I50<>"",Juni!I50<>"",Juli!I50,Septembar!I50<>"",Oktobar!I50<>"",Oktobar_2!I50<>""),MAX(Predrok_Mart!I50,Predrok_April!I50,Januar!I50,Februar!I50,Juni!I50,Juli!I50,Septembar!I50,Oktobar!I50,Oktobar_2!I50),"") ->  | J50: =IF(Zbirni_podaci[[#This Row],[Broj indeksa]]<>"",IF(AND(Zbirni_podaci[[#This Row],[WORD]]<>"",Zbirni_podaci[[#This Row],[EXCEL]]<>"",Zbirni_podaci[[#This Row],[P_POINT]]<>"",Zbirni_podaci[[#This Row],[TEST_1]]<>""),"DA","NE"),"") -> NE | Q50: =IF(AND(Zbirni_podaci[[#This Row],[ROK]]<>"",Zbirni_podaci[[#This Row],[WORD bod]]<>"",Zbirni_podaci[[#This Row],[EXCEL bod]]<>"",Zbirni_podaci[[#This Row],[P_POINT bod]]<>"",Zbirni_podaci[[#This Row],[TEST_1 bod]]<>""),VLOOKUP(Zbirni_podaci[[#This Row],[ROK]],bodovi_aktivnost,7,FALSE),"") ->  | R50: =IF(AND(Zbirni_podaci[[#This Row],[Akt_nast_bod]]<>"",Zbirni_podaci[[#This Row],[Akt_vežbe_bod]]<>"",Zbirni_podaci[[#This Row],[WORD bod]]<>"",Zbirni_podaci[[#This Row],[EXCEL bod]]<>"",Zbirni_podaci[[#This Row],[P_POINT bod]]<>"",Zbirni_podaci[[#This Row],[TEST_1 bod]]<>""),ROUND(SUM(Zbirni_podaci[[#This Row],[Akt_nast_bod]:[ISPIT]]),0),"") ->  | U50: =IFERROR(IF(Zbirni_podaci[[#This Row],[ROK]]<>"",VLOOKUP(Zbirni_podaci[[#This Row],[ROK]],DATUMI,6,FALSE),""),"") ->  | W50: =IFERROR(IF(Zbirni_podaci[[#This Row],[ROK]]<>"",VLOOKUP(Zbirni_podaci[[#This Row],[ROK]],DATUMI,2,FALSE),""),"") ->  | Y50: =IFERROR(IF(Zbirni_podaci[[#This Row],[ROK]]<>"",VLOOKUP(Zbirni_podaci[[#This Row],[ROK]],DATUMI,3,FALSE),""),"") ->  | AA50: =IFERROR(IF(Zbirni_podaci[[#This Row],[ROK]]<>"",VLOOKUP(Zbirni_podaci[[#This Row],[ROK]],DATUMI,4,FALSE),""),"") ->  | AE50: =IFERROR(IF(Zbirni_podaci[[#This Row],[ROK]]<>"",VLOOKUP(Zbirni_podaci[[#This Row],[ROK]],DATUMI,6,FALSE),""),"") -> 
A51: =PODACI_STUDENTI!A50 -> 49 | B51: =PODACI_STUDENTI!B50 -> 2018/0100 | C51: =PODACI_STUDENTI!C50 -> Martinović Đuro | D51: =PODACI_STUDENTI!D50 -> 0 | F51: =IF(OR(Predrok_Mart!F51<>"",Predrok_April!F51<>"",Januar!F51<>"",Februar!F51<>"",Juni!F51<>"",Juli!F51,Septembar!F51<>"",Oktobar!F51<>"",Oktobar_2!F51<>""),MAX(Predrok_Mart!F51,Predrok_April!F51,Januar!F51,Februar!F51,Juni!F51,Juli!F51,Septembar!F51,Oktobar!F51,Oktobar_2!F51),"") -> 24 | G51: =IF(OR(Predrok_Mart!G51<>"",Predrok_April!G51<>"",Januar!G51<>"",Februar!G51<>"",Juni!G51<>"",Juli!G51,Septembar!G51<>"",Oktobar!G51<>"",Oktobar_2!G51<>""),MAX(Predrok_Mart!G51,Predrok_April!G51,Januar!G51,Februar!G51,Juni!G51,Juli!G51,Septembar!G51,Oktobar!G51,Oktobar_2!G51),"") -> 24 | H51: =IF(OR(Predrok_Mart!H51<>"",Predrok_April!H51<>"",Januar!H51<>"",Februar!H51<>"",Juni!H51<>"",Juli!H51,Septembar!H51<>"",Oktobar!H51<>"",Oktobar_2!H51<>""),MAX(Predrok_Mart!H51,Predrok_April!H51,Januar!H51,Februar!H51,Juni!H51,Juli!H51,Septembar!H51,Oktobar!H51,Oktobar_2!H51),"") -> 25 | I51: =IF(OR(Predrok_Mart!I51<>"",Predrok_April!I51<>"",Januar!I51<>"",Februar!I51<>"",Juni!I51<>"",Juli!I51,Septembar!I51<>"",Oktobar!I51<>"",Oktobar_2!I51<>""),MAX(Predrok_Mart!I51,Predrok_April!I51,Januar!I51,Februar!I51,Juni!I51,Juli!I51,Septembar!I51,Oktobar!I51,Oktobar_2!I51),"") -> 9 | J51: =IF(Zbirni_podaci[[#This Row],[Broj indeksa]]<>"",IF(AND(Zbirni_podaci[[#This Row],[WORD]]<>"",Zbirni_podaci[[#This Row],[EXCEL]]<>"",Zbirni_podaci[[#This Row],[P_POINT]]<>"",Zbirni_podaci[[#This Row],[TEST_1]]<>""),"DA","NE"),"") -> DA | K51: 5 | L51: 5 | M51: 11 | N51: 11 | O51: 11 | P51: 17 | Q51: =IF(AND(Zbirni_podaci[[#This Row],[ROK]]<>"",Zbirni_podaci[[#This Row],[WORD bod]]<>"",Zbirni_podaci[[#This Row],[EXCEL bod]]<>"",Zbirni_podaci[[#This Row],[P_POINT bod]]<>"",Zbirni_podaci[[#This Row],[TEST_1 bod]]<>""),VLOOKUP(Zbirni_podaci[[#This Row],[ROK]],bodovi_aktivnost,7,FALSE),"") -> 15 | R51: =IF(AND(Zbirni_podaci[[#This Row],[Akt_nast_bod]]<>"",Zbirni_podaci[[#This Row],[Akt_vežbe_bod]]<>"",Zbirni_podaci[[#This Row],[WORD bod]]<>"",Zbirni_podaci[[#This Row],[EXCEL bod]]<>"",Zbirni_podaci[[#This Row],[P_POINT bod]]<>"",Zbirni_podaci[[#This Row],[TEST_1 bod]]<>""),ROUND(SUM(Zbirni_podaci[[#This Row],[Akt_nast_bod]:[ISPIT]]),0),"") -> 74 | S51: 8 | T51: Јул | U51: =IFERROR(IF(Zbirni_podaci[[#This Row],[ROK]]<>"",VLOOKUP(Zbirni_podaci[[#This Row],[ROK]],DATUMI,6,FALSE),""),"") -> 2019-07-01 | V51: 10 | W51: =IFERROR(IF(Zbirni_podaci[[#This Row],[ROK]]<>"",VLOOKUP(Zbirni_podaci[[#This Row],[ROK]],DATUMI,2,FALSE),""),"") -> 2019-05-27 | X51: 32 | Y51: =IFERROR(IF(Zbirni_podaci[[#This Row],[ROK]]<>"",VLOOKUP(Zbirni_podaci[[#This Row],[ROK]],DATUMI,3,FALSE),""),"") -> 2019-05-27 | Z51: 17 | AA51: =IFERROR(IF(Zbirni_podaci[[#This Row],[ROK]]<>"",VLOOKUP(Zbirni_podaci[[#This Row],[ROK]],DATUMI,4,FALSE),""),"") -> 2019-07-01 | AB51: 15 | AC51: 74 | AD51: 8 | AE51: =IFERROR(IF(Zbirni_podaci[[#This Row],[ROK]]<>"",VLOOKUP(Zbirni_podaci[[#This Row],[ROK]],DATUMI,6,FALSE),""),"") -> 2019-07-01
A52: =PODACI_STUDENTI!A51 -> 50 | B52: =PODACI_STUDENTI!B51 -> 2018/0093 | C52: =PODACI_STUDENTI!C51 -> Matić Luka | D52: =PODACI_STUDENTI!D51 -> 0 | F52: =IF(OR(Predrok_Mart!F52<>"",Predrok_April!F52<>"",Januar!F52<>"",Februar!F52<>"",Juni!F52<>"",Juli!F52,Septembar!F52<>"",Oktobar!F52<>"",Oktobar_2!F52<>""),MAX(Predrok_Mart!F52,Predrok_April!F52,Januar!F52,Februar!F52,Juni!F52,Juli!F52,Septembar!F52,Oktobar!F52,Oktobar_2!F52),"") -> 31 | G52: =IF(OR(Predrok_Mart!G52<>"",Predrok_April!G52<>"",Januar!G52<>"",Februar!G52<>"",Juni!G52<>"",Juli!G52,Septembar!G52<>"",Oktobar!G52<>"",Oktobar_2!G52<>""),MAX(Predrok_Mart!G52,Predrok_April!G52,Januar!G52,Februar!G52,Juni!G52,Juli!G52,Septembar!G52,Oktobar!G52,Oktobar_2!G52),"") -> 28 | H52: =IF(OR(Predrok_Mart!H52<>"",Predrok_April!H52<>"",Januar!H52<>"",Februar!H52<>"",Juni!H52<>"",Juli!H52,Septembar!H52<>"",Oktobar!H52<>"",Oktobar_2!H52<>""),MAX(Predrok_Mart!H52,Predrok_April!H52,Januar!H52,Februar!H52,Juni!H52,Juli!H52,Septembar!H52,Oktobar!H52,Oktobar_2!H52),"") -> 27 | I52: =IF(OR(Predrok_Mart!I52<>"",Predrok_April!I52<>"",Januar!I52<>"",Februar!I52<>"",Juni!I52<>"",Juli!I52,Septembar!I52<>"",Oktobar!I52<>"",Oktobar_2!I52<>""),MAX(Predrok_Mart!I52,Predrok_April!I52,Januar!I52,Februar!I52,Juni!I52,Juli!I52,Septembar!I52,Oktobar!I52,Oktobar_2!I52),"") -> 12 | J52: =IF(Zbirni_podaci[[#This Row],[Broj indeksa]]<>"",IF(AND(Zbirni_podaci[[#This Row],[WORD]]<>"",Zbirni_podaci[[#This Row],[EXCEL]]<>"",Zbirni_podaci[[#This Row],[P_POINT]]<>"",Zbirni_podaci[[#This Row],[TEST_1]]<>""),"DA","NE"),"") -> DA | K52: 5 | L52: 5 | M52: 14 | N52: 12 | O52: 12 | P52: 22 | Q52: =IF(AND(Zbirni_podaci[[#This Row],[ROK]]<>"",Zbirni_podaci[[#This Row],[WORD bod]]<>"",Zbirni_podaci[[#This Row],[EXCEL bod]]<>"",Zbirni_podaci[[#This Row],[P_POINT bod]]<>"",Zbirni_podaci[[#This Row],[TEST_1 bod]]<>""),VLOOKUP(Zbirni_podaci[[#This Row],[ROK]],bodovi_aktivnost,7,FALSE),"") -> 20 | R52: =IF(AND(Zbirni_podaci[[#This Row],[Akt_nast_bod]]<>"",Zbirni_podaci[[#This Row],[Akt_vežbe_bod]]<>"",Zbirni_podaci[[#This Row],[WORD bod]]<>"",Zbirni_podaci[[#This Row],[EXCEL bod]]<>"",Zbirni_podaci[[#This Row],[P_POINT bod]]<>"",Zbirni_podaci[[#This Row],[TEST_1 bod]]<>""),ROUND(SUM(Zbirni_podaci[[#This Row],[Akt_nast_bod]:[ISPIT]]),0),"") -> 90 | S52: 9 | T52: Јун | U52: =IFERROR(IF(Zbirni_podaci[[#This Row],[ROK]]<>"",VLOOKUP(Zbirni_podaci[[#This Row],[ROK]],DATUMI,6,FALSE),""),"") -> 2019-06-14 | V52: 10 | W52: =IFERROR(IF(Zbirni_podaci[[#This Row],[ROK]]<>"",VLOOKUP(Zbirni_podaci[[#This Row],[ROK]],DATUMI,2,FALSE),""),"") -> 2019-05-27 | X52: 38 | Y52: =IFERROR(IF(Zbirni_podaci[[#This Row],[ROK]]<>"",VLOOKUP(Zbirni_podaci[[#This Row],[ROK]],DATUMI,3,FALSE),""),"") -> 2019-05-27 | Z52: 22 | AA52: =IFERROR(IF(Zbirni_podaci[[#This Row],[ROK]]<>"",VLOOKUP(Zbirni_podaci[[#This Row],[ROK]],DATUMI,4,FALSE),""),"") -> 2019-06-14 | AB52: 20 | AC52: 90 | AD52: 9 | AE52: =IFERROR(IF(Zbirni_podaci[[#This Row],[ROK]]<>"",VLOOKUP(Zbirni_podaci[[#This Row],[ROK]],DATUMI,6,FALSE),""),"") -> 2019-06-14
A53: =PODACI_STUDENTI!A52 -> 51 | B53: =PODACI_STUDENTI!B52 -> 2018/0104 | C53: =PODACI_STUDENTI!C52 -> Milić Kosta | D53: =PODACI_STUDENTI!D52 -> 0 | F53: =IF(OR(Predrok_Mart!F53<>"",Predrok_April!F53<>"",Januar!F53<>"",Februar!F53<>"",Juni!F53<>"",Juli!F53,Septembar!F53<>"",Oktobar!F53<>"",Oktobar_2!F53<>""),MAX(Predrok_Mart!F53,Predrok_April!F53,Januar!F53,Februar!F53,Juni!F53,Juli!F53,Septembar!F53,Oktobar!F53,Oktobar_2!F53),"") -> 25 | G53: =IF(OR(Predrok_Mart!G53<>"",Predrok_April!G53<>"",Januar!G53<>"",Februar!G53<>"",Juni!G53<>"",Juli!G53,Septembar!G53<>"",Oktobar!G53<>"",Oktobar_2!G53<>""),MAX(Predrok_Mart!G53,Predrok_April!G53,Januar!G53,Februar!G53,Juni!G53,Juli!G53,Septembar!G53,Oktobar!G53,Oktobar_2!G53),"") -> 27 | H53: =IF(OR(Predrok_Mart!H53<>"",Predrok_April!H53<>"",Januar!H53<>"",Februar!H53<>"",Juni!H53<>"",Juli!H53,Septembar!H53<>"",Oktobar!H53<>"",Oktobar_2!H53<>""),MAX(Predrok_Mart!H53,Predrok_April!H53,Januar!H53,Februar!H53,Juni!H53,Juli!H53,Septembar!H53,Oktobar!H53,Oktobar_2!H53),"") -> 31 | I53: =IF(OR(Predrok_Mart!I53<>"",Predrok_April!I53<>"",Januar!I53<>"",Februar!I53<>"",Juni!I53<>"",Juli!I53,Septembar!I53<>"",Oktobar!I53<>"",Oktobar_2!I53<>""),MAX(Predrok_Mart!I53,Predrok_April!I53,Januar!I53,Februar!I53,Juni!I53,Juli!I53,Septembar!I53,Oktobar!I53,Oktobar_2!I53),"") -> 10 | J53: =IF(Zbirni_podaci[[#This Row],[Broj indeksa]]<>"",IF(AND(Zbirni_podaci[[#This Row],[WORD]]<>"",Zbirni_podaci[[#This Row],[EXCEL]]<>"",Zbirni_podaci[[#This Row],[P_POINT]]<>"",Zbirni_podaci[[#This Row],[TEST_1]]<>""),"DA","NE"),"") -> DA | K53: 5 | L53: 5 | M53: 11 | N53: 12 | O53: 14 | P53: 19 | Q53: =IF(AND(Zbirni_podaci[[#This Row],[ROK]]<>"",Zbirni_podaci[[#This Row],[WORD bod]]<>"",Zbirni_podaci[[#This Row],[EXCEL bod]]<>"",Zbirni_podaci[[#This Row],[P_POINT bod]]<>"",Zbirni_podaci[[#This Row],[TEST_1 bod]]<>""),VLOOKUP(Zbirni_podaci[[#This Row],[ROK]],bodovi_aktivnost,7,FALSE),"") -> 20 | R53: =IF(AND(Zbirni_podaci[[#This Row],[Akt_nast_bod]]<>"",Zbirni_podaci[[#This Row],[Akt_vežbe_bod]]<>"",Zbirni_podaci[[#This Row],[WORD bod]]<>"",Zbirni_podaci[[#This Row],[EXCEL bod]]<>"",Zbirni_podaci[[#This Row],[P_POINT bod]]<>"",Zbirni_podaci[[#This Row],[TEST_1 bod]]<>""),ROUND(SUM(Zbirni_podaci[[#This Row],[Akt_nast_bod]:[ISPIT]]),0),"") -> 85 | S53: 9 | T53: Јун | U53: =IFERROR(IF(Zbirni_podaci[[#This Row],[ROK]]<>"",VLOOKUP(Zbirni_podaci[[#This Row],[ROK]],DATUMI,6,FALSE),""),"") -> 2019-06-14 | V53: 10 | W53: =IFERROR(IF(Zbirni_podaci[[#This Row],[ROK]]<>"",VLOOKUP(Zbirni_podaci[[#This Row],[ROK]],DATUMI,2,FALSE),""),"") -> 2019-05-27 | X53: 36 | Y53: =IFERROR(IF(Zbirni_podaci[[#This Row],[ROK]]<>"",VLOOKUP(Zbirni_podaci[[#This Row],[ROK]],DATUMI,3,FALSE),""),"") -> 2019-05-27 | Z53: 19 | AA53: =IFERROR(IF(Zbirni_podaci[[#This Row],[ROK]]<>"",VLOOKUP(Zbirni_podaci[[#This Row],[ROK]],DATUMI,4,FALSE),""),"") -> 2019-06-14 | AB53: 20 | AC53: 85 | AD53: 9 | AE53: =IFERROR(IF(Zbirni_podaci[[#This Row],[ROK]]<>"",VLOOKUP(Zbirni_podaci[[#This Row],[ROK]],DATUMI,6,FALSE),""),"") -> 2019-06-14
A54: =PODACI_STUDENTI!A53 -> 52 | B54: =PODACI_STUDENTI!B53 -> 2018/0126 | C54: =PODACI_STUDENTI!C53 -> Milovanović Luka | D54: =PODACI_STUDENTI!D53 -> 0 | F54: =IF(OR(Predrok_Mart!F54<>"",Predrok_April!F54<>"",Januar!F54<>"",Februar!F54<>"",Juni!F54<>"",Juli!F54,Septembar!F54<>"",Oktobar!F54<>"",Oktobar_2!F54<>""),MAX(Predrok_Mart!F54,Predrok_April!F54,Januar!F54,Februar!F54,Juni!F54,Juli!F54,Septembar!F54,Oktobar!F54,Oktobar_2!F54),"") -> 27 | G54: =IF(OR(Predrok_Mart!G54<>"",Predrok_April!G54<>"",Januar!G54<>"",Februar!G54<>"",Juni!G54<>"",Juli!G54,Septembar!G54<>"",Oktobar!G54<>"",Oktobar_2!G54<>""),MAX(Predrok_Mart!G54,Predrok_April!G54,Januar!G54,Februar!G54,Juni!G54,Juli!G54,Septembar!G54,Oktobar!G54,Oktobar_2!G54),"") -> 31 | H54: =IF(OR(Predrok_Mart!H54<>"",Predrok_April!H54<>"",Januar!H54<>"",Februar!H54<>"",Juni!H54<>"",Juli!H54,Septembar!H54<>"",Oktobar!H54<>"",Oktobar_2!H54<>""),MAX(Predrok_Mart!H54,Predrok_April!H54,Januar!H54,Februar!H54,Juni!H54,Juli!H54,Septembar!H54,Oktobar!H54,Oktobar_2!H54),"") -> 31 | I54: =IF(OR(Predrok_Mart!I54<>"",Predrok_April!I54<>"",Januar!I54<>"",Februar!I54<>"",Juni!I54<>"",Juli!I54,Septembar!I54<>"",Oktobar!I54<>"",Oktobar_2!I54<>""),MAX(Predrok_Mart!I54,Predrok_April!I54,Januar!I54,Februar!I54,Juni!I54,Juli!I54,Septembar!I54,Oktobar!I54,Oktobar_2!I54),"") -> 14 | J54: =IF(Zbirni_podaci[[#This Row],[Broj indeksa]]<>"",IF(AND(Zbirni_podaci[[#This Row],[WORD]]<>"",Zbirni_podaci[[#This Row],[EXCEL]]<>"",Zbirni_podaci[[#This Row],[P_POINT]]<>"",Zbirni_podaci[[#This Row],[TEST_1]]<>""),"DA","NE"),"") -> DA | K54: 5 | L54: 5 | M54: 12 | N54: 14 | O54: 14 | P54: 26 | Q54: =IF(AND(Zbirni_podaci[[#This Row],[ROK]]<>"",Zbirni_podaci[[#This Row],[WORD bod]]<>"",Zbirni_podaci[[#This Row],[EXCEL bod]]<>"",Zbirni_podaci[[#This Row],[P_POINT bod]]<>"",Zbirni_podaci[[#This Row],[TEST_1 bod]]<>""),VLOOKUP(Zbirni_podaci[[#This Row],[ROK]],bodovi_aktivnost,7,FALSE),"") -> 20 | R54: =IF(AND(Zbirni_podaci[[#This Row],[Akt_nast_bod]]<>"",Zbirni_podaci[[#This Row],[Akt_vežbe_bod]]<>"",Zbirni_podaci[[#This Row],[WORD bod]]<>"",Zbirni_podaci[[#This Row],[EXCEL bod]]<>"",Zbirni_podaci[[#This Row],[P_POINT bod]]<>"",Zbirni_podaci[[#This Row],[TEST_1 bod]]<>""),ROUND(SUM(Zbirni_podaci[[#This Row],[Akt_nast_bod]:[ISPIT]]),0),"") -> 95 | S54: 10 | T54: Јун | U54: =IFERROR(IF(Zbirni_podaci[[#This Row],[ROK]]<>"",VLOOKUP(Zbirni_podaci[[#This Row],[ROK]],DATUMI,6,FALSE),""),"") -> 2019-06-14 | V54: 10 | W54: =IFERROR(IF(Zbirni_podaci[[#This Row],[ROK]]<>"",VLOOKUP(Zbirni_podaci[[#This Row],[ROK]],DATUMI,2,FALSE),""),"") -> 2019-05-27 | X54: 39 | Y54: =IFERROR(IF(Zbirni_podaci[[#This Row],[ROK]]<>"",VLOOKUP(Zbirni_podaci[[#This Row],[ROK]],DATUMI,3,FALSE),""),"") -> 2019-05-27 | Z54: 26 | AA54: =IFERROR(IF(Zbirni_podaci[[#This Row],[ROK]]<>"",VLOOKUP(Zbirni_podaci[[#This Row],[ROK]],DATUMI,4,FALSE),""),"") -> 2019-06-14 | AB54: 20 | AC54: 95 | AD54: 10 | AE54: =IFERROR(IF(Zbirni_podaci[[#This Row],[ROK]]<>"",VLOOKUP(Zbirni_podaci[[#This Row],[ROK]],DATUMI,6,FALSE),""),"") -> 2019-06-14
A55: =PODACI_STUDENTI!A54 -> 53 | B55: =PODACI_STUDENTI!B54 -> 2018/0087 | C55: =PODACI_STUDENTI!C54 -> Milovanović Ognjen | D55: =PODACI_STUDENTI!D54 -> 0 | F55: =IF(OR(Predrok_Mart!F55<>"",Predrok_April!F55<>"",Januar!F55<>"",Februar!F55<>"",Juni!F55<>"",Juli!F55,Septembar!F55<>"",Oktobar!F55<>"",Oktobar_2!F55<>""),MAX(Predrok_Mart!F55,Predrok_April!F55,Januar!F55,Februar!F55,Juni!F55,Juli!F55,Septembar!F55,Oktobar!F55,Oktobar_2!F55),"") -> 29 | G55: =IF(OR(Predrok_Mart!G55<>"",Predrok_April!G55<>"",Januar!G55<>"",Februar!G55<>"",Juni!G55<>"",Juli!G55,Septembar!G55<>"",Oktobar!G55<>"",Oktobar_2!G55<>""),MAX(Predrok_Mart!G55,Predrok_April!G55,Januar!G55,Februar!G55,Juni!G55,Juli!G55,Septembar!G55,Oktobar!G55,Oktobar_2!G55),"") -> 31 | H55: =IF(OR(Predrok_Mart!H55<>"",Predrok_April!H55<>"",Januar!H55<>"",Februar!H55<>"",Juni!H55<>"",Juli!H55,Septembar!H55<>"",Oktobar!H55<>"",Oktobar_2!H55<>""),MAX(Predrok_Mart!H55,Predrok_April!H55,Januar!H55,Februar!H55,Juni!H55,Juli!H55,Septembar!H55,Oktobar!H55,Oktobar_2!H55),"") -> 28 | I55: =IF(OR(Predrok_Mart!I55<>"",Predrok_April!I55<>"",Januar!I55<>"",Februar!I55<>"",Juni!I55<>"",Juli!I55,Septembar!I55<>"",Oktobar!I55<>"",Oktobar_2!I55<>""),MAX(Predrok_Mart!I55,Predrok_April!I55,Januar!I55,Februar!I55,Juni!I55,Juli!I55,Septembar!I55,Oktobar!I55,Oktobar_2!I55),"") -> 13 | J55: =IF(Zbirni_podaci[[#This Row],[Broj indeksa]]<>"",IF(AND(Zbirni_podaci[[#This Row],[WORD]]<>"",Zbirni_podaci[[#This Row],[EXCEL]]<>"",Zbirni_podaci[[#This Row],[P_POINT]]<>"",Zbirni_podaci[[#This Row],[TEST_1]]<>""),"DA","NE"),"") -> DA | K55: 5 | L55: 5 | M55: 13 | N55: 14 | O55: 12 | P55: 24 | Q55: =IF(AND(Zbirni_podaci[[#This Row],[ROK]]<>"",Zbirni_podaci[[#This Row],[WORD bod]]<>"",Zbirni_podaci[[#This Row],[EXCEL bod]]<>"",Zbirni_podaci[[#This Row],[P_POINT bod]]<>"",Zbirni_podaci[[#This Row],[TEST_1 bod]]<>""),VLOOKUP(Zbirni_podaci[[#This Row],[ROK]],bodovi_aktivnost,7,FALSE),"") -> 20 | R55: =IF(AND(Zbirni_podaci[[#This Row],[Akt_nast_bod]]<>"",Zbirni_podaci[[#This Row],[Akt_vežbe_bod]]<>"",Zbirni_podaci[[#This Row],[WORD bod]]<>"",Zbirni_podaci[[#This Row],[EXCEL bod]]<>"",Zbirni_podaci[[#This Row],[P_POINT bod]]<>"",Zbirni_podaci[[#This Row],[TEST_1 bod]]<>""),ROUND(SUM(Zbirni_podaci[[#This Row],[Akt_nast_bod]:[ISPIT]]),0),"") -> 93 | S55: 10 | T55: Јун | U55: =IFERROR(IF(Zbirni_podaci[[#This Row],[ROK]]<>"",VLOOKUP(Zbirni_podaci[[#This Row],[ROK]],DATUMI,6,FALSE),""),"") -> 2019-06-14 | V55: 10 | W55: =IFERROR(IF(Zbirni_podaci[[#This Row],[ROK]]<>"",VLOOKUP(Zbirni_podaci[[#This Row],[ROK]],DATUMI,2,FALSE),""),"") -> 2019-05-27 | X55: 39 | Y55: =IFERROR(IF(Zbirni_podaci[[#This Row],[ROK]]<>"",VLOOKUP(Zbirni_podaci[[#This Row],[ROK]],DATUMI,3,FALSE),""),"") -> 2019-05-27 | Z55: 24 | AA55: =IFERROR(IF(Zbirni_podaci[[#This Row],[ROK]]<>"",VLOOKUP(Zbirni_podaci[[#This Row],[ROK]],DATUMI,4,FALSE),""),"") -> 2019-06-14 | AB55: 20 | AC55: 93 | AD55: 10 | AE55: =IFERROR(IF(Zbirni_podaci[[#This Row],[ROK]]<>"",VLOOKUP(Zbirni_podaci[[#This Row],[ROK]],DATUMI,6,FALSE),""),"") -> 2019-06-14
A56: =PODACI_STUDENTI!A55 -> 54 | B56: =PODACI_STUDENTI!B55 -> 2018/0019 | C56: =PODACI_STUDENTI!C55 -> Mitić Đorđe | D56: =PODACI_STUDENTI!D55 -> 0 | F56: =IF(OR(Predrok_Mart!F56<>"",Predrok_April!F56<>"",Januar!F56<>"",Februar!F56<>"",Juni!F56<>"",Juli!F56,Septembar!F56<>"",Oktobar!F56<>"",Oktobar_2!F56<>""),MAX(Predrok_Mart!F56,Predrok_April!F56,Januar!F56,Februar!F56,Juni!F56,Juli!F56,Septembar!F56,Oktobar!F56,Oktobar_2!F56),"") -> 27 | G56: =IF(OR(Predrok_Mart!G56<>"",Predrok_April!G56<>"",Januar!G56<>"",Februar!G56<>"",Juni!G56<>"",Juli!G56,Septembar!G56<>"",Oktobar!G56<>"",Oktobar_2!G56<>""),MAX(Predrok_Mart!G56,Predrok_April!G56,Januar!G56,Februar!G56,Juni!G56,Juli!G56,Septembar!G56,Oktobar!G56,Oktobar_2!G56),"") -> 28 | H56: =IF(OR(Predrok_Mart!H56<>"",Predrok_April!H56<>"",Januar!H56<>"",Februar!H56<>"",Juni!H56<>"",Juli!H56,Septembar!H56<>"",Oktobar!H56<>"",Oktobar_2!H56<>""),MAX(Predrok_Mart!H56,Predrok_April!H56,Januar!H56,Februar!H56,Juni!H56,Juli!H56,Septembar!H56,Oktobar!H56,Oktobar_2!H56),"") -> 25 | I56: =IF(OR(Predrok_Mart!I56<>"",Predrok_April!I56<>"",Januar!I56<>"",Februar!I56<>"",Juni!I56<>"",Juli!I56,Septembar!I56<>"",Oktobar!I56<>"",Oktobar_2!I56<>""),MAX(Predrok_Mart!I56,Predrok_April!I56,Januar!I56,Februar!I56,Juni!I56,Juli!I56,Septembar!I56,Oktobar!I56,Oktobar_2!I56),"") -> 10 | J56: =IF(Zbirni_podaci[[#This Row],[Broj indeksa]]<>"",IF(AND(Zbirni_podaci[[#This Row],[WORD]]<>"",Zbirni_podaci[[#This Row],[EXCEL]]<>"",Zbirni_podaci[[#This Row],[P_POINT]]<>"",Zbirni_podaci[[#This Row],[TEST_1]]<>""),"DA","NE"),"") -> DA | K56: 5 | L56: 5 | M56: 12 | N56: 12 | O56: 11 | P56: 19 | Q56: =IF(AND(Zbirni_podaci[[#This Row],[ROK]]<>"",Zbirni_podaci[[#This Row],[WORD bod]]<>"",Zbirni_podaci[[#This Row],[EXCEL bod]]<>"",Zbirni_podaci[[#This Row],[P_POINT bod]]<>"",Zbirni_podaci[[#This Row],[TEST_1 bod]]<>""),VLOOKUP(Zbirni_podaci[[#This Row],[ROK]],bodovi_aktivnost,7,FALSE),"") -> 20 | R56: =IF(AND(Zbirni_podaci[[#This Row],[Akt_nast_bod]]<>"",Zbirni_podaci[[#This Row],[Akt_vežbe_bod]]<>"",Zbirni_podaci[[#This Row],[WORD bod]]<>"",Zbirni_podaci[[#This Row],[EXCEL bod]]<>"",Zbirni_podaci[[#This Row],[P_POINT bod]]<>"",Zbirni_podaci[[#This Row],[TEST_1 bod]]<>""),ROUND(SUM(Zbirni_podaci[[#This Row],[Akt_nast_bod]:[ISPIT]]),0),"") -> 84 | S56: 9 | T56: Јун | U56: =IFERROR(IF(Zbirni_podaci[[#This Row],[ROK]]<>"",VLOOKUP(Zbirni_podaci[[#This Row],[ROK]],DATUMI,6,FALSE),""),"") -> 2019-06-14 | V56: 10 | W56: =IFERROR(IF(Zbirni_podaci[[#This Row],[ROK]]<>"",VLOOKUP(Zbirni_podaci[[#This Row],[ROK]],DATUMI,2,FALSE),""),"") -> 2019-05-27 | X56: 35 | Y56: =IFERROR(IF(Zbirni_podaci[[#This Row],[ROK]]<>"",VLOOKUP(Zbirni_podaci[[#This Row],[ROK]],DATUMI,3,FALSE),""),"") -> 2019-05-27 | Z56: 19 | AA56: =IFERROR(IF(Zbirni_podaci[[#This Row],[ROK]]<>"",VLOOKUP(Zbirni_podaci[[#This Row],[ROK]],DATUMI,4,FALSE),""),"") -> 2019-06-14 | AB56: 20 | AC56: 84 | AD56: 9 | AE56: =IFERROR(IF(Zbirni_podaci[[#This Row],[ROK]]<>"",VLOOKUP(Zbirni_podaci[[#This Row],[ROK]],DATUMI,6,FALSE),""),"") -> 2019-06-14
A57: =PODACI_STUDENTI!A56 -> 55 | B57: =PODACI_STUDENTI!B56 -> 2018/0036 | C57: =PODACI_STUDENTI!C56 -> Mitrov Miloš | D57: =PODACI_STUDENTI!D56 -> 0 | F57: =IF(OR(Predrok_Mart!F57<>"",Predrok_April!F57<>"",Januar!F57<>"",Februar!F57<>"",Juni!F57<>"",Juli!F57,Septembar!F57<>"",Oktobar!F57<>"",Oktobar_2!F57<>""),MAX(Predrok_Mart!F57,Predrok_April!F57,Januar!F57,Februar!F57,Juni!F57,Juli!F57,Septembar!F57,Oktobar!F57,Oktobar_2!F57),"") -> 31 | G57: =IF(OR(Predrok_Mart!G57<>"",Predrok_April!G57<>"",Januar!G57<>"",Februar!G57<>"",Juni!G57<>"",Juli!G57,Septembar!G57<>"",Oktobar!G57<>"",Oktobar_2!G57<>""),MAX(Predrok_Mart!G57,Predrok_April!G57,Januar!G57,Februar!G57,Juni!G57,Juli!G57,Septembar!G57,Oktobar!G57,Oktobar_2!G57),"") -> 29 | H57: =IF(OR(Predrok_Mart!H57<>"",Predrok_April!H57<>"",Januar!H57<>"",Februar!H57<>"",Juni!H57<>"",Juli!H57,Septembar!H57<>"",Oktobar!H57<>"",Oktobar_2!H57<>""),MAX(Predrok_Mart!H57,Predrok_April!H57,Januar!H57,Februar!H57,Juni!H57,Juli!H57,Septembar!H57,Oktobar!H57,Oktobar_2!H57),"") -> 28 | I57: =IF(OR(Predrok_Mart!I57<>"",Predrok_April!I57<>"",Januar!I57<>"",Februar!I57<>"",Juni!I57<>"",Juli!I57,Septembar!I57<>"",Oktobar!I57<>"",Oktobar_2!I57<>""),MAX(Predrok_Mart!I57,Predrok_April!I57,Januar!I57,Februar!I57,Juni!I57,Juli!I57,Septembar!I57,Oktobar!I57,Oktobar_2!I57),"") -> 12 | J57: =IF(Zbirni_podaci[[#This Row],[Broj indeksa]]<>"",IF(AND(Zbirni_podaci[[#This Row],[WORD]]<>"",Zbirni_podaci[[#This Row],[EXCEL]]<>"",Zbirni_podaci[[#This Row],[P_POINT]]<>"",Zbirni_podaci[[#This Row],[TEST_1]]<>""),"DA","NE"),"") -> DA | K57: 5 | L57: 5 | M57: 14 | N57: 13 | O57: 12 | P57: 22 | Q57: =IF(AND(Zbirni_podaci[[#This Row],[ROK]]<>"",Zbirni_podaci[[#This Row],[WORD bod]]<>"",Zbirni_podaci[[#This Row],[EXCEL bod]]<>"",Zbirni_podaci[[#This Row],[P_POINT bod]]<>"",Zbirni_podaci[[#This Row],[TEST_1 bod]]<>""),VLOOKUP(Zbirni_podaci[[#This Row],[ROK]],bodovi_aktivnost,7,FALSE),"") -> 20 | R57: =IF(AND(Zbirni_podaci[[#This Row],[Akt_nast_bod]]<>"",Zbirni_podaci[[#This Row],[Akt_vežbe_bod]]<>"",Zbirni_podaci[[#This Row],[WORD bod]]<>"",Zbirni_podaci[[#This Row],[EXCEL bod]]<>"",Zbirni_podaci[[#This Row],[P_POINT bod]]<>"",Zbirni_podaci[[#This Row],[TEST_1 bod]]<>""),ROUND(SUM(Zbirni_podaci[[#This Row],[Akt_nast_bod]:[ISPIT]]),0),"") -> 91 | S57: 10 | T57: Јун | U57: =IFERROR(IF(Zbirni_podaci[[#This Row],[ROK]]<>"",VLOOKUP(Zbirni_podaci[[#This Row],[ROK]],DATUMI,6,FALSE),""),"") -> 2019-06-14 | V57: 10 | W57: =IFERROR(IF(Zbirni_podaci[[#This Row],[ROK]]<>"",VLOOKUP(Zbirni_podaci[[#This Row],[ROK]],DATUMI,2,FALSE),""),"") -> 2019-05-27 | X57: 39 | Y57: =IFERROR(IF(Zbirni_podaci[[#This Row],[ROK]]<>"",VLOOKUP(Zbirni_podaci[[#This Row],[ROK]],DATUMI,3,FALSE),""),"") -> 2019-05-27 | Z57: 22 | AA57: =IFERROR(IF(Zbirni_podaci[[#This Row],[ROK]]<>"",VLOOKUP(Zbirni_podaci[[#This Row],[ROK]],DATUMI,4,FALSE),""),"") -> 2019-06-14 | AB57: 20 | AC57: 91 | AD57: 10 | AE57: =IFERROR(IF(Zbirni_podaci[[#This Row],[ROK]]<>"",VLOOKUP(Zbirni_podaci[[#This Row],[ROK]],DATUMI,6,FALSE),""),"") -> 2019-06-14
A58: =PODACI_STUDENTI!A57 -> 56 | B58: =PODACI_STUDENTI!B57 -> 2016/0145 | C58: =PODACI_STUDENTI!C57 -> Mihajlović Dejana | D58: =PODACI_STUDENTI!D57 -> 0 | F58: =IF(OR(Predrok_Mart!F58<>"",Predrok_April!F58<>"",Januar!F58<>"",Februar!F58<>"",Juni!F58<>"",Juli!F58,Septembar!F58<>"",Oktobar!F58<>"",Oktobar_2!F58<>""),MAX(Predrok_Mart!F58,Predrok_April!F58,Januar!F58,Februar!F58,Juni!F58,Juli!F58,Septembar!F58,Oktobar!F58,Oktobar_2!F58),"") -> 26 | G58: =IF(OR(Predrok_Mart!G58<>"",Predrok_April!G58<>"",Januar!G58<>"",Februar!G58<>"",Juni!G58<>"",Juli!G58,Septembar!G58<>"",Oktobar!G58<>"",Oktobar_2!G58<>""),MAX(Predrok_Mart!G58,Predrok_April!G58,Januar!G58,Februar!G58,Juni!G58,Juli!G58,Septembar!G58,Oktobar!G58,Oktobar_2!G58),"") -> 31 | H58: =IF(OR(Predrok_Mart!H58<>"",Predrok_April!H58<>"",Januar!H58<>"",Februar!H58<>"",Juni!H58<>"",Juli!H58,Septembar!H58<>"",Oktobar!H58<>"",Oktobar_2!H58<>""),MAX(Predrok_Mart!H58,Predrok_April!H58,Januar!H58,Februar!H58,Juni!H58,Juli!H58,Septembar!H58,Oktobar!H58,Oktobar_2!H58),"") -> 29 | I58: =IF(OR(Predrok_Mart!I58<>"",Predrok_April!I58<>"",Januar!I58<>"",Februar!I58<>"",Juni!I58<>"",Juli!I58,Septembar!I58<>"",Oktobar!I58<>"",Oktobar_2!I58<>""),MAX(Predrok_Mart!I58,Predrok_April!I58,Januar!I58,Februar!I58,Juni!I58,Juli!I58,Septembar!I58,Oktobar!I58,Oktobar_2!I58),"") -> 13 | J58: =IF(Zbirni_podaci[[#This Row],[Broj indeksa]]<>"",IF(AND(Zbirni_podaci[[#This Row],[WORD]]<>"",Zbirni_podaci[[#This Row],[EXCEL]]<>"",Zbirni_podaci[[#This Row],[P_POINT]]<>"",Zbirni_podaci[[#This Row],[TEST_1]]<>""),"DA","NE"),"") -> DA | K58: 5 | L58: 5 | M58: 11 | N58: 14 | O58: 13 | P58: 24 | Q58: =IF(AND(Zbirni_podaci[[#This Row],[ROK]]<>"",Zbirni_podaci[[#This Row],[WORD bod]]<>"",Zbirni_podaci[[#This Row],[EXCEL bod]]<>"",Zbirni_podaci[[#This Row],[P_POINT bod]]<>"",Zbirni_podaci[[#This Row],[TEST_1 bod]]<>""),VLOOKUP(Zbirni_podaci[[#This Row],[ROK]],bodovi_aktivnost,7,FALSE),"") -> 20 | R58: =IF(AND(Zbirni_podaci[[#This Row],[Akt_nast_bod]]<>"",Zbirni_podaci[[#This Row],[Akt_vežbe_bod]]<>"",Zbirni_podaci[[#This Row],[WORD bod]]<>"",Zbirni_podaci[[#This Row],[EXCEL bod]]<>"",Zbirni_podaci[[#This Row],[P_POINT bod]]<>"",Zbirni_podaci[[#This Row],[TEST_1 bod]]<>""),ROUND(SUM(Zbirni_podaci[[#This Row],[Akt_nast_bod]:[ISPIT]]),0),"") -> 92 | S58: 10 | T58: Јун | U58: =IFERROR(IF(Zbirni_podaci[[#This Row],[ROK]]<>"",VLOOKUP(Zbirni_podaci[[#This Row],[ROK]],DATUMI,6,FALSE),""),"") -> 2019-06-14 | V58: 10 | W58: =IFERROR(IF(Zbirni_podaci[[#This Row],[ROK]]<>"",VLOOKUP(Zbirni_podaci[[#This Row],[ROK]],DATUMI,2,FALSE),""),"") -> 2019-05-27 | X58: 38 | Y58: =IFERROR(IF(Zbirni_podaci[[#This Row],[ROK]]<>"",VLOOKUP(Zbirni_podaci[[#This Row],[ROK]],DATUMI,3,FALSE),""),"") -> 2019-05-27 | Z58: 24 | AA58: =IFERROR(IF(Zbirni_podaci[[#This Row],[ROK]]<>"",VLOOKUP(Zbirni_podaci[[#This Row],[ROK]],DATUMI,4,FALSE),""),"") -> 2019-06-14 | AB58: 20 | AC58: 92 | AD58: 10 | AE58: =IFERROR(IF(Zbirni_podaci[[#This Row],[ROK]]<>"",VLOOKUP(Zbirni_podaci[[#This Row],[ROK]],DATUMI,6,FALSE),""),"") -> 2019-06-14
A59: =PODACI_STUDENTI!A58 -> 57 | B59: =PODACI_STUDENTI!B58 -> 2018/0058 | C59: =PODACI_STUDENTI!C58 -> Momirović Luka | D59: =PODACI_STUDENTI!D58 -> 0 | F59: =IF(OR(Predrok_Mart!F59<>"",Predrok_April!F59<>"",Januar!F59<>"",Februar!F59<>"",Juni!F59<>"",Juli!F59,Septembar!F59<>"",Oktobar!F59<>"",Oktobar_2!F59<>""),MAX(Predrok_Mart!F59,Predrok_April!F59,Januar!F59,Februar!F59,Juni!F59,Juli!F59,Septembar!F59,Oktobar!F59,Oktobar_2!F59),"") -> 24 | G59: =IF(OR(Predrok_Mart!G59<>"",Predrok_April!G59<>"",Januar!G59<>"",Februar!G59<>"",Juni!G59<>"",Juli!G59,Septembar!G59<>"",Oktobar!G59<>"",Oktobar_2!G59<>""),MAX(Predrok_Mart!G59,Predrok_April!G59,Januar!G59,Februar!G59,Juni!G59,Juli!G59,Septembar!G59,Oktobar!G59,Oktobar_2!G59),"") -> 25 | H59: =IF(OR(Predrok_Mart!H59<>"",Predrok_April!H59<>"",Januar!H59<>"",Februar!H59<>"",Juni!H59<>"",Juli!H59,Septembar!H59<>"",Oktobar!H59<>"",Oktobar_2!H59<>""),MAX(Predrok_Mart!H59,Predrok_April!H59,Januar!H59,Februar!H59,Juni!H59,Juli!H59,Septembar!H59,Oktobar!H59,Oktobar_2!H59),"") -> 31 | I59: =IF(OR(Predrok_Mart!I59<>"",Predrok_April!I59<>"",Januar!I59<>"",Februar!I59<>"",Juni!I59<>"",Juli!I59,Septembar!I59<>"",Oktobar!I59<>"",Oktobar_2!I59<>""),MAX(Predrok_Mart!I59,Predrok_April!I59,Januar!I59,Februar!I59,Juni!I59,Juli!I59,Septembar!I59,Oktobar!I59,Oktobar_2!I59),"") -> 12 | J59: =IF(Zbirni_podaci[[#This Row],[Broj indeksa]]<>"",IF(AND(Zbirni_podaci[[#This Row],[WORD]]<>"",Zbirni_podaci[[#This Row],[EXCEL]]<>"",Zbirni_podaci[[#This Row],[P_POINT]]<>"",Zbirni_podaci[[#This Row],[TEST_1]]<>""),"DA","NE"),"") -> DA | K59: 5 | L59: 5 | M59: 11 | N59: 11 | O59: 14 | P59: 22 | Q59: =IF(AND(Zbirni_podaci[[#This Row],[ROK]]<>"",Zbirni_podaci[[#This Row],[WORD bod]]<>"",Zbirni_podaci[[#This Row],[EXCEL bod]]<>"",Zbirni_podaci[[#This Row],[P_POINT bod]]<>"",Zbirni_podaci[[#This Row],[TEST_1 bod]]<>""),VLOOKUP(Zbirni_podaci[[#This Row],[ROK]],bodovi_aktivnost,7,FALSE),"") -> 20 | R59: =IF(AND(Zbirni_podaci[[#This Row],[Akt_nast_bod]]<>"",Zbirni_podaci[[#This Row],[Akt_vežbe_bod]]<>"",Zbirni_podaci[[#This Row],[WORD bod]]<>"",Zbirni_podaci[[#This Row],[EXCEL bod]]<>"",Zbirni_podaci[[#This Row],[P_POINT bod]]<>"",Zbirni_podaci[[#This Row],[TEST_1 bod]]<>""),ROUND(SUM(Zbirni_podaci[[#This Row],[Akt_nast_bod]:[ISPIT]]),0),"") -> 87 | S59: 9 | T59: Јун | U59: =IFERROR(IF(Zbirni_podaci[[#This Row],[ROK]]<>"",VLOOKUP(Zbirni_podaci[[#This Row],[ROK]],DATUMI,6,FALSE),""),"") -> 2019-06-14 | V59: 10 | W59: =IFERROR(IF(Zbirni_podaci[[#This Row],[ROK]]<>"",VLOOKUP(Zbirni_podaci[[#This Row],[ROK]],DATUMI,2,FALSE),""),"") -> 2019-05-27 | X59: 35 | Y59: =IFERROR(IF(Zbirni_podaci[[#This Row],[ROK]]<>"",VLOOKUP(Zbirni_podaci[[#This Row],[ROK]],DATUMI,3,FALSE),""),"") -> 2019-05-27 | Z59: 22 | AA59: =IFERROR(IF(Zbirni_podaci[[#This Row],[ROK]]<>"",VLOOKUP(Zbirni_podaci[[#This Row],[ROK]],DATUMI,4,FALSE),""),"") -> 2019-06-14 | AB59: 20 | AC59: 87 | AD59: 9 | AE59: =IFERROR(IF(Zbirni_podaci[[#This Row],[ROK]]<>"",VLOOKUP(Zbirni_podaci[[#This Row],[ROK]],DATUMI,6,FALSE),""),"") -> 2019-06-14
A60: =PODACI_STUDENTI!A59 -> 58 | B60: =PODACI_STUDENTI!B59 -> 2018/0118 | C60: =PODACI_STUDENTI!C59 -> Momčilović Stefan | D60: =PODACI_STUDENTI!D59 -> 0 | F60: =IF(OR(Predrok_Mart!F60<>"",Predrok_April!F60<>"",Januar!F60<>"",Februar!F60<>"",Juni!F60<>"",Juli!F60,Septembar!F60<>"",Oktobar!F60<>"",Oktobar_2!F60<>""),MAX(Predrok_Mart!F60,Predrok_April!F60,Januar!F60,Februar!F60,Juni!F60,Juli!F60,Septembar!F60,Oktobar!F60,Oktobar_2!F60),"") -> 24 | G60: =IF(OR(Predrok_Mart!G60<>"",Predrok_April!G60<>"",Januar!G60<>"",Februar!G60<>"",Juni!G60<>"",Juli!G60,Septembar!G60<>"",Oktobar!G60<>"",Oktobar_2!G60<>""),MAX(Predrok_Mart!G60,Predrok_April!G60,Januar!G60,Februar!G60,Juni!G60,Juli!G60,Septembar!G60,Oktobar!G60,Oktobar_2!G60),"") ->  | H60: =IF(OR(Predrok_Mart!H60<>"",Predrok_April!H60<>"",Januar!H60<>"",Februar!H60<>"",Juni!H60<>"",Juli!H60,Septembar!H60<>"",Oktobar!H60<>"",Oktobar_2!H60<>""),MAX(Predrok_Mart!H60,Predrok_April!H60,Januar!H60,Februar!H60,Juni!H60,Juli!H60,Septembar!H60,Oktobar!H60,Oktobar_2!H60),"") ->  | I60: =IF(OR(Predrok_Mart!I60<>"",Predrok_April!I60<>"",Januar!I60<>"",Februar!I60<>"",Juni!I60<>"",Juli!I60,Septembar!I60<>"",Oktobar!I60<>"",Oktobar_2!I60<>""),MAX(Predrok_Mart!I60,Predrok_April!I60,Januar!I60,Februar!I60,Juni!I60,Juli!I60,Septembar!I60,Oktobar!I60,Oktobar_2!I60),"") -> 12 | J60: =IF(Zbirni_podaci[[#This Row],[Broj indeksa]]<>"",IF(AND(Zbirni_podaci[[#This Row],[WORD]]<>"",Zbirni_podaci[[#This Row],[EXCEL]]<>"",Zbirni_podaci[[#This Row],[P_POINT]]<>"",Zbirni_podaci[[#This Row],[TEST_1]]<>""),"DA","NE"),"") -> NE | M60: 11 | P60: 22 | Q60: =IF(AND(Zbirni_podaci[[#This Row],[ROK]]<>"",Zbirni_podaci[[#This Row],[WORD bod]]<>"",Zbirni_podaci[[#This Row],[EXCEL bod]]<>"",Zbirni_podaci[[#This Row],[P_POINT bod]]<>"",Zbirni_podaci[[#This Row],[TEST_1 bod]]<>""),VLOOKUP(Zbirni_podaci[[#This Row],[ROK]],bodovi_aktivnost,7,FALSE),"") ->  | R60: =IF(AND(Zbirni_podaci[[#This Row],[Akt_nast_bod]]<>"",Zbirni_podaci[[#This Row],[Akt_vežbe_bod]]<>"",Zbirni_podaci[[#This Row],[WORD bod]]<>"",Zbirni_podaci[[#This Row],[EXCEL bod]]<>"",Zbirni_podaci[[#This Row],[P_POINT bod]]<>"",Zbirni_podaci[[#This Row],[TEST_1 bod]]<>""),ROUND(SUM(Zbirni_podaci[[#This Row],[Akt_nast_bod]:[ISPIT]]),0),"") ->  | U60: =IFERROR(IF(Zbirni_podaci[[#This Row],[ROK]]<>"",VLOOKUP(Zbirni_podaci[[#This Row],[ROK]],DATUMI,6,FALSE),""),"") ->  | W60: =IFERROR(IF(Zbirni_podaci[[#This Row],[ROK]]<>"",VLOOKUP(Zbirni_podaci[[#This Row],[ROK]],DATUMI,2,FALSE),""),"") ->  | Y60: =IFERROR(IF(Zbirni_podaci[[#This Row],[ROK]]<>"",VLOOKUP(Zbirni_podaci[[#This Row],[ROK]],DATUMI,3,FALSE),""),"") ->  | AA60: =IFERROR(IF(Zbirni_podaci[[#This Row],[ROK]]<>"",VLOOKUP(Zbirni_podaci[[#This Row],[ROK]],DATUMI,4,FALSE),""),"") ->  | AE60: =IFERROR(IF(Zbirni_podaci[[#This Row],[ROK]]<>"",VLOOKUP(Zbirni_podaci[[#This Row],[ROK]],DATUMI,6,FALSE),""),"") -> 
A61: =PODACI_STUDENTI!A60 -> 59 | B61: =PODACI_STUDENTI!B60 -> 2018/0076 | C61: =PODACI_STUDENTI!C60 -> Nađ Marko | D61: =PODACI_STUDENTI!D60 -> 0 | F61: =IF(OR(Predrok_Mart!F61<>"",Predrok_April!F61<>"",Januar!F61<>"",Februar!F61<>"",Juni!F61<>"",Juli!F61,Septembar!F61<>"",Oktobar!F61<>"",Oktobar_2!F61<>""),MAX(Predrok_Mart!F61,Predrok_April!F61,Januar!F61,Februar!F61,Juni!F61,Juli!F61,Septembar!F61,Oktobar!F61,Oktobar_2!F61),"") -> 28 | G61: =IF(OR(Predrok_Mart!G61<>"",Predrok_April!G61<>"",Januar!G61<>"",Februar!G61<>"",Juni!G61<>"",Juli!G61,Septembar!G61<>"",Oktobar!G61<>"",Oktobar_2!G61<>""),MAX(Predrok_Mart!G61,Predrok_April!G61,Januar!G61,Februar!G61,Juni!G61,Juli!G61,Septembar!G61,Oktobar!G61,Oktobar_2!G61),"") -> 30 | H61: =IF(OR(Predrok_Mart!H61<>"",Predrok_April!H61<>"",Januar!H61<>"",Februar!H61<>"",Juni!H61<>"",Juli!H61,Septembar!H61<>"",Oktobar!H61<>"",Oktobar_2!H61<>""),MAX(Predrok_Mart!H61,Predrok_April!H61,Januar!H61,Februar!H61,Juni!H61,Juli!H61,Septembar!H61,Oktobar!H61,Oktobar_2!H61),"") -> 29 | I61: =IF(OR(Predrok_Mart!I61<>"",Predrok_April!I61<>"",Januar!I61<>"",Februar!I61<>"",Juni!I61<>"",Juli!I61,Septembar!I61<>"",Oktobar!I61<>"",Oktobar_2!I61<>""),MAX(Predrok_Mart!I61,Predrok_April!I61,Januar!I61,Februar!I61,Juni!I61,Juli!I61,Septembar!I61,Oktobar!I61,Oktobar_2!I61),"") -> 12 | J61: =IF(Zbirni_podaci[[#This Row],[Broj indeksa]]<>"",IF(AND(Zbirni_podaci[[#This Row],[WORD]]<>"",Zbirni_podaci[[#This Row],[EXCEL]]<>"",Zbirni_podaci[[#This Row],[P_POINT]]<>"",Zbirni_podaci[[#This Row],[TEST_1]]<>""),"DA","NE"),"") -> DA | K61: 5 | L61: 5 | M61: 12 | N61: 13 | O61: 13 | P61: 22 | Q61: =IF(AND(Zbirni_podaci[[#This Row],[ROK]]<>"",Zbirni_podaci[[#This Row],[WORD bod]]<>"",Zbirni_podaci[[#This Row],[EXCEL bod]]<>"",Zbirni_podaci[[#This Row],[P_POINT bod]]<>"",Zbirni_podaci[[#This Row],[TEST_1 bod]]<>""),VLOOKUP(Zbirni_podaci[[#This Row],[ROK]],bodovi_aktivnost,7,FALSE),"") -> 20 | R61: =IF(AND(Zbirni_podaci[[#This Row],[Akt_nast_bod]]<>"",Zbirni_podaci[[#This Row],[Akt_vežbe_bod]]<>"",Zbirni_podaci[[#This Row],[WORD bod]]<>"",Zbirni_podaci[[#This Row],[EXCEL bod]]<>"",Zbirni_podaci[[#This Row],[P_POINT bod]]<>"",Zbirni_podaci[[#This Row],[TEST_1 bod]]<>""),ROUND(SUM(Zbirni_podaci[[#This Row],[Akt_nast_bod]:[ISPIT]]),0),"") -> 90 | S61: 9 | T61: Јун | U61: =IFERROR(IF(Zbirni_podaci[[#This Row],[ROK]]<>"",VLOOKUP(Zbirni_podaci[[#This Row],[ROK]],DATUMI,6,FALSE),""),"") -> 2019-06-14 | V61: 10 | W61: =IFERROR(IF(Zbirni_podaci[[#This Row],[ROK]]<>"",VLOOKUP(Zbirni_podaci[[#This Row],[ROK]],DATUMI,2,FALSE),""),"") -> 2019-05-27 | X61: 38 | Y61: =IFERROR(IF(Zbirni_podaci[[#This Row],[ROK]]<>"",VLOOKUP(Zbirni_podaci[[#This Row],[ROK]],DATUMI,3,FALSE),""),"") -> 2019-05-27 | Z61: 22 | AA61: =IFERROR(IF(Zbirni_podaci[[#This Row],[ROK]]<>"",VLOOKUP(Zbirni_podaci[[#This Row],[ROK]],DATUMI,4,FALSE),""),"") -> 2019-06-14 | AB61: 20 | AC61: 90 | AD61: 9 | AE61: =IFERROR(IF(Zbirni_podaci[[#This Row],[ROK]]<>"",VLOOKUP(Zbirni_podaci[[#This Row],[ROK]],DATUMI,6,FALSE),""),"") -> 2019-06-14
A62: =PODACI_STUDENTI!A61 -> 60 | B62: =PODACI_STUDENTI!B61 -> 2018/0010 | C62: =PODACI_STUDENTI!C61 -> Nedeljković Lazar | D62: =PODACI_STUDENTI!D61 -> 0 | F62: =IF(OR(Predrok_Mart!F62<>"",Predrok_April!F62<>"",Januar!F62<>"",Februar!F62<>"",Juni!F62<>"",Juli!F62,Septembar!F62<>"",Oktobar!F62<>"",Oktobar_2!F62<>""),MAX(Predrok_Mart!F62,Predrok_April!F62,Januar!F62,Februar!F62,Juni!F62,Juli!F62,Septembar!F62,Oktobar!F62,Oktobar_2!F62),"") -> 32 | G62: =IF(OR(Predrok_Mart!G62<>"",Predrok_April!G62<>"",Januar!G62<>"",Februar!G62<>"",Juni!G62<>"",Juli!G62,Septembar!G62<>"",Oktobar!G62<>"",Oktobar_2!G62<>""),MAX(Predrok_Mart!G62,Predrok_April!G62,Januar!G62,Februar!G62,Juni!G62,Juli!G62,Septembar!G62,Oktobar!G62,Oktobar_2!G62),"") -> 32 | H62: =IF(OR(Predrok_Mart!H62<>"",Predrok_April!H62<>"",Januar!H62<>"",Februar!H62<>"",Juni!H62<>"",Juli!H62,Septembar!H62<>"",Oktobar!H62<>"",Oktobar_2!H62<>""),MAX(Predrok_Mart!H62,Predrok_April!H62,Januar!H62,Februar!H62,Juni!H62,Juli!H62,Septembar!H62,Oktobar!H62,Oktobar_2!H62),"") -> 32 | I62: =IF(OR(Predrok_Mart!I62<>"",Predrok_April!I62<>"",Januar!I62<>"",Februar!I62<>"",Juni!I62<>"",Juli!I62,Septembar!I62<>"",Oktobar!I62<>"",Oktobar_2!I62<>""),MAX(Predrok_Mart!I62,Predrok_April!I62,Januar!I62,Februar!I62,Juni!I62,Juli!I62,Septembar!I62,Oktobar!I62,Oktobar_2!I62),"") -> 13 | J62: =IF(Zbirni_podaci[[#This Row],[Broj indeksa]]<>"",IF(AND(Zbirni_podaci[[#This Row],[WORD]]<>"",Zbirni_podaci[[#This Row],[EXCEL]]<>"",Zbirni_podaci[[#This Row],[P_POINT]]<>"",Zbirni_podaci[[#This Row],[TEST_1]]<>""),"DA","NE"),"") -> DA | K62: 5 | L62: 5 | M62: 14 | N62: 14 | O62: 14 | P62: 24 | Q62: =IF(AND(Zbirni_podaci[[#This Row],[ROK]]<>"",Zbirni_podaci[[#This Row],[WORD bod]]<>"",Zbirni_podaci[[#This Row],[EXCEL bod]]<>"",Zbirni_podaci[[#This Row],[P_POINT bod]]<>"",Zbirni_podaci[[#This Row],[TEST_1 bod]]<>""),VLOOKUP(Zbirni_podaci[[#This Row],[ROK]],bodovi_aktivnost,7,FALSE),"") -> 20 | R62: =IF(AND(Zbirni_podaci[[#This Row],[Akt_nast_bod]]<>"",Zbirni_podaci[[#This Row],[Akt_vežbe_bod]]<>"",Zbirni_podaci[[#This Row],[WORD bod]]<>"",Zbirni_podaci[[#This Row],[EXCEL bod]]<>"",Zbirni_podaci[[#This Row],[P_POINT bod]]<>"",Zbirni_podaci[[#This Row],[TEST_1 bod]]<>""),ROUND(SUM(Zbirni_podaci[[#This Row],[Akt_nast_bod]:[ISPIT]]),0),"") -> 96 | S62: 10 | T62: Јун | U62: =IFERROR(IF(Zbirni_podaci[[#This Row],[ROK]]<>"",VLOOKUP(Zbirni_podaci[[#This Row],[ROK]],DATUMI,6,FALSE),""),"") -> 2019-06-14 | V62: 10 | W62: =IFERROR(IF(Zbirni_podaci[[#This Row],[ROK]]<>"",VLOOKUP(Zbirni_podaci[[#This Row],[ROK]],DATUMI,2,FALSE),""),"") -> 2019-05-27 | X62: 42 | Y62: =IFERROR(IF(Zbirni_podaci[[#This Row],[ROK]]<>"",VLOOKUP(Zbirni_podaci[[#This Row],[ROK]],DATUMI,3,FALSE),""),"") -> 2019-05-27 | Z62: 24 | AA62: =IFERROR(IF(Zbirni_podaci[[#This Row],[ROK]]<>"",VLOOKUP(Zbirni_podaci[[#This Row],[ROK]],DATUMI,4,FALSE),""),"") -> 2019-06-14 | AB62: 20 | AC62: 96 | AD62: 10 | AE62: =IFERROR(IF(Zbirni_podaci[[#This Row],[ROK]]<>"",VLOOKUP(Zbirni_podaci[[#This Row],[ROK]],DATUMI,6,FALSE),""),"") -> 2019-06-14
A63: =PODACI_STUDENTI!A62 -> 61 | B63: =PODACI_STUDENTI!B62 -> 2018/0063 | C63: =PODACI_STUDENTI!C62 -> Nikolić Nevena | D63: =PODACI_STUDENTI!D62 -> 0 | F63: =IF(OR(Predrok_Mart!F63<>"",Predrok_April!F63<>"",Januar!F63<>"",Februar!F63<>"",Juni!F63<>"",Juli!F63,Septembar!F63<>"",Oktobar!F63<>"",Oktobar_2!F63<>""),MAX(Predrok_Mart!F63,Predrok_April!F63,Januar!F63,Februar!F63,Juni!F63,Juli!F63,Septembar!F63,Oktobar!F63,Oktobar_2!F63),"") -> 24 | G63: =IF(OR(Predrok_Mart!G63<>"",Predrok_April!G63<>"",Januar!G63<>"",Februar!G63<>"",Juni!G63<>"",Juli!G63,Septembar!G63<>"",Oktobar!G63<>"",Oktobar_2!G63<>""),MAX(Predrok_Mart!G63,Predrok_April!G63,Januar!G63,Februar!G63,Juni!G63,Juli!G63,Septembar!G63,Oktobar!G63,Oktobar_2!G63),"") -> 25 | H63: =IF(OR(Predrok_Mart!H63<>"",Predrok_April!H63<>"",Januar!H63<>"",Februar!H63<>"",Juni!H63<>"",Juli!H63,Septembar!H63<>"",Oktobar!H63<>"",Oktobar_2!H63<>""),MAX(Predrok_Mart!H63,Predrok_April!H63,Januar!H63,Februar!H63,Juni!H63,Juli!H63,Septembar!H63,Oktobar!H63,Oktobar_2!H63),"") -> 24 | I63: =IF(OR(Predrok_Mart!I63<>"",Predrok_April!I63<>"",Januar!I63<>"",Februar!I63<>"",Juni!I63<>"",Juli!I63,Septembar!I63<>"",Oktobar!I63<>"",Oktobar_2!I63<>""),MAX(Predrok_Mart!I63,Predrok_April!I63,Januar!I63,Februar!I63,Juni!I63,Juli!I63,Septembar!I63,Oktobar!I63,Oktobar_2!I63),"") -> 10 | J63: =IF(Zbirni_podaci[[#This Row],[Broj indeksa]]<>"",IF(AND(Zbirni_podaci[[#This Row],[WORD]]<>"",Zbirni_podaci[[#This Row],[EXCEL]]<>"",Zbirni_podaci[[#This Row],[P_POINT]]<>"",Zbirni_podaci[[#This Row],[TEST_1]]<>""),"DA","NE"),"") -> DA | K63: 5 | L63: 5 | M63: 11 | N63: 11 | O63: 11 | P63: 19 | Q63: =IF(AND(Zbirni_podaci[[#This Row],[ROK]]<>"",Zbirni_podaci[[#This Row],[WORD bod]]<>"",Zbirni_podaci[[#This Row],[EXCEL bod]]<>"",Zbirni_podaci[[#This Row],[P_POINT bod]]<>"",Zbirni_podaci[[#This Row],[TEST_1 bod]]<>""),VLOOKUP(Zbirni_podaci[[#This Row],[ROK]],bodovi_aktivnost,7,FALSE),"") -> 20 | R63: =IF(AND(Zbirni_podaci[[#This Row],[Akt_nast_bod]]<>"",Zbirni_podaci[[#This Row],[Akt_vežbe_bod]]<>"",Zbirni_podaci[[#This Row],[WORD bod]]<>"",Zbirni_podaci[[#This Row],[EXCEL bod]]<>"",Zbirni_podaci[[#This Row],[P_POINT bod]]<>"",Zbirni_podaci[[#This Row],[TEST_1 bod]]<>""),ROUND(SUM(Zbirni_podaci[[#This Row],[Akt_nast_bod]:[ISPIT]]),0),"") -> 81 | S63: 9 | T63: Јун | U63: =IFERROR(IF(Zbirni_podaci[[#This Row],[ROK]]<>"",VLOOKUP(Zbirni_podaci[[#This Row],[ROK]],DATUMI,6,FALSE),""),"") -> 2019-06-14 | V63: 10 | W63: =IFERROR(IF(Zbirni_podaci[[#This Row],[ROK]]<>"",VLOOKUP(Zbirni_podaci[[#This Row],[ROK]],DATUMI,2,FALSE),""),"") -> 2019-05-27 | X63: 32 | Y63: =IFERROR(IF(Zbirni_podaci[[#This Row],[ROK]]<>"",VLOOKUP(Zbirni_podaci[[#This Row],[ROK]],DATUMI,3,FALSE),""),"") -> 2019-05-27 | Z63: 19 | AA63: =IFERROR(IF(Zbirni_podaci[[#This Row],[ROK]]<>"",VLOOKUP(Zbirni_podaci[[#This Row],[ROK]],DATUMI,4,FALSE),""),"") -> 2019-06-14 | AB63: 20 | AC63: 81 | AD63: 9 | AE63: =IFERROR(IF(Zbirni_podaci[[#This Row],[ROK]]<>"",VLOOKUP(Zbirni_podaci[[#This Row],[ROK]],DATUMI,6,FALSE),""),"") -> 2019-06-14
A64: =PODACI_STUDENTI!A63 -> 62 | B64: =PODACI_STUDENTI!B63 -> 2018/0008 | C64: =PODACI_STUDENTI!C63 -> Novković Jelena | D64: =PODACI_STUDENTI!D63 -> 0 | F64: =IF(OR(Predrok_Mart!F64<>"",Predrok_April!F64<>"",Januar!F64<>"",Februar!F64<>"",Juni!F64<>"",Juli!F64,Septembar!F64<>"",Oktobar!F64<>"",Oktobar_2!F64<>""),MAX(Predrok_Mart!F64,Predrok_April!F64,Januar!F64,Februar!F64,Juni!F64,Juli!F64,Septembar!F64,Oktobar!F64,Oktobar_2!F64),"") -> 24 | G64: =IF(OR(Predrok_Mart!G64<>"",Predrok_April!G64<>"",Januar!G64<>"",Februar!G64<>"",Juni!G64<>"",Juli!G64,Septembar!G64<>"",Oktobar!G64<>"",Oktobar_2!G64<>""),MAX(Predrok_Mart!G64,Predrok_April!G64,Januar!G64,Februar!G64,Juni!G64,Juli!G64,Septembar!G64,Oktobar!G64,Oktobar_2!G64),"") -> 25 | H64: =IF(OR(Predrok_Mart!H64<>"",Predrok_April!H64<>"",Januar!H64<>"",Februar!H64<>"",Juni!H64<>"",Juli!H64,Septembar!H64<>"",Oktobar!H64<>"",Oktobar_2!H64<>""),MAX(Predrok_Mart!H64,Predrok_April!H64,Januar!H64,Februar!H64,Juni!H64,Juli!H64,Septembar!H64,Oktobar!H64,Oktobar_2!H64),"") -> 25 | I64: =IF(OR(Predrok_Mart!I64<>"",Predrok_April!I64<>"",Januar!I64<>"",Februar!I64<>"",Juni!I64<>"",Juli!I64,Septembar!I64<>"",Oktobar!I64<>"",Oktobar_2!I64<>""),MAX(Predrok_Mart!I64,Predrok_April!I64,Januar!I64,Februar!I64,Juni!I64,Juli!I64,Septembar!I64,Oktobar!I64,Oktobar_2!I64),"") -> 12 | J64: =IF(Zbirni_podaci[[#This Row],[Broj indeksa]]<>"",IF(AND(Zbirni_podaci[[#This Row],[WORD]]<>"",Zbirni_podaci[[#This Row],[EXCEL]]<>"",Zbirni_podaci[[#This Row],[P_POINT]]<>"",Zbirni_podaci[[#This Row],[TEST_1]]<>""),"DA","NE"),"") -> DA | K64: 5 | L64: 5 | M64: 11 | N64: 11 | O64: 11 | P64: 22 | Q64: =IF(AND(Zbirni_podaci[[#This Row],[ROK]]<>"",Zbirni_podaci[[#This Row],[WORD bod]]<>"",Zbirni_podaci[[#This Row],[EXCEL bod]]<>"",Zbirni_podaci[[#This Row],[P_POINT bod]]<>"",Zbirni_podaci[[#This Row],[TEST_1 bod]]<>""),VLOOKUP(Zbirni_podaci[[#This Row],[ROK]],bodovi_aktivnost,7,FALSE),"") -> 15 | R64: =IF(AND(Zbirni_podaci[[#This Row],[Akt_nast_bod]]<>"",Zbirni_podaci[[#This Row],[Akt_vežbe_bod]]<>"",Zbirni_podaci[[#This Row],[WORD bod]]<>"",Zbirni_podaci[[#This Row],[EXCEL bod]]<>"",Zbirni_podaci[[#This Row],[P_POINT bod]]<>"",Zbirni_podaci[[#This Row],[TEST_1 bod]]<>""),ROUND(SUM(Zbirni_podaci[[#This Row],[Akt_nast_bod]:[ISPIT]]),0),"") -> 80 | S64: 8 | T64: Јул | U64: =IFERROR(IF(Zbirni_podaci[[#This Row],[ROK]]<>"",VLOOKUP(Zbirni_podaci[[#This Row],[ROK]],DATUMI,6,FALSE),""),"") -> 2019-07-01 | V64: 10 | W64: =IFERROR(IF(Zbirni_podaci[[#This Row],[ROK]]<>"",VLOOKUP(Zbirni_podaci[[#This Row],[ROK]],DATUMI,2,FALSE),""),"") -> 2019-05-27 | X64: 32 | Y64: =IFERROR(IF(Zbirni_podaci[[#This Row],[ROK]]<>"",VLOOKUP(Zbirni_podaci[[#This Row],[ROK]],DATUMI,3,FALSE),""),"") -> 2019-05-27 | Z64: 22 | AA64: =IFERROR(IF(Zbirni_podaci[[#This Row],[ROK]]<>"",VLOOKUP(Zbirni_podaci[[#This Row],[ROK]],DATUMI,4,FALSE),""),"") -> 2019-07-01 | AB64: 15 | AC64: 80 | AD64: 8 | AE64: =IFERROR(IF(Zbirni_podaci[[#This Row],[ROK]]<>"",VLOOKUP(Zbirni_podaci[[#This Row],[ROK]],DATUMI,6,FALSE),""),"") -> 2019-07-01
A65: =PODACI_STUDENTI!A64 -> 63 | B65: =PODACI_STUDENTI!B64 -> 2018/0088 | C65: =PODACI_STUDENTI!C64 -> Obradović Aleksa | D65: =PODACI_STUDENTI!D64 -> 0 | F65: =IF(OR(Predrok_Mart!F65<>"",Predrok_April!F65<>"",Januar!F65<>"",Februar!F65<>"",Juni!F65<>"",Juli!F65,Septembar!F65<>"",Oktobar!F65<>"",Oktobar_2!F65<>""),MAX(Predrok_Mart!F65,Predrok_April!F65,Januar!F65,Februar!F65,Juni!F65,Juli!F65,Septembar!F65,Oktobar!F65,Oktobar_2!F65),"") -> 31 | G65: =IF(OR(Predrok_Mart!G65<>"",Predrok_April!G65<>"",Januar!G65<>"",Februar!G65<>"",Juni!G65<>"",Juli!G65,Septembar!G65<>"",Oktobar!G65<>"",Oktobar_2!G65<>""),MAX(Predrok_Mart!G65,Predrok_April!G65,Januar!G65,Februar!G65,Juni!G65,Juli!G65,Septembar!G65,Oktobar!G65,Oktobar_2!G65),"") -> 31 | H65: =IF(OR(Predrok_Mart!H65<>"",Predrok_April!H65<>"",Januar!H65<>"",Februar!H65<>"",Juni!H65<>"",Juli!H65,Septembar!H65<>"",Oktobar!H65<>"",Oktobar_2!H65<>""),MAX(Predrok_Mart!H65,Predrok_April!H65,Januar!H65,Februar!H65,Juni!H65,Juli!H65,Septembar!H65,Oktobar!H65,Oktobar_2!H65),"") -> 32 | I65: =IF(OR(Predrok_Mart!I65<>"",Predrok_April!I65<>"",Januar!I65<>"",Februar!I65<>"",Juni!I65<>"",Juli!I65,Septembar!I65<>"",Oktobar!I65<>"",Oktobar_2!I65<>""),MAX(Predrok_Mart!I65,Predrok_April!I65,Januar!I65,Februar!I65,Juni!I65,Juli!I65,Septembar!I65,Oktobar!I65,Oktobar_2!I65),"") -> 15 | J65: =IF(Zbirni_podaci[[#This Row],[Broj indeksa]]<>"",IF(AND(Zbirni_podaci[[#This Row],[WORD]]<>"",Zbirni_podaci[[#This Row],[EXCEL]]<>"",Zbirni_podaci[[#This Row],[P_POINT]]<>"",Zbirni_podaci[[#This Row],[TEST_1]]<>""),"DA","NE"),"") -> DA | K65: 5 | L65: 5 | M65: 14 | N65: 14 | O65: 14 | P65: 28 | Q65: =IF(AND(Zbirni_podaci[[#This Row],[ROK]]<>"",Zbirni_podaci[[#This Row],[WORD bod]]<>"",Zbirni_podaci[[#This Row],[EXCEL bod]]<>"",Zbirni_podaci[[#This Row],[P_POINT bod]]<>"",Zbirni_podaci[[#This Row],[TEST_1 bod]]<>""),VLOOKUP(Zbirni_podaci[[#This Row],[ROK]],bodovi_aktivnost,7,FALSE),"") -> 20 | R65: =IF(AND(Zbirni_podaci[[#This Row],[Akt_nast_bod]]<>"",Zbirni_podaci[[#This Row],[Akt_vežbe_bod]]<>"",Zbirni_podaci[[#This Row],[WORD bod]]<>"",Zbirni_podaci[[#This Row],[EXCEL bod]]<>"",Zbirni_podaci[[#This Row],[P_POINT bod]]<>"",Zbirni_podaci[[#This Row],[TEST_1 bod]]<>""),ROUND(SUM(Zbirni_podaci[[#This Row],[Akt_nast_bod]:[ISPIT]]),0),"") -> 99 | S65: 10 | T65: Јун | U65: =IFERROR(IF(Zbirni_podaci[[#This Row],[ROK]]<>"",VLOOKUP(Zbirni_podaci[[#This Row],[ROK]],DATUMI,6,FALSE),""),"") -> 2019-06-14 | V65: 10 | W65: =IFERROR(IF(Zbirni_podaci[[#This Row],[ROK]]<>"",VLOOKUP(Zbirni_podaci[[#This Row],[ROK]],DATUMI,2,FALSE),""),"") -> 2019-05-27 | X65: 41 | Y65: =IFERROR(IF(Zbirni_podaci[[#This Row],[ROK]]<>"",VLOOKUP(Zbirni_podaci[[#This Row],[ROK]],DATUMI,3,FALSE),""),"") -> 2019-05-27 | Z65: 28 | AA65: =IFERROR(IF(Zbirni_podaci[[#This Row],[ROK]]<>"",VLOOKUP(Zbirni_podaci[[#This Row],[ROK]],DATUMI,4,FALSE),""),"") -> 2019-06-14 | AB65: 20 | AC65: 99 | AD65: 10 | AE65: =IFERROR(IF(Zbirni_podaci[[#This Row],[ROK]]<>"",VLOOKUP(Zbirni_podaci[[#This Row],[ROK]],DATUMI,6,FALSE),""),"") -> 2019-06-14
A66: =PODACI_STUDENTI!A65 -> 64 | B66: =PODACI_STUDENTI!B65 -> 2018/0119 | C66: =PODACI_STUDENTI!C65 -> Pavlović Vladimir | D66: =PODACI_STUDENTI!D65 -> 0 | F66: =IF(OR(Predrok_Mart!F66<>"",Predrok_April!F66<>"",Januar!F66<>"",Februar!F66<>"",Juni!F66<>"",Juli!F66,Septembar!F66<>"",Oktobar!F66<>"",Oktobar_2!F66<>""),MAX(Predrok_Mart!F66,Predrok_April!F66,Januar!F66,Februar!F66,Juni!F66,Juli!F66,Septembar!F66,Oktobar!F66,Oktobar_2!F66),"") -> 27 | G66: =IF(OR(Predrok_Mart!G66<>"",Predrok_April!G66<>"",Januar!G66<>"",Februar!G66<>"",Juni!G66<>"",Juli!G66,Septembar!G66<>"",Oktobar!G66<>"",Oktobar_2!G66<>""),MAX(Predrok_Mart!G66,Predrok_April!G66,Januar!G66,Februar!G66,Juni!G66,Juli!G66,Septembar!G66,Oktobar!G66,Oktobar_2!G66),"") -> 31 | H66: =IF(OR(Predrok_Mart!H66<>"",Predrok_April!H66<>"",Januar!H66<>"",Februar!H66<>"",Juni!H66<>"",Juli!H66,Septembar!H66<>"",Oktobar!H66<>"",Oktobar_2!H66<>""),MAX(Predrok_Mart!H66,Predrok_April!H66,Januar!H66,Februar!H66,Juni!H66,Juli!H66,Septembar!H66,Oktobar!H66,Oktobar_2!H66),"") -> 28 | I66: =IF(OR(Predrok_Mart!I66<>"",Predrok_April!I66<>"",Januar!I66<>"",Februar!I66<>"",Juni!I66<>"",Juli!I66,Septembar!I66<>"",Oktobar!I66<>"",Oktobar_2!I66<>""),MAX(Predrok_Mart!I66,Predrok_April!I66,Januar!I66,Februar!I66,Juni!I66,Juli!I66,Septembar!I66,Oktobar!I66,Oktobar_2!I66),"") -> 11 | J66: =IF(Zbirni_podaci[[#This Row],[Broj indeksa]]<>"",IF(AND(Zbirni_podaci[[#This Row],[WORD]]<>"",Zbirni_podaci[[#This Row],[EXCEL]]<>"",Zbirni_podaci[[#This Row],[P_POINT]]<>"",Zbirni_podaci[[#This Row],[TEST_1]]<>""),"DA","NE"),"") -> DA | K66: 5 | L66: 5 | M66: 12 | N66: 14 | O66: 12 | P66: 21 | Q66: =IF(AND(Zbirni_podaci[[#This Row],[ROK]]<>"",Zbirni_podaci[[#This Row],[WORD bod]]<>"",Zbirni_podaci[[#This Row],[EXCEL bod]]<>"",Zbirni_podaci[[#This Row],[P_POINT bod]]<>"",Zbirni_podaci[[#This Row],[TEST_1 bod]]<>""),VLOOKUP(Zbirni_podaci[[#This Row],[ROK]],bodovi_aktivnost,7,FALSE),"") -> 20 | R66: =IF(AND(Zbirni_podaci[[#This Row],[Akt_nast_bod]]<>"",Zbirni_podaci[[#This Row],[Akt_vežbe_bod]]<>"",Zbirni_podaci[[#This Row],[WORD bod]]<>"",Zbirni_podaci[[#This Row],[EXCEL bod]]<>"",Zbirni_podaci[[#This Row],[P_POINT bod]]<>"",Zbirni_podaci[[#This Row],[TEST_1 bod]]<>""),ROUND(SUM(Zbirni_podaci[[#This Row],[Akt_nast_bod]:[ISPIT]]),0),"") -> 88 | S66: 9 | T66: Јун | U66: =IFERROR(IF(Zbirni_podaci[[#This Row],[ROK]]<>"",VLOOKUP(Zbirni_podaci[[#This Row],[ROK]],DATUMI,6,FALSE),""),"") -> 2019-06-14 | V66: 10 | W66: =IFERROR(IF(Zbirni_podaci[[#This Row],[ROK]]<>"",VLOOKUP(Zbirni_podaci[[#This Row],[ROK]],DATUMI,2,FALSE),""),"") -> 2019-05-27 | X66: 38 | Y66: =IFERROR(IF(Zbirni_podaci[[#This Row],[ROK]]<>"",VLOOKUP(Zbirni_podaci[[#This Row],[ROK]],DATUMI,3,FALSE),""),"") -> 2019-05-27 | Z66: 21 | AA66: =IFERROR(IF(Zbirni_podaci[[#This Row],[ROK]]<>"",VLOOKUP(Zbirni_podaci[[#This Row],[ROK]],DATUMI,4,FALSE),""),"") -> 2019-06-14 | AB66: 20 | AC66: 88 | AD66: 9 | AE66: =IFERROR(IF(Zbirni_podaci[[#This Row],[ROK]]<>"",VLOOKUP(Zbirni_podaci[[#This Row],[ROK]],DATUMI,6,FALSE),""),"") -> 2019-06-14
A67: =PODACI_STUDENTI!A66 -> 65 | B67: =PODACI_STUDENTI!B66 -> 2018/0057 | C67: =PODACI_STUDENTI!C66 -> Pavlović Dimitrije | D67: =PODACI_STUDENTI!D66 -> 0 | F67: =IF(OR(Predrok_Mart!F67<>"",Predrok_April!F67<>"",Januar!F67<>"",Februar!F67<>"",Juni!F67<>"",Juli!F67,Septembar!F67<>"",Oktobar!F67<>"",Oktobar_2!F67<>""),MAX(Predrok_Mart!F67,Predrok_April!F67,Januar!F67,Februar!F67,Juni!F67,Juli!F67,Septembar!F67,Oktobar!F67,Oktobar_2!F67),"") -> 30 | G67: =IF(OR(Predrok_Mart!G67<>"",Predrok_April!G67<>"",Januar!G67<>"",Februar!G67<>"",Juni!G67<>"",Juli!G67,Septembar!G67<>"",Oktobar!G67<>"",Oktobar_2!G67<>""),MAX(Predrok_Mart!G67,Predrok_April!G67,Januar!G67,Februar!G67,Juni!G67,Juli!G67,Septembar!G67,Oktobar!G67,Oktobar_2!G67),"") -> 27 | H67: =IF(OR(Predrok_Mart!H67<>"",Predrok_April!H67<>"",Januar!H67<>"",Februar!H67<>"",Juni!H67<>"",Juli!H67,Septembar!H67<>"",Oktobar!H67<>"",Oktobar_2!H67<>""),MAX(Predrok_Mart!H67,Predrok_April!H67,Januar!H67,Februar!H67,Juni!H67,Juli!H67,Septembar!H67,Oktobar!H67,Oktobar_2!H67),"") -> 28 | I67: =IF(OR(Predrok_Mart!I67<>"",Predrok_April!I67<>"",Januar!I67<>"",Februar!I67<>"",Juni!I67<>"",Juli!I67,Septembar!I67<>"",Oktobar!I67<>"",Oktobar_2!I67<>""),MAX(Predrok_Mart!I67,Predrok_April!I67,Januar!I67,Februar!I67,Juni!I67,Juli!I67,Septembar!I67,Oktobar!I67,Oktobar_2!I67),"") -> 9 | J67: =IF(Zbirni_podaci[[#This Row],[Broj indeksa]]<>"",IF(AND(Zbirni_podaci[[#This Row],[WORD]]<>"",Zbirni_podaci[[#This Row],[EXCEL]]<>"",Zbirni_podaci[[#This Row],[P_POINT]]<>"",Zbirni_podaci[[#This Row],[TEST_1]]<>""),"DA","NE"),"") -> DA | K67: =IF(Q67<>"",5,"") -> 5 | L67: =IF(Q67<>"",5,"") -> 5 | M67: =IF(F67<>"",IF(F67>=24,(F67/32)*14,""),"") -> 13 | N67: =IF(G67<>"",IF(G67>=24,(G67/32)*14,""),"") -> 12 | O67: =IF(H67<>"",IF(H67>=11,(H67/32)*14,""),"") -> 12 | P67: =IF(I67<>"",IF(I67>=9,(I67/15)*28,""),"") -> 17 | Q67: =IF(AND(Zbirni_podaci[[#This Row],[ROK]]<>"",Zbirni_podaci[[#This Row],[WORD bod]]<>"",Zbirni_podaci[[#This Row],[EXCEL bod]]<>"",Zbirni_podaci[[#This Row],[P_POINT bod]]<>"",Zbirni_podaci[[#This Row],[TEST_1 bod]]<>""),VLOOKUP(Zbirni_podaci[[#This Row],[ROK]],bodovi_aktivnost,7,FALSE),"") -> 20 | R67: =IF(AND(Zbirni_podaci[[#This Row],[Akt_nast_bod]]<>"",Zbirni_podaci[[#This Row],[Akt_vežbe_bod]]<>"",Zbirni_podaci[[#This Row],[WORD bod]]<>"",Zbirni_podaci[[#This Row],[EXCEL bod]]<>"",Zbirni_podaci[[#This Row],[P_POINT bod]]<>"",Zbirni_podaci[[#This Row],[TEST_1 bod]]<>""),ROUND(SUM(Zbirni_podaci[[#This Row],[Akt_nast_bod]:[ISPIT]]),0),"") -> 84 | S67: =IF(R67<>"",VLOOKUP(R67,$AK$3:$AM$7,3),"") -> 9 | T67: Јун | U67: =IFERROR(IF(Zbirni_podaci[[#This Row],[ROK]]<>"",VLOOKUP(Zbirni_podaci[[#This Row],[ROK]],DATUMI,6,FALSE),""),"") -> 2019-06-14 | V67: =IF(AND(S67<>"",T67<>""),L67+K67,"") -> 10 | W67: =IFERROR(IF(Zbirni_podaci[[#This Row],[ROK]]<>"",VLOOKUP(Zbirni_podaci[[#This Row],[ROK]],DATUMI,2,FALSE),""),"") -> 2019-05-27 | X67: =IF(V67<>"",SUM(M67,N67,O67),"") -> 37 | Y67: =IFERROR(IF(Zbirni_podaci[[#This Row],[ROK]]<>"",VLOOKUP(Zbirni_podaci[[#This Row],[ROK]],DATUMI,3,FALSE),""),"") -> 2019-05-27 | Z67: =IF(V67<>"",P67,"") -> 17 | AA67: =IFERROR(IF(Zbirni_podaci[[#This Row],[ROK]]<>"",VLOOKUP(Zbirni_podaci[[#This Row],[ROK]],DATUMI,4,FALSE),""),"") -> 2019-06-14 | AB67: =IF(AND(S67<>"",T67<>""),Q67,"") -> 20 | AC67: =IF(V67<>"",SUM(V67,AB67,X67,Z67),"") -> 84 | AD67: =IF(AND(S67<>"",T67<>""),S67,"") -> 9 | AE67: =IFERROR(IF(Zbirni_podaci[[#This Row],[ROK]]<>"",VLOOKUP(Zbirni_podaci[[#This Row],[ROK]],DATUMI,6,FALSE),""),"") -> 2019-06-14
A68: =PODACI_STUDENTI!A67 -> 66 | B68: =PODACI_STUDENTI!B67 -> 2018/0095 | C68: =PODACI_STUDENTI!C67 -> Pavlović Miroljub | D68: =PODACI_STUDENTI!D67 -> 0 | F68: =IF(OR(Predrok_Mart!F68<>"",Predrok_April!F68<>"",Januar!F68<>"",Februar!F68<>"",Juni!F68<>"",Juli!F68,Septembar!F68<>"",Oktobar!F68<>"",Oktobar_2!F68<>""),MAX(Predrok_Mart!F68,Predrok_April!F68,Januar!F68,Februar!F68,Juni!F68,Juli!F68,Septembar!F68,Oktobar!F68,Oktobar_2!F68),"") -> 24 | G68: =IF(OR(Predrok_Mart!G68<>"",Predrok_April!G68<>"",Januar!G68<>"",Februar!G68<>"",Juni!G68<>"",Juli!G68,Septembar!G68<>"",Oktobar!G68<>"",Oktobar_2!G68<>""),MAX(Predrok_Mart!G68,Predrok_April!G68,Januar!G68,Februar!G68,Juni!G68,Juli!G68,Septembar!G68,Oktobar!G68,Oktobar_2!G68),"") -> 24 | H68: =IF(OR(Predrok_Mart!H68<>"",Predrok_April!H68<>"",Januar!H68<>"",Februar!H68<>"",Juni!H68<>"",Juli!H68,Septembar!H68<>"",Oktobar!H68<>"",Oktobar_2!H68<>""),MAX(Predrok_Mart!H68,Predrok_April!H68,Januar!H68,Februar!H68,Juni!H68,Juli!H68,Septembar!H68,Oktobar!H68,Oktobar_2!H68),"") -> 26 | I68: =IF(OR(Predrok_Mart!I68<>"",Predrok_April!I68<>"",Januar!I68<>"",Februar!I68<>"",Juni!I68<>"",Juli!I68,Septembar!I68<>"",Oktobar!I68<>"",Oktobar_2!I68<>""),MAX(Predrok_Mart!I68,Predrok_April!I68,Januar!I68,Februar!I68,Juni!I68,Juli!I68,Septembar!I68,Oktobar!I68,Oktobar_2!I68),"") -> 9 | J68: =IF(Zbirni_podaci[[#This Row],[Broj indeksa]]<>"",IF(AND(Zbirni_podaci[[#This Row],[WORD]]<>"",Zbirni_podaci[[#This Row],[EXCEL]]<>"",Zbirni_podaci[[#This Row],[P_POINT]]<>"",Zbirni_podaci[[#This Row],[TEST_1]]<>""),"DA","NE"),"") -> DA | K68: 5 | L68: 5 | M68: 11 | N68: 11 | O68: 11 | P68: 17 | Q68: =IF(AND(Zbirni_podaci[[#This Row],[ROK]]<>"",Zbirni_podaci[[#This Row],[WORD bod]]<>"",Zbirni_podaci[[#This Row],[EXCEL bod]]<>"",Zbirni_podaci[[#This Row],[P_POINT bod]]<>"",Zbirni_podaci[[#This Row],[TEST_1 bod]]<>""),VLOOKUP(Zbirni_podaci[[#This Row],[ROK]],bodovi_aktivnost,7,FALSE),"") -> 20 | R68: =IF(AND(Zbirni_podaci[[#This Row],[Akt_nast_bod]]<>"",Zbirni_podaci[[#This Row],[Akt_vežbe_bod]]<>"",Zbirni_podaci[[#This Row],[WORD bod]]<>"",Zbirni_podaci[[#This Row],[EXCEL bod]]<>"",Zbirni_podaci[[#This Row],[P_POINT bod]]<>"",Zbirni_podaci[[#This Row],[TEST_1 bod]]<>""),ROUND(SUM(Zbirni_podaci[[#This Row],[Akt_nast_bod]:[ISPIT]]),0),"") -> 79 | S68: 8 | T68: Јун | U68: =IFERROR(IF(Zbirni_podaci[[#This Row],[ROK]]<>"",VLOOKUP(Zbirni_podaci[[#This Row],[ROK]],DATUMI,6,FALSE),""),"") -> 2019-06-14 | V68: 10 | W68: =IFERROR(IF(Zbirni_podaci[[#This Row],[ROK]]<>"",VLOOKUP(Zbirni_podaci[[#This Row],[ROK]],DATUMI,2,FALSE),""),"") -> 2019-05-27 | X68: 32 | Y68: =IFERROR(IF(Zbirni_podaci[[#This Row],[ROK]]<>"",VLOOKUP(Zbirni_podaci[[#This Row],[ROK]],DATUMI,3,FALSE),""),"") -> 2019-05-27 | Z68: 17 | AA68: =IFERROR(IF(Zbirni_podaci[[#This Row],[ROK]]<>"",VLOOKUP(Zbirni_podaci[[#This Row],[ROK]],DATUMI,4,FALSE),""),"") -> 2019-06-14 | AB68: 20 | AC68: 79 | AD68: 8 | AE68: =IFERROR(IF(Zbirni_podaci[[#This Row],[ROK]]<>"",VLOOKUP(Zbirni_podaci[[#This Row],[ROK]],DATUMI,6,FALSE),""),"") -> 2019-06-14
A69: =PODACI_STUDENTI!A68 -> 67 | B69: =PODACI_STUDENTI!B68 -> 2018/0105 | C69: =PODACI_STUDENTI!C68 -> Panić Lazar | D69: =PODACI_STUDENTI!D68 -> 0 | F69: =IF(OR(Predrok_Mart!F69<>"",Predrok_April!F69<>"",Januar!F69<>"",Februar!F69<>"",Juni!F69<>"",Juli!F69,Septembar!F69<>"",Oktobar!F69<>"",Oktobar_2!F69<>""),MAX(Predrok_Mart!F69,Predrok_April!F69,Januar!F69,Februar!F69,Juni!F69,Juli!F69,Septembar!F69,Oktobar!F69,Oktobar_2!F69),"") -> 26 | G69: =IF(OR(Predrok_Mart!G69<>"",Predrok_April!G69<>"",Januar!G69<>"",Februar!G69<>"",Juni!G69<>"",Juli!G69,Septembar!G69<>"",Oktobar!G69<>"",Oktobar_2!G69<>""),MAX(Predrok_Mart!G69,Predrok_April!G69,Januar!G69,Februar!G69,Juni!G69,Juli!G69,Septembar!G69,Oktobar!G69,Oktobar_2!G69),"") -> 26 | H69: =IF(OR(Predrok_Mart!H69<>"",Predrok_April!H69<>"",Januar!H69<>"",Februar!H69<>"",Juni!H69<>"",Juli!H69,Septembar!H69<>"",Oktobar!H69<>"",Oktobar_2!H69<>""),MAX(Predrok_Mart!H69,Predrok_April!H69,Januar!H69,Februar!H69,Juni!H69,Juli!H69,Septembar!H69,Oktobar!H69,Oktobar_2!H69),"") -> 25 | I69: =IF(OR(Predrok_Mart!I69<>"",Predrok_April!I69<>"",Januar!I69<>"",Februar!I69<>"",Juni!I69<>"",Juli!I69,Septembar!I69<>"",Oktobar!I69<>"",Oktobar_2!I69<>""),MAX(Predrok_Mart!I69,Predrok_April!I69,Januar!I69,Februar!I69,Juni!I69,Juli!I69,Septembar!I69,Oktobar!I69,Oktobar_2!I69),"") -> 13 | J69: =IF(Zbirni_podaci[[#This Row],[Broj indeksa]]<>"",IF(AND(Zbirni_podaci[[#This Row],[WORD]]<>"",Zbirni_podaci[[#This Row],[EXCEL]]<>"",Zbirni_podaci[[#This Row],[P_POINT]]<>"",Zbirni_podaci[[#This Row],[TEST_1]]<>""),"DA","NE"),"") -> DA | K69: 5 | L69: 5 | M69: 11 | N69: 11 | O69: 11 | P69: 24 | Q69: =IF(AND(Zbirni_podaci[[#This Row],[ROK]]<>"",Zbirni_podaci[[#This Row],[WORD bod]]<>"",Zbirni_podaci[[#This Row],[EXCEL bod]]<>"",Zbirni_podaci[[#This Row],[P_POINT bod]]<>"",Zbirni_podaci[[#This Row],[TEST_1 bod]]<>""),VLOOKUP(Zbirni_podaci[[#This Row],[ROK]],bodovi_aktivnost,7,FALSE),"") -> 20 | R69: =IF(AND(Zbirni_podaci[[#This Row],[Akt_nast_bod]]<>"",Zbirni_podaci[[#This Row],[Akt_vežbe_bod]]<>"",Zbirni_podaci[[#This Row],[WORD bod]]<>"",Zbirni_podaci[[#This Row],[EXCEL bod]]<>"",Zbirni_podaci[[#This Row],[P_POINT bod]]<>"",Zbirni_podaci[[#This Row],[TEST_1 bod]]<>""),ROUND(SUM(Zbirni_podaci[[#This Row],[Akt_nast_bod]:[ISPIT]]),0),"") -> 88 | S69: 9 | T69: Јун | U69: =IFERROR(IF(Zbirni_podaci[[#This Row],[ROK]]<>"",VLOOKUP(Zbirni_podaci[[#This Row],[ROK]],DATUMI,6,FALSE),""),"") -> 2019-06-14 | V69: 10 | W69: =IFERROR(IF(Zbirni_podaci[[#This Row],[ROK]]<>"",VLOOKUP(Zbirni_podaci[[#This Row],[ROK]],DATUMI,2,FALSE),""),"") -> 2019-05-27 | X69: 34 | Y69: =IFERROR(IF(Zbirni_podaci[[#This Row],[ROK]]<>"",VLOOKUP(Zbirni_podaci[[#This Row],[ROK]],DATUMI,3,FALSE),""),"") -> 2019-05-27 | Z69: 24 | AA69: =IFERROR(IF(Zbirni_podaci[[#This Row],[ROK]]<>"",VLOOKUP(Zbirni_podaci[[#This Row],[ROK]],DATUMI,4,FALSE),""),"") -> 2019-06-14 | AB69: 20 | AC69: 88 | AD69: 9 | AE69: =IFERROR(IF(Zbirni_podaci[[#This Row],[ROK]]<>"",VLOOKUP(Zbirni_podaci[[#This Row],[ROK]],DATUMI,6,FALSE),""),"") -> 2019-06-14
A70: =PODACI_STUDENTI!A69 -> 68 | B70: =PODACI_STUDENTI!B69 -> 2018/0065 | C70: =PODACI_STUDENTI!C69 -> Panovski Dušan | D70: =PODACI_STUDENTI!D69 -> 0 | F70: =IF(OR(Predrok_Mart!F70<>"",Predrok_April!F70<>"",Januar!F70<>"",Februar!F70<>"",Juni!F70<>"",Juli!F70,Septembar!F70<>"",Oktobar!F70<>"",Oktobar_2!F70<>""),MAX(Predrok_Mart!F70,Predrok_April!F70,Januar!F70,Februar!F70,Juni!F70,Juli!F70,Septembar!F70,Oktobar!F70,Oktobar_2!F70),"") -> 28 | G70: =IF(OR(Predrok_Mart!G70<>"",Predrok_April!G70<>"",Januar!G70<>"",Februar!G70<>"",Juni!G70<>"",Juli!G70,Septembar!G70<>"",Oktobar!G70<>"",Oktobar_2!G70<>""),MAX(Predrok_Mart!G70,Predrok_April!G70,Januar!G70,Februar!G70,Juni!G70,Juli!G70,Septembar!G70,Oktobar!G70,Oktobar_2!G70),"") -> 25 | H70: =IF(OR(Predrok_Mart!H70<>"",Predrok_April!H70<>"",Januar!H70<>"",Februar!H70<>"",Juni!H70<>"",Juli!H70,Septembar!H70<>"",Oktobar!H70<>"",Oktobar_2!H70<>""),MAX(Predrok_Mart!H70,Predrok_April!H70,Januar!H70,Februar!H70,Juni!H70,Juli!H70,Septembar!H70,Oktobar!H70,Oktobar_2!H70),"") -> 27 | I70: =IF(OR(Predrok_Mart!I70<>"",Predrok_April!I70<>"",Januar!I70<>"",Februar!I70<>"",Juni!I70<>"",Juli!I70,Septembar!I70<>"",Oktobar!I70<>"",Oktobar_2!I70<>""),MAX(Predrok_Mart!I70,Predrok_April!I70,Januar!I70,Februar!I70,Juni!I70,Juli!I70,Septembar!I70,Oktobar!I70,Oktobar_2!I70),"") -> 12 | J70: =IF(Zbirni_podaci[[#This Row],[Broj indeksa]]<>"",IF(AND(Zbirni_podaci[[#This Row],[WORD]]<>"",Zbirni_podaci[[#This Row],[EXCEL]]<>"",Zbirni_podaci[[#This Row],[P_POINT]]<>"",Zbirni_podaci[[#This Row],[TEST_1]]<>""),"DA","NE"),"") -> DA | K70: 5 | L70: 5 | M70: 12 | N70: 11 | O70: 12 | P70: 22 | Q70: =IF(AND(Zbirni_podaci[[#This Row],[ROK]]<>"",Zbirni_podaci[[#This Row],[WORD bod]]<>"",Zbirni_podaci[[#This Row],[EXCEL bod]]<>"",Zbirni_podaci[[#This Row],[P_POINT bod]]<>"",Zbirni_podaci[[#This Row],[TEST_1 bod]]<>""),VLOOKUP(Zbirni_podaci[[#This Row],[ROK]],bodovi_aktivnost,7,FALSE),"") -> 20 | R70: =IF(AND(Zbirni_podaci[[#This Row],[Akt_nast_bod]]<>"",Zbirni_podaci[[#This Row],[Akt_vežbe_bod]]<>"",Zbirni_podaci[[#This Row],[WORD bod]]<>"",Zbirni_podaci[[#This Row],[EXCEL bod]]<>"",Zbirni_podaci[[#This Row],[P_POINT bod]]<>"",Zbirni_podaci[[#This Row],[TEST_1 bod]]<>""),ROUND(SUM(Zbirni_podaci[[#This Row],[Akt_nast_bod]:[ISPIT]]),0),"") -> 87 | S70: 9 | T70: Јун | U70: =IFERROR(IF(Zbirni_podaci[[#This Row],[ROK]]<>"",VLOOKUP(Zbirni_podaci[[#This Row],[ROK]],DATUMI,6,FALSE),""),"") -> 2019-06-14 | V70: 10 | W70: =IFERROR(IF(Zbirni_podaci[[#This Row],[ROK]]<>"",VLOOKUP(Zbirni_podaci[[#This Row],[ROK]],DATUMI,2,FALSE),""),"") -> 2019-05-27 | X70: 35 | Y70: =IFERROR(IF(Zbirni_podaci[[#This Row],[ROK]]<>"",VLOOKUP(Zbirni_podaci[[#This Row],[ROK]],DATUMI,3,FALSE),""),"") -> 2019-05-27 | Z70: 22 | AA70: =IFERROR(IF(Zbirni_podaci[[#This Row],[ROK]]<>"",VLOOKUP(Zbirni_podaci[[#This Row],[ROK]],DATUMI,4,FALSE),""),"") -> 2019-06-14 | AB70: 20 | AC70: 87 | AD70: 9 | AE70: =IFERROR(IF(Zbirni_podaci[[#This Row],[ROK]]<>"",VLOOKUP(Zbirni_podaci[[#This Row],[ROK]],DATUMI,6,FALSE),""),"") -> 2019-06-14
A71: =PODACI_STUDENTI!A70 -> 69 | B71: =PODACI_STUDENTI!B70 -> 2018/0117 | C71: =PODACI_STUDENTI!C70 -> Perić Grigorije | D71: =PODACI_STUDENTI!D70 -> 0 | F71: =IF(OR(Predrok_Mart!F71<>"",Predrok_April!F71<>"",Januar!F71<>"",Februar!F71<>"",Juni!F71<>"",Juli!F71,Septembar!F71<>"",Oktobar!F71<>"",Oktobar_2!F71<>""),MAX(Predrok_Mart!F71,Predrok_April!F71,Januar!F71,Februar!F71,Juni!F71,Juli!F71,Septembar!F71,Oktobar!F71,Oktobar_2!F71),"") -> 25 | G71: =IF(OR(Predrok_Mart!G71<>"",Predrok_April!G71<>"",Januar!G71<>"",Februar!G71<>"",Juni!G71<>"",Juli!G71,Septembar!G71<>"",Oktobar!G71<>"",Oktobar_2!G71<>""),MAX(Predrok_Mart!G71,Predrok_April!G71,Januar!G71,Februar!G71,Juni!G71,Juli!G71,Septembar!G71,Oktobar!G71,Oktobar_2!G71),"") -> 32 | H71: =IF(OR(Predrok_Mart!H71<>"",Predrok_April!H71<>"",Januar!H71<>"",Februar!H71<>"",Juni!H71<>"",Juli!H71,Septembar!H71<>"",Oktobar!H71<>"",Oktobar_2!H71<>""),MAX(Predrok_Mart!H71,Predrok_April!H71,Januar!H71,Februar!H71,Juni!H71,Juli!H71,Septembar!H71,Oktobar!H71,Oktobar_2!H71),"") -> 27 | I71: =IF(OR(Predrok_Mart!I71<>"",Predrok_April!I71<>"",Januar!I71<>"",Februar!I71<>"",Juni!I71<>"",Juli!I71,Septembar!I71<>"",Oktobar!I71<>"",Oktobar_2!I71<>""),MAX(Predrok_Mart!I71,Predrok_April!I71,Januar!I71,Februar!I71,Juni!I71,Juli!I71,Septembar!I71,Oktobar!I71,Oktobar_2!I71),"") -> 12 | J71: =IF(Zbirni_podaci[[#This Row],[Broj indeksa]]<>"",IF(AND(Zbirni_podaci[[#This Row],[WORD]]<>"",Zbirni_podaci[[#This Row],[EXCEL]]<>"",Zbirni_podaci[[#This Row],[P_POINT]]<>"",Zbirni_podaci[[#This Row],[TEST_1]]<>""),"DA","NE"),"") -> DA | K71: 5 | L71: 5 | M71: 11 | N71: 14 | O71: 12 | P71: 22 | Q71: =IF(AND(Zbirni_podaci[[#This Row],[ROK]]<>"",Zbirni_podaci[[#This Row],[WORD bod]]<>"",Zbirni_podaci[[#This Row],[EXCEL bod]]<>"",Zbirni_podaci[[#This Row],[P_POINT bod]]<>"",Zbirni_podaci[[#This Row],[TEST_1 bod]]<>""),VLOOKUP(Zbirni_podaci[[#This Row],[ROK]],bodovi_aktivnost,7,FALSE),"") -> 15 | R71: =IF(AND(Zbirni_podaci[[#This Row],[Akt_nast_bod]]<>"",Zbirni_podaci[[#This Row],[Akt_vežbe_bod]]<>"",Zbirni_podaci[[#This Row],[WORD bod]]<>"",Zbirni_podaci[[#This Row],[EXCEL bod]]<>"",Zbirni_podaci[[#This Row],[P_POINT bod]]<>"",Zbirni_podaci[[#This Row],[TEST_1 bod]]<>""),ROUND(SUM(Zbirni_podaci[[#This Row],[Akt_nast_bod]:[ISPIT]]),0),"") -> 84 | S71: 9 | T71: Јул | U71: =IFERROR(IF(Zbirni_podaci[[#This Row],[ROK]]<>"",VLOOKUP(Zbirni_podaci[[#This Row],[ROK]],DATUMI,6,FALSE),""),"") -> 2019-07-01 | V71: 10 | W71: =IFERROR(IF(Zbirni_podaci[[#This Row],[ROK]]<>"",VLOOKUP(Zbirni_podaci[[#This Row],[ROK]],DATUMI,2,FALSE),""),"") -> 2019-05-27 | X71: 37 | Y71: =IFERROR(IF(Zbirni_podaci[[#This Row],[ROK]]<>"",VLOOKUP(Zbirni_podaci[[#This Row],[ROK]],DATUMI,3,FALSE),""),"") -> 2019-05-27 | Z71: 22 | AA71: =IFERROR(IF(Zbirni_podaci[[#This Row],[ROK]]<>"",VLOOKUP(Zbirni_podaci[[#This Row],[ROK]],DATUMI,4,FALSE),""),"") -> 2019-07-01 | AB71: 15 | AC71: 84 | AD71: 9 | AE71: =IFERROR(IF(Zbirni_podaci[[#This Row],[ROK]]<>"",VLOOKUP(Zbirni_podaci[[#This Row],[ROK]],DATUMI,6,FALSE),""),"") -> 2019-07-01
A72: =PODACI_STUDENTI!A71 -> 70 | B72: =PODACI_STUDENTI!B71 -> 2018/0059 | C72: =PODACI_STUDENTI!C71 -> Petrović Jana | D72: =PODACI_STUDENTI!D71 -> 0 | F72: =IF(OR(Predrok_Mart!F72<>"",Predrok_April!F72<>"",Januar!F72<>"",Februar!F72<>"",Juni!F72<>"",Juli!F72,Septembar!F72<>"",Oktobar!F72<>"",Oktobar_2!F72<>""),MAX(Predrok_Mart!F72,Predrok_April!F72,Januar!F72,Februar!F72,Juni!F72,Juli!F72,Septembar!F72,Oktobar!F72,Oktobar_2!F72),"") -> 30 | G72: =IF(OR(Predrok_Mart!G72<>"",Predrok_April!G72<>"",Januar!G72<>"",Februar!G72<>"",Juni!G72<>"",Juli!G72,Septembar!G72<>"",Oktobar!G72<>"",Oktobar_2!G72<>""),MAX(Predrok_Mart!G72,Predrok_April!G72,Januar!G72,Februar!G72,Juni!G72,Juli!G72,Septembar!G72,Oktobar!G72,Oktobar_2!G72),"") -> 30 | H72: =IF(OR(Predrok_Mart!H72<>"",Predrok_April!H72<>"",Januar!H72<>"",Februar!H72<>"",Juni!H72<>"",Juli!H72,Septembar!H72<>"",Oktobar!H72<>"",Oktobar_2!H72<>""),MAX(Predrok_Mart!H72,Predrok_April!H72,Januar!H72,Februar!H72,Juni!H72,Juli!H72,Septembar!H72,Oktobar!H72,Oktobar_2!H72),"") -> 28 | I72: =IF(OR(Predrok_Mart!I72<>"",Predrok_April!I72<>"",Januar!I72<>"",Februar!I72<>"",Juni!I72<>"",Juli!I72,Septembar!I72<>"",Oktobar!I72<>"",Oktobar_2!I72<>""),MAX(Predrok_Mart!I72,Predrok_April!I72,Januar!I72,Februar!I72,Juni!I72,Juli!I72,Septembar!I72,Oktobar!I72,Oktobar_2!I72),"") -> 12 | J72: =IF(Zbirni_podaci[[#This Row],[Broj indeksa]]<>"",IF(AND(Zbirni_podaci[[#This Row],[WORD]]<>"",Zbirni_podaci[[#This Row],[EXCEL]]<>"",Zbirni_podaci[[#This Row],[P_POINT]]<>"",Zbirni_podaci[[#This Row],[TEST_1]]<>""),"DA","NE"),"") -> DA | K72: 5 | L72: 5 | M72: 13 | N72: 13 | O72: 12 | P72: 22 | Q72: =IF(AND(Zbirni_podaci[[#This Row],[ROK]]<>"",Zbirni_podaci[[#This Row],[WORD bod]]<>"",Zbirni_podaci[[#This Row],[EXCEL bod]]<>"",Zbirni_podaci[[#This Row],[P_POINT bod]]<>"",Zbirni_podaci[[#This Row],[TEST_1 bod]]<>""),VLOOKUP(Zbirni_podaci[[#This Row],[ROK]],bodovi_aktivnost,7,FALSE),"") -> 20 | R72: =IF(AND(Zbirni_podaci[[#This Row],[Akt_nast_bod]]<>"",Zbirni_podaci[[#This Row],[Akt_vežbe_bod]]<>"",Zbirni_podaci[[#This Row],[WORD bod]]<>"",Zbirni_podaci[[#This Row],[EXCEL bod]]<>"",Zbirni_podaci[[#This Row],[P_POINT bod]]<>"",Zbirni_podaci[[#This Row],[TEST_1 bod]]<>""),ROUND(SUM(Zbirni_podaci[[#This Row],[Akt_nast_bod]:[ISPIT]]),0),"") -> 91 | S72: 10 | T72: Јун | U72: =IFERROR(IF(Zbirni_podaci[[#This Row],[ROK]]<>"",VLOOKUP(Zbirni_podaci[[#This Row],[ROK]],DATUMI,6,FALSE),""),"") -> 2019-06-14 | V72: 10 | W72: =IFERROR(IF(Zbirni_podaci[[#This Row],[ROK]]<>"",VLOOKUP(Zbirni_podaci[[#This Row],[ROK]],DATUMI,2,FALSE),""),"") -> 2019-05-27 | X72: 39 | Y72: =IFERROR(IF(Zbirni_podaci[[#This Row],[ROK]]<>"",VLOOKUP(Zbirni_podaci[[#This Row],[ROK]],DATUMI,3,FALSE),""),"") -> 2019-05-27 | Z72: 22 | AA72: =IFERROR(IF(Zbirni_podaci[[#This Row],[ROK]]<>"",VLOOKUP(Zbirni_podaci[[#This Row],[ROK]],DATUMI,4,FALSE),""),"") -> 2019-06-14 | AB72: 20 | AC72: 91 | AD72: 10 | AE72: =IFERROR(IF(Zbirni_podaci[[#This Row],[ROK]]<>"",VLOOKUP(Zbirni_podaci[[#This Row],[ROK]],DATUMI,6,FALSE),""),"") -> 2019-06-14
A73: =PODACI_STUDENTI!A72 -> 71 | B73: =PODACI_STUDENTI!B72 -> 2018/0115 | C73: =PODACI_STUDENTI!C72 -> Popović Aleksandar | D73: =PODACI_STUDENTI!D72 -> 0 | F73: =IF(OR(Predrok_Mart!F73<>"",Predrok_April!F73<>"",Januar!F73<>"",Februar!F73<>"",Juni!F73<>"",Juli!F73,Septembar!F73<>"",Oktobar!F73<>"",Oktobar_2!F73<>""),MAX(Predrok_Mart!F73,Predrok_April!F73,Januar!F73,Februar!F73,Juni!F73,Juli!F73,Septembar!F73,Oktobar!F73,Oktobar_2!F73),"") -> 24 | G73: =IF(OR(Predrok_Mart!G73<>"",Predrok_April!G73<>"",Januar!G73<>"",Februar!G73<>"",Juni!G73<>"",Juli!G73,Septembar!G73<>"",Oktobar!G73<>"",Oktobar_2!G73<>""),MAX(Predrok_Mart!G73,Predrok_April!G73,Januar!G73,Februar!G73,Juni!G73,Juli!G73,Septembar!G73,Oktobar!G73,Oktobar_2!G73),"") -> 25 | H73: =IF(OR(Predrok_Mart!H73<>"",Predrok_April!H73<>"",Januar!H73<>"",Februar!H73<>"",Juni!H73<>"",Juli!H73,Septembar!H73<>"",Oktobar!H73<>"",Oktobar_2!H73<>""),MAX(Predrok_Mart!H73,Predrok_April!H73,Januar!H73,Februar!H73,Juni!H73,Juli!H73,Septembar!H73,Oktobar!H73,Oktobar_2!H73),"") -> 25 | I73: =IF(OR(Predrok_Mart!I73<>"",Predrok_April!I73<>"",Januar!I73<>"",Februar!I73<>"",Juni!I73<>"",Juli!I73,Septembar!I73<>"",Oktobar!I73<>"",Oktobar_2!I73<>""),MAX(Predrok_Mart!I73,Predrok_April!I73,Januar!I73,Februar!I73,Juni!I73,Juli!I73,Septembar!I73,Oktobar!I73,Oktobar_2!I73),"") -> 12 | J73: =IF(Zbirni_podaci[[#This Row],[Broj indeksa]]<>"",IF(AND(Zbirni_podaci[[#This Row],[WORD]]<>"",Zbirni_podaci[[#This Row],[EXCEL]]<>"",Zbirni_podaci[[#This Row],[P_POINT]]<>"",Zbirni_podaci[[#This Row],[TEST_1]]<>""),"DA","NE"),"") -> DA | K73: 5 | L73: 5 | M73: 11 | N73: 11 | O73: 11 | P73: 22 | Q73: =IF(AND(Zbirni_podaci[[#This Row],[ROK]]<>"",Zbirni_podaci[[#This Row],[WORD bod]]<>"",Zbirni_podaci[[#This Row],[EXCEL bod]]<>"",Zbirni_podaci[[#This Row],[P_POINT bod]]<>"",Zbirni_podaci[[#This Row],[TEST_1 bod]]<>""),VLOOKUP(Zbirni_podaci[[#This Row],[ROK]],bodovi_aktivnost,7,FALSE),"") -> 20 | R73: =IF(AND(Zbirni_podaci[[#This Row],[Akt_nast_bod]]<>"",Zbirni_podaci[[#This Row],[Akt_vežbe_bod]]<>"",Zbirni_podaci[[#This Row],[WORD bod]]<>"",Zbirni_podaci[[#This Row],[EXCEL bod]]<>"",Zbirni_podaci[[#This Row],[P_POINT bod]]<>"",Zbirni_podaci[[#This Row],[TEST_1 bod]]<>""),ROUND(SUM(Zbirni_podaci[[#This Row],[Akt_nast_bod]:[ISPIT]]),0),"") -> 85 | S73: 9 | T73: Јун | U73: =IFERROR(IF(Zbirni_podaci[[#This Row],[ROK]]<>"",VLOOKUP(Zbirni_podaci[[#This Row],[ROK]],DATUMI,6,FALSE),""),"") -> 2019-06-14 | V73: 10 | W73: =IFERROR(IF(Zbirni_podaci[[#This Row],[ROK]]<>"",VLOOKUP(Zbirni_podaci[[#This Row],[ROK]],DATUMI,2,FALSE),""),"") -> 2019-05-27 | X73: 32 | Y73: =IFERROR(IF(Zbirni_podaci[[#This Row],[ROK]]<>"",VLOOKUP(Zbirni_podaci[[#This Row],[ROK]],DATUMI,3,FALSE),""),"") -> 2019-05-27 | Z73: 22 | AA73: =IFERROR(IF(Zbirni_podaci[[#This Row],[ROK]]<>"",VLOOKUP(Zbirni_podaci[[#This Row],[ROK]],DATUMI,4,FALSE),""),"") -> 2019-06-14 | AB73: 20 | AC73: 85 | AD73: 9 | AE73: =IFERROR(IF(Zbirni_podaci[[#This Row],[ROK]]<>"",VLOOKUP(Zbirni_podaci[[#This Row],[ROK]],DATUMI,6,FALSE),""),"") -> 2019-06-14
A74: =PODACI_STUDENTI!A73 -> 72 | B74: =PODACI_STUDENTI!B73 -> 2018/0153 | C74: =PODACI_STUDENTI!C73 -> Predojević Stefan | D74: =PODACI_STUDENTI!D73 -> 0 | F74: =IF(OR(Predrok_Mart!F74<>"",Predrok_April!F74<>"",Januar!F74<>"",Februar!F74<>"",Juni!F74<>"",Juli!F74,Septembar!F74<>"",Oktobar!F74<>"",Oktobar_2!F74<>""),MAX(Predrok_Mart!F74,Predrok_April!F74,Januar!F74,Februar!F74,Juni!F74,Juli!F74,Septembar!F74,Oktobar!F74,Oktobar_2!F74),"") -> 31 | G74: =IF(OR(Predrok_Mart!G74<>"",Predrok_April!G74<>"",Januar!G74<>"",Februar!G74<>"",Juni!G74<>"",Juli!G74,Septembar!G74<>"",Oktobar!G74<>"",Oktobar_2!G74<>""),MAX(Predrok_Mart!G74,Predrok_April!G74,Januar!G74,Februar!G74,Juni!G74,Juli!G74,Septembar!G74,Oktobar!G74,Oktobar_2!G74),"") -> 32 | H74: =IF(OR(Predrok_Mart!H74<>"",Predrok_April!H74<>"",Januar!H74<>"",Februar!H74<>"",Juni!H74<>"",Juli!H74,Septembar!H74<>"",Oktobar!H74<>"",Oktobar_2!H74<>""),MAX(Predrok_Mart!H74,Predrok_April!H74,Januar!H74,Februar!H74,Juni!H74,Juli!H74,Septembar!H74,Oktobar!H74,Oktobar_2!H74),"") -> 31 | I74: =IF(OR(Predrok_Mart!I74<>"",Predrok_April!I74<>"",Januar!I74<>"",Februar!I74<>"",Juni!I74<>"",Juli!I74,Septembar!I74<>"",Oktobar!I74<>"",Oktobar_2!I74<>""),MAX(Predrok_Mart!I74,Predrok_April!I74,Januar!I74,Februar!I74,Juni!I74,Juli!I74,Septembar!I74,Oktobar!I74,Oktobar_2!I74),"") -> 15 | J74: =IF(Zbirni_podaci[[#This Row],[Broj indeksa]]<>"",IF(AND(Zbirni_podaci[[#This Row],[WORD]]<>"",Zbirni_podaci[[#This Row],[EXCEL]]<>"",Zbirni_podaci[[#This Row],[P_POINT]]<>"",Zbirni_podaci[[#This Row],[TEST_1]]<>""),"DA","NE"),"") -> DA | K74: 5 | L74: 5 | M74: 14 | N74: 14 | O74: 14 | P74: 28 | Q74: =IF(AND(Zbirni_podaci[[#This Row],[ROK]]<>"",Zbirni_podaci[[#This Row],[WORD bod]]<>"",Zbirni_podaci[[#This Row],[EXCEL bod]]<>"",Zbirni_podaci[[#This Row],[P_POINT bod]]<>"",Zbirni_podaci[[#This Row],[TEST_1 bod]]<>""),VLOOKUP(Zbirni_podaci[[#This Row],[ROK]],bodovi_aktivnost,7,FALSE),"") -> 20 | R74: =IF(AND(Zbirni_podaci[[#This Row],[Akt_nast_bod]]<>"",Zbirni_podaci[[#This Row],[Akt_vežbe_bod]]<>"",Zbirni_podaci[[#This Row],[WORD bod]]<>"",Zbirni_podaci[[#This Row],[EXCEL bod]]<>"",Zbirni_podaci[[#This Row],[P_POINT bod]]<>"",Zbirni_podaci[[#This Row],[TEST_1 bod]]<>""),ROUND(SUM(Zbirni_podaci[[#This Row],[Akt_nast_bod]:[ISPIT]]),0),"") -> 99 | S74: 10 | T74: Јун | U74: =IFERROR(IF(Zbirni_podaci[[#This Row],[ROK]]<>"",VLOOKUP(Zbirni_podaci[[#This Row],[ROK]],DATUMI,6,FALSE),""),"") -> 2019-06-14 | V74: 10 | W74: =IFERROR(IF(Zbirni_podaci[[#This Row],[ROK]]<>"",VLOOKUP(Zbirni_podaci[[#This Row],[ROK]],DATUMI,2,FALSE),""),"") -> 2019-05-27 | X74: 41 | Y74: =IFERROR(IF(Zbirni_podaci[[#This Row],[ROK]]<>"",VLOOKUP(Zbirni_podaci[[#This Row],[ROK]],DATUMI,3,FALSE),""),"") -> 2019-05-27 | Z74: 28 | AA74: =IFERROR(IF(Zbirni_podaci[[#This Row],[ROK]]<>"",VLOOKUP(Zbirni_podaci[[#This Row],[ROK]],DATUMI,4,FALSE),""),"") -> 2019-06-14 | AB74: 20 | AC74: 99 | AD74: 10 | AE74: =IFERROR(IF(Zbirni_podaci[[#This Row],[ROK]]<>"",VLOOKUP(Zbirni_podaci[[#This Row],[ROK]],DATUMI,6,FALSE),""),"") -> 2019-06-14
A75: =PODACI_STUDENTI!A74 -> 73 | B75: =PODACI_STUDENTI!B74 -> 2018/0046 | C75: =PODACI_STUDENTI!C74 -> Prijović Milorad | D75: =PODACI_STUDENTI!D74 -> 0 | F75: =IF(OR(Predrok_Mart!F75<>"",Predrok_April!F75<>"",Januar!F75<>"",Februar!F75<>"",Juni!F75<>"",Juli!F75,Septembar!F75<>"",Oktobar!F75<>"",Oktobar_2!F75<>""),MAX(Predrok_Mart!F75,Predrok_April!F75,Januar!F75,Februar!F75,Juni!F75,Juli!F75,Septembar!F75,Oktobar!F75,Oktobar_2!F75),"") ->  | G75: =IF(OR(Predrok_Mart!G75<>"",Predrok_April!G75<>"",Januar!G75<>"",Februar!G75<>"",Juni!G75<>"",Juli!G75,Septembar!G75<>"",Oktobar!G75<>"",Oktobar_2!G75<>""),MAX(Predrok_Mart!G75,Predrok_April!G75,Januar!G75,Februar!G75,Juni!G75,Juli!G75,Septembar!G75,Oktobar!G75,Oktobar_2!G75),"") ->  | H75: =IF(OR(Predrok_Mart!H75<>"",Predrok_April!H75<>"",Januar!H75<>"",Februar!H75<>"",Juni!H75<>"",Juli!H75,Septembar!H75<>"",Oktobar!H75<>"",Oktobar_2!H75<>""),MAX(Predrok_Mart!H75,Predrok_April!H75,Januar!H75,Februar!H75,Juni!H75,Juli!H75,Septembar!H75,Oktobar!H75,Oktobar_2!H75),"") ->  | I75: =IF(OR(Predrok_Mart!I75<>"",Predrok_April!I75<>"",Januar!I75<>"",Februar!I75<>"",Juni!I75<>"",Juli!I75,Septembar!I75<>"",Oktobar!I75<>"",Oktobar_2!I75<>""),MAX(Predrok_Mart!I75,Predrok_April!I75,Januar!I75,Februar!I75,Juni!I75,Juli!I75,Septembar!I75,Oktobar!I75,Oktobar_2!I75),"") ->  | J75: =IF(Zbirni_podaci[[#This Row],[Broj indeksa]]<>"",IF(AND(Zbirni_podaci[[#This Row],[WORD]]<>"",Zbirni_podaci[[#This Row],[EXCEL]]<>"",Zbirni_podaci[[#This Row],[P_POINT]]<>"",Zbirni_podaci[[#This Row],[TEST_1]]<>""),"DA","NE"),"") -> NE | Q75: =IF(AND(Zbirni_podaci[[#This Row],[ROK]]<>"",Zbirni_podaci[[#This Row],[WORD bod]]<>"",Zbirni_podaci[[#This Row],[EXCEL bod]]<>"",Zbirni_podaci[[#This Row],[P_POINT bod]]<>"",Zbirni_podaci[[#This Row],[TEST_1 bod]]<>""),VLOOKUP(Zbirni_podaci[[#This Row],[ROK]],bodovi_aktivnost,7,FALSE),"") ->  | R75: =IF(AND(Zbirni_podaci[[#This Row],[Akt_nast_bod]]<>"",Zbirni_podaci[[#This Row],[Akt_vežbe_bod]]<>"",Zbirni_podaci[[#This Row],[WORD bod]]<>"",Zbirni_podaci[[#This Row],[EXCEL bod]]<>"",Zbirni_podaci[[#This Row],[P_POINT bod]]<>"",Zbirni_podaci[[#This Row],[TEST_1 bod]]<>""),ROUND(SUM(Zbirni_podaci[[#This Row],[Akt_nast_bod]:[ISPIT]]),0),"") ->  | U75: =IFERROR(IF(Zbirni_podaci[[#This Row],[ROK]]<>"",VLOOKUP(Zbirni_podaci[[#This Row],[ROK]],DATUMI,6,FALSE),""),"") ->  | W75: =IFERROR(IF(Zbirni_podaci[[#This Row],[ROK]]<>"",VLOOKUP(Zbirni_podaci[[#This Row],[ROK]],DATUMI,2,FALSE),""),"") ->  | Y75: =IFERROR(IF(Zbirni_podaci[[#This Row],[ROK]]<>"",VLOOKUP(Zbirni_podaci[[#This Row],[ROK]],DATUMI,3,FALSE),""),"") ->  | AA75: =IFERROR(IF(Zbirni_podaci[[#This Row],[ROK]]<>"",VLOOKUP(Zbirni_podaci[[#This Row],[ROK]],DATUMI,4,FALSE),""),"") ->  | AE75: =IFERROR(IF(Zbirni_podaci[[#This Row],[ROK]]<>"",VLOOKUP(Zbirni_podaci[[#This Row],[ROK]],DATUMI,6,FALSE),""),"") -> 
A76: =PODACI_STUDENTI!A75 -> 74 | B76: =PODACI_STUDENTI!B75 -> 2017/0104 | C76: =PODACI_STUDENTI!C75 -> Puzović Ognjen | D76: =PODACI_STUDENTI!D75 -> 0 | F76: =IF(OR(Predrok_Mart!F76<>"",Predrok_April!F76<>"",Januar!F76<>"",Februar!F76<>"",Juni!F76<>"",Juli!F76,Septembar!F76<>"",Oktobar!F76<>"",Oktobar_2!F76<>""),MAX(Predrok_Mart!F76,Predrok_April!F76,Januar!F76,Februar!F76,Juni!F76,Juli!F76,Septembar!F76,Oktobar!F76,Oktobar_2!F76),"") ->  | G76: =IF(OR(Predrok_Mart!G76<>"",Predrok_April!G76<>"",Januar!G76<>"",Februar!G76<>"",Juni!G76<>"",Juli!G76,Septembar!G76<>"",Oktobar!G76<>"",Oktobar_2!G76<>""),MAX(Predrok_Mart!G76,Predrok_April!G76,Januar!G76,Februar!G76,Juni!G76,Juli!G76,Septembar!G76,Oktobar!G76,Oktobar_2!G76),"") ->  | H76: =IF(OR(Predrok_Mart!H76<>"",Predrok_April!H76<>"",Januar!H76<>"",Februar!H76<>"",Juni!H76<>"",Juli!H76,Septembar!H76<>"",Oktobar!H76<>"",Oktobar_2!H76<>""),MAX(Predrok_Mart!H76,Predrok_April!H76,Januar!H76,Februar!H76,Juni!H76,Juli!H76,Septembar!H76,Oktobar!H76,Oktobar_2!H76),"") ->  | I76: =IF(OR(Predrok_Mart!I76<>"",Predrok_April!I76<>"",Januar!I76<>"",Februar!I76<>"",Juni!I76<>"",Juli!I76,Septembar!I76<>"",Oktobar!I76<>"",Oktobar_2!I76<>""),MAX(Predrok_Mart!I76,Predrok_April!I76,Januar!I76,Februar!I76,Juni!I76,Juli!I76,Septembar!I76,Oktobar!I76,Oktobar_2!I76),"") ->  | J76: =IF(Zbirni_podaci[[#This Row],[Broj indeksa]]<>"",IF(AND(Zbirni_podaci[[#This Row],[WORD]]<>"",Zbirni_podaci[[#This Row],[EXCEL]]<>"",Zbirni_podaci[[#This Row],[P_POINT]]<>"",Zbirni_podaci[[#This Row],[TEST_1]]<>""),"DA","NE"),"") -> NE | Q76: =IF(AND(Zbirni_podaci[[#This Row],[ROK]]<>"",Zbirni_podaci[[#This Row],[WORD bod]]<>"",Zbirni_podaci[[#This Row],[EXCEL bod]]<>"",Zbirni_podaci[[#This Row],[P_POINT bod]]<>"",Zbirni_podaci[[#This Row],[TEST_1 bod]]<>""),VLOOKUP(Zbirni_podaci[[#This Row],[ROK]],bodovi_aktivnost,7,FALSE),"") ->  | R76: =IF(AND(Zbirni_podaci[[#This Row],[Akt_nast_bod]]<>"",Zbirni_podaci[[#This Row],[Akt_vežbe_bod]]<>"",Zbirni_podaci[[#This Row],[WORD bod]]<>"",Zbirni_podaci[[#This Row],[EXCEL bod]]<>"",Zbirni_podaci[[#This Row],[P_POINT bod]]<>"",Zbirni_podaci[[#This Row],[TEST_1 bod]]<>""),ROUND(SUM(Zbirni_podaci[[#This Row],[Akt_nast_bod]:[ISPIT]]),0),"") ->  | U76: =IFERROR(IF(Zbirni_podaci[[#This Row],[ROK]]<>"",VLOOKUP(Zbirni_podaci[[#This Row],[ROK]],DATUMI,6,FALSE),""),"") ->  | W76: =IFERROR(IF(Zbirni_podaci[[#This Row],[ROK]]<>"",VLOOKUP(Zbirni_podaci[[#This Row],[ROK]],DATUMI,2,FALSE),""),"") ->  | Y76: =IFERROR(IF(Zbirni_podaci[[#This Row],[ROK]]<>"",VLOOKUP(Zbirni_podaci[[#This Row],[ROK]],DATUMI,3,FALSE),""),"") ->  | AA76: =IFERROR(IF(Zbirni_podaci[[#This Row],[ROK]]<>"",VLOOKUP(Zbirni_podaci[[#This Row],[ROK]],DATUMI,4,FALSE),""),"") ->  | AE76: =IFERROR(IF(Zbirni_podaci[[#This Row],[ROK]]<>"",VLOOKUP(Zbirni_podaci[[#This Row],[ROK]],DATUMI,6,FALSE),""),"") -> 
A77: =PODACI_STUDENTI!A76 -> 75 | B77: =PODACI_STUDENTI!B76 -> 2018/0132 | C77: =PODACI_STUDENTI!C76 -> Radivojević Miloš | D77: =PODACI_STUDENTI!D76 -> 0 | F77: =IF(OR(Predrok_Mart!F77<>"",Predrok_April!F77<>"",Januar!F77<>"",Februar!F77<>"",Juni!F77<>"",Juli!F77,Septembar!F77<>"",Oktobar!F77<>"",Oktobar_2!F77<>""),MAX(Predrok_Mart!F77,Predrok_April!F77,Januar!F77,Februar!F77,Juni!F77,Juli!F77,Septembar!F77,Oktobar!F77,Oktobar_2!F77),"") -> 27 | G77: =IF(OR(Predrok_Mart!G77<>"",Predrok_April!G77<>"",Januar!G77<>"",Februar!G77<>"",Juni!G77<>"",Juli!G77,Septembar!G77<>"",Oktobar!G77<>"",Oktobar_2!G77<>""),MAX(Predrok_Mart!G77,Predrok_April!G77,Januar!G77,Februar!G77,Juni!G77,Juli!G77,Septembar!G77,Oktobar!G77,Oktobar_2!G77),"") -> 31 | H77: =IF(OR(Predrok_Mart!H77<>"",Predrok_April!H77<>"",Januar!H77<>"",Februar!H77<>"",Juni!H77<>"",Juli!H77,Septembar!H77<>"",Oktobar!H77<>"",Oktobar_2!H77<>""),MAX(Predrok_Mart!H77,Predrok_April!H77,Januar!H77,Februar!H77,Juni!H77,Juli!H77,Septembar!H77,Oktobar!H77,Oktobar_2!H77),"") -> 26 | I77: =IF(OR(Predrok_Mart!I77<>"",Predrok_April!I77<>"",Januar!I77<>"",Februar!I77<>"",Juni!I77<>"",Juli!I77,Septembar!I77<>"",Oktobar!I77<>"",Oktobar_2!I77<>""),MAX(Predrok_Mart!I77,Predrok_April!I77,Januar!I77,Februar!I77,Juni!I77,Juli!I77,Septembar!I77,Oktobar!I77,Oktobar_2!I77),"") -> 14 | J77: =IF(Zbirni_podaci[[#This Row],[Broj indeksa]]<>"",IF(AND(Zbirni_podaci[[#This Row],[WORD]]<>"",Zbirni_podaci[[#This Row],[EXCEL]]<>"",Zbirni_podaci[[#This Row],[P_POINT]]<>"",Zbirni_podaci[[#This Row],[TEST_1]]<>""),"DA","NE"),"") -> DA | K77: 5 | L77: 5 | M77: 12 | N77: 14 | O77: 11 | P77: 26 | Q77: =IF(AND(Zbirni_podaci[[#This Row],[ROK]]<>"",Zbirni_podaci[[#This Row],[WORD bod]]<>"",Zbirni_podaci[[#This Row],[EXCEL bod]]<>"",Zbirni_podaci[[#This Row],[P_POINT bod]]<>"",Zbirni_podaci[[#This Row],[TEST_1 bod]]<>""),VLOOKUP(Zbirni_podaci[[#This Row],[ROK]],bodovi_aktivnost,7,FALSE),"") -> 20 | R77: =IF(AND(Zbirni_podaci[[#This Row],[Akt_nast_bod]]<>"",Zbirni_podaci[[#This Row],[Akt_vežbe_bod]]<>"",Zbirni_podaci[[#This Row],[WORD bod]]<>"",Zbirni_podaci[[#This Row],[EXCEL bod]]<>"",Zbirni_podaci[[#This Row],[P_POINT bod]]<>"",Zbirni_podaci[[#This Row],[TEST_1 bod]]<>""),ROUND(SUM(Zbirni_podaci[[#This Row],[Akt_nast_bod]:[ISPIT]]),0),"") -> 93 | S77: 10 | T77: Јун | U77: =IFERROR(IF(Zbirni_podaci[[#This Row],[ROK]]<>"",VLOOKUP(Zbirni_podaci[[#This Row],[ROK]],DATUMI,6,FALSE),""),"") -> 2019-06-14 | V77: 10 | W77: =IFERROR(IF(Zbirni_podaci[[#This Row],[ROK]]<>"",VLOOKUP(Zbirni_podaci[[#This Row],[ROK]],DATUMI,2,FALSE),""),"") -> 2019-05-27 | X77: 37 | Y77: =IFERROR(IF(Zbirni_podaci[[#This Row],[ROK]]<>"",VLOOKUP(Zbirni_podaci[[#This Row],[ROK]],DATUMI,3,FALSE),""),"") -> 2019-05-27 | Z77: 26 | AA77: =IFERROR(IF(Zbirni_podaci[[#This Row],[ROK]]<>"",VLOOKUP(Zbirni_podaci[[#This Row],[ROK]],DATUMI,4,FALSE),""),"") -> 2019-06-14 | AB77: 20 | AC77: 93 | AD77: 10 | AE77: =IFERROR(IF(Zbirni_podaci[[#This Row],[ROK]]<>"",VLOOKUP(Zbirni_podaci[[#This Row],[ROK]],DATUMI,6,FALSE),""),"") -> 2019-06-14
A78: =PODACI_STUDENTI!A77 -> 76 | B78: =PODACI_STUDENTI!B77 -> 2018/0052 | C78: =PODACI_STUDENTI!C77 -> Rajković Peđa | D78: =PODACI_STUDENTI!D77 -> 0 | F78: =IF(OR(Predrok_Mart!F78<>"",Predrok_April!F78<>"",Januar!F78<>"",Februar!F78<>"",Juni!F78<>"",Juli!F78,Septembar!F78<>"",Oktobar!F78<>"",Oktobar_2!F78<>""),MAX(Predrok_Mart!F78,Predrok_April!F78,Januar!F78,Februar!F78,Juni!F78,Juli!F78,Septembar!F78,Oktobar!F78,Oktobar_2!F78),"") -> 25 | G78: =IF(OR(Predrok_Mart!G78<>"",Predrok_April!G78<>"",Januar!G78<>"",Februar!G78<>"",Juni!G78<>"",Juli!G78,Septembar!G78<>"",Oktobar!G78<>"",Oktobar_2!G78<>""),MAX(Predrok_Mart!G78,Predrok_April!G78,Januar!G78,Februar!G78,Juni!G78,Juli!G78,Septembar!G78,Oktobar!G78,Oktobar_2!G78),"") -> 28 | H78: =IF(OR(Predrok_Mart!H78<>"",Predrok_April!H78<>"",Januar!H78<>"",Februar!H78<>"",Juni!H78<>"",Juli!H78,Septembar!H78<>"",Oktobar!H78<>"",Oktobar_2!H78<>""),MAX(Predrok_Mart!H78,Predrok_April!H78,Januar!H78,Februar!H78,Juni!H78,Juli!H78,Septembar!H78,Oktobar!H78,Oktobar_2!H78),"") -> 26 | I78: =IF(OR(Predrok_Mart!I78<>"",Predrok_April!I78<>"",Januar!I78<>"",Februar!I78<>"",Juni!I78<>"",Juli!I78,Septembar!I78<>"",Oktobar!I78<>"",Oktobar_2!I78<>""),MAX(Predrok_Mart!I78,Predrok_April!I78,Januar!I78,Februar!I78,Juni!I78,Juli!I78,Septembar!I78,Oktobar!I78,Oktobar_2!I78),"") -> 13 | J78: =IF(Zbirni_podaci[[#This Row],[Broj indeksa]]<>"",IF(AND(Zbirni_podaci[[#This Row],[WORD]]<>"",Zbirni_podaci[[#This Row],[EXCEL]]<>"",Zbirni_podaci[[#This Row],[P_POINT]]<>"",Zbirni_podaci[[#This Row],[TEST_1]]<>""),"DA","NE"),"") -> DA | K78: 5 | L78: 5 | M78: 11 | N78: 12 | O78: 11 | P78: 24 | Q78: =IF(AND(Zbirni_podaci[[#This Row],[ROK]]<>"",Zbirni_podaci[[#This Row],[WORD bod]]<>"",Zbirni_podaci[[#This Row],[EXCEL bod]]<>"",Zbirni_podaci[[#This Row],[P_POINT bod]]<>"",Zbirni_podaci[[#This Row],[TEST_1 bod]]<>""),VLOOKUP(Zbirni_podaci[[#This Row],[ROK]],bodovi_aktivnost,7,FALSE),"") -> 20 | R78: =IF(AND(Zbirni_podaci[[#This Row],[Akt_nast_bod]]<>"",Zbirni_podaci[[#This Row],[Akt_vežbe_bod]]<>"",Zbirni_podaci[[#This Row],[WORD bod]]<>"",Zbirni_podaci[[#This Row],[EXCEL bod]]<>"",Zbirni_podaci[[#This Row],[P_POINT bod]]<>"",Zbirni_podaci[[#This Row],[TEST_1 bod]]<>""),ROUND(SUM(Zbirni_podaci[[#This Row],[Akt_nast_bod]:[ISPIT]]),0),"") -> 89 | S78: 9 | T78: Јун | U78: =IFERROR(IF(Zbirni_podaci[[#This Row],[ROK]]<>"",VLOOKUP(Zbirni_podaci[[#This Row],[ROK]],DATUMI,6,FALSE),""),"") -> 2019-06-14 | V78: 10 | W78: =IFERROR(IF(Zbirni_podaci[[#This Row],[ROK]]<>"",VLOOKUP(Zbirni_podaci[[#This Row],[ROK]],DATUMI,2,FALSE),""),"") -> 2019-05-27 | X78: 35 | Y78: =IFERROR(IF(Zbirni_podaci[[#This Row],[ROK]]<>"",VLOOKUP(Zbirni_podaci[[#This Row],[ROK]],DATUMI,3,FALSE),""),"") -> 2019-05-27 | Z78: 24 | AA78: =IFERROR(IF(Zbirni_podaci[[#This Row],[ROK]]<>"",VLOOKUP(Zbirni_podaci[[#This Row],[ROK]],DATUMI,4,FALSE),""),"") -> 2019-06-14 | AB78: 20 | AC78: 89 | AD78: 9 | AE78: =IFERROR(IF(Zbirni_podaci[[#This Row],[ROK]]<>"",VLOOKUP(Zbirni_podaci[[#This Row],[ROK]],DATUMI,6,FALSE),""),"") -> 2019-06-14
A79: =PODACI_STUDENTI!A78 -> 77 | B79: =PODACI_STUDENTI!B78 -> 2018/0112 | C79: =PODACI_STUDENTI!C78 -> Ranisavljević Marina | D79: =PODACI_STUDENTI!D78 -> 0 | F79: =IF(OR(Predrok_Mart!F79<>"",Predrok_April!F79<>"",Januar!F79<>"",Februar!F79<>"",Juni!F79<>"",Juli!F79,Septembar!F79<>"",Oktobar!F79<>"",Oktobar_2!F79<>""),MAX(Predrok_Mart!F79,Predrok_April!F79,Januar!F79,Februar!F79,Juni!F79,Juli!F79,Septembar!F79,Oktobar!F79,Oktobar_2!F79),"") -> 27 | G79: =IF(OR(Predrok_Mart!G79<>"",Predrok_April!G79<>"",Januar!G79<>"",Februar!G79<>"",Juni!G79<>"",Juli!G79,Septembar!G79<>"",Oktobar!G79<>"",Oktobar_2!G79<>""),MAX(Predrok_Mart!G79,Predrok_April!G79,Januar!G79,Februar!G79,Juni!G79,Juli!G79,Septembar!G79,Oktobar!G79,Oktobar_2!G79),"") -> 31 | H79: =IF(OR(Predrok_Mart!H79<>"",Predrok_April!H79<>"",Januar!H79<>"",Februar!H79<>"",Juni!H79<>"",Juli!H79,Septembar!H79<>"",Oktobar!H79<>"",Oktobar_2!H79<>""),MAX(Predrok_Mart!H79,Predrok_April!H79,Januar!H79,Februar!H79,Juni!H79,Juli!H79,Septembar!H79,Oktobar!H79,Oktobar_2!H79),"") -> 24 | I79: =IF(OR(Predrok_Mart!I79<>"",Predrok_April!I79<>"",Januar!I79<>"",Februar!I79<>"",Juni!I79<>"",Juli!I79,Septembar!I79<>"",Oktobar!I79<>"",Oktobar_2!I79<>""),MAX(Predrok_Mart!I79,Predrok_April!I79,Januar!I79,Februar!I79,Juni!I79,Juli!I79,Septembar!I79,Oktobar!I79,Oktobar_2!I79),"") -> 11 | J79: =IF(Zbirni_podaci[[#This Row],[Broj indeksa]]<>"",IF(AND(Zbirni_podaci[[#This Row],[WORD]]<>"",Zbirni_podaci[[#This Row],[EXCEL]]<>"",Zbirni_podaci[[#This Row],[P_POINT]]<>"",Zbirni_podaci[[#This Row],[TEST_1]]<>""),"DA","NE"),"") -> DA | K79: 5 | L79: 5 | M79: 12 | N79: 14 | O79: 11 | P79: 21 | Q79: =IF(AND(Zbirni_podaci[[#This Row],[ROK]]<>"",Zbirni_podaci[[#This Row],[WORD bod]]<>"",Zbirni_podaci[[#This Row],[EXCEL bod]]<>"",Zbirni_podaci[[#This Row],[P_POINT bod]]<>"",Zbirni_podaci[[#This Row],[TEST_1 bod]]<>""),VLOOKUP(Zbirni_podaci[[#This Row],[ROK]],bodovi_aktivnost,7,FALSE),"") -> 20 | R79: =IF(AND(Zbirni_podaci[[#This Row],[Akt_nast_bod]]<>"",Zbirni_podaci[[#This Row],[Akt_vežbe_bod]]<>"",Zbirni_podaci[[#This Row],[WORD bod]]<>"",Zbirni_podaci[[#This Row],[EXCEL bod]]<>"",Zbirni_podaci[[#This Row],[P_POINT bod]]<>"",Zbirni_podaci[[#This Row],[TEST_1 bod]]<>""),ROUND(SUM(Zbirni_podaci[[#This Row],[Akt_nast_bod]:[ISPIT]]),0),"") -> 86 | S79: 9 | T79: Јун | U79: =IFERROR(IF(Zbirni_podaci[[#This Row],[ROK]]<>"",VLOOKUP(Zbirni_podaci[[#This Row],[ROK]],DATUMI,6,FALSE),""),"") -> 2019-06-14 | V79: 10 | W79: =IFERROR(IF(Zbirni_podaci[[#This Row],[ROK]]<>"",VLOOKUP(Zbirni_podaci[[#This Row],[ROK]],DATUMI,2,FALSE),""),"") -> 2019-05-27 | X79: 36 | Y79: =IFERROR(IF(Zbirni_podaci[[#This Row],[ROK]]<>"",VLOOKUP(Zbirni_podaci[[#This Row],[ROK]],DATUMI,3,FALSE),""),"") -> 2019-05-27 | Z79: 21 | AA79: =IFERROR(IF(Zbirni_podaci[[#This Row],[ROK]]<>"",VLOOKUP(Zbirni_podaci[[#This Row],[ROK]],DATUMI,4,FALSE),""),"") -> 2019-06-14 | AB79: 20 | AC79: 86 | AD79: 9 | AE79: =IFERROR(IF(Zbirni_podaci[[#This Row],[ROK]]<>"",VLOOKUP(Zbirni_podaci[[#This Row],[ROK]],DATUMI,6,FALSE),""),"") -> 2019-06-14
A80: =PODACI_STUDENTI!A79 -> 78 | B80: =PODACI_STUDENTI!B79 -> 2018/0079 | C80: =PODACI_STUDENTI!C79 -> Ratković Ivan | D80: =PODACI_STUDENTI!D79 -> 0 | F80: =IF(OR(Predrok_Mart!F80<>"",Predrok_April!F80<>"",Januar!F80<>"",Februar!F80<>"",Juni!F80<>"",Juli!F80,Septembar!F80<>"",Oktobar!F80<>"",Oktobar_2!F80<>""),MAX(Predrok_Mart!F80,Predrok_April!F80,Januar!F80,Februar!F80,Juni!F80,Juli!F80,Septembar!F80,Oktobar!F80,Oktobar_2!F80),"") -> 30 | G80: =IF(OR(Predrok_Mart!G80<>"",Predrok_April!G80<>"",Januar!G80<>"",Februar!G80<>"",Juni!G80<>"",Juli!G80,Septembar!G80<>"",Oktobar!G80<>"",Oktobar_2!G80<>""),MAX(Predrok_Mart!G80,Predrok_April!G80,Januar!G80,Februar!G80,Juni!G80,Juli!G80,Septembar!G80,Oktobar!G80,Oktobar_2!G80),"") -> 31 | H80: =IF(OR(Predrok_Mart!H80<>"",Predrok_April!H80<>"",Januar!H80<>"",Februar!H80<>"",Juni!H80<>"",Juli!H80,Septembar!H80<>"",Oktobar!H80<>"",Oktobar_2!H80<>""),MAX(Predrok_Mart!H80,Predrok_April!H80,Januar!H80,Februar!H80,Juni!H80,Juli!H80,Septembar!H80,Oktobar!H80,Oktobar_2!H80),"") -> 29 | I80: =IF(OR(Predrok_Mart!I80<>"",Predrok_April!I80<>"",Januar!I80<>"",Februar!I80<>"",Juni!I80<>"",Juli!I80,Septembar!I80<>"",Oktobar!I80<>"",Oktobar_2!I80<>""),MAX(Predrok_Mart!I80,Predrok_April!I80,Januar!I80,Februar!I80,Juni!I80,Juli!I80,Septembar!I80,Oktobar!I80,Oktobar_2!I80),"") -> 12 | J80: =IF(Zbirni_podaci[[#This Row],[Broj indeksa]]<>"",IF(AND(Zbirni_podaci[[#This Row],[WORD]]<>"",Zbirni_podaci[[#This Row],[EXCEL]]<>"",Zbirni_podaci[[#This Row],[P_POINT]]<>"",Zbirni_podaci[[#This Row],[TEST_1]]<>""),"DA","NE"),"") -> DA | K80: 5 | L80: 5 | M80: 13 | N80: 14 | O80: 13 | P80: 22 | Q80: =IF(AND(Zbirni_podaci[[#This Row],[ROK]]<>"",Zbirni_podaci[[#This Row],[WORD bod]]<>"",Zbirni_podaci[[#This Row],[EXCEL bod]]<>"",Zbirni_podaci[[#This Row],[P_POINT bod]]<>"",Zbirni_podaci[[#This Row],[TEST_1 bod]]<>""),VLOOKUP(Zbirni_podaci[[#This Row],[ROK]],bodovi_aktivnost,7,FALSE),"") -> 20 | R80: =IF(AND(Zbirni_podaci[[#This Row],[Akt_nast_bod]]<>"",Zbirni_podaci[[#This Row],[Akt_vežbe_bod]]<>"",Zbirni_podaci[[#This Row],[WORD bod]]<>"",Zbirni_podaci[[#This Row],[EXCEL bod]]<>"",Zbirni_podaci[[#This Row],[P_POINT bod]]<>"",Zbirni_podaci[[#This Row],[TEST_1 bod]]<>""),ROUND(SUM(Zbirni_podaci[[#This Row],[Akt_nast_bod]:[ISPIT]]),0),"") -> 92 | S80: 10 | T80: Јун | U80: =IFERROR(IF(Zbirni_podaci[[#This Row],[ROK]]<>"",VLOOKUP(Zbirni_podaci[[#This Row],[ROK]],DATUMI,6,FALSE),""),"") -> 2019-06-14 | V80: 10 | W80: =IFERROR(IF(Zbirni_podaci[[#This Row],[ROK]]<>"",VLOOKUP(Zbirni_podaci[[#This Row],[ROK]],DATUMI,2,FALSE),""),"") -> 2019-05-27 | X80: 39 | Y80: =IFERROR(IF(Zbirni_podaci[[#This Row],[ROK]]<>"",VLOOKUP(Zbirni_podaci[[#This Row],[ROK]],DATUMI,3,FALSE),""),"") -> 2019-05-27 | Z80: 22 | AA80: =IFERROR(IF(Zbirni_podaci[[#This Row],[ROK]]<>"",VLOOKUP(Zbirni_podaci[[#This Row],[ROK]],DATUMI,4,FALSE),""),"") -> 2019-06-14 | AB80: 20 | AC80: 92 | AD80: 10 | AE80: =IFERROR(IF(Zbirni_podaci[[#This Row],[ROK]]<>"",VLOOKUP(Zbirni_podaci[[#This Row],[ROK]],DATUMI,6,FALSE),""),"") -> 2019-06-14
A81: =PODACI_STUDENTI!A80 -> 79 | B81: =PODACI_STUDENTI!B80 -> 2018/0156 | C81: =PODACI_STUDENTI!C80 -> Ribičić Nina | D81: =PODACI_STUDENTI!D80 -> 0 | F81: =IF(OR(Predrok_Mart!F81<>"",Predrok_April!F81<>"",Januar!F81<>"",Februar!F81<>"",Juni!F81<>"",Juli!F81,Septembar!F81<>"",Oktobar!F81<>"",Oktobar_2!F81<>""),MAX(Predrok_Mart!F81,Predrok_April!F81,Januar!F81,Februar!F81,Juni!F81,Juli!F81,Septembar!F81,Oktobar!F81,Oktobar_2!F81),"") -> 31 | G81: =IF(OR(Predrok_Mart!G81<>"",Predrok_April!G81<>"",Januar!G81<>"",Februar!G81<>"",Juni!G81<>"",Juli!G81,Septembar!G81<>"",Oktobar!G81<>"",Oktobar_2!G81<>""),MAX(Predrok_Mart!G81,Predrok_April!G81,Januar!G81,Februar!G81,Juni!G81,Juli!G81,Septembar!G81,Oktobar!G81,Oktobar_2!G81),"") -> 30 | H81: =IF(OR(Predrok_Mart!H81<>"",Predrok_April!H81<>"",Januar!H81<>"",Februar!H81<>"",Juni!H81<>"",Juli!H81,Septembar!H81<>"",Oktobar!H81<>"",Oktobar_2!H81<>""),MAX(Predrok_Mart!H81,Predrok_April!H81,Januar!H81,Februar!H81,Juni!H81,Juli!H81,Septembar!H81,Oktobar!H81,Oktobar_2!H81),"") -> 29 | I81: =IF(OR(Predrok_Mart!I81<>"",Predrok_April!I81<>"",Januar!I81<>"",Februar!I81<>"",Juni!I81<>"",Juli!I81,Septembar!I81<>"",Oktobar!I81<>"",Oktobar_2!I81<>""),MAX(Predrok_Mart!I81,Predrok_April!I81,Januar!I81,Februar!I81,Juni!I81,Juli!I81,Septembar!I81,Oktobar!I81,Oktobar_2!I81),"") -> 14 | J81: =IF(Zbirni_podaci[[#This Row],[Broj indeksa]]<>"",IF(AND(Zbirni_podaci[[#This Row],[WORD]]<>"",Zbirni_podaci[[#This Row],[EXCEL]]<>"",Zbirni_podaci[[#This Row],[P_POINT]]<>"",Zbirni_podaci[[#This Row],[TEST_1]]<>""),"DA","NE"),"") -> DA | K81: 5 | L81: 5 | M81: 14 | N81: 13 | O81: 13 | P81: 26 | Q81: =IF(AND(Zbirni_podaci[[#This Row],[ROK]]<>"",Zbirni_podaci[[#This Row],[WORD bod]]<>"",Zbirni_podaci[[#This Row],[EXCEL bod]]<>"",Zbirni_podaci[[#This Row],[P_POINT bod]]<>"",Zbirni_podaci[[#This Row],[TEST_1 bod]]<>""),VLOOKUP(Zbirni_podaci[[#This Row],[ROK]],bodovi_aktivnost,7,FALSE),"") -> 15 | R81: =IF(AND(Zbirni_podaci[[#This Row],[Akt_nast_bod]]<>"",Zbirni_podaci[[#This Row],[Akt_vežbe_bod]]<>"",Zbirni_podaci[[#This Row],[WORD bod]]<>"",Zbirni_podaci[[#This Row],[EXCEL bod]]<>"",Zbirni_podaci[[#This Row],[P_POINT bod]]<>"",Zbirni_podaci[[#This Row],[TEST_1 bod]]<>""),ROUND(SUM(Zbirni_podaci[[#This Row],[Akt_nast_bod]:[ISPIT]]),0),"") -> 91 | S81: 10 | T81: Јул | U81: =IFERROR(IF(Zbirni_podaci[[#This Row],[ROK]]<>"",VLOOKUP(Zbirni_podaci[[#This Row],[ROK]],DATUMI,6,FALSE),""),"") -> 2019-07-01 | V81: 10 | W81: =IFERROR(IF(Zbirni_podaci[[#This Row],[ROK]]<>"",VLOOKUP(Zbirni_podaci[[#This Row],[ROK]],DATUMI,2,FALSE),""),"") -> 2019-05-27 | X81: 39 | Y81: =IFERROR(IF(Zbirni_podaci[[#This Row],[ROK]]<>"",VLOOKUP(Zbirni_podaci[[#This Row],[ROK]],DATUMI,3,FALSE),""),"") -> 2019-05-27 | Z81: 26 | AA81: =IFERROR(IF(Zbirni_podaci[[#This Row],[ROK]]<>"",VLOOKUP(Zbirni_podaci[[#This Row],[ROK]],DATUMI,4,FALSE),""),"") -> 2019-07-01 | AB81: 15 | AC81: 91 | AD81: 10 | AE81: =IFERROR(IF(Zbirni_podaci[[#This Row],[ROK]]<>"",VLOOKUP(Zbirni_podaci[[#This Row],[ROK]],DATUMI,6,FALSE),""),"") -> 2019-07-01
A82: =PODACI_STUDENTI!A81 -> 80 | B82: =PODACI_STUDENTI!B81 -> 2018/0035 | C82: =PODACI_STUDENTI!C81 -> Ristovski Ana | D82: =PODACI_STUDENTI!D81 -> 0 | F82: =IF(OR(Predrok_Mart!F82<>"",Predrok_April!F82<>"",Januar!F82<>"",Februar!F82<>"",Juni!F82<>"",Juli!F82,Septembar!F82<>"",Oktobar!F82<>"",Oktobar_2!F82<>""),MAX(Predrok_Mart!F82,Predrok_April!F82,Januar!F82,Februar!F82,Juni!F82,Juli!F82,Septembar!F82,Oktobar!F82,Oktobar_2!F82),"") -> 31 | G82: =IF(OR(Predrok_Mart!G82<>"",Predrok_April!G82<>"",Januar!G82<>"",Februar!G82<>"",Juni!G82<>"",Juli!G82,Septembar!G82<>"",Oktobar!G82<>"",Oktobar_2!G82<>""),MAX(Predrok_Mart!G82,Predrok_April!G82,Januar!G82,Februar!G82,Juni!G82,Juli!G82,Septembar!G82,Oktobar!G82,Oktobar_2!G82),"") -> 31 | H82: =IF(OR(Predrok_Mart!H82<>"",Predrok_April!H82<>"",Januar!H82<>"",Februar!H82<>"",Juni!H82<>"",Juli!H82,Septembar!H82<>"",Oktobar!H82<>"",Oktobar_2!H82<>""),MAX(Predrok_Mart!H82,Predrok_April!H82,Januar!H82,Februar!H82,Juni!H82,Juli!H82,Septembar!H82,Oktobar!H82,Oktobar_2!H82),"") -> 32 | I82: =IF(OR(Predrok_Mart!I82<>"",Predrok_April!I82<>"",Januar!I82<>"",Februar!I82<>"",Juni!I82<>"",Juli!I82,Septembar!I82<>"",Oktobar!I82<>"",Oktobar_2!I82<>""),MAX(Predrok_Mart!I82,Predrok_April!I82,Januar!I82,Februar!I82,Juni!I82,Juli!I82,Septembar!I82,Oktobar!I82,Oktobar_2!I82),"") -> 14 | J82: =IF(Zbirni_podaci[[#This Row],[Broj indeksa]]<>"",IF(AND(Zbirni_podaci[[#This Row],[WORD]]<>"",Zbirni_podaci[[#This Row],[EXCEL]]<>"",Zbirni_podaci[[#This Row],[P_POINT]]<>"",Zbirni_podaci[[#This Row],[TEST_1]]<>""),"DA","NE"),"") -> DA | K82: 5 | L82: 5 | M82: 14 | N82: 14 | O82: 14 | P82: 26 | Q82: =IF(AND(Zbirni_podaci[[#This Row],[ROK]]<>"",Zbirni_podaci[[#This Row],[WORD bod]]<>"",Zbirni_podaci[[#This Row],[EXCEL bod]]<>"",Zbirni_podaci[[#This Row],[P_POINT bod]]<>"",Zbirni_podaci[[#This Row],[TEST_1 bod]]<>""),VLOOKUP(Zbirni_podaci[[#This Row],[ROK]],bodovi_aktivnost,7,FALSE),"") -> 20 | R82: =IF(AND(Zbirni_podaci[[#This Row],[Akt_nast_bod]]<>"",Zbirni_podaci[[#This Row],[Akt_vežbe_bod]]<>"",Zbirni_podaci[[#This Row],[WORD bod]]<>"",Zbirni_podaci[[#This Row],[EXCEL bod]]<>"",Zbirni_podaci[[#This Row],[P_POINT bod]]<>"",Zbirni_podaci[[#This Row],[TEST_1 bod]]<>""),ROUND(SUM(Zbirni_podaci[[#This Row],[Akt_nast_bod]:[ISPIT]]),0),"") -> 97 | S82: 10 | T82: Јун | U82: =IFERROR(IF(Zbirni_podaci[[#This Row],[ROK]]<>"",VLOOKUP(Zbirni_podaci[[#This Row],[ROK]],DATUMI,6,FALSE),""),"") -> 2019-06-14 | V82: 10 | W82: =IFERROR(IF(Zbirni_podaci[[#This Row],[ROK]]<>"",VLOOKUP(Zbirni_podaci[[#This Row],[ROK]],DATUMI,2,FALSE),""),"") -> 2019-05-27 | X82: 41 | Y82: =IFERROR(IF(Zbirni_podaci[[#This Row],[ROK]]<>"",VLOOKUP(Zbirni_podaci[[#This Row],[ROK]],DATUMI,3,FALSE),""),"") -> 2019-05-27 | Z82: 26 | AA82: =IFERROR(IF(Zbirni_podaci[[#This Row],[ROK]]<>"",VLOOKUP(Zbirni_podaci[[#This Row],[ROK]],DATUMI,4,FALSE),""),"") -> 2019-06-14 | AB82: 20 | AC82: 97 | AD82: 10 | AE82: =IFERROR(IF(Zbirni_podaci[[#This Row],[ROK]]<>"",VLOOKUP(Zbirni_podaci[[#This Row],[ROK]],DATUMI,6,FALSE),""),"") -> 2019-06-14
A83: =PODACI_STUDENTI!A82 -> 81 | B83: =PODACI_STUDENTI!B82 -> 2018/0045 | C83: =PODACI_STUDENTI!C82 -> Rogojević Dragoljub | D83: =PODACI_STUDENTI!D82 -> 0 | F83: =IF(OR(Predrok_Mart!F83<>"",Predrok_April!F83<>"",Januar!F83<>"",Februar!F83<>"",Juni!F83<>"",Juli!F83,Septembar!F83<>"",Oktobar!F83<>"",Oktobar_2!F83<>""),MAX(Predrok_Mart!F83,Predrok_April!F83,Januar!F83,Februar!F83,Juni!F83,Juli!F83,Septembar!F83,Oktobar!F83,Oktobar_2!F83),"") -> 25 | G83: =IF(OR(Predrok_Mart!G83<>"",Predrok_April!G83<>"",Januar!G83<>"",Februar!G83<>"",Juni!G83<>"",Juli!G83,Septembar!G83<>"",Oktobar!G83<>"",Oktobar_2!G83<>""),MAX(Predrok_Mart!G83,Predrok_April!G83,Januar!G83,Februar!G83,Juni!G83,Juli!G83,Septembar!G83,Oktobar!G83,Oktobar_2!G83),"") -> 29 | H83: =IF(OR(Predrok_Mart!H83<>"",Predrok_April!H83<>"",Januar!H83<>"",Februar!H83<>"",Juni!H83<>"",Juli!H83,Septembar!H83<>"",Oktobar!H83<>"",Oktobar_2!H83<>""),MAX(Predrok_Mart!H83,Predrok_April!H83,Januar!H83,Februar!H83,Juni!H83,Juli!H83,Septembar!H83,Oktobar!H83,Oktobar_2!H83),"") -> 30 | I83: =IF(OR(Predrok_Mart!I83<>"",Predrok_April!I83<>"",Januar!I83<>"",Februar!I83<>"",Juni!I83<>"",Juli!I83,Septembar!I83<>"",Oktobar!I83<>"",Oktobar_2!I83<>""),MAX(Predrok_Mart!I83,Predrok_April!I83,Januar!I83,Februar!I83,Juni!I83,Juli!I83,Septembar!I83,Oktobar!I83,Oktobar_2!I83),"") -> 15 | J83: =IF(Zbirni_podaci[[#This Row],[Broj indeksa]]<>"",IF(AND(Zbirni_podaci[[#This Row],[WORD]]<>"",Zbirni_podaci[[#This Row],[EXCEL]]<>"",Zbirni_podaci[[#This Row],[P_POINT]]<>"",Zbirni_podaci[[#This Row],[TEST_1]]<>""),"DA","NE"),"") -> DA | K83: 5 | L83: 5 | M83: 11 | N83: 13 | O83: 13 | P83: 28 | Q83: =IF(AND(Zbirni_podaci[[#This Row],[ROK]]<>"",Zbirni_podaci[[#This Row],[WORD bod]]<>"",Zbirni_podaci[[#This Row],[EXCEL bod]]<>"",Zbirni_podaci[[#This Row],[P_POINT bod]]<>"",Zbirni_podaci[[#This Row],[TEST_1 bod]]<>""),VLOOKUP(Zbirni_podaci[[#This Row],[ROK]],bodovi_aktivnost,7,FALSE),"") -> 20 | R83: =IF(AND(Zbirni_podaci[[#This Row],[Akt_nast_bod]]<>"",Zbirni_podaci[[#This Row],[Akt_vežbe_bod]]<>"",Zbirni_podaci[[#This Row],[WORD bod]]<>"",Zbirni_podaci[[#This Row],[EXCEL bod]]<>"",Zbirni_podaci[[#This Row],[P_POINT bod]]<>"",Zbirni_podaci[[#This Row],[TEST_1 bod]]<>""),ROUND(SUM(Zbirni_podaci[[#This Row],[Akt_nast_bod]:[ISPIT]]),0),"") -> 95 | S83: 10 | T83: Јун | U83: =IFERROR(IF(Zbirni_podaci[[#This Row],[ROK]]<>"",VLOOKUP(Zbirni_podaci[[#This Row],[ROK]],DATUMI,6,FALSE),""),"") -> 2019-06-14 | V83: 10 | W83: =IFERROR(IF(Zbirni_podaci[[#This Row],[ROK]]<>"",VLOOKUP(Zbirni_podaci[[#This Row],[ROK]],DATUMI,2,FALSE),""),"") -> 2019-05-27 | X83: 37 | Y83: =IFERROR(IF(Zbirni_podaci[[#This Row],[ROK]]<>"",VLOOKUP(Zbirni_podaci[[#This Row],[ROK]],DATUMI,3,FALSE),""),"") -> 2019-05-27 | Z83: 28 | AA83: =IFERROR(IF(Zbirni_podaci[[#This Row],[ROK]]<>"",VLOOKUP(Zbirni_podaci[[#This Row],[ROK]],DATUMI,4,FALSE),""),"") -> 2019-06-14 | AB83: 20 | AC83: 95 | AD83: 10 | AE83: =IFERROR(IF(Zbirni_podaci[[#This Row],[ROK]]<>"",VLOOKUP(Zbirni_podaci[[#This Row],[ROK]],DATUMI,6,FALSE),""),"") -> 2019-06-14
A84: =PODACI_STUDENTI!A83 -> 82 | B84: =PODACI_STUDENTI!B83 -> 2018/0078 | C84: =PODACI_STUDENTI!C83 -> Ružičić Ana | D84: =PODACI_STUDENTI!D83 -> 0 | F84: =IF(OR(Predrok_Mart!F84<>"",Predrok_April!F84<>"",Januar!F84<>"",Februar!F84<>"",Juni!F84<>"",Juli!F84,Septembar!F84<>"",Oktobar!F84<>"",Oktobar_2!F84<>""),MAX(Predrok_Mart!F84,Predrok_April!F84,Januar!F84,Februar!F84,Juni!F84,Juli!F84,Septembar!F84,Oktobar!F84,Oktobar_2!F84),"") -> 31 | G84: =IF(OR(Predrok_Mart!G84<>"",Predrok_April!G84<>"",Januar!G84<>"",Februar!G84<>"",Juni!G84<>"",Juli!G84,Septembar!G84<>"",Oktobar!G84<>"",Oktobar_2!G84<>""),MAX(Predrok_Mart!G84,Predrok_April!G84,Januar!G84,Februar!G84,Juni!G84,Juli!G84,Septembar!G84,Oktobar!G84,Oktobar_2!G84),"") -> 29 | H84: =IF(OR(Predrok_Mart!H84<>"",Predrok_April!H84<>"",Januar!H84<>"",Februar!H84<>"",Juni!H84<>"",Juli!H84,Septembar!H84<>"",Oktobar!H84<>"",Oktobar_2!H84<>""),MAX(Predrok_Mart!H84,Predrok_April!H84,Januar!H84,Februar!H84,Juni!H84,Juli!H84,Septembar!H84,Oktobar!H84,Oktobar_2!H84),"") -> 31 | I84: =IF(OR(Predrok_Mart!I84<>"",Predrok_April!I84<>"",Januar!I84<>"",Februar!I84<>"",Juni!I84<>"",Juli!I84,Septembar!I84<>"",Oktobar!I84<>"",Oktobar_2!I84<>""),MAX(Predrok_Mart!I84,Predrok_April!I84,Januar!I84,Februar!I84,Juni!I84,Juli!I84,Septembar!I84,Oktobar!I84,Oktobar_2!I84),"") -> 15 | J84: =IF(Zbirni_podaci[[#This Row],[Broj indeksa]]<>"",IF(AND(Zbirni_podaci[[#This Row],[WORD]]<>"",Zbirni_podaci[[#This Row],[EXCEL]]<>"",Zbirni_podaci[[#This Row],[P_POINT]]<>"",Zbirni_podaci[[#This Row],[TEST_1]]<>""),"DA","NE"),"") -> DA | K84: 5 | L84: 5 | M84: 14 | N84: 13 | O84: 14 | P84: 28 | Q84: =IF(AND(Zbirni_podaci[[#This Row],[ROK]]<>"",Zbirni_podaci[[#This Row],[WORD bod]]<>"",Zbirni_podaci[[#This Row],[EXCEL bod]]<>"",Zbirni_podaci[[#This Row],[P_POINT bod]]<>"",Zbirni_podaci[[#This Row],[TEST_1 bod]]<>""),VLOOKUP(Zbirni_podaci[[#This Row],[ROK]],bodovi_aktivnost,7,FALSE),"") -> 20 | R84: =IF(AND(Zbirni_podaci[[#This Row],[Akt_nast_bod]]<>"",Zbirni_podaci[[#This Row],[Akt_vežbe_bod]]<>"",Zbirni_podaci[[#This Row],[WORD bod]]<>"",Zbirni_podaci[[#This Row],[EXCEL bod]]<>"",Zbirni_podaci[[#This Row],[P_POINT bod]]<>"",Zbirni_podaci[[#This Row],[TEST_1 bod]]<>""),ROUND(SUM(Zbirni_podaci[[#This Row],[Akt_nast_bod]:[ISPIT]]),0),"") -> 98 | S84: 10 | T84: Јун | U84: =IFERROR(IF(Zbirni_podaci[[#This Row],[ROK]]<>"",VLOOKUP(Zbirni_podaci[[#This Row],[ROK]],DATUMI,6,FALSE),""),"") -> 2019-06-14 | V84: 10 | W84: =IFERROR(IF(Zbirni_podaci[[#This Row],[ROK]]<>"",VLOOKUP(Zbirni_podaci[[#This Row],[ROK]],DATUMI,2,FALSE),""),"") -> 2019-05-27 | X84: 40 | Y84: =IFERROR(IF(Zbirni_podaci[[#This Row],[ROK]]<>"",VLOOKUP(Zbirni_podaci[[#This Row],[ROK]],DATUMI,3,FALSE),""),"") -> 2019-05-27 | Z84: 28 | AA84: =IFERROR(IF(Zbirni_podaci[[#This Row],[ROK]]<>"",VLOOKUP(Zbirni_podaci[[#This Row],[ROK]],DATUMI,4,FALSE),""),"") -> 2019-06-14 | AB84: 20 | AC84: 98 | AD84: 10 | AE84: =IFERROR(IF(Zbirni_podaci[[#This Row],[ROK]]<>"",VLOOKUP(Zbirni_podaci[[#This Row],[ROK]],DATUMI,6,FALSE),""),"") -> 2019-06-14
A85: =PODACI_STUDENTI!A84 -> 83 | B85: =PODACI_STUDENTI!B84 -> 2018/0141 | C85: =PODACI_STUDENTI!C84 -> Savić Sara | D85: =PODACI_STUDENTI!D84 -> 0 | F85: =IF(OR(Predrok_Mart!F85<>"",Predrok_April!F85<>"",Januar!F85<>"",Februar!F85<>"",Juni!F85<>"",Juli!F85,Septembar!F85<>"",Oktobar!F85<>"",Oktobar_2!F85<>""),MAX(Predrok_Mart!F85,Predrok_April!F85,Januar!F85,Februar!F85,Juni!F85,Juli!F85,Septembar!F85,Oktobar!F85,Oktobar_2!F85),"") -> 27 | G85: =IF(OR(Predrok_Mart!G85<>"",Predrok_April!G85<>"",Januar!G85<>"",Februar!G85<>"",Juni!G85<>"",Juli!G85,Septembar!G85<>"",Oktobar!G85<>"",Oktobar_2!G85<>""),MAX(Predrok_Mart!G85,Predrok_April!G85,Januar!G85,Februar!G85,Juni!G85,Juli!G85,Septembar!G85,Oktobar!G85,Oktobar_2!G85),"") -> 30 | H85: =IF(OR(Predrok_Mart!H85<>"",Predrok_April!H85<>"",Januar!H85<>"",Februar!H85<>"",Juni!H85<>"",Juli!H85,Septembar!H85<>"",Oktobar!H85<>"",Oktobar_2!H85<>""),MAX(Predrok_Mart!H85,Predrok_April!H85,Januar!H85,Februar!H85,Juni!H85,Juli!H85,Septembar!H85,Oktobar!H85,Oktobar_2!H85),"") -> 30 | I85: =IF(OR(Predrok_Mart!I85<>"",Predrok_April!I85<>"",Januar!I85<>"",Februar!I85<>"",Juni!I85<>"",Juli!I85,Septembar!I85<>"",Oktobar!I85<>"",Oktobar_2!I85<>""),MAX(Predrok_Mart!I85,Predrok_April!I85,Januar!I85,Februar!I85,Juni!I85,Juli!I85,Septembar!I85,Oktobar!I85,Oktobar_2!I85),"") -> 15 | J85: =IF(Zbirni_podaci[[#This Row],[Broj indeksa]]<>"",IF(AND(Zbirni_podaci[[#This Row],[WORD]]<>"",Zbirni_podaci[[#This Row],[EXCEL]]<>"",Zbirni_podaci[[#This Row],[P_POINT]]<>"",Zbirni_podaci[[#This Row],[TEST_1]]<>""),"DA","NE"),"") -> DA | K85: 5 | L85: 5 | M85: 12 | N85: 13 | O85: 13 | P85: 28 | Q85: =IF(AND(Zbirni_podaci[[#This Row],[ROK]]<>"",Zbirni_podaci[[#This Row],[WORD bod]]<>"",Zbirni_podaci[[#This Row],[EXCEL bod]]<>"",Zbirni_podaci[[#This Row],[P_POINT bod]]<>"",Zbirni_podaci[[#This Row],[TEST_1 bod]]<>""),VLOOKUP(Zbirni_podaci[[#This Row],[ROK]],bodovi_aktivnost,7,FALSE),"") -> 20 | R85: =IF(AND(Zbirni_podaci[[#This Row],[Akt_nast_bod]]<>"",Zbirni_podaci[[#This Row],[Akt_vežbe_bod]]<>"",Zbirni_podaci[[#This Row],[WORD bod]]<>"",Zbirni_podaci[[#This Row],[EXCEL bod]]<>"",Zbirni_podaci[[#This Row],[P_POINT bod]]<>"",Zbirni_podaci[[#This Row],[TEST_1 bod]]<>""),ROUND(SUM(Zbirni_podaci[[#This Row],[Akt_nast_bod]:[ISPIT]]),0),"") -> 96 | S85: 10 | T85: Јун | U85: =IFERROR(IF(Zbirni_podaci[[#This Row],[ROK]]<>"",VLOOKUP(Zbirni_podaci[[#This Row],[ROK]],DATUMI,6,FALSE),""),"") -> 2019-06-14 | V85: 10 | W85: =IFERROR(IF(Zbirni_podaci[[#This Row],[ROK]]<>"",VLOOKUP(Zbirni_podaci[[#This Row],[ROK]],DATUMI,2,FALSE),""),"") -> 2019-05-27 | X85: 38 | Y85: =IFERROR(IF(Zbirni_podaci[[#This Row],[ROK]]<>"",VLOOKUP(Zbirni_podaci[[#This Row],[ROK]],DATUMI,3,FALSE),""),"") -> 2019-05-27 | Z85: 28 | AA85: =IFERROR(IF(Zbirni_podaci[[#This Row],[ROK]]<>"",VLOOKUP(Zbirni_podaci[[#This Row],[ROK]],DATUMI,4,FALSE),""),"") -> 2019-06-14 | AB85: 20 | AC85: 96 | AD85: 10 | AE85: =IFERROR(IF(Zbirni_podaci[[#This Row],[ROK]]<>"",VLOOKUP(Zbirni_podaci[[#This Row],[ROK]],DATUMI,6,FALSE),""),"") -> 2019-06-14
A86: =PODACI_STUDENTI!A85 -> 84 | B86: =PODACI_STUDENTI!B85 -> 2018/0121 | C86: =PODACI_STUDENTI!C85 -> Santrač Periša | D86: =PODACI_STUDENTI!D85 -> 0 | F86: =IF(OR(Predrok_Mart!F86<>"",Predrok_April!F86<>"",Januar!F86<>"",Februar!F86<>"",Juni!F86<>"",Juli!F86,Septembar!F86<>"",Oktobar!F86<>"",Oktobar_2!F86<>""),MAX(Predrok_Mart!F86,Predrok_April!F86,Januar!F86,Februar!F86,Juni!F86,Juli!F86,Septembar!F86,Oktobar!F86,Oktobar_2!F86),"") -> 28 | G86: =IF(OR(Predrok_Mart!G86<>"",Predrok_April!G86<>"",Januar!G86<>"",Februar!G86<>"",Juni!G86<>"",Juli!G86,Septembar!G86<>"",Oktobar!G86<>"",Oktobar_2!G86<>""),MAX(Predrok_Mart!G86,Predrok_April!G86,Januar!G86,Februar!G86,Juni!G86,Juli!G86,Septembar!G86,Oktobar!G86,Oktobar_2!G86),"") -> 30 | H86: =IF(OR(Predrok_Mart!H86<>"",Predrok_April!H86<>"",Januar!H86<>"",Februar!H86<>"",Juni!H86<>"",Juli!H86,Septembar!H86<>"",Oktobar!H86<>"",Oktobar_2!H86<>""),MAX(Predrok_Mart!H86,Predrok_April!H86,Januar!H86,Februar!H86,Juni!H86,Juli!H86,Septembar!H86,Oktobar!H86,Oktobar_2!H86),"") -> 29 | I86: =IF(OR(Predrok_Mart!I86<>"",Predrok_April!I86<>"",Januar!I86<>"",Februar!I86<>"",Juni!I86<>"",Juli!I86,Septembar!I86<>"",Oktobar!I86<>"",Oktobar_2!I86<>""),MAX(Predrok_Mart!I86,Predrok_April!I86,Januar!I86,Februar!I86,Juni!I86,Juli!I86,Septembar!I86,Oktobar!I86,Oktobar_2!I86),"") -> 15 | J86: =IF(Zbirni_podaci[[#This Row],[Broj indeksa]]<>"",IF(AND(Zbirni_podaci[[#This Row],[WORD]]<>"",Zbirni_podaci[[#This Row],[EXCEL]]<>"",Zbirni_podaci[[#This Row],[P_POINT]]<>"",Zbirni_podaci[[#This Row],[TEST_1]]<>""),"DA","NE"),"") -> DA | K86: 5 | L86: 5 | M86: 12 | N86: 13 | O86: 13 | P86: 28 | Q86: =IF(AND(Zbirni_podaci[[#This Row],[ROK]]<>"",Zbirni_podaci[[#This Row],[WORD bod]]<>"",Zbirni_podaci[[#This Row],[EXCEL bod]]<>"",Zbirni_podaci[[#This Row],[P_POINT bod]]<>"",Zbirni_podaci[[#This Row],[TEST_1 bod]]<>""),VLOOKUP(Zbirni_podaci[[#This Row],[ROK]],bodovi_aktivnost,7,FALSE),"") -> 20 | R86: =IF(AND(Zbirni_podaci[[#This Row],[Akt_nast_bod]]<>"",Zbirni_podaci[[#This Row],[Akt_vežbe_bod]]<>"",Zbirni_podaci[[#This Row],[WORD bod]]<>"",Zbirni_podaci[[#This Row],[EXCEL bod]]<>"",Zbirni_podaci[[#This Row],[P_POINT bod]]<>"",Zbirni_podaci[[#This Row],[TEST_1 bod]]<>""),ROUND(SUM(Zbirni_podaci[[#This Row],[Akt_nast_bod]:[ISPIT]]),0),"") -> 96 | S86: 10 | T86: Јун | U86: =IFERROR(IF(Zbirni_podaci[[#This Row],[ROK]]<>"",VLOOKUP(Zbirni_podaci[[#This Row],[ROK]],DATUMI,6,FALSE),""),"") -> 2019-06-14 | V86: 10 | W86: =IFERROR(IF(Zbirni_podaci[[#This Row],[ROK]]<>"",VLOOKUP(Zbirni_podaci[[#This Row],[ROK]],DATUMI,2,FALSE),""),"") -> 2019-05-27 | X86: 38 | Y86: =IFERROR(IF(Zbirni_podaci[[#This Row],[ROK]]<>"",VLOOKUP(Zbirni_podaci[[#This Row],[ROK]],DATUMI,3,FALSE),""),"") -> 2019-05-27 | Z86: 28 | AA86: =IFERROR(IF(Zbirni_podaci[[#This Row],[ROK]]<>"",VLOOKUP(Zbirni_podaci[[#This Row],[ROK]],DATUMI,4,FALSE),""),"") -> 2019-06-14 | AB86: 20 | AC86: 96 | AD86: 10 | AE86: =IFERROR(IF(Zbirni_podaci[[#This Row],[ROK]]<>"",VLOOKUP(Zbirni_podaci[[#This Row],[ROK]],DATUMI,6,FALSE),""),"") -> 2019-06-14
A87: =PODACI_STUDENTI!A86 -> 85 | B87: =PODACI_STUDENTI!B86 -> 2018/0146 | C87: =PODACI_STUDENTI!C86 -> Selenić Petar | D87: =PODACI_STUDENTI!D86 -> 0 | F87: =IF(OR(Predrok_Mart!F87<>"",Predrok_April!F87<>"",Januar!F87<>"",Februar!F87<>"",Juni!F87<>"",Juli!F87,Septembar!F87<>"",Oktobar!F87<>"",Oktobar_2!F87<>""),MAX(Predrok_Mart!F87,Predrok_April!F87,Januar!F87,Februar!F87,Juni!F87,Juli!F87,Septembar!F87,Oktobar!F87,Oktobar_2!F87),"") -> 31 | G87: =IF(OR(Predrok_Mart!G87<>"",Predrok_April!G87<>"",Januar!G87<>"",Februar!G87<>"",Juni!G87<>"",Juli!G87,Septembar!G87<>"",Oktobar!G87<>"",Oktobar_2!G87<>""),MAX(Predrok_Mart!G87,Predrok_April!G87,Januar!G87,Februar!G87,Juni!G87,Juli!G87,Septembar!G87,Oktobar!G87,Oktobar_2!G87),"") -> 28 | H87: =IF(OR(Predrok_Mart!H87<>"",Predrok_April!H87<>"",Januar!H87<>"",Februar!H87<>"",Juni!H87<>"",Juli!H87,Septembar!H87<>"",Oktobar!H87<>"",Oktobar_2!H87<>""),MAX(Predrok_Mart!H87,Predrok_April!H87,Januar!H87,Februar!H87,Juni!H87,Juli!H87,Septembar!H87,Oktobar!H87,Oktobar_2!H87),"") -> 30 | I87: =IF(OR(Predrok_Mart!I87<>"",Predrok_April!I87<>"",Januar!I87<>"",Februar!I87<>"",Juni!I87<>"",Juli!I87,Septembar!I87<>"",Oktobar!I87<>"",Oktobar_2!I87<>""),MAX(Predrok_Mart!I87,Predrok_April!I87,Januar!I87,Februar!I87,Juni!I87,Juli!I87,Septembar!I87,Oktobar!I87,Oktobar_2!I87),"") -> 13 | J87: =IF(Zbirni_podaci[[#This Row],[Broj indeksa]]<>"",IF(AND(Zbirni_podaci[[#This Row],[WORD]]<>"",Zbirni_podaci[[#This Row],[EXCEL]]<>"",Zbirni_podaci[[#This Row],[P_POINT]]<>"",Zbirni_podaci[[#This Row],[TEST_1]]<>""),"DA","NE"),"") -> DA | K87: 5 | L87: 5 | M87: 14 | N87: 12 | O87: 13 | P87: 24 | Q87: =IF(AND(Zbirni_podaci[[#This Row],[ROK]]<>"",Zbirni_podaci[[#This Row],[WORD bod]]<>"",Zbirni_podaci[[#This Row],[EXCEL bod]]<>"",Zbirni_podaci[[#This Row],[P_POINT bod]]<>"",Zbirni_podaci[[#This Row],[TEST_1 bod]]<>""),VLOOKUP(Zbirni_podaci[[#This Row],[ROK]],bodovi_aktivnost,7,FALSE),"") -> 20 | R87: =IF(AND(Zbirni_podaci[[#This Row],[Akt_nast_bod]]<>"",Zbirni_podaci[[#This Row],[Akt_vežbe_bod]]<>"",Zbirni_podaci[[#This Row],[WORD bod]]<>"",Zbirni_podaci[[#This Row],[EXCEL bod]]<>"",Zbirni_podaci[[#This Row],[P_POINT bod]]<>"",Zbirni_podaci[[#This Row],[TEST_1 bod]]<>""),ROUND(SUM(Zbirni_podaci[[#This Row],[Akt_nast_bod]:[ISPIT]]),0),"") -> 93 | S87: 10 | T87: Јун | U87: =IFERROR(IF(Zbirni_podaci[[#This Row],[ROK]]<>"",VLOOKUP(Zbirni_podaci[[#This Row],[ROK]],DATUMI,6,FALSE),""),"") -> 2019-06-14 | V87: 10 | W87: =IFERROR(IF(Zbirni_podaci[[#This Row],[ROK]]<>"",VLOOKUP(Zbirni_podaci[[#This Row],[ROK]],DATUMI,2,FALSE),""),"") -> 2019-05-27 | X87: 39 | Y87: =IFERROR(IF(Zbirni_podaci[[#This Row],[ROK]]<>"",VLOOKUP(Zbirni_podaci[[#This Row],[ROK]],DATUMI,3,FALSE),""),"") -> 2019-05-27 | Z87: 24 | AA87: =IFERROR(IF(Zbirni_podaci[[#This Row],[ROK]]<>"",VLOOKUP(Zbirni_podaci[[#This Row],[ROK]],DATUMI,4,FALSE),""),"") -> 2019-06-14 | AB87: 20 | AC87: 93 | AD87: 10 | AE87: =IFERROR(IF(Zbirni_podaci[[#This Row],[ROK]]<>"",VLOOKUP(Zbirni_podaci[[#This Row],[ROK]],DATUMI,6,FALSE),""),"") -> 2019-06-14
A88: =PODACI_STUDENTI!A87 -> 86 | B88: =PODACI_STUDENTI!B87 -> 2018/0061 | C88: =PODACI_STUDENTI!C87 -> Simićević Spasoje-Luka | D88: =PODACI_STUDENTI!D87 -> 0 | F88: =IF(OR(Predrok_Mart!F88<>"",Predrok_April!F88<>"",Januar!F88<>"",Februar!F88<>"",Juni!F88<>"",Juli!F88,Septembar!F88<>"",Oktobar!F88<>"",Oktobar_2!F88<>""),MAX(Predrok_Mart!F88,Predrok_April!F88,Januar!F88,Februar!F88,Juni!F88,Juli!F88,Septembar!F88,Oktobar!F88,Oktobar_2!F88),"") ->  | G88: =IF(OR(Predrok_Mart!G88<>"",Predrok_April!G88<>"",Januar!G88<>"",Februar!G88<>"",Juni!G88<>"",Juli!G88,Septembar!G88<>"",Oktobar!G88<>"",Oktobar_2!G88<>""),MAX(Predrok_Mart!G88,Predrok_April!G88,Januar!G88,Februar!G88,Juni!G88,Juli!G88,Septembar!G88,Oktobar!G88,Oktobar_2!G88),"") ->  | H88: =IF(OR(Predrok_Mart!H88<>"",Predrok_April!H88<>"",Januar!H88<>"",Februar!H88<>"",Juni!H88<>"",Juli!H88,Septembar!H88<>"",Oktobar!H88<>"",Oktobar_2!H88<>""),MAX(Predrok_Mart!H88,Predrok_April!H88,Januar!H88,Februar!H88,Juni!H88,Juli!H88,Septembar!H88,Oktobar!H88,Oktobar_2!H88),"") ->  | I88: =IF(OR(Predrok_Mart!I88<>"",Predrok_April!I88<>"",Januar!I88<>"",Februar!I88<>"",Juni!I88<>"",Juli!I88,Septembar!I88<>"",Oktobar!I88<>"",Oktobar_2!I88<>""),MAX(Predrok_Mart!I88,Predrok_April!I88,Januar!I88,Februar!I88,Juni!I88,Juli!I88,Septembar!I88,Oktobar!I88,Oktobar_2!I88),"") ->  | J88: =IF(Zbirni_podaci[[#This Row],[Broj indeksa]]<>"",IF(AND(Zbirni_podaci[[#This Row],[WORD]]<>"",Zbirni_podaci[[#This Row],[EXCEL]]<>"",Zbirni_podaci[[#This Row],[P_POINT]]<>"",Zbirni_podaci[[#This Row],[TEST_1]]<>""),"DA","NE"),"") -> NE | Q88: =IF(AND(Zbirni_podaci[[#This Row],[ROK]]<>"",Zbirni_podaci[[#This Row],[WORD bod]]<>"",Zbirni_podaci[[#This Row],[EXCEL bod]]<>"",Zbirni_podaci[[#This Row],[P_POINT bod]]<>"",Zbirni_podaci[[#This Row],[TEST_1 bod]]<>""),VLOOKUP(Zbirni_podaci[[#This Row],[ROK]],bodovi_aktivnost,7,FALSE),"") ->  | R88: =IF(AND(Zbirni_podaci[[#This Row],[Akt_nast_bod]]<>"",Zbirni_podaci[[#This Row],[Akt_vežbe_bod]]<>"",Zbirni_podaci[[#This Row],[WORD bod]]<>"",Zbirni_podaci[[#This Row],[EXCEL bod]]<>"",Zbirni_podaci[[#This Row],[P_POINT bod]]<>"",Zbirni_podaci[[#This Row],[TEST_1 bod]]<>""),ROUND(SUM(Zbirni_podaci[[#This Row],[Akt_nast_bod]:[ISPIT]]),0),"") ->  | U88: =IFERROR(IF(Zbirni_podaci[[#This Row],[ROK]]<>"",VLOOKUP(Zbirni_podaci[[#This Row],[ROK]],DATUMI,6,FALSE),""),"") ->  | W88: =IFERROR(IF(Zbirni_podaci[[#This Row],[ROK]]<>"",VLOOKUP(Zbirni_podaci[[#This Row],[ROK]],DATUMI,2,FALSE),""),"") ->  | Y88: =IFERROR(IF(Zbirni_podaci[[#This Row],[ROK]]<>"",VLOOKUP(Zbirni_podaci[[#This Row],[ROK]],DATUMI,3,FALSE),""),"") ->  | AA88: =IFERROR(IF(Zbirni_podaci[[#This Row],[ROK]]<>"",VLOOKUP(Zbirni_podaci[[#This Row],[ROK]],DATUMI,4,FALSE),""),"") ->  | AE88: =IFERROR(IF(Zbirni_podaci[[#This Row],[ROK]]<>"",VLOOKUP(Zbirni_podaci[[#This Row],[ROK]],DATUMI,6,FALSE),""),"") -> 
A89: =PODACI_STUDENTI!A88 -> 87 | B89: =PODACI_STUDENTI!B88 -> 2018/0113 | C89: =PODACI_STUDENTI!C88 -> Spasić Natalija | D89: =PODACI_STUDENTI!D88 -> 0 | F89: =IF(OR(Predrok_Mart!F89<>"",Predrok_April!F89<>"",Januar!F89<>"",Februar!F89<>"",Juni!F89<>"",Juli!F89,Septembar!F89<>"",Oktobar!F89<>"",Oktobar_2!F89<>""),MAX(Predrok_Mart!F89,Predrok_April!F89,Januar!F89,Februar!F89,Juni!F89,Juli!F89,Septembar!F89,Oktobar!F89,Oktobar_2!F89),"") -> 32 | G89: =IF(OR(Predrok_Mart!G89<>"",Predrok_April!G89<>"",Januar!G89<>"",Februar!G89<>"",Juni!G89<>"",Juli!G89,Septembar!G89<>"",Oktobar!G89<>"",Oktobar_2!G89<>""),MAX(Predrok_Mart!G89,Predrok_April!G89,Januar!G89,Februar!G89,Juni!G89,Juli!G89,Septembar!G89,Oktobar!G89,Oktobar_2!G89),"") -> 32 | H89: =IF(OR(Predrok_Mart!H89<>"",Predrok_April!H89<>"",Januar!H89<>"",Februar!H89<>"",Juni!H89<>"",Juli!H89,Septembar!H89<>"",Oktobar!H89<>"",Oktobar_2!H89<>""),MAX(Predrok_Mart!H89,Predrok_April!H89,Januar!H89,Februar!H89,Juni!H89,Juli!H89,Septembar!H89,Oktobar!H89,Oktobar_2!H89),"") -> 29 | I89: =IF(OR(Predrok_Mart!I89<>"",Predrok_April!I89<>"",Januar!I89<>"",Februar!I89<>"",Juni!I89<>"",Juli!I89,Septembar!I89<>"",Oktobar!I89<>"",Oktobar_2!I89<>""),MAX(Predrok_Mart!I89,Predrok_April!I89,Januar!I89,Februar!I89,Juni!I89,Juli!I89,Septembar!I89,Oktobar!I89,Oktobar_2!I89),"") -> 13 | J89: =IF(Zbirni_podaci[[#This Row],[Broj indeksa]]<>"",IF(AND(Zbirni_podaci[[#This Row],[WORD]]<>"",Zbirni_podaci[[#This Row],[EXCEL]]<>"",Zbirni_podaci[[#This Row],[P_POINT]]<>"",Zbirni_podaci[[#This Row],[TEST_1]]<>""),"DA","NE"),"") -> DA | K89: 5 | L89: 5 | M89: 14 | N89: 14 | O89: 13 | P89: 24 | Q89: =IF(AND(Zbirni_podaci[[#This Row],[ROK]]<>"",Zbirni_podaci[[#This Row],[WORD bod]]<>"",Zbirni_podaci[[#This Row],[EXCEL bod]]<>"",Zbirni_podaci[[#This Row],[P_POINT bod]]<>"",Zbirni_podaci[[#This Row],[TEST_1 bod]]<>""),VLOOKUP(Zbirni_podaci[[#This Row],[ROK]],bodovi_aktivnost,7,FALSE),"") -> 20 | R89: =IF(AND(Zbirni_podaci[[#This Row],[Akt_nast_bod]]<>"",Zbirni_podaci[[#This Row],[Akt_vežbe_bod]]<>"",Zbirni_podaci[[#This Row],[WORD bod]]<>"",Zbirni_podaci[[#This Row],[EXCEL bod]]<>"",Zbirni_podaci[[#This Row],[P_POINT bod]]<>"",Zbirni_podaci[[#This Row],[TEST_1 bod]]<>""),ROUND(SUM(Zbirni_podaci[[#This Row],[Akt_nast_bod]:[ISPIT]]),0),"") -> 95 | S89: 10 | T89: Јун | U89: =IFERROR(IF(Zbirni_podaci[[#This Row],[ROK]]<>"",VLOOKUP(Zbirni_podaci[[#This Row],[ROK]],DATUMI,6,FALSE),""),"") -> 2019-06-14 | V89: 10 | W89: =IFERROR(IF(Zbirni_podaci[[#This Row],[ROK]]<>"",VLOOKUP(Zbirni_podaci[[#This Row],[ROK]],DATUMI,2,FALSE),""),"") -> 2019-05-27 | X89: 41 | Y89: =IFERROR(IF(Zbirni_podaci[[#This Row],[ROK]]<>"",VLOOKUP(Zbirni_podaci[[#This Row],[ROK]],DATUMI,3,FALSE),""),"") -> 2019-05-27 | Z89: 24 | AA89: =IFERROR(IF(Zbirni_podaci[[#This Row],[ROK]]<>"",VLOOKUP(Zbirni_podaci[[#This Row],[ROK]],DATUMI,4,FALSE),""),"") -> 2019-06-14 | AB89: 20 | AC89: 95 | AD89: 10 | AE89: =IFERROR(IF(Zbirni_podaci[[#This Row],[ROK]]<>"",VLOOKUP(Zbirni_podaci[[#This Row],[ROK]],DATUMI,6,FALSE),""),"") -> 2019-06-14
A90: =PODACI_STUDENTI!A89 -> 88 | B90: =PODACI_STUDENTI!B89 -> 2018/0055 | C90: =PODACI_STUDENTI!C89 -> Sremčev Aleksandar | D90: =PODACI_STUDENTI!D89 -> 0 | F90: =IF(OR(Predrok_Mart!F90<>"",Predrok_April!F90<>"",Januar!F90<>"",Februar!F90<>"",Juni!F90<>"",Juli!F90,Septembar!F90<>"",Oktobar!F90<>"",Oktobar_2!F90<>""),MAX(Predrok_Mart!F90,Predrok_April!F90,Januar!F90,Februar!F90,Juni!F90,Juli!F90,Septembar!F90,Oktobar!F90,Oktobar_2!F90),"") -> 30 | G90: =IF(OR(Predrok_Mart!G90<>"",Predrok_April!G90<>"",Januar!G90<>"",Februar!G90<>"",Juni!G90<>"",Juli!G90,Septembar!G90<>"",Oktobar!G90<>"",Oktobar_2!G90<>""),MAX(Predrok_Mart!G90,Predrok_April!G90,Januar!G90,Februar!G90,Juni!G90,Juli!G90,Septembar!G90,Oktobar!G90,Oktobar_2!G90),"") -> 30 | H90: =IF(OR(Predrok_Mart!H90<>"",Predrok_April!H90<>"",Januar!H90<>"",Februar!H90<>"",Juni!H90<>"",Juli!H90,Septembar!H90<>"",Oktobar!H90<>"",Oktobar_2!H90<>""),MAX(Predrok_Mart!H90,Predrok_April!H90,Januar!H90,Februar!H90,Juni!H90,Juli!H90,Septembar!H90,Oktobar!H90,Oktobar_2!H90),"") -> 30 | I90: =IF(OR(Predrok_Mart!I90<>"",Predrok_April!I90<>"",Januar!I90<>"",Februar!I90<>"",Juni!I90<>"",Juli!I90,Septembar!I90<>"",Oktobar!I90<>"",Oktobar_2!I90<>""),MAX(Predrok_Mart!I90,Predrok_April!I90,Januar!I90,Februar!I90,Juni!I90,Juli!I90,Septembar!I90,Oktobar!I90,Oktobar_2!I90),"") -> 14 | J90: =IF(Zbirni_podaci[[#This Row],[Broj indeksa]]<>"",IF(AND(Zbirni_podaci[[#This Row],[WORD]]<>"",Zbirni_podaci[[#This Row],[EXCEL]]<>"",Zbirni_podaci[[#This Row],[P_POINT]]<>"",Zbirni_podaci[[#This Row],[TEST_1]]<>""),"DA","NE"),"") -> DA | K90: 5 | L90: 5 | M90: 13 | N90: 13 | O90: 13 | P90: 26 | Q90: =IF(AND(Zbirni_podaci[[#This Row],[ROK]]<>"",Zbirni_podaci[[#This Row],[WORD bod]]<>"",Zbirni_podaci[[#This Row],[EXCEL bod]]<>"",Zbirni_podaci[[#This Row],[P_POINT bod]]<>"",Zbirni_podaci[[#This Row],[TEST_1 bod]]<>""),VLOOKUP(Zbirni_podaci[[#This Row],[ROK]],bodovi_aktivnost,7,FALSE),"") -> 20 | R90: =IF(AND(Zbirni_podaci[[#This Row],[Akt_nast_bod]]<>"",Zbirni_podaci[[#This Row],[Akt_vežbe_bod]]<>"",Zbirni_podaci[[#This Row],[WORD bod]]<>"",Zbirni_podaci[[#This Row],[EXCEL bod]]<>"",Zbirni_podaci[[#This Row],[P_POINT bod]]<>"",Zbirni_podaci[[#This Row],[TEST_1 bod]]<>""),ROUND(SUM(Zbirni_podaci[[#This Row],[Akt_nast_bod]:[ISPIT]]),0),"") -> 96 | S90: 10 | T90: Јун | U90: =IFERROR(IF(Zbirni_podaci[[#This Row],[ROK]]<>"",VLOOKUP(Zbirni_podaci[[#This Row],[ROK]],DATUMI,6,FALSE),""),"") -> 2019-06-14 | V90: 10 | W90: =IFERROR(IF(Zbirni_podaci[[#This Row],[ROK]]<>"",VLOOKUP(Zbirni_podaci[[#This Row],[ROK]],DATUMI,2,FALSE),""),"") -> 2019-05-27 | X90: 39 | Y90: =IFERROR(IF(Zbirni_podaci[[#This Row],[ROK]]<>"",VLOOKUP(Zbirni_podaci[[#This Row],[ROK]],DATUMI,3,FALSE),""),"") -> 2019-05-27 | Z90: 26 | AA90: =IFERROR(IF(Zbirni_podaci[[#This Row],[ROK]]<>"",VLOOKUP(Zbirni_podaci[[#This Row],[ROK]],DATUMI,4,FALSE),""),"") -> 2019-06-14 | AB90: 20 | AC90: 96 | AD90: 10 | AE90: =IFERROR(IF(Zbirni_podaci[[#This Row],[ROK]]<>"",VLOOKUP(Zbirni_podaci[[#This Row],[ROK]],DATUMI,6,FALSE),""),"") -> 2019-06-14
A91: =PODACI_STUDENTI!A90 -> 89 | B91: =PODACI_STUDENTI!B90 -> 2017/0105 | C91: =PODACI_STUDENTI!C90 -> Stevanović Filip | D91: =PODACI_STUDENTI!D90 -> 0 | F91: =IF(OR(Predrok_Mart!F91<>"",Predrok_April!F91<>"",Januar!F91<>"",Februar!F91<>"",Juni!F91<>"",Juli!F91,Septembar!F91<>"",Oktobar!F91<>"",Oktobar_2!F91<>""),MAX(Predrok_Mart!F91,Predrok_April!F91,Januar!F91,Februar!F91,Juni!F91,Juli!F91,Septembar!F91,Oktobar!F91,Oktobar_2!F91),"") ->  | G91: =IF(OR(Predrok_Mart!G91<>"",Predrok_April!G91<>"",Januar!G91<>"",Februar!G91<>"",Juni!G91<>"",Juli!G91,Septembar!G91<>"",Oktobar!G91<>"",Oktobar_2!G91<>""),MAX(Predrok_Mart!G91,Predrok_April!G91,Januar!G91,Februar!G91,Juni!G91,Juli!G91,Septembar!G91,Oktobar!G91,Oktobar_2!G91),"") ->  | H91: =IF(OR(Predrok_Mart!H91<>"",Predrok_April!H91<>"",Januar!H91<>"",Februar!H91<>"",Juni!H91<>"",Juli!H91,Septembar!H91<>"",Oktobar!H91<>"",Oktobar_2!H91<>""),MAX(Predrok_Mart!H91,Predrok_April!H91,Januar!H91,Februar!H91,Juni!H91,Juli!H91,Septembar!H91,Oktobar!H91,Oktobar_2!H91),"") ->  | I91: =IF(OR(Predrok_Mart!I91<>"",Predrok_April!I91<>"",Januar!I91<>"",Februar!I91<>"",Juni!I91<>"",Juli!I91,Septembar!I91<>"",Oktobar!I91<>"",Oktobar_2!I91<>""),MAX(Predrok_Mart!I91,Predrok_April!I91,Januar!I91,Februar!I91,Juni!I91,Juli!I91,Septembar!I91,Oktobar!I91,Oktobar_2!I91),"") ->  | J91: =IF(Zbirni_podaci[[#This Row],[Broj indeksa]]<>"",IF(AND(Zbirni_podaci[[#This Row],[WORD]]<>"",Zbirni_podaci[[#This Row],[EXCEL]]<>"",Zbirni_podaci[[#This Row],[P_POINT]]<>"",Zbirni_podaci[[#This Row],[TEST_1]]<>""),"DA","NE"),"") -> NE | Q91: =IF(AND(Zbirni_podaci[[#This Row],[ROK]]<>"",Zbirni_podaci[[#This Row],[WORD bod]]<>"",Zbirni_podaci[[#This Row],[EXCEL bod]]<>"",Zbirni_podaci[[#This Row],[P_POINT bod]]<>"",Zbirni_podaci[[#This Row],[TEST_1 bod]]<>""),VLOOKUP(Zbirni_podaci[[#This Row],[ROK]],bodovi_aktivnost,7,FALSE),"") ->  | R91: =IF(AND(Zbirni_podaci[[#This Row],[Akt_nast_bod]]<>"",Zbirni_podaci[[#This Row],[Akt_vežbe_bod]]<>"",Zbirni_podaci[[#This Row],[WORD bod]]<>"",Zbirni_podaci[[#This Row],[EXCEL bod]]<>"",Zbirni_podaci[[#This Row],[P_POINT bod]]<>"",Zbirni_podaci[[#This Row],[TEST_1 bod]]<>""),ROUND(SUM(Zbirni_podaci[[#This Row],[Akt_nast_bod]:[ISPIT]]),0),"") ->  | U91: =IFERROR(IF(Zbirni_podaci[[#This Row],[ROK]]<>"",VLOOKUP(Zbirni_podaci[[#This Row],[ROK]],DATUMI,6,FALSE),""),"") ->  | W91: =IFERROR(IF(Zbirni_podaci[[#This Row],[ROK]]<>"",VLOOKUP(Zbirni_podaci[[#This Row],[ROK]],DATUMI,2,FALSE),""),"") ->  | Y91: =IFERROR(IF(Zbirni_podaci[[#This Row],[ROK]]<>"",VLOOKUP(Zbirni_podaci[[#This Row],[ROK]],DATUMI,3,FALSE),""),"") ->  | AA91: =IFERROR(IF(Zbirni_podaci[[#This Row],[ROK]]<>"",VLOOKUP(Zbirni_podaci[[#This Row],[ROK]],DATUMI,4,FALSE),""),"") ->  | AE91: =IFERROR(IF(Zbirni_podaci[[#This Row],[ROK]]<>"",VLOOKUP(Zbirni_podaci[[#This Row],[ROK]],DATUMI,6,FALSE),""),"") -> 
A92: =PODACI_STUDENTI!A91 -> 90 | B92: =PODACI_STUDENTI!B91 -> 2018/0034 | C92: =PODACI_STUDENTI!C91 -> Stoilkovski Anja | D92: =PODACI_STUDENTI!D91 -> 0 | F92: =IF(OR(Predrok_Mart!F92<>"",Predrok_April!F92<>"",Januar!F92<>"",Februar!F92<>"",Juni!F92<>"",Juli!F92,Septembar!F92<>"",Oktobar!F92<>"",Oktobar_2!F92<>""),MAX(Predrok_Mart!F92,Predrok_April!F92,Januar!F92,Februar!F92,Juni!F92,Juli!F92,Septembar!F92,Oktobar!F92,Oktobar_2!F92),"") -> 32 | G92: =IF(OR(Predrok_Mart!G92<>"",Predrok_April!G92<>"",Januar!G92<>"",Februar!G92<>"",Juni!G92<>"",Juli!G92,Septembar!G92<>"",Oktobar!G92<>"",Oktobar_2!G92<>""),MAX(Predrok_Mart!G92,Predrok_April!G92,Januar!G92,Februar!G92,Juni!G92,Juli!G92,Septembar!G92,Oktobar!G92,Oktobar_2!G92),"") -> 32 | H92: =IF(OR(Predrok_Mart!H92<>"",Predrok_April!H92<>"",Januar!H92<>"",Februar!H92<>"",Juni!H92<>"",Juli!H92,Septembar!H92<>"",Oktobar!H92<>"",Oktobar_2!H92<>""),MAX(Predrok_Mart!H92,Predrok_April!H92,Januar!H92,Februar!H92,Juni!H92,Juli!H92,Septembar!H92,Oktobar!H92,Oktobar_2!H92),"") -> 30 | I92: =IF(OR(Predrok_Mart!I92<>"",Predrok_April!I92<>"",Januar!I92<>"",Februar!I92<>"",Juni!I92<>"",Juli!I92,Septembar!I92<>"",Oktobar!I92<>"",Oktobar_2!I92<>""),MAX(Predrok_Mart!I92,Predrok_April!I92,Januar!I92,Februar!I92,Juni!I92,Juli!I92,Septembar!I92,Oktobar!I92,Oktobar_2!I92),"") -> 11 | J92: =IF(Zbirni_podaci[[#This Row],[Broj indeksa]]<>"",IF(AND(Zbirni_podaci[[#This Row],[WORD]]<>"",Zbirni_podaci[[#This Row],[EXCEL]]<>"",Zbirni_podaci[[#This Row],[P_POINT]]<>"",Zbirni_podaci[[#This Row],[TEST_1]]<>""),"DA","NE"),"") -> DA | K92: 5 | L92: 5 | M92: 14 | N92: 14 | O92: 13 | P92: 21 | Q92: =IF(AND(Zbirni_podaci[[#This Row],[ROK]]<>"",Zbirni_podaci[[#This Row],[WORD bod]]<>"",Zbirni_podaci[[#This Row],[EXCEL bod]]<>"",Zbirni_podaci[[#This Row],[P_POINT bod]]<>"",Zbirni_podaci[[#This Row],[TEST_1 bod]]<>""),VLOOKUP(Zbirni_podaci[[#This Row],[ROK]],bodovi_aktivnost,7,FALSE),"") -> 20 | R92: =IF(AND(Zbirni_podaci[[#This Row],[Akt_nast_bod]]<>"",Zbirni_podaci[[#This Row],[Akt_vežbe_bod]]<>"",Zbirni_podaci[[#This Row],[WORD bod]]<>"",Zbirni_podaci[[#This Row],[EXCEL bod]]<>"",Zbirni_podaci[[#This Row],[P_POINT bod]]<>"",Zbirni_podaci[[#This Row],[TEST_1 bod]]<>""),ROUND(SUM(Zbirni_podaci[[#This Row],[Akt_nast_bod]:[ISPIT]]),0),"") -> 92 | S92: 10 | T92: Јун | U92: =IFERROR(IF(Zbirni_podaci[[#This Row],[ROK]]<>"",VLOOKUP(Zbirni_podaci[[#This Row],[ROK]],DATUMI,6,FALSE),""),"") -> 2019-06-14 | V92: 10 | W92: =IFERROR(IF(Zbirni_podaci[[#This Row],[ROK]]<>"",VLOOKUP(Zbirni_podaci[[#This Row],[ROK]],DATUMI,2,FALSE),""),"") -> 2019-05-27 | X92: 41 | Y92: =IFERROR(IF(Zbirni_podaci[[#This Row],[ROK]]<>"",VLOOKUP(Zbirni_podaci[[#This Row],[ROK]],DATUMI,3,FALSE),""),"") -> 2019-05-27 | Z92: 21 | AA92: =IFERROR(IF(Zbirni_podaci[[#This Row],[ROK]]<>"",VLOOKUP(Zbirni_podaci[[#This Row],[ROK]],DATUMI,4,FALSE),""),"") -> 2019-06-14 | AB92: 20 | AC92: 92 | AD92: 10 | AE92: =IFERROR(IF(Zbirni_podaci[[#This Row],[ROK]]<>"",VLOOKUP(Zbirni_podaci[[#This Row],[ROK]],DATUMI,6,FALSE),""),"") -> 2019-06-14
A93: =PODACI_STUDENTI!A92 -> 91 | B93: =PODACI_STUDENTI!B92 -> 2018/0013 | C93: =PODACI_STUDENTI!C92 -> Stojanović Bogdan | D93: =PODACI_STUDENTI!D92 -> 0 | F93: =IF(OR(Predrok_Mart!F93<>"",Predrok_April!F93<>"",Januar!F93<>"",Februar!F93<>"",Juni!F93<>"",Juli!F93,Septembar!F93<>"",Oktobar!F93<>"",Oktobar_2!F93<>""),MAX(Predrok_Mart!F93,Predrok_April!F93,Januar!F93,Februar!F93,Juni!F93,Juli!F93,Septembar!F93,Oktobar!F93,Oktobar_2!F93),"") -> 26 | G93: =IF(OR(Predrok_Mart!G93<>"",Predrok_April!G93<>"",Januar!G93<>"",Februar!G93<>"",Juni!G93<>"",Juli!G93,Septembar!G93<>"",Oktobar!G93<>"",Oktobar_2!G93<>""),MAX(Predrok_Mart!G93,Predrok_April!G93,Januar!G93,Februar!G93,Juni!G93,Juli!G93,Septembar!G93,Oktobar!G93,Oktobar_2!G93),"") -> 29 | H93: =IF(OR(Predrok_Mart!H93<>"",Predrok_April!H93<>"",Januar!H93<>"",Februar!H93<>"",Juni!H93<>"",Juli!H93,Septembar!H93<>"",Oktobar!H93<>"",Oktobar_2!H93<>""),MAX(Predrok_Mart!H93,Predrok_April!H93,Januar!H93,Februar!H93,Juni!H93,Juli!H93,Septembar!H93,Oktobar!H93,Oktobar_2!H93),"") -> 27 | I93: =IF(OR(Predrok_Mart!I93<>"",Predrok_April!I93<>"",Januar!I93<>"",Februar!I93<>"",Juni!I93<>"",Juli!I93,Septembar!I93<>"",Oktobar!I93<>"",Oktobar_2!I93<>""),MAX(Predrok_Mart!I93,Predrok_April!I93,Januar!I93,Februar!I93,Juni!I93,Juli!I93,Septembar!I93,Oktobar!I93,Oktobar_2!I93),"") -> 12 | J93: =IF(Zbirni_podaci[[#This Row],[Broj indeksa]]<>"",IF(AND(Zbirni_podaci[[#This Row],[WORD]]<>"",Zbirni_podaci[[#This Row],[EXCEL]]<>"",Zbirni_podaci[[#This Row],[P_POINT]]<>"",Zbirni_podaci[[#This Row],[TEST_1]]<>""),"DA","NE"),"") -> DA | K93: 5 | L93: 5 | M93: 11 | N93: 13 | O93: 12 | P93: 22 | Q93: =IF(AND(Zbirni_podaci[[#This Row],[ROK]]<>"",Zbirni_podaci[[#This Row],[WORD bod]]<>"",Zbirni_podaci[[#This Row],[EXCEL bod]]<>"",Zbirni_podaci[[#This Row],[P_POINT bod]]<>"",Zbirni_podaci[[#This Row],[TEST_1 bod]]<>""),VLOOKUP(Zbirni_podaci[[#This Row],[ROK]],bodovi_aktivnost,7,FALSE),"") -> 20 | R93: =IF(AND(Zbirni_podaci[[#This Row],[Akt_nast_bod]]<>"",Zbirni_podaci[[#This Row],[Akt_vežbe_bod]]<>"",Zbirni_podaci[[#This Row],[WORD bod]]<>"",Zbirni_podaci[[#This Row],[EXCEL bod]]<>"",Zbirni_podaci[[#This Row],[P_POINT bod]]<>"",Zbirni_podaci[[#This Row],[TEST_1 bod]]<>""),ROUND(SUM(Zbirni_podaci[[#This Row],[Akt_nast_bod]:[ISPIT]]),0),"") -> 88 | S93: 9 | T93: Јун | U93: =IFERROR(IF(Zbirni_podaci[[#This Row],[ROK]]<>"",VLOOKUP(Zbirni_podaci[[#This Row],[ROK]],DATUMI,6,FALSE),""),"") -> 2019-06-14 | V93: 10 | W93: =IFERROR(IF(Zbirni_podaci[[#This Row],[ROK]]<>"",VLOOKUP(Zbirni_podaci[[#This Row],[ROK]],DATUMI,2,FALSE),""),"") -> 2019-05-27 | X93: 36 | Y93: =IFERROR(IF(Zbirni_podaci[[#This Row],[ROK]]<>"",VLOOKUP(Zbirni_podaci[[#This Row],[ROK]],DATUMI,3,FALSE),""),"") -> 2019-05-27 | Z93: 22 | AA93: =IFERROR(IF(Zbirni_podaci[[#This Row],[ROK]]<>"",VLOOKUP(Zbirni_podaci[[#This Row],[ROK]],DATUMI,4,FALSE),""),"") -> 2019-06-14 | AB93: 20 | AC93: 88 | AD93: 9 | AE93: =IFERROR(IF(Zbirni_podaci[[#This Row],[ROK]]<>"",VLOOKUP(Zbirni_podaci[[#This Row],[ROK]],DATUMI,6,FALSE),""),"") -> 2019-06-14
A94: =PODACI_STUDENTI!A93 -> 92 | B94: =PODACI_STUDENTI!B93 -> 2018/0129 | C94: =PODACI_STUDENTI!C93 -> Stojanović Ivona | D94: =PODACI_STUDENTI!D93 -> 0 | F94: =IF(OR(Predrok_Mart!F94<>"",Predrok_April!F94<>"",Januar!F94<>"",Februar!F94<>"",Juni!F94<>"",Juli!F94,Septembar!F94<>"",Oktobar!F94<>"",Oktobar_2!F94<>""),MAX(Predrok_Mart!F94,Predrok_April!F94,Januar!F94,Februar!F94,Juni!F94,Juli!F94,Septembar!F94,Oktobar!F94,Oktobar_2!F94),"") -> 28 | G94: =IF(OR(Predrok_Mart!G94<>"",Predrok_April!G94<>"",Januar!G94<>"",Februar!G94<>"",Juni!G94<>"",Juli!G94,Septembar!G94<>"",Oktobar!G94<>"",Oktobar_2!G94<>""),MAX(Predrok_Mart!G94,Predrok_April!G94,Januar!G94,Februar!G94,Juni!G94,Juli!G94,Septembar!G94,Oktobar!G94,Oktobar_2!G94),"") -> 27 | H94: =IF(OR(Predrok_Mart!H94<>"",Predrok_April!H94<>"",Januar!H94<>"",Februar!H94<>"",Juni!H94<>"",Juli!H94,Septembar!H94<>"",Oktobar!H94<>"",Oktobar_2!H94<>""),MAX(Predrok_Mart!H94,Predrok_April!H94,Januar!H94,Februar!H94,Juni!H94,Juli!H94,Septembar!H94,Oktobar!H94,Oktobar_2!H94),"") -> 29 | I94: =IF(OR(Predrok_Mart!I94<>"",Predrok_April!I94<>"",Januar!I94<>"",Februar!I94<>"",Juni!I94<>"",Juli!I94,Septembar!I94<>"",Oktobar!I94<>"",Oktobar_2!I94<>""),MAX(Predrok_Mart!I94,Predrok_April!I94,Januar!I94,Februar!I94,Juni!I94,Juli!I94,Septembar!I94,Oktobar!I94,Oktobar_2!I94),"") -> 11 | J94: =IF(Zbirni_podaci[[#This Row],[Broj indeksa]]<>"",IF(AND(Zbirni_podaci[[#This Row],[WORD]]<>"",Zbirni_podaci[[#This Row],[EXCEL]]<>"",Zbirni_podaci[[#This Row],[P_POINT]]<>"",Zbirni_podaci[[#This Row],[TEST_1]]<>""),"DA","NE"),"") -> DA | K94: 5 | L94: 5 | M94: 12 | N94: 12 | O94: 13 | P94: 21 | Q94: =IF(AND(Zbirni_podaci[[#This Row],[ROK]]<>"",Zbirni_podaci[[#This Row],[WORD bod]]<>"",Zbirni_podaci[[#This Row],[EXCEL bod]]<>"",Zbirni_podaci[[#This Row],[P_POINT bod]]<>"",Zbirni_podaci[[#This Row],[TEST_1 bod]]<>""),VLOOKUP(Zbirni_podaci[[#This Row],[ROK]],bodovi_aktivnost,7,FALSE),"") -> 20 | R94: =IF(AND(Zbirni_podaci[[#This Row],[Akt_nast_bod]]<>"",Zbirni_podaci[[#This Row],[Akt_vežbe_bod]]<>"",Zbirni_podaci[[#This Row],[WORD bod]]<>"",Zbirni_podaci[[#This Row],[EXCEL bod]]<>"",Zbirni_podaci[[#This Row],[P_POINT bod]]<>"",Zbirni_podaci[[#This Row],[TEST_1 bod]]<>""),ROUND(SUM(Zbirni_podaci[[#This Row],[Akt_nast_bod]:[ISPIT]]),0),"") -> 87 | S94: 9 | T94: Јун | U94: =IFERROR(IF(Zbirni_podaci[[#This Row],[ROK]]<>"",VLOOKUP(Zbirni_podaci[[#This Row],[ROK]],DATUMI,6,FALSE),""),"") -> 2019-06-14 | V94: 10 | W94: =IFERROR(IF(Zbirni_podaci[[#This Row],[ROK]]<>"",VLOOKUP(Zbirni_podaci[[#This Row],[ROK]],DATUMI,2,FALSE),""),"") -> 2019-05-27 | X94: 37 | Y94: =IFERROR(IF(Zbirni_podaci[[#This Row],[ROK]]<>"",VLOOKUP(Zbirni_podaci[[#This Row],[ROK]],DATUMI,3,FALSE),""),"") -> 2019-05-27 | Z94: 21 | AA94: =IFERROR(IF(Zbirni_podaci[[#This Row],[ROK]]<>"",VLOOKUP(Zbirni_podaci[[#This Row],[ROK]],DATUMI,4,FALSE),""),"") -> 2019-06-14 | AB94: 20 | AC94: 87 | AD94: 9 | AE94: =IFERROR(IF(Zbirni_podaci[[#This Row],[ROK]]<>"",VLOOKUP(Zbirni_podaci[[#This Row],[ROK]],DATUMI,6,FALSE),""),"") -> 2019-06-14
A95: =PODACI_STUDENTI!A94 -> 93 | B95: =PODACI_STUDENTI!B94 -> 2018/0064 | C95: =PODACI_STUDENTI!C94 -> Todorović Nikolina | D95: =PODACI_STUDENTI!D94 -> 0 | F95: =IF(OR(Predrok_Mart!F95<>"",Predrok_April!F95<>"",Januar!F95<>"",Februar!F95<>"",Juni!F95<>"",Juli!F95,Septembar!F95<>"",Oktobar!F95<>"",Oktobar_2!F95<>""),MAX(Predrok_Mart!F95,Predrok_April!F95,Januar!F95,Februar!F95,Juni!F95,Juli!F95,Septembar!F95,Oktobar!F95,Oktobar_2!F95),"") -> 26 | G95: =IF(OR(Predrok_Mart!G95<>"",Predrok_April!G95<>"",Januar!G95<>"",Februar!G95<>"",Juni!G95<>"",Juli!G95,Septembar!G95<>"",Oktobar!G95<>"",Oktobar_2!G95<>""),MAX(Predrok_Mart!G95,Predrok_April!G95,Januar!G95,Februar!G95,Juni!G95,Juli!G95,Septembar!G95,Oktobar!G95,Oktobar_2!G95),"") -> 27 | H95: =IF(OR(Predrok_Mart!H95<>"",Predrok_April!H95<>"",Januar!H95<>"",Februar!H95<>"",Juni!H95<>"",Juli!H95,Septembar!H95<>"",Oktobar!H95<>"",Oktobar_2!H95<>""),MAX(Predrok_Mart!H95,Predrok_April!H95,Januar!H95,Februar!H95,Juni!H95,Juli!H95,Septembar!H95,Oktobar!H95,Oktobar_2!H95),"") -> 28 | I95: =IF(OR(Predrok_Mart!I95<>"",Predrok_April!I95<>"",Januar!I95<>"",Februar!I95<>"",Juni!I95<>"",Juli!I95,Septembar!I95<>"",Oktobar!I95<>"",Oktobar_2!I95<>""),MAX(Predrok_Mart!I95,Predrok_April!I95,Januar!I95,Februar!I95,Juni!I95,Juli!I95,Septembar!I95,Oktobar!I95,Oktobar_2!I95),"") -> 12 | J95: =IF(Zbirni_podaci[[#This Row],[Broj indeksa]]<>"",IF(AND(Zbirni_podaci[[#This Row],[WORD]]<>"",Zbirni_podaci[[#This Row],[EXCEL]]<>"",Zbirni_podaci[[#This Row],[P_POINT]]<>"",Zbirni_podaci[[#This Row],[TEST_1]]<>""),"DA","NE"),"") -> DA | K95: 5 | L95: 5 | M95: 11 | N95: 12 | O95: 12 | P95: 22 | Q95: =IF(AND(Zbirni_podaci[[#This Row],[ROK]]<>"",Zbirni_podaci[[#This Row],[WORD bod]]<>"",Zbirni_podaci[[#This Row],[EXCEL bod]]<>"",Zbirni_podaci[[#This Row],[P_POINT bod]]<>"",Zbirni_podaci[[#This Row],[TEST_1 bod]]<>""),VLOOKUP(Zbirni_podaci[[#This Row],[ROK]],bodovi_aktivnost,7,FALSE),"") -> 20 | R95: =IF(AND(Zbirni_podaci[[#This Row],[Akt_nast_bod]]<>"",Zbirni_podaci[[#This Row],[Akt_vežbe_bod]]<>"",Zbirni_podaci[[#This Row],[WORD bod]]<>"",Zbirni_podaci[[#This Row],[EXCEL bod]]<>"",Zbirni_podaci[[#This Row],[P_POINT bod]]<>"",Zbirni_podaci[[#This Row],[TEST_1 bod]]<>""),ROUND(SUM(Zbirni_podaci[[#This Row],[Akt_nast_bod]:[ISPIT]]),0),"") -> 88 | S95: 9 | T95: Јун | U95: =IFERROR(IF(Zbirni_podaci[[#This Row],[ROK]]<>"",VLOOKUP(Zbirni_podaci[[#This Row],[ROK]],DATUMI,6,FALSE),""),"") -> 2019-06-14 | V95: 10 | W95: =IFERROR(IF(Zbirni_podaci[[#This Row],[ROK]]<>"",VLOOKUP(Zbirni_podaci[[#This Row],[ROK]],DATUMI,2,FALSE),""),"") -> 2019-05-27 | X95: 35 | Y95: =IFERROR(IF(Zbirni_podaci[[#This Row],[ROK]]<>"",VLOOKUP(Zbirni_podaci[[#This Row],[ROK]],DATUMI,3,FALSE),""),"") -> 2019-05-27 | Z95: 22 | AA95: =IFERROR(IF(Zbirni_podaci[[#This Row],[ROK]]<>"",VLOOKUP(Zbirni_podaci[[#This Row],[ROK]],DATUMI,4,FALSE),""),"") -> 2019-06-14 | AB95: 20 | AC95: 88 | AD95: 9 | AE95: =IFERROR(IF(Zbirni_podaci[[#This Row],[ROK]]<>"",VLOOKUP(Zbirni_podaci[[#This Row],[ROK]],DATUMI,6,FALSE),""),"") -> 2019-06-14
A96: =PODACI_STUDENTI!A95 -> 94 | B96: =PODACI_STUDENTI!B95 -> 2018/0053 | C96: =PODACI_STUDENTI!C95 -> Topalović Pavle | D96: =PODACI_STUDENTI!D95 -> 0 | F96: =IF(OR(Predrok_Mart!F96<>"",Predrok_April!F96<>"",Januar!F96<>"",Februar!F96<>"",Juni!F96<>"",Juli!F96,Septembar!F96<>"",Oktobar!F96<>"",Oktobar_2!F96<>""),MAX(Predrok_Mart!F96,Predrok_April!F96,Januar!F96,Februar!F96,Juni!F96,Juli!F96,Septembar!F96,Oktobar!F96,Oktobar_2!F96),"") -> 32 | G96: =IF(OR(Predrok_Mart!G96<>"",Predrok_April!G96<>"",Januar!G96<>"",Februar!G96<>"",Juni!G96<>"",Juli!G96,Septembar!G96<>"",Oktobar!G96<>"",Oktobar_2!G96<>""),MAX(Predrok_Mart!G96,Predrok_April!G96,Januar!G96,Februar!G96,Juni!G96,Juli!G96,Septembar!G96,Oktobar!G96,Oktobar_2!G96),"") -> 31 | H96: =IF(OR(Predrok_Mart!H96<>"",Predrok_April!H96<>"",Januar!H96<>"",Februar!H96<>"",Juni!H96<>"",Juli!H96,Septembar!H96<>"",Oktobar!H96<>"",Oktobar_2!H96<>""),MAX(Predrok_Mart!H96,Predrok_April!H96,Januar!H96,Februar!H96,Juni!H96,Juli!H96,Septembar!H96,Oktobar!H96,Oktobar_2!H96),"") -> 27 | I96: =IF(OR(Predrok_Mart!I96<>"",Predrok_April!I96<>"",Januar!I96<>"",Februar!I96<>"",Juni!I96<>"",Juli!I96,Septembar!I96<>"",Oktobar!I96<>"",Oktobar_2!I96<>""),MAX(Predrok_Mart!I96,Predrok_April!I96,Januar!I96,Februar!I96,Juni!I96,Juli!I96,Septembar!I96,Oktobar!I96,Oktobar_2!I96),"") -> 12 | J96: =IF(Zbirni_podaci[[#This Row],[Broj indeksa]]<>"",IF(AND(Zbirni_podaci[[#This Row],[WORD]]<>"",Zbirni_podaci[[#This Row],[EXCEL]]<>"",Zbirni_podaci[[#This Row],[P_POINT]]<>"",Zbirni_podaci[[#This Row],[TEST_1]]<>""),"DA","NE"),"") -> DA | K96: 5 | L96: 5 | M96: 14 | N96: 14 | O96: 12 | P96: 22 | Q96: =IF(AND(Zbirni_podaci[[#This Row],[ROK]]<>"",Zbirni_podaci[[#This Row],[WORD bod]]<>"",Zbirni_podaci[[#This Row],[EXCEL bod]]<>"",Zbirni_podaci[[#This Row],[P_POINT bod]]<>"",Zbirni_podaci[[#This Row],[TEST_1 bod]]<>""),VLOOKUP(Zbirni_podaci[[#This Row],[ROK]],bodovi_aktivnost,7,FALSE),"") -> 20 | R96: =IF(AND(Zbirni_podaci[[#This Row],[Akt_nast_bod]]<>"",Zbirni_podaci[[#This Row],[Akt_vežbe_bod]]<>"",Zbirni_podaci[[#This Row],[WORD bod]]<>"",Zbirni_podaci[[#This Row],[EXCEL bod]]<>"",Zbirni_podaci[[#This Row],[P_POINT bod]]<>"",Zbirni_podaci[[#This Row],[TEST_1 bod]]<>""),ROUND(SUM(Zbirni_podaci[[#This Row],[Akt_nast_bod]:[ISPIT]]),0),"") -> 92 | S96: 10 | T96: Јун | U96: =IFERROR(IF(Zbirni_podaci[[#This Row],[ROK]]<>"",VLOOKUP(Zbirni_podaci[[#This Row],[ROK]],DATUMI,6,FALSE),""),"") -> 2019-06-14 | V96: 10 | W96: =IFERROR(IF(Zbirni_podaci[[#This Row],[ROK]]<>"",VLOOKUP(Zbirni_podaci[[#This Row],[ROK]],DATUMI,2,FALSE),""),"") -> 2019-05-27 | X96: 39 | Y96: =IFERROR(IF(Zbirni_podaci[[#This Row],[ROK]]<>"",VLOOKUP(Zbirni_podaci[[#This Row],[ROK]],DATUMI,3,FALSE),""),"") -> 2019-05-27 | Z96: 22 | AA96: =IFERROR(IF(Zbirni_podaci[[#This Row],[ROK]]<>"",VLOOKUP(Zbirni_podaci[[#This Row],[ROK]],DATUMI,4,FALSE),""),"") -> 2019-06-14 | AB96: 20 | AC96: 92 | AD96: 10 | AE96: =IFERROR(IF(Zbirni_podaci[[#This Row],[ROK]]<>"",VLOOKUP(Zbirni_podaci[[#This Row],[ROK]],DATUMI,6,FALSE),""),"") -> 2019-06-14
A97: =PODACI_STUDENTI!A96 -> 95 | B97: =PODACI_STUDENTI!B96 -> 2018/0062 | C97: =PODACI_STUDENTI!C96 -> Ćurčić Ognjen | D97: =PODACI_STUDENTI!D96 -> 0 | F97: =IF(OR(Predrok_Mart!F97<>"",Predrok_April!F97<>"",Januar!F97<>"",Februar!F97<>"",Juni!F97<>"",Juli!F97,Septembar!F97<>"",Oktobar!F97<>"",Oktobar_2!F97<>""),MAX(Predrok_Mart!F97,Predrok_April!F97,Januar!F97,Februar!F97,Juni!F97,Juli!F97,Septembar!F97,Oktobar!F97,Oktobar_2!F97),"") -> 26 | G97: =IF(OR(Predrok_Mart!G97<>"",Predrok_April!G97<>"",Januar!G97<>"",Februar!G97<>"",Juni!G97<>"",Juli!G97,Septembar!G97<>"",Oktobar!G97<>"",Oktobar_2!G97<>""),MAX(Predrok_Mart!G97,Predrok_April!G97,Januar!G97,Februar!G97,Juni!G97,Juli!G97,Septembar!G97,Oktobar!G97,Oktobar_2!G97),"") -> 29 | H97: =IF(OR(Predrok_Mart!H97<>"",Predrok_April!H97<>"",Januar!H97<>"",Februar!H97<>"",Juni!H97<>"",Juli!H97,Septembar!H97<>"",Oktobar!H97<>"",Oktobar_2!H97<>""),MAX(Predrok_Mart!H97,Predrok_April!H97,Januar!H97,Februar!H97,Juni!H97,Juli!H97,Septembar!H97,Oktobar!H97,Oktobar_2!H97),"") -> 29 | I97: =IF(OR(Predrok_Mart!I97<>"",Predrok_April!I97<>"",Januar!I97<>"",Februar!I97<>"",Juni!I97<>"",Juli!I97,Septembar!I97<>"",Oktobar!I97<>"",Oktobar_2!I97<>""),MAX(Predrok_Mart!I97,Predrok_April!I97,Januar!I97,Februar!I97,Juni!I97,Juli!I97,Septembar!I97,Oktobar!I97,Oktobar_2!I97),"") -> 15 | J97: =IF(Zbirni_podaci[[#This Row],[Broj indeksa]]<>"",IF(AND(Zbirni_podaci[[#This Row],[WORD]]<>"",Zbirni_podaci[[#This Row],[EXCEL]]<>"",Zbirni_podaci[[#This Row],[P_POINT]]<>"",Zbirni_podaci[[#This Row],[TEST_1]]<>""),"DA","NE"),"") -> DA | K97: 5 | L97: 5 | M97: 11 | N97: 13 | O97: 13 | P97: 28 | Q97: =IF(AND(Zbirni_podaci[[#This Row],[ROK]]<>"",Zbirni_podaci[[#This Row],[WORD bod]]<>"",Zbirni_podaci[[#This Row],[EXCEL bod]]<>"",Zbirni_podaci[[#This Row],[P_POINT bod]]<>"",Zbirni_podaci[[#This Row],[TEST_1 bod]]<>""),VLOOKUP(Zbirni_podaci[[#This Row],[ROK]],bodovi_aktivnost,7,FALSE),"") -> 20 | R97: =IF(AND(Zbirni_podaci[[#This Row],[Akt_nast_bod]]<>"",Zbirni_podaci[[#This Row],[Akt_vežbe_bod]]<>"",Zbirni_podaci[[#This Row],[WORD bod]]<>"",Zbirni_podaci[[#This Row],[EXCEL bod]]<>"",Zbirni_podaci[[#This Row],[P_POINT bod]]<>"",Zbirni_podaci[[#This Row],[TEST_1 bod]]<>""),ROUND(SUM(Zbirni_podaci[[#This Row],[Akt_nast_bod]:[ISPIT]]),0),"") -> 95 | S97: 10 | T97: Јун | U97: =IFERROR(IF(Zbirni_podaci[[#This Row],[ROK]]<>"",VLOOKUP(Zbirni_podaci[[#This Row],[ROK]],DATUMI,6,FALSE),""),"") -> 2019-06-14 | V97: 10 | W97: =IFERROR(IF(Zbirni_podaci[[#This Row],[ROK]]<>"",VLOOKUP(Zbirni_podaci[[#This Row],[ROK]],DATUMI,2,FALSE),""),"") -> 2019-05-27 | X97: 37 | Y97: =IFERROR(IF(Zbirni_podaci[[#This Row],[ROK]]<>"",VLOOKUP(Zbirni_podaci[[#This Row],[ROK]],DATUMI,3,FALSE),""),"") -> 2019-05-27 | Z97: 28 | AA97: =IFERROR(IF(Zbirni_podaci[[#This Row],[ROK]]<>"",VLOOKUP(Zbirni_podaci[[#This Row],[ROK]],DATUMI,4,FALSE),""),"") -> 2019-06-14 | AB97: 20 | AC97: 95 | AD97: 10 | AE97: =IFERROR(IF(Zbirni_podaci[[#This Row],[ROK]]<>"",VLOOKUP(Zbirni_podaci[[#This Row],[ROK]],DATUMI,6,FALSE),""),"") -> 2019-06-14
A98: =PODACI_STUDENTI!A97 -> 96 | B98: =PODACI_STUDENTI!B97 -> 2018/0016 | C98: =PODACI_STUDENTI!C97 -> Filipović Ana | D98: =PODACI_STUDENTI!D97 -> 0 | F98: =IF(OR(Predrok_Mart!F98<>"",Predrok_April!F98<>"",Januar!F98<>"",Februar!F98<>"",Juni!F98<>"",Juli!F98,Septembar!F98<>"",Oktobar!F98<>"",Oktobar_2!F98<>""),MAX(Predrok_Mart!F98,Predrok_April!F98,Januar!F98,Februar!F98,Juni!F98,Juli!F98,Septembar!F98,Oktobar!F98,Oktobar_2!F98),"") -> 26 | G98: =IF(OR(Predrok_Mart!G98<>"",Predrok_April!G98<>"",Januar!G98<>"",Februar!G98<>"",Juni!G98<>"",Juli!G98,Septembar!G98<>"",Oktobar!G98<>"",Oktobar_2!G98<>""),MAX(Predrok_Mart!G98,Predrok_April!G98,Januar!G98,Februar!G98,Juni!G98,Juli!G98,Septembar!G98,Oktobar!G98,Oktobar_2!G98),"") -> 31 | H98: =IF(OR(Predrok_Mart!H98<>"",Predrok_April!H98<>"",Januar!H98<>"",Februar!H98<>"",Juni!H98<>"",Juli!H98,Septembar!H98<>"",Oktobar!H98<>"",Oktobar_2!H98<>""),MAX(Predrok_Mart!H98,Predrok_April!H98,Januar!H98,Februar!H98,Juni!H98,Juli!H98,Septembar!H98,Oktobar!H98,Oktobar_2!H98),"") -> 28 | I98: =IF(OR(Predrok_Mart!I98<>"",Predrok_April!I98<>"",Januar!I98<>"",Februar!I98<>"",Juni!I98<>"",Juli!I98,Septembar!I98<>"",Oktobar!I98<>"",Oktobar_2!I98<>""),MAX(Predrok_Mart!I98,Predrok_April!I98,Januar!I98,Februar!I98,Juni!I98,Juli!I98,Septembar!I98,Oktobar!I98,Oktobar_2!I98),"") -> 11 | J98: =IF(Zbirni_podaci[[#This Row],[Broj indeksa]]<>"",IF(AND(Zbirni_podaci[[#This Row],[WORD]]<>"",Zbirni_podaci[[#This Row],[EXCEL]]<>"",Zbirni_podaci[[#This Row],[P_POINT]]<>"",Zbirni_podaci[[#This Row],[TEST_1]]<>""),"DA","NE"),"") -> DA | K98: 5 | L98: 5 | M98: 11 | N98: 14 | O98: 12 | P98: 21 | Q98: =IF(AND(Zbirni_podaci[[#This Row],[ROK]]<>"",Zbirni_podaci[[#This Row],[WORD bod]]<>"",Zbirni_podaci[[#This Row],[EXCEL bod]]<>"",Zbirni_podaci[[#This Row],[P_POINT bod]]<>"",Zbirni_podaci[[#This Row],[TEST_1 bod]]<>""),VLOOKUP(Zbirni_podaci[[#This Row],[ROK]],bodovi_aktivnost,7,FALSE),"") -> 20 | R98: =IF(AND(Zbirni_podaci[[#This Row],[Akt_nast_bod]]<>"",Zbirni_podaci[[#This Row],[Akt_vežbe_bod]]<>"",Zbirni_podaci[[#This Row],[WORD bod]]<>"",Zbirni_podaci[[#This Row],[EXCEL bod]]<>"",Zbirni_podaci[[#This Row],[P_POINT bod]]<>"",Zbirni_podaci[[#This Row],[TEST_1 bod]]<>""),ROUND(SUM(Zbirni_podaci[[#This Row],[Akt_nast_bod]:[ISPIT]]),0),"") -> 88 | S98: 9 | T98: Јун | U98: =IFERROR(IF(Zbirni_podaci[[#This Row],[ROK]]<>"",VLOOKUP(Zbirni_podaci[[#This Row],[ROK]],DATUMI,6,FALSE),""),"") -> 2019-06-14 | V98: 10 | W98: =IFERROR(IF(Zbirni_podaci[[#This Row],[ROK]]<>"",VLOOKUP(Zbirni_podaci[[#This Row],[ROK]],DATUMI,2,FALSE),""),"") -> 2019-05-27 | X98: 37 | Y98: =IFERROR(IF(Zbirni_podaci[[#This Row],[ROK]]<>"",VLOOKUP(Zbirni_podaci[[#This Row],[ROK]],DATUMI,3,FALSE),""),"") -> 2019-05-27 | Z98: 21 | AA98: =IFERROR(IF(Zbirni_podaci[[#This Row],[ROK]]<>"",VLOOKUP(Zbirni_podaci[[#This Row],[ROK]],DATUMI,4,FALSE),""),"") -> 2019-06-14 | AB98: 20 | AC98: 88 | AD98: 9 | AE98: =IFERROR(IF(Zbirni_podaci[[#This Row],[ROK]]<>"",VLOOKUP(Zbirni_podaci[[#This Row],[ROK]],DATUMI,6,FALSE),""),"") -> 2019-06-14
A99: =PODACI_STUDENTI!A98 -> 97 | B99: =PODACI_STUDENTI!B98 -> 2018/0101 | C99: =PODACI_STUDENTI!C98 -> Cuparić Kristina | D99: =PODACI_STUDENTI!D98 -> 0 | F99: =IF(OR(Predrok_Mart!F99<>"",Predrok_April!F99<>"",Januar!F99<>"",Februar!F99<>"",Juni!F99<>"",Juli!F99,Septembar!F99<>"",Oktobar!F99<>"",Oktobar_2!F99<>""),MAX(Predrok_Mart!F99,Predrok_April!F99,Januar!F99,Februar!F99,Juni!F99,Juli!F99,Septembar!F99,Oktobar!F99,Oktobar_2!F99),"") -> 26 | G99: =IF(OR(Predrok_Mart!G99<>"",Predrok_April!G99<>"",Januar!G99<>"",Februar!G99<>"",Juni!G99<>"",Juli!G99,Septembar!G99<>"",Oktobar!G99<>"",Oktobar_2!G99<>""),MAX(Predrok_Mart!G99,Predrok_April!G99,Januar!G99,Februar!G99,Juni!G99,Juli!G99,Septembar!G99,Oktobar!G99,Oktobar_2!G99),"") -> 29 | H99: =IF(OR(Predrok_Mart!H99<>"",Predrok_April!H99<>"",Januar!H99<>"",Februar!H99<>"",Juni!H99<>"",Juli!H99,Septembar!H99<>"",Oktobar!H99<>"",Oktobar_2!H99<>""),MAX(Predrok_Mart!H99,Predrok_April!H99,Januar!H99,Februar!H99,Juni!H99,Juli!H99,Septembar!H99,Oktobar!H99,Oktobar_2!H99),"") -> 30 | I99: =IF(OR(Predrok_Mart!I99<>"",Predrok_April!I99<>"",Januar!I99<>"",Februar!I99<>"",Juni!I99<>"",Juli!I99,Septembar!I99<>"",Oktobar!I99<>"",Oktobar_2!I99<>""),MAX(Predrok_Mart!I99,Predrok_April!I99,Januar!I99,Februar!I99,Juni!I99,Juli!I99,Septembar!I99,Oktobar!I99,Oktobar_2!I99),"") -> 11 | J99: =IF(Zbirni_podaci[[#This Row],[Broj indeksa]]<>"",IF(AND(Zbirni_podaci[[#This Row],[WORD]]<>"",Zbirni_podaci[[#This Row],[EXCEL]]<>"",Zbirni_podaci[[#This Row],[P_POINT]]<>"",Zbirni_podaci[[#This Row],[TEST_1]]<>""),"DA","NE"),"") -> DA | K99: =IF(Q99<>"",5,"") -> 5 | L99: =IF(Q99<>"",5,"") -> 5 | M99: 11 | N99: 13 | O99: 13 | P99: 21 | Q99: =IF(AND(Zbirni_podaci[[#This Row],[ROK]]<>"",Zbirni_podaci[[#This Row],[WORD bod]]<>"",Zbirni_podaci[[#This Row],[EXCEL bod]]<>"",Zbirni_podaci[[#This Row],[P_POINT bod]]<>"",Zbirni_podaci[[#This Row],[TEST_1 bod]]<>""),VLOOKUP(Zbirni_podaci[[#This Row],[ROK]],bodovi_aktivnost,7,FALSE),"") -> 20 | R99: =IF(AND(Zbirni_podaci[[#This Row],[Akt_nast_bod]]<>"",Zbirni_podaci[[#This Row],[Akt_vežbe_bod]]<>"",Zbirni_podaci[[#This Row],[WORD bod]]<>"",Zbirni_podaci[[#This Row],[EXCEL bod]]<>"",Zbirni_podaci[[#This Row],[P_POINT bod]]<>"",Zbirni_podaci[[#This Row],[TEST_1 bod]]<>""),ROUND(SUM(Zbirni_podaci[[#This Row],[Akt_nast_bod]:[ISPIT]]),0),"") -> 88 | S99: =IF(R99<>"",VLOOKUP(R99,$AK$3:$AM$7,3),"") -> 9 | T99: Јун | U99: =IFERROR(IF(Zbirni_podaci[[#This Row],[ROK]]<>"",VLOOKUP(Zbirni_podaci[[#This Row],[ROK]],DATUMI,6,FALSE),""),"") -> 2019-06-14 | V99: 10 | W99: =IFERROR(IF(Zbirni_podaci[[#This Row],[ROK]]<>"",VLOOKUP(Zbirni_podaci[[#This Row],[ROK]],DATUMI,2,FALSE),""),"") -> 2019-05-27 | X99: 37 | Y99: =IFERROR(IF(Zbirni_podaci[[#This Row],[ROK]]<>"",VLOOKUP(Zbirni_podaci[[#This Row],[ROK]],DATUMI,3,FALSE),""),"") -> 2019-05-27 | Z99: 21 | AA99: =IFERROR(IF(Zbirni_podaci[[#This Row],[ROK]]<>"",VLOOKUP(Zbirni_podaci[[#This Row],[ROK]],DATUMI,4,FALSE),""),"") -> 2019-06-14 | AB99: =IF(AND(S99<>"",T99<>""),Q99,"") -> 20 | AC99: =IF(V99<>"",SUM(V99,AB99,X99,Z99),"") -> 88 | AD99: =IF(AND(S99<>"",T99<>""),S99,"") -> 9 | AE99: =IFERROR(IF(Zbirni_podaci[[#This Row],[ROK]]<>"",VLOOKUP(Zbirni_podaci[[#This Row],[ROK]],DATUMI,6,FALSE),""),"") -> 2019-06-14
